Workbook

Sheet Sample Report (hidden)
A2: Date
A3: Hen
A4: Program
A5: Start at 999999
A6: Sequence component 1 | B6: Time 1 | C6: Seqeunce Component 2 | D6: Time 2 | E6: Seqeunce Component 3 | F6: Time 3 | G6: Correct 0 = No 1=Yes | J6: Seqeunce | K6: Time
A7: 12 | B7: 7 | C7: 12 | D7: 42 | E7: 13 | F7: 18 | G7: if 77 new line, if 31 or 41 = yes new line on 77, | J7: =string of Seqeunce compponent 1, 2 & 3 | K7: =time 3
A8: This continues until ther is a 1 on its own to indicate start of summary data
J9: 10-19 =1
A10: Summary Data | J10: 20-29 =2
A11: Correct | B11: Incorrect | C11: Rft | D11: total | E11: Av Correct | F11: Av Incorrect | G11: Percent correct | H11: Time | J11: in this example the seqeunce would be 111
A12: 40 | B12: 33 | C12: 40 | D12: 73 | E12: 23.95 | F12: 15 | G12: 54 | H12: 806

Sheet Summary
A2: Day | B2: Date | C2: Average Response Rate | D2: Target % | E2: RF for non correct sequence | F2: U Value | K2: Block 1 | L2: Block 2 | M2: Block 3 | N2: Block 4 | O2: Block 5 | P2: Block 6
A3: 1 | B3: ='!MA0294T.AYL'!B2:C2 -> <date> | C3: =('!MA0294T.AYL'!F198/60)/'!MA0294T.AYL'!Q3 -> 2.075868056 | D3: ='!MA0294T.AYL'!N20/'!MA0294T.AYL'!Q3 -> 0.08333333333 | E3: =SUM('!MA0294T.AYL'!L20:Q20)/'!MA0294T.AYL'!Q3 -> 1.572916667 | F3: ='!MA0294T.AYL'!Q16 -> 0.306885942 | J3: Average Response Rate | K3: =AVERAGE(C3:C7) -> 2.108964867 | L3: =AVERAGE(C8:C12) -> 1.919264101 | M3: =AVERAGE(C13:C17) -> 2.377797791 | N3: =AVERAGE(C18:C22) -> 2.864168759 | O3: =AVERAGE(C23:C27) -> 2.940175208 | P3: =AVERAGE(C28:C32) -> 2.284508969
A4: 2 | B4: ='!MA0394T.AYL'!B2:C2 -> <date> | C4: =('!MA0394T.AYL'!F196/60)/'!MA0394T.AYL'!Q3 -> 2.10377193 | D4: ='!MA0394T.AYL'!N20/'!MA0394T.AYL'!Q3 -> 0.1789473684 | E4: =SUM('!MA0394T.AYL'!L20:Q20)/'!MA0394T.AYL'!Q3 -> 1.621052632 | F4: ='!MA0394T.AYL'!Q16 -> 0.2902093863 | J4: Target % | K4: =AVERAGE(D3:D7) -> 0.1269340463 | L4: =AVERAGE(D8:D12) -> 0.2076819976 | M4: =AVERAGE(D13:D17) -> 0.1918318994 | N4: =AVERAGE(D18:D22) -> 0.2815495213 | O4: =AVERAGE(D23:D27) -> 0.3082465545 | P4: =AVERAGE(D28:D32) -> 0.4671862543
A5: 3 | B5: ='!MA04A5T.AYL'!B2:C2 -> <date> | C5: =('!MA04A5T.AYL'!F196/60)/'!MA04A5T.AYL'!Q3 -> 2.103508772 | D5: ='!MA04A5T.AYL'!N20/'!MA04A5T.AYL'!Q3 -> 0.1210526316 | E5: =SUM('!MA04A5T.AYL'!L20:Q20)/'!MA04A5T.AYL'!Q3 -> 1.036842105 | F5: ='!MA04A5T.AYL'!Q16 -> 0.2977627486 | J5: CCRF | K5: =AVERAGE(E3:E7) -> 1.491082067 | L5: =AVERAGE(E8:E12) -> 1.840154362 | M5: =AVERAGE(E13:E17) -> 1.535078693 | N5: =AVERAGE(E18:E22) -> 2.209206634 | O5: =AVERAGE(E23:E27) -> 2.321858802 | P5: =AVERAGE(E28:E32) -> 3.361444748
A6: 4 | B6: ='!MA05A0T.AYL'!B2:C2 -> <date> | C6: =('!MA05A0T.AYL'!F193/60)/'!MA05A0T.AYL'!Q3 -> 2.13030303 | D6: ='!MA05A0T.AYL'!N20/'!MA05A0T.AYL'!Q3 -> 0.1550802139 | E6: =SUM('!MA05A0T.AYL'!L20:Q20)/'!MA05A0T.AYL'!Q3 -> 1.668449198 | F6: ='!MA05A0T.AYL'!Q16 -> 0.2629631142 | J6: U Value | K6: =AVERAGE(F3:F7) -> 0.2773932637 | L6: =AVERAGE(F8:F12) -> 0.2909213337 | M6: =AVERAGE(F13:F17) -> 0.2965210196 | N6: =AVERAGE(F18:F22) -> 0.261063791 | O6: =AVERAGE(F23:F27) -> 0.2524505951 | P6: =AVERAGE(F28:F32) -> 0.2414788723
A7: 5 | B7: ='!MA0685T.AYL'!B2:C2 -> <date> | C7: =('!MA0685T.AYL'!F193/60)/'!MA0685T.AYL'!Q3 -> 2.131372549 | D7: ='!MA0685T.AYL'!N20/'!MA0685T.AYL'!Q3 -> 0.09625668449 | E7: =SUM('!MA0685T.AYL'!L20:Q20)/'!MA0685T.AYL'!Q3 -> 1.556149733 | F7: ='!MA0685T.AYL'!Q16 -> 0.2291451275
A8: 6 | B8: ='!MA0791T.AYL'!B2:C2 -> <date> | C8: =('!MA0791T.AYL'!F196/60)/'!MA0791T.AYL'!Q3 -> 2.104035088 | D8: ='!MA0791T.AYL'!N20/'!MA0791T.AYL'!Q3 -> 0.1526315789 | E8: =SUM('!MA0791T.AYL'!L20:Q20)/'!MA0791T.AYL'!Q3 -> 1.594736842 | F8: ='!MA0791T.AYL'!Q16 -> 0.2942603669
A9: 7 | B9: ='!MA08A5T.AYL'!B2:C2 -> <date> | C9: =('!MA08A5T.AYL'!F260/60)/'!MA08A5T.AYL'!Q3 -> 0 | D9: ='!MA08A5T.AYL'!N20/'!MA08A5T.AYL'!Q3 -> 0.07874015748 | E9: =SUM('!MA08A5T.AYL'!L20:Q20)/'!MA08A5T.AYL'!Q3 -> 1.248031496 | F9: ='!MA08A5T.AYL'!Q16 -> 0.3261814915 | G9: =K3 -> 2.108964867 | H9: =L3 -> 1.919264101 | I9: 2.377797791 | J9: 2.864168759 | K9: 2.940175208 | L9: 2.284508969 | M9: =K4 -> 0.1269340463 | N9: =L4 -> 0.2076819976 | O9: 0.1918318994 | P9: 0.2815495213 | Q9: 0.3082465545 | R9: 0.4671862543 | S9: =K6 -> 0.2773932637 | T9: =L6 -> 0.2909213337 | U9: 0.2965210196 | V9: 0.261063791 | W9: 0.2524505951 | X9: 0.2414788723
A10: 8 | B10: ='!MA0992T.AYL'!B2:C2 -> <date> | C10: =('!MA0992T.AYL'!F170/60)/'!MA0992T.AYL'!Q3 -> 2.397154472 | D10: ='!MA0992T.AYL'!N20/'!MA0992T.AYL'!Q3 -> 0.243902439 | E10: =SUM('!MA0992T.AYL'!L20:Q20)/'!MA0992T.AYL'!Q3 -> 1.926829268 | F10: ='!MA0992T.AYL'!Q16 -> 0.2654088308
A11: 9 | B11: ='!MA10A3T.AYL'!B2:C2 -> <date> | C11: =('!MA10A3T.AYL'!F133/60)/'!MA10A3T.AYL'!Q3 -> 2.181627297 | D11: ='!MA10A3T.AYL'!N20/'!MA10A3T.AYL'!Q3 -> 0.3149606299 | E11: =SUM('!MA10A3T.AYL'!L20:Q20)/'!MA10A3T.AYL'!Q3 -> 2.307086614 | F11: ='!MA10A3T.AYL'!Q16 -> 0.2786016039
A12: 10 | B12: ='!MA11B0T.AYL'!B2:C2 -> <date> | C12: =('!MA11B0T.AYL'!F143/60)/'!MA11B0T.AYL'!Q3 -> 2.91350365 | D12: ='!MA11B0T.AYL'!N20/'!MA11B0T.AYL'!Q3 -> 0.2481751825 | E12: =SUM('!MA11B0T.AYL'!L20:Q20)/'!MA11B0T.AYL'!Q3 -> 2.124087591 | F12: ='!MA11B0T.AYL'!Q16 -> 0.2901543751
A13: 11 | B13: ='!MA1291T.AYL'!B2:C2 -> <date> | C13: =('!MA1291T.AYL'!F177/60)/'!MA1291T.AYL'!Q3 -> 2.336647173 | D13: ='!MA1291T.AYL'!N20/'!MA1291T.AYL'!Q3 -> 0.1403508772 | E13: =SUM('!MA1291T.AYL'!L20:Q20)/'!MA1291T.AYL'!Q3 -> 1.187134503 | F13: ='!MA1291T.AYL'!Q16 -> 0.3299566635
A14: 12 | B14: ='!MA13A3T.AYL'!B2:C2 -> <date> | C14: =('!MA13A3T.AYL'!F163/60)/'!MA13A3T.AYL'!Q3 -> 2.241932059 | D14: ='!MA13A3T.AYL'!N20/'!MA13A3T.AYL'!Q3 -> 0.2547770701 | E14: =SUM('!MA13A3T.AYL'!L20:Q20)/'!MA13A3T.AYL'!Q3 -> 1.993630573 | F14: ='!MA13A3T.AYL'!Q16 -> 0.3717934795
A15: 13 | B15: ='!MA14A0T.AYL'!B2:C2 -> <date> | C15: =('!MA14A0T.AYL'!F185/60)/'!MA14A0T.AYL'!Q3 -> 2.231098696 | D15: ='!MA14A0T.AYL'!N20/'!MA14A0T.AYL'!Q3 -> 0.08938547486 | E15: =SUM('!MA14A0T.AYL'!L20:Q20)/'!MA14A0T.AYL'!Q3 -> 1.044692737 | F15: ='!MA14A0T.AYL'!Q16 -> 0.2531918092
A16: 14 | B16: ='!MA15A4T.AYL'!B2:C2 -> <date> | C16: =('!MA15A4T.AYL'!F117/60)/'!MA15A4T.AYL'!Q3 -> 2.801501502 | D16: ='!MA15A4T.AYL'!N20/'!MA15A4T.AYL'!Q3 -> 0.3603603604 | E16: =SUM('!MA15A4T.AYL'!L20:Q20)/'!MA15A4T.AYL'!Q3 -> 1.792792793 | F16: ='!MA15A4T.AYL'!Q16 -> 0.2506982038
A17: 15 | B17: ='!MA1692T.AYL'!B2:C2 -> <date> | C17: =('!MA1692T.AYL'!F181/60)/'!MA1692T.AYL'!Q3 -> 2.277809524 | D17: ='!MA1692T.AYL'!N20/'!MA1692T.AYL'!Q3 -> 0.1142857143 | E17: =SUM('!MA1692T.AYL'!L20:Q20)/'!MA1692T.AYL'!Q3 -> 1.657142857 | F17: ='!MA1692T.AYL'!Q16 -> 0.2769649419
A18: 16 | B18: ='!MA17B1T.AYL'!B2:C2 -> <date> | C18: =('!MA17B1T.AYL'!F148/60)/'!MA17B1T.AYL'!Q3 -> 2.625234742 | D18: ='!MA17B1T.AYL'!N20/'!MA17B1T.AYL'!Q3 -> 0.2816901408 | E18: =SUM('!MA17B1T.AYL'!L20:Q20)/'!MA17B1T.AYL'!Q3 -> 2.098591549 | F18: ='!MA17B1T.AYL'!Q16 -> 0.2843832848
A19: 17 | B19: ='!MA18A3T.AYL'!B2:C2 -> <date> | C19: =('!MA18A3T.AYL'!F161/60)/'!MA18A3T.AYL'!Q3 -> 2.578064516 | D19: ='!MA18A3T.AYL'!N20/'!MA18A3T.AYL'!Q3 -> 0.2258064516 | E19: =SUM('!MA18A3T.AYL'!L20:Q20)/'!MA18A3T.AYL'!Q3 -> 1.277419355 | F19: ='!MA18A3T.AYL'!Q16 -> 0.2392221765
A20: 18 | B20: ='!MA1994T.AYL'!B2:C2 -> <date> | C20: =('!MA1994T.AYL'!F97/60)/'!MA1994T.AYL'!Q3 -> 4.030978261 | D20: ='!MA1994T.AYL'!N20/'!MA1994T.AYL'!Q3 -> 0.3152173913 | E20: =SUM('!MA1994T.AYL'!L20:Q20)/'!MA1994T.AYL'!Q3 -> 3.065217391 | F20: ='!MA1994T.AYL'!Q16 -> 0.2619022104
A21: 19 | B21: ='!MA2092T.AYL'!B2:C2 -> <date> | C21: =('!MA2092T.AYL'!F133/60)/'!MA2092T.AYL'!Q3 -> 2.169291339 | D21: ='!MA2092T.AYL'!N20/'!MA2092T.AYL'!Q3 -> 0.3149606299 | E21: =SUM('!MA2092T.AYL'!L20:Q20)/'!MA2092T.AYL'!Q3 -> 2.385826772 | F21: ='!MA2092T.AYL'!Q16 -> 0.2498039359
A22: 20 | B22: ='!MA2194T.AYL'!B2:C2 -> <date> | C22: =('!MA2194T.AYL'!F143/60)/'!MA2194T.AYL'!Q3 -> 2.917274939 | D22: ='!MA2194T.AYL'!N20/'!MA2194T.AYL'!Q3 -> 0.2700729927 | E22: =SUM('!MA2194T.AYL'!L20:Q20)/'!MA2194T.AYL'!Q3 -> 2.218978102 | F22: ='!MA2194T.AYL'!Q16 -> 0.2700073473
A23: 21 | B23: ='!MA22B0T.AYL'!B2:C2 -> <date> | C23: =('!MA22B0T.AYL'!F133/60)/'!MA22B0T.AYL'!Q3 -> 2.330839895 | D23: ='!MA22B0T.AYL'!N20/'!MA22B0T.AYL'!Q3 -> 0.3149606299 | E23: =SUM('!MA22B0T.AYL'!L20:Q20)/'!MA22B0T.AYL'!Q3 -> 2.307086614 | F23: ='!MA22B0T.AYL'!Q16 -> 0.2550481838
A24: 22 | B24: ='!MA23B1T.AYL'!B2:C2 -> <date> | C24: =('!MA23B1T.AYL'!F139/60)/'!MA23B1T.AYL'!Q3 -> 2.627819549 | D24: ='!MA23B1T.AYL'!N20/'!MA23B1T.AYL'!Q3 -> 0.3007518797 | E24: =SUM('!MA23B1T.AYL'!L20:Q20)/'!MA23B1T.AYL'!Q3 -> 1.473684211 | F24: ='!MA23B1T.AYL'!Q16 -> 0.2487524217
A25: 23 | B25: ='!MA24A4T.AYL'!B2:C2 -> <date> | C25: =('!MA24A4T.AYL'!F138/60)/'!MA24A4T.AYL'!Q3 -> 2.553787879 | D25: ='!MA24A4T.AYL'!N20/'!MA24A4T.AYL'!Q3 -> 0.303030303 | E25: =SUM('!MA24A4T.AYL'!L20:Q20)/'!MA24A4T.AYL'!Q3 -> 2.234848485 | F25: ='!MA24A4T.AYL'!Q16 -> 0.2447540862
A26: 24 | B26: ='!MA25A3T.AYL'!B2:C2 -> <date> | C26: =('!MA25A3T.AYL'!F89/60)/'!MA25A3T.AYL'!Q3 -> 4.653012048 | D26: ='!MA25A3T.AYL'!N20/'!MA25A3T.AYL'!Q3 -> 0.2891566265 | E26: =SUM('!MA25A3T.AYL'!L20:Q20)/'!MA25A3T.AYL'!Q3 -> 3.168674699 | F26: ='!MA25A3T.AYL'!Q16 -> 0.2936370861
A27: 25 | B27: ='!MA26A5T.AYL'!B2:C2 -> <date> | C27: =('!MA26A5T.AYL'!F126/60)/'!MA26A5T.AYL'!Q3 -> 2.535416667 | D27: ='!MA26A5T.AYL'!N20/'!MA26A5T.AYL'!Q3 -> 0.3333333333 | E27: =SUM('!MA26A5T.AYL'!L20:Q20)/'!MA26A5T.AYL'!Q3 -> 2.425 | F27: ='!MA26A5T.AYL'!Q16 -> 0.2200611977
A28: 26 | B28: ='!MA27A2T.AYL'!B2:C2 -> <date> | C28: =('!MA27A2T.AYL'!F104/60)/'!MA27A2T.AYL'!Q3 -> 2.281972789 | D28: ='!MA27A2T.AYL'!N20/'!MA27A2T.AYL'!Q3 -> 0.4081632653 | E28: =SUM('!MA27A2T.AYL'!L20:Q20)/'!MA27A2T.AYL'!Q3 -> 3 | F28: ='!MA27A2T.AYL'!Q16 -> 0.2278110637
A29: 27 | B29: ='!MA28A3T.AYL'!B2:C2 -> <date> | C29: =('!MA28A3T.AYL'!F118/60)/'!MA28A3T.AYL'!Q3 -> 2.263095238 | D29: ='!MA28A3T.AYL'!N20/'!MA28A3T.AYL'!Q3 -> 0.3571428571 | E29: =SUM('!MA28A3T.AYL'!L20:Q20)/'!MA28A3T.AYL'!Q3 -> 2.660714286 | F29: ='!MA28A3T.AYL'!Q16 -> 0.2424176536
A30: 28 | B30: ='!MA29A4T.AYL'!B2:C2 -> <date> | C30: =('!MA29A4T.AYL'!F92/60)/'!MA29A4T.AYL'!Q3 -> 2.242248062 | D30: ='!MA29A4T.AYL'!N20/'!MA29A4T.AYL'!Q3 -> 0.4651162791 | E30: =SUM('!MA29A4T.AYL'!L20:Q20)/'!MA29A4T.AYL'!Q3 -> 3.372093023 | F30: ='!MA29A4T.AYL'!Q16 -> 0.2576662935
A31: 29 | B31: ='!MA30A0T.AYL'!B2:C2 -> <date> | C31: =('!MA30A0T.AYL'!F69/60)/'!MA30A0T.AYL'!Q3 -> 2.327777778 | D31: ='!MA30A0T.AYL'!N20/'!MA30A0T.AYL'!Q3 -> 0.6349206349 | E31: =SUM('!MA30A0T.AYL'!L20:Q20)/'!MA30A0T.AYL'!Q3 -> 4.492063492 | F31: ='!MA30A0T.AYL'!Q16 -> 0.2401115605
A32: 30 | B32: ='!MA31A2T.AYL'!B2:C2 -> <date> | C32: =('!MA31A2T.AYL'!F91/60)/'!MA31A2T.AYL'!Q3 -> 2.30745098 | D32: ='!MA31A2T.AYL'!N20/'!MA31A2T.AYL'!Q3 -> 0.4705882353 | E32: =SUM('!MA31A2T.AYL'!L20:Q20)/'!MA31A2T.AYL'!Q3 -> 3.282352941 | F32: ='!MA31A2T.AYL'!Q16 -> 0.23938779

Sheet Start
F1: Use Folder 51 | H1: Auto Clean Up | J1: Correct sequence
F2: FALSE | H2: TRUE | J2: 221
A4: Working with Folder | G4: Process All/Or Pick A number: ALL or an integer
A5: F:\Possum Chapter\Raw Data\Taylor\New Phase RRL Con\ | G5: ALL
A6: Filenames:
A7: !MA2092T.AYL | G7: Paint Cells
A8: !MA2194T.AYL | G8: FALSE
A9: !MA22B0T.AYL
A10: !MA23B1T.AYL
A11: !MA24A4T.AYL
A12: !MA25A3T.AYL
A13: !MA26A5T.AYL
A14: !MA27A2T.AYL
A15: !MA28A3T.AYL
A16: !MA29A4T.AYL
A17: !MA30A0T.AYL
A18: !MA31A2T.AYL
A19: !MA0294T.AYL
A20: !MA0394T.AYL
A21: !MA04A5T.AYL
A22: !MA05A0T.AYL
A23: !MA0685T.AYL
A24: !MA0791T.AYL
A25: !MA08A5T.AYL
A26: !MA0992T.AYL
A27: !MA10A3T.AYL
A28: !MA11B0T.AYL
A29: !MA1291T.AYL
A30: !MA13A3T.AYL
A31: !MA14A0T.AYL
A32: !MA15A4T.AYL
A33: !MA1692T.AYL
A34: !MA17B1T.AYL
A35: !MA18A3T.AYL
A36: !MA1994T.AYL

Sheet !MA0294T.AYL
A1: Report for:!MA0294T.AYL
A2: Date: | B2: <date>
A3: Hen: | B3: <hen> | F3: Correct Sequence | G3: =Start!J2 -> 221 | P3: Total Sequences in Data | Q3: =4994-COUNTBLANK(L7:L5000) -> 192 | V3: Total Sequences in Block Data | W3: =COUNTA(L7:L38) -> 32 | AA3: Total Sequences in Block Data | AB3: =COUNTA(L39:L70) -> 32 | AF3: Total Sequences in Block Data | AG3: =COUNTA(L71:L102) -> 32 | AK3: Total Sequences in Block Data | AL3: =COUNTA(L103:L134) -> 32 | AP3: Total Sequences in Block Data | AQ3: =COUNTA(L135:L166) -> 32 | AU3: Total Sequences in Block Data | AV3: =COUNTA(L167:L198) -> 32
P4: Total Sequences in Summary | Q4: =SUM(O7:O14) -> 192 | V4: Total Sequences in Block Summary | W4: =SUM(U7:U14) -> 32 | AA4: Total Sequences in Block Summary | AB4: =SUM(Z7:Z14) -> 32 | AF4: Total Sequences in Block Summary | AG4: =SUM(AE7:AE14) -> 32 | AK4: Total Sequences in Block Summary | AL4: =SUM(AJ7:AJ14) -> 32 | AP4: Total Sequences in Block Summary | AQ4: =SUM(AO7:AO14) -> 32 | AU4: Total Sequences in Block Summary | AV4: =SUM(AT7:AT14) -> 32
T5: Block 1 | Y5: Block 2 | AD5: Block 3 | AI5: Block 4 | AN5: Block 5 | AS5: Block 6
A6: Sequence Component 1 | B6: Time 1 | C6: Sequence Component 2 | D6: Time 2 | E6: Sequence Component 3 | F6: Time 3 | G6: Sequence Component 4 | H6: Time 4 | I6: Sequence Component 5 | J6: Time 5 | K6: Correct? 0=No 1=Yes | L6: Sequence | N6: Frequency | P6: Relative Frequency | Q6: Variability | T6: Frequency | V6: Relative Frequency | W6: Variability | Y6: Frequency | AA6: Relative Frequency | AB6: Variability | AD6: Frequency | AF6: Relative Frequency | AG6: Variability | AI6: Frequency | AK6: Relative Frequency | AL6: Variability | AN6: Frequency | AP6: Relative Frequency | AQ6: Variability | AS6: Frequency | AU6: Relative Frequency | AV6: Variability
A7: 21 | B7: 14 | C7: 21 | D7: 19 | E7: 22 | F7: 33 | K7: 0 | L7: 222 | N7: 111 | O7: =COUNTIF($L$7:$L$500,N7) -> 44 | P7: =O7/$Q$4 -> 0.2291666667 | Q7: =IF(P7=0,0,(P7*((LOG(P7))/LOG(2)))) -> -0.4871008271 | T7: =N7 -> 111 | U7: =COUNTIF(L7:L38,T7) -> 1 | V7: =U7/(W4-U13) -> 0.03125 | W7: =IF(V7=0,0,(V7*((LOG(V7))/LOG(2)))) -> -0.15625 | Y7: =N7 -> 111 | Z7: =COUNTIF(L39:L70,Y7) -> 9 | AA7: =Z7/(AB4-Z13) -> 0.3103448276 | AB7: =IF(AA7=0,0,(AA7*((LOG(AA7))/LOG(2)))) -> -0.5238794463 | AD7: =N7 -> 111 | AE7: =COUNTIF(L71:L102,AD7) -> 10 | AF7: =AE7/(AG4-AE13) -> 0.3333333333 | AG7: =IF(AF7=0,0,(AF7*((LOG(AF7))/LOG(2)))) -> -0.5283208336 | AI7: =N7 -> 111 | AJ7: =COUNTIF(L103:L134,AI7) -> 8 | AK7: =AJ7/(AL4-AJ13) -> 0.2666666667 | AL7: =IF(AK7=0,0,(AK7*((LOG(AK7))/LOG(2)))) -> -0.5085041588 | AN7: =N7 -> 111 | AO7: =COUNTIF(L135:L166,AN7) -> 6 | AP7: =AO7/(AQ4-AO13) -> 0.2222222222 | AQ7: =IF(AP7=0,0,(AP7*((LOG(AP7))/LOG(2)))) -> -0.4822055559 | AS7: =N7 -> 111 | AT7: =COUNTIF(L167:L198,AS7) -> 10 | AU7: =AT7/(AV4-AT13) -> 0.3571428571 | AV7: =IF(AU7=0,0,(AU7*((LOG(AU7))/LOG(2)))) -> -0.5305095811
A8: 12 | B8: 130 | C8: 23 | D8: 140 | E8: 24 | F8: 144 | K8: 0 | L8: 122 | N8: 112 | O8: =COUNTIF($L$7:$L$500,N8) -> 3 | P8: =O8/$Q$4 -> 0.015625 | Q8: =IF(P8=0,0,(P8*((LOG(P8))/LOG(2)))) -> -0.09375 | T8: =N8 -> 112 | U8: =COUNTIF(L7:L38,T8) -> 1 | V8: =U8/(W4-U13) -> 0.03125 | W8: =IF(V8=0,0,(V8*((LOG(V8))/LOG(2)))) -> -0.15625 | Y8: =N8 -> 112 | Z8: =COUNTIF(L39:L70,Y8) -> 0 | AA8: =Z8/(AB4-Z13) -> 0 | AB8: =IF(AA8=0,0,(AA8*((LOG(AA8))/LOG(2)))) -> 0 | AD8: =N8 -> 112 | AE8: =COUNTIF(L71:L102,AD8) -> 0 | AF8: =AE8/(AG4-AE13) -> 0 | AG8: =IF(AF8=0,0,(AF8*((LOG(AF8))/LOG(2)))) -> 0 | AI8: =N8 -> 112 | AJ8: =COUNTIF(L103:L134,AI8) -> 1 | AK8: =AJ8/(AL4-AJ13) -> 0.03333333333 | AL8: =IF(AK8=0,0,(AK8*((LOG(AK8))/LOG(2)))) -> -0.1635630199 | AN8: =N8 -> 112 | AO8: =COUNTIF(L135:L166,AN8) -> 1 | AP8: =AO8/(AQ4-AO13) -> 0.03703703704 | AQ8: =IF(AP8=0,0,(AP8*((LOG(AP8))/LOG(2)))) -> -0.1761069445 | AS8: =N8 -> 112 | AT8: =COUNTIF(L167:L198,AS8) -> 0 | AU8: =AT8/(AV4-AT13) -> 0 | AV8: =IF(AU8=0,0,(AU8*((LOG(AU8))/LOG(2)))) -> 0
A9: 21 | B9: 255 | C9: 21 | D9: 258 | E9: 22 | F9: 262 | K9: 0 | L9: 222 | N9: 121 | O9: =COUNTIF($L$7:$L$500,N9) -> 3 | P9: =O9/$Q$4 -> 0.015625 | Q9: =IF(P9=0,0,(P9*((LOG(P9))/LOG(2)))) -> -0.09375 | T9: =N9 -> 121 | U9: =COUNTIF(L7:L38,T9) -> 1 | V9: =U9/(W4-U13) -> 0.03125 | W9: =IF(V9=0,0,(V9*((LOG(V9))/LOG(2)))) -> -0.15625 | Y9: =N9 -> 121 | Z9: =COUNTIF(L39:L70,Y9) -> 0 | AA9: =Z9/(AB4-Z13) -> 0 | AB9: =IF(AA9=0,0,(AA9*((LOG(AA9))/LOG(2)))) -> 0 | AD9: =N9 -> 121 | AE9: =COUNTIF(L71:L102,AD9) -> 1 | AF9: =AE9/(AG4-AE13) -> 0.03333333333 | AG9: =IF(AF9=0,0,(AF9*((LOG(AF9))/LOG(2)))) -> -0.1635630199 | AI9: =N9 -> 121 | AJ9: =COUNTIF(L103:L134,AI9) -> 0 | AK9: =AJ9/(AL4-AJ13) -> 0 | AL9: =IF(AK9=0,0,(AK9*((LOG(AK9))/LOG(2)))) -> 0 | AN9: =N9 -> 121 | AO9: =COUNTIF(L135:L166,AN9) -> 0 | AP9: =AO9/(AQ4-AO13) -> 0 | AQ9: =IF(AP9=0,0,(AP9*((LOG(AP9))/LOG(2)))) -> 0 | AS9: =N9 -> 121 | AT9: =COUNTIF(L167:L198,AS9) -> 1 | AU9: =AT9/(AV4-AT13) -> 0.03571428571 | AV9: =IF(AU9=0,0,(AU9*((LOG(AU9))/LOG(2)))) -> -0.1716912472
A10: 21 | B10: 365 | C10: 21 | D10: 373 | E10: 22 | F10: 376 | K10: 0 | L10: 222 | N10: 122 | O10: =COUNTIF($L$7:$L$500,N10) -> 5 | P10: =O10/$Q$4 -> 0.02604166667 | Q10: =IF(P10=0,0,(P10*((LOG(P10))/LOG(2)))) -> -0.1370581877 | T10: =N10 -> 122 | U10: =COUNTIF(L7:L38,T10) -> 3 | V10: =U10/(W4-U13) -> 0.09375 | W10: =IF(V10=0,0,(V10*((LOG(V10))/LOG(2)))) -> -0.3201597656 | Y10: =N10 -> 122 | Z10: =COUNTIF(L39:L70,Y10) -> 1 | AA10: =Z10/(AB4-Z13) -> 0.03448275862 | AB10: =IF(AA10=0,0,(AA10*((LOG(AA10))/LOG(2)))) -> -0.167516586 | AD10: =N10 -> 122 | AE10: =COUNTIF(L71:L102,AD10) -> 0 | AF10: =AE10/(AG4-AE13) -> 0 | AG10: =IF(AF10=0,0,(AF10*((LOG(AF10))/LOG(2)))) -> 0 | AI10: =N10 -> 122 | AJ10: =COUNTIF(L103:L134,AI10) -> 0 | AK10: =AJ10/(AL4-AJ13) -> 0 | AL10: =IF(AK10=0,0,(AK10*((LOG(AK10))/LOG(2)))) -> 0 | AN10: =N10 -> 122 | AO10: =COUNTIF(L135:L166,AN10) -> 0 | AP10: =AO10/(AQ4-AO13) -> 0 | AQ10: =IF(AP10=0,0,(AP10*((LOG(AP10))/LOG(2)))) -> 0 | AS10: =N10 -> 122 | AT10: =COUNTIF(L167:L198,AS10) -> 1 | AU10: =AT10/(AV4-AT13) -> 0.03571428571 | AV10: =IF(AU10=0,0,(AU10*((LOG(AU10))/LOG(2)))) -> -0.1716912472
A11: 12 | B11: 475 | C11: 23 | D11: 489 | E11: 24 | F11: 493 | K11: 0 | L11: 122 | N11: 211 | O11: =COUNTIF($L$7:$L$500,N11) -> 70 | P11: =O11/$Q$4 -> 0.3645833333 | Q11: =IF(P11=0,0,(P11*((LOG(P11))/LOG(2)))) -> -0.5307164785 | T11: =N11 -> 211 | U11: =COUNTIF(L7:L38,T11) -> 1 | V11: =U11/(W4-U13) -> 0.03125 | W11: =IF(V11=0,0,(V11*((LOG(V11))/LOG(2)))) -> -0.15625 | Y11: =N11 -> 211 | Z11: =COUNTIF(L39:L70,Y11) -> 5 | AA11: =Z11/(AB4-Z13) -> 0.1724137931 | AB11: =IF(AA11=0,0,(AA11*((LOG(AA11))/LOG(2)))) -> -0.4372505 | AD11: =N11 -> 211 | AE11: =COUNTIF(L71:L102,AD11) -> 13 | AF11: =AE11/(AG4-AE13) -> 0.4333333333 | AG11: =IF(AF11=0,0,(AF11*((LOG(AF11))/LOG(2)))) -> -0.5227953802 | AI11: =N11 -> 211 | AJ11: =COUNTIF(L103:L134,AI11) -> 19 | AK11: =AJ11/(AL4-AJ13) -> 0.6333333333 | AL11: =IF(AK11=0,0,(AK11*((LOG(AK11))/LOG(2)))) -> -0.4173432854 | AN11: =N11 -> 211 | AO11: =COUNTIF(L135:L166,AN11) -> 17 | AP11: =AO11/(AQ4-AO13) -> 0.6296296296 | AQ11: =IF(AP11=0,0,(AP11*((LOG(AP11))/LOG(2)))) -> -0.4202303421 | AS11: =N11 -> 211 | AT11: =COUNTIF(L167:L198,AS11) -> 15 | AU11: =AT11/(AV4-AT13) -> 0.5357142857 | AV11: =IF(AU11=0,0,(AU11*((LOG(AU11))/LOG(2)))) -> -0.4823916035
A12: 21 | B12: 600 | C12: 21 | D12: 602 | E12: 22 | F12: 608 | K12: 0 | L12: 222 | N12: 212 | O12: =COUNTIF($L$7:$L$500,N12) -> 9 | P12: =O12/$Q$4 -> 0.046875 | Q12: =IF(P12=0,0,(P12*((LOG(P12))/LOG(2)))) -> -0.2069548828 | T12: =N12 -> 212 | U12: =COUNTIF(L7:L38,T12) -> 3 | V12: =U12/(W4-U13) -> 0.09375 | W12: =IF(V12=0,0,(V12*((LOG(V12))/LOG(2)))) -> -0.3201597656 | Y12: =N12 -> 212 | Z12: =COUNTIF(L39:L70,Y12) -> 2 | AA12: =Z12/(AB4-Z13) -> 0.06896551724 | AB12: =IF(AA12=0,0,(AA12*((LOG(AA12))/LOG(2)))) -> -0.2660676548 | AD12: =N12 -> 212 | AE12: =COUNTIF(L71:L102,AD12) -> 2 | AF12: =AE12/(AG4-AE13) -> 0.06666666667 | AG12: =IF(AF12=0,0,(AF12*((LOG(AF12))/LOG(2)))) -> -0.260459373 | AI12: =N12 -> 212 | AJ12: =COUNTIF(L103:L134,AI12) -> 1 | AK12: =AJ12/(AL4-AJ13) -> 0.03333333333 | AL12: =IF(AK12=0,0,(AK12*((LOG(AK12))/LOG(2)))) -> -0.1635630199 | AN12: =N12 -> 212 | AO12: =COUNTIF(L135:L166,AN12) -> 1 | AP12: =AO12/(AQ4-AO13) -> 0.03703703704 | AQ12: =IF(AP12=0,0,(AP12*((LOG(AP12))/LOG(2)))) -> -0.1761069445 | AS12: =N12 -> 212 | AT12: =COUNTIF(L167:L198,AS12) -> 0 | AU12: =AT12/(AV4-AT13) -> 0 | AV12: =IF(AU12=0,0,(AU12*((LOG(AU12))/LOG(2)))) -> 0
A13: 21 | B13: 705 | C13: 21 | D13: 717 | E13: 22 | F13: 720 | K13: 0 | L13: 222 | N13: 221 | O13: =COUNTIF($L$7:$L$500,N13) -> 16 | P13: =O13/$Q$4 -> 0.08333333333 | Q13: =IF(P13=0,0,(P13*((LOG(P13))/LOG(2)))) -> -0.2987468751 | T13: =N13 -> 221 | U13: =COUNTIF(L7:L38,T13) -> 0 | Y13: =N13 -> 221 | Z13: =COUNTIF(L39:L70,Y13) -> 3 | AD13: =N13 -> 221 | AE13: =COUNTIF(L71:L102,AD13) -> 2 | AI13: =N13 -> 221 | AJ13: =COUNTIF(L103:L134,AI13) -> 2 | AN13: =N13 -> 221 | AO13: =COUNTIF(L135:L166,AN13) -> 5 | AS13: =N13 -> 221 | AT13: =COUNTIF(L167:L198,AS13) -> 4
A14: 21 | B14: 817 | C14: 21 | D14: 833 | E14: 22 | F14: 841 | K14: 0 | L14: 222 | N14: 222 | O14: =COUNTIF($L$7:$L$500,N14) -> 42 | P14: =O14/$Q$4 -> 0.21875 | Q14: =IF(P14=0,0,(P14*((LOG(P14))/LOG(2)))) -> -0.4796411108 | T14: =N14 -> 222 | U14: =COUNTIF(L7:L38,T14) -> 22 | V14: =U14/(W4-U13) -> 0.6875 | W14: =IF(V14=0,0,(V14*((LOG(V14))/LOG(2)))) -> -0.3716407622 | Y14: =N14 -> 222 | Z14: =COUNTIF(L39:L70,Y14) -> 12 | AA14: =Z14/(AB4-Z13) -> 0.4137931034 | AB14: =IF(AA14=0,0,(AA14*((LOG(AA14))/LOG(2)))) -> -0.5267662735 | AD14: =N14 -> 222 | AE14: =COUNTIF(L71:L102,AD14) -> 4 | AF14: =AE14/(AG4-AE13) -> 0.1333333333 | AG14: =IF(AF14=0,0,(AF14*((LOG(AF14))/LOG(2)))) -> -0.3875854127 | AI14: =N14 -> 222 | AJ14: =COUNTIF(L103:L134,AI14) -> 1 | AK14: =AJ14/(AL4-AJ13) -> 0.03333333333 | AL14: =IF(AK14=0,0,(AK14*((LOG(AK14))/LOG(2)))) -> -0.1635630199 | AN14: =N14 -> 222 | AO14: =COUNTIF(L135:L166,AN14) -> 2 | AP14: =AO14/(AQ4-AO13) -> 0.07407407407 | AQ14: =IF(AP14=0,0,(AP14*((LOG(AP14))/LOG(2)))) -> -0.278139815 | AS14: =N14 -> 222 | AT14: =COUNTIF(L167:L198,AS14) -> 1 | AU14: =AT14/(AV4-AT13) -> 0.03571428571 | AV14: =IF(AU14=0,0,(AU14*((LOG(AU14))/LOG(2)))) -> -0.1716912472
A15: 21 | B15: 940 | C15: 21 | D15: 951 | E15: 22 | F15: 954 | K15: 0 | L15: 222 | P15: =SUM(P7:P14) -> 1 | Q15: =-SUM(Q7:Q14) -> 2.327718362 | V15: =SUM(V7:V14) -> 1 | W15: =-SUM(W7:W14) -> 1.636960293 | AA15: =SUM(AA7:AA14) -> 1 | AB15: =-SUM(AB7:AB14) -> 1.921480461 | AF15: =SUM(AF7:AF14) -> 1 | AG15: =-SUM(AG7:AG14) -> 1.862724019 | AK15: =SUM(AK7:AK14) -> 1 | AL15: =-SUM(AL7:AL14) -> 1.416536504 | AP15: =SUM(AP7:AP14) -> 1 | AQ15: =-SUM(AQ7:AQ14) -> 1.532789602 | AU15: =SUM(AU7:AU14) -> 1 | AV15: =-SUM(AV7:AV14) -> 1.527974926
A16: 21 | B16: 1063 | C16: 21 | D16: 1065 | E16: 22 | F16: 1070 | K16: 0 | L16: 222 | P16: U= | Q16: =Q15/(LOG(Q4)/LOG(2)) -> 0.306885942 | V16: U1= | W16: =W15/(LOG(W4)/LOG(2)) -> 0.3273920587 | AA16: U2= | AB16: =AB15/(LOG(AB4)/LOG(2)) -> 0.3842960922 | AF16: U3= | AG16: =AG15/(LOG(AG4)/LOG(2)) -> 0.3725448039 | AK16: U4= | AL16: =AL15/(LOG(AL4)/LOG(2)) -> 0.2833073008 | AP16: U5= | AQ16: =AQ15/(LOG(AQ4)/LOG(2)) -> 0.3065579204 | AU16: U6= | AV16: =AV15/(LOG(AV4)/LOG(2)) -> 0.3055949852
A17: 12 | B17: 1167 | C17: 14 | D17: 1170 | E17: 24 | F17: 1181 | K17: 0 | L17: 112
A18: 21 | B18: 1294 | C18: 21 | D18: 1297 | E18: 22 | F18: 1303 | K18: 0 | L18: 222
A19: 21 | B19: 1401 | C19: 21 | D19: 1416 | E19: 22 | F19: 1420 | K19: 0 | L19: 222 | N19: Total Target Seq
A20: 21 | B20: 1518 | C20: 21 | D20: 1529 | E20: 22 | F20: 1548 | K20: 0 | L20: 222 | N20: =COUNTIF(L7:L198,G3) -> 16 | P20: 32 | Q20: 32 | R20: 32 | S20: 32 | T20: 32 | U20: 32
A21: 21 | B21: 1646 | C21: 21 | D21: 1649 | E21: 22 | F21: 1662 | K21: 0 | L21: 222 | P21: % of reinforcement given in 6 equal intervals based on number of trials
A22: 21 | B22: 1790 | C22: 21 | D22: 1793 | E22: 22 | F22: 1805 | K22: 0 | L22: 222 | P22: %_1 | Q22: %_2 | R22: %_3 | S22: %_4 | T22: %_5 | U22: %_6
A23: 21 | B23: 1916 | C23: 21 | D23: 1919 | E23: 22 | F23: 1924 | K23: 0 | L23: 222 | O23: target sequence | P23: =$G$3 -> 221 | Q23: =$G$3 -> 221 | R23: =$G$3 -> 221 | S23: =$G$3 -> 221 | T23: =$G$3 -> 221 | U23: =$G$3 -> 221
A24: 21 | B24: 2021 | C24: 12 | D24: 2030 | E24: 24 | F24: 2036 | K24: 0 | L24: 212 | O24: total reinforcement | P24: =U13 -> 0 | Q24: =Z13 -> 3 | R24: =AE13 -> 2 | S24: =AJ13 -> 2 | T24: =AO13 -> 5 | U24: =AT13 -> 4
A25: 12 | B25: 2143 | C25: 23 | D25: 2148 | E25: 24 | F25: 2156 | K25: 0 | L25: 122 | O25: % target
A26: 21 | B26: 2255 | C26: 12 | D26: 2266 | E26: 13 | F26: 2268 | K26: 0 | L26: 211 | O26: CCRF
A27: 12 | B27: 2381 | C27: 14 | D27: 2385 | E27: 13 | F27: 2388 | K27: 0 | L27: 111 | O27: % CCRf
A28: 21 | B28: 2498 | C28: 21 | D28: 2515 | E28: 22 | F28: 2522 | K28: 0 | L28: 222 | O28: average response rate | P28: =F38/P20 -> 117.75 | Q28: =(F70-F38)/Q20 -> 123.75 | R28: =(F102-F70)/R20 -> 128.09375 | S28: =(F134-F102)/S20 -> 118.78125 | T28: =(F166-F134)/T20 -> 126.4375 | U28: =(F198-F166)/U20 -> 132.5
A29: 21 | B29: 2619 | C29: 12 | D29: 2631 | E29: 24 | F29: 2635 | K29: 0 | L29: 212
A30: 12 | B30: 2737 | C30: 23 | D30: 2745 | E30: 13 | F30: 2760 | K30: 0 | L30: 121
A31: 21 | B31: 2862 | C31: 12 | D31: 2871 | E31: 24 | F31: 2878 | K31: 0 | L31: 212
A32: 21 | B32: 2978 | C32: 21 | D32: 2992 | E32: 22 | F32: 2996 | K32: 0 | L32: 222
A33: 21 | B33: 3094 | C33: 21 | D33: 3117 | E33: 22 | F33: 3122 | K33: 0 | L33: 222
A34: 21 | B34: 3222 | C34: 21 | D34: 3228 | E34: 22 | F34: 3241 | K34: 0 | L34: 222
A35: 21 | B35: 3342 | C35: 21 | D35: 3363 | E35: 22 | F35: 3368 | K35: 0 | L35: 222
A36: 21 | B36: 3483 | C36: 21 | D36: 3500 | E36: 22 | F36: 3515 | K36: 0 | L36: 222
A37: 21 | B37: 3613 | C37: 21 | D37: 3628 | E37: 22 | F37: 3632 | K37: 0 | L37: 222
A38: 21 | B38: 3735 | C38: 21 | D38: 3751 | E38: 22 | F38: 3768 | K38: 0 | L38: 222
A39: 21 | B39: 3865 | C39: 21 | D39: 3883 | E39: 22 | F39: 3892 | K39: 0 | L39: 222
A40: 21 | B40: 3999 | C40: 12 | D40: 4009 | E40: 24 | F40: 4016 | K40: 0 | L40: 212
A41: 21 | B41: 4115 | C41: 12 | D41: 4127 | E41: 24 | F41: 4133 | K41: 0 | L41: 212
A42: 21 | B42: 4237 | C42: 12 | D42: 4250 | E42: 13 | F42: 4254 | K42: 0 | L42: 211
A43: 21 | B43: 4352 | C43: 21 | D43: 4364 | E43: 22 | F43: 4379 | K43: 0 | L43: 222
A44: 21 | B44: 4476 | C44: 21 | D44: 4479 | E44: 11 | F44: 4488 | K44: 0 | L44: 221
A45: 21 | B45: 4675 | C45: 21 | D45: 4678 | E45: 22 | F45: 4681 | K45: 0 | L45: 222
A46: 12 | B46: 4778 | C46: 14 | D46: 4787 | E46: 13 | F46: 4791 | K46: 0 | L46: 111
A47: 12 | B47: 4894 | C47: 23 | D47: 4900 | E47: 24 | F47: 4904 | K47: 0 | L47: 122
A48: 12 | B48: 5005 | C48: 14 | D48: 5008 | E48: 13 | F48: 5012 | K48: 0 | L48: 111
A49: 21 | B49: 5109 | C49: 21 | D49: 5112 | E49: 11 | F49: 5120 | K49: 0 | L49: 221
A50: 21 | B50: 5320 | C50: 21 | D50: 5324 | E50: 22 | F50: 5328 | K50: 0 | L50: 222
A51: 21 | B51: 5426 | C51: 21 | D51: 5437 | E51: 22 | F51: 5450 | K51: 0 | L51: 222
A52: 21 | B52: 5549 | C52: 21 | D52: 5560 | E52: 22 | F52: 5569 | K52: 0 | L52: 222
A53: 12 | B53: 5666 | C53: 14 | D53: 5670 | E53: 13 | F53: 5674 | K53: 0 | L53: 111
A54: 12 | B54: 5769 | C54: 14 | D54: 5772 | E54: 13 | F54: 5776 | K54: 0 | L54: 111
A55: 21 | B55: 5875 | C55: 21 | D55: 5889 | E55: 22 | F55: 5903 | K55: 0 | L55: 222
A56: 21 | B56: 6021 | C56: 21 | D56: 6024 | E56: 22 | F56: 6029 | K56: 0 | L56: 222
A57: 21 | B57: 6125 | C57: 12 | D57: 6133 | E57: 13 | F57: 6137 | K57: 0 | L57: 211
A58: 12 | B58: 6240 | C58: 14 | D58: 6245 | E58: 13 | F58: 6249 | K58: 0 | L58: 111
A59: 21 | B59: 6345 | C59: 12 | D59: 6354 | E59: 13 | F59: 6358 | K59: 0 | L59: 211
A60: 12 | B60: 6455 | C60: 14 | D60: 6459 | E60: 13 | F60: 6461 | K60: 0 | L60: 111
A61: 21 | B61: 6558 | C61: 21 | D61: 6576 | E61: 22 | F61: 6580 | K61: 0 | L61: 222
A62: 21 | B62: 6683 | C62: 12 | D62: 6691 | E62: 13 | F62: 6695 | K62: 0 | L62: 211
A63: 21 | B63: 6792 | C63: 21 | D63: 6796 | E63: 11 | F63: 6812 | K63: 0 | L63: 221
A64: 21 | B64: 7035 | C64: 21 | D64: 7039 | E64: 22 | F64: 7044 | K64: 0 | L64: 222
A65: 21 | B65: 7136 | C65: 12 | D65: 7149 | E65: 13 | F65: 7154 | K65: 0 | L65: 211
A66: 12 | B66: 7254 | C66: 14 | D66: 7257 | E66: 13 | F66: 7261 | K66: 0 | L66: 111
A67: 21 | B67: 7359 | C67: 21 | D67: 7373 | E67: 22 | F67: 7379 | K67: 0 | L67: 222
A68: 12 | B68: 7479 | C68: 14 | D68: 7487 | E68: 13 | F68: 7493 | K68: 0 | L68: 111
A69: 21 | B69: 7598 | C69: 21 | D69: 7612 | E69: 22 | F69: 7618 | K69: 0 | L69: 222
A70: 12 | B70: 7718 | C70: 14 | D70: 7724 | E70: 13 | F70: 7728 | K70: 0 | L70: 111
A71: 21 | B71: 7840 | C71: 21 | D71: 7855 | E71: 22 | F71: 7859 | K71: 0 | L71: 222
A72: 12 | B72: 7968 | C72: 14 | D72: 7975 | E72: 13 | F72: 7982 | K72: 0 | L72: 111
A73: 21 | B73: 8081 | C73: 12 | D73: 8089 | E73: 13 | F73: 8093 | K73: 0 | L73: 211
A74: 21 | B74: 8184 | C74: 21 | D74: 8194 | E74: 22 | F74: 8196 | K74: 0 | L74: 222
A75: 12 | B75: 8294 | C75: 14 | D75: 8307 | E75: 13 | F75: 8313 | K75: 0 | L75: 111
A76: 12 | B76: 8415 | C76: 14 | D76: 8424 | E76: 13 | F76: 8427 | K76: 0 | L76: 111
A77: 21 | B77: 8519 | C77: 21 | D77: 8525 | E77: 11 | F77: 8533 | K77: 0 | L77: 221
A78: 12 | B78: 8683 | C78: 14 | D78: 8686 | E78: 13 | F78: 8689 | K78: 0 | L78: 111
A79: 21 | B79: 8793 | C79: 12 | D79: 8801 | E79: 13 | F79: 8804 | K79: 0 | L79: 211
A80: 21 | B80: 8897 | C80: 12 | D80: 8901 | E80: 13 | F80: 8905 | K80: 0 | L80: 211
A81: 12 | B81: 9003 | C81: 14 | D81: 9006 | E81: 13 | F81: 9010 | K81: 0 | L81: 111
A82: 12 | B82: 9115 | C82: 14 | D82: 9119 | E82: 13 | F82: 9123 | K82: 0 | L82: 111
A83: 21 | B83: 9221 | C83: 12 | D83: 9231 | E83: 24 | F83: 9238 | K83: 0 | L83: 212
A84: 21 | B84: 9333 | C84: 21 | D84: 9337 | E84: 11 | F84: 9346 | K84: 0 | L84: 221
A85: 21 | B85: 9897 | C85: 21 | D85: 9908 | E85: 22 | F85: 9911 | K85: 0 | L85: 222
A86: 12 | B86: 10007 | C86: 14 | D86: 10013 | E86: 13 | F86: 10019 | K86: 0 | L86: 111
A87: 12 | B87: 10137 | C87: 14 | D87: 10143 | E87: 13 | F87: 10149 | K87: 0 | L87: 111
A88: 12 | B88: 10252 | C88: 14 | D88: 10260 | E88: 13 | F88: 10266 | K88: 0 | L88: 111
A89: 21 | B89: 10359 | C89: 12 | D89: 10368 | E89: 24 | F89: 10377 | K89: 0 | L89: 212
A90: 21 | B90: 10477 | C90: 12 | D90: 10486 | E90: 13 | F90: 10491 | K90: 0 | L90: 211
A91: 21 | B91: 10589 | C91: 12 | D91: 10600 | E91: 13 | F91: 10606 | K91: 0 | L91: 211
A92: 21 | B92: 10701 | C92: 12 | D92: 10709 | E92: 13 | F92: 10714 | K92: 0 | L92: 211
A93: 21 | B93: 10812 | C93: 12 | D93: 10820 | E93: 13 | F93: 10823 | K93: 0 | L93: 211
A94: 21 | B94: 10921 | C94: 12 | D94: 10928 | E94: 13 | F94: 10930 | K94: 0 | L94: 211
A95: 21 | B95: 11026 | C95: 12 | D95: 11035 | E95: 13 | F95: 11038 | K95: 0 | L95: 211
A96: 12 | B96: 11144 | C96: 14 | D96: 11148 | E96: 13 | F96: 11154 | K96: 0 | L96: 111
A97: 21 | B97: 11251 | C97: 12 | D97: 11266 | E97: 13 | F97: 11269 | K97: 0 | L97: 211
A98: 21 | B98: 11370 | C98: 21 | D98: 11384 | E98: 22 | F98: 11388 | K98: 0 | L98: 222
A99: 21 | B99: 11483 | C99: 12 | D99: 11490 | E99: 13 | F99: 11497 | K99: 0 | L99: 211
A100: 12 | B100: 11598 | C100: 23 | D100: 11603 | E100: 13 | F100: 11607 | K100: 0 | L100: 121
A101: 21 | B101: 11703 | C101: 12 | D101: 11711 | E101: 13 | F101: 11715 | K101: 0 | L101: 211
A102: 21 | B102: 11813 | C102: 12 | D102: 11822 | E102: 13 | F102: 11827 | K102: 0 | L102: 211
A103: 21 | B103: 11926 | C103: 12 | D103: 11935 | E103: 13 | F103: 11941 | K103: 0 | L103: 211
A104: 21 | B104: 12107 | C104: 12 | D104: 12118 | E104: 13 | F104: 12121 | K104: 0 | L104: 211
A105: 21 | B105: 12218 | C105: 12 | D105: 12229 | E105: 13 | F105: 12238 | K105: 0 | L105: 211
A106: 21 | B106: 12335 | C106: 12 | D106: 12344 | E106: 13 | F106: 12347 | K106: 0 | L106: 211
A107: 12 | B107: 12460 | C107: 14 | D107: 12463 | E107: 13 | F107: 12467 | K107: 0 | L107: 111
A108: 12 | B108: 12570 | C108: 14 | D108: 12574 | E108: 13 | F108: 12580 | K108: 0 | L108: 111
A109: 21 | B109: 12683 | C109: 12 | D109: 12707 | E109: 13 | F109: 12713 | K109: 0 | L109: 211
A110: 21 | B110: 12808 | C110: 12 | D110: 12816 | E110: 13 | F110: 12820 | K110: 0 | L110: 211
A111: 21 | B111: 12933 | C111: 12 | D111: 12944 | E111: 24 | F111: 12952 | K111: 0 | L111: 212
A112: 21 | B112: 13054 | C112: 12 | D112: 13065 | E112: 13 | F112: 13068 | K112: 0 | L112: 211
A113: 21 | B113: 13166 | C113: 12 | D113: 13177 | E113: 13 | F113: 13185 | K113: 0 | L113: 211
A114: 21 | B114: 13302 | C114: 21 | D114: 13317 | E114: 22 | F114: 13320 | K114: 0 | L114: 222
A115: 12 | B115: 13422 | C115: 14 | D115: 13430 | E115: 13 | F115: 13436 | K115: 0 | L115: 111
A116: 21 | B116: 13535 | C116: 12 | D116: 13547 | E116: 13 | F116: 13551 | K116: 0 | L116: 211
A117: 21 | B117: 13648 | C117: 21 | D117: 13650 | E117: 11 | F117: 13667 | K117: 0 | L117: 221
A118: 12 | B118: 13794 | C118: 14 | D118: 13797 | E118: 13 | F118: 13800 | K118: 0 | L118: 111
A119: 21 | B119: 13895 | C119: 12 | D119: 13904 | E119: 13 | F119: 13907 | K119: 0 | L119: 211
A120: 21 | B120: 14006 | C120: 12 | D120: 14016 | E120: 13 | F120: 14019 | K120: 0 | L120: 211
A121: 12 | B121: 14122 | C121: 14 | D121: 14125 | E121: 13 | F121: 14130 | K121: 0 | L121: 111
A122: 21 | B122: 14227 | C122: 12 | D122: 14236 | E122: 13 | F122: 14240 | K122: 0 | L122: 211
A123: 12 | B123: 14342 | C123: 14 | D123: 14346 | E123: 13 | F123: 14351 | K123: 0 | L123: 111
A124: 21 | B124: 14449 | C124: 12 | D124: 14459 | E124: 13 | F124: 14463 | K124: 0 | L124: 211
A125: 21 | B125: 14562 | C125: 12 | D125: 14570 | E125: 13 | F125: 14574 | K125: 0 | L125: 211
A126: 21 | B126: 14667 | C126: 12 | D126: 14678 | E126: 13 | F126: 14683 | K126: 0 | L126: 211
A127: 21 | B127: 14791 | C127: 12 | D127: 14802 | E127: 13 | F127: 14805 | K127: 0 | L127: 211
A128: 21 | B128: 14901 | C128: 12 | D128: 14915 | E128: 13 | F128: 14919 | K128: 0 | L128: 211
A129: 21 | B129: 15015 | C129: 12 | D129: 15022 | E129: 13 | F129: 15026 | K129: 0 | L129: 211
A130: 21 | B130: 15124 | C130: 12 | D130: 15134 | E130: 13 | F130: 15138 | K130: 0 | L130: 211
A131: 21 | B131: 15237 | C131: 21 | D131: 15239 | E131: 11 | F131: 15247 | K131: 0 | L131: 221
A132: 12 | B132: 15407 | C132: 14 | D132: 15411 | E132: 13 | F132: 15415 | K132: 0 | L132: 111
A133: 12 | B133: 15514 | C133: 14 | D133: 15516 | E133: 24 | F133: 15519 | K133: 0 | L133: 112
A134: 12 | B134: 15621 | C134: 14 | D134: 15626 | E134: 13 | F134: 15628 | K134: 0 | L134: 111
A135: 21 | B135: 15724 | C135: 12 | D135: 15731 | E135: 13 | F135: 15736 | K135: 0 | L135: 211
A136: 21 | B136: 15832 | C136: 12 | D136: 15846 | E136: 13 | F136: 15850 | K136: 0 | L136: 211
A137: 21 | B137: 15945 | C137: 12 | D137: 15953 | E137: 13 | F137: 15956 | K137: 0 | L137: 211
A138: 21 | B138: 16074 | C138: 12 | D138: 16092 | E138: 13 | F138: 16098 | K138: 0 | L138: 211
A139: 21 | B139: 16193 | C139: 21 | D139: 16195 | E139: 11 | F139: 16203 | K139: 0 | L139: 221
A140: 21 | B140: 16378 | C140: 21 | D140: 16382 | E140: 11 | F140: 16396 | K140: 0 | L140: 221
A141: 21 | B141: 16527 | C141: 12 | D141: 16544 | E141: 13 | F141: 16547 | K141: 0 | L141: 211
A142: 12 | B142: 16650 | C142: 14 | D142: 16655 | E142: 13 | F142: 16657 | K142: 0 | L142: 111
A143: 21 | B143: 16755 | C143: 21 | D143: 16768 | E143: 22 | F143: 16780 | K143: 0 | L143: 222
A144: 21 | B144: 16874 | C144: 12 | D144: 16883 | E144: 13 | F144: 16887 | K144: 0 | L144: 211
A145: 21 | B145: 16986 | C145: 12 | D145: 17003 | E145: 13 | F145: 17006 | K145: 0 | L145: 211
A146: 21 | B146: 17105 | C146: 12 | D146: 17114 | E146: 13 | F146: 17123 | K146: 0 | L146: 211
A147: 21 | B147: 17218 | C147: 12 | D147: 17227 | E147: 13 | F147: 17231 | K147: 0 | L147: 211
A148: 21 | B148: 17329 | C148: 12 | D148: 17346 | E148: 13 | F148: 17351 | K148: 0 | L148: 211
A149: 21 | B149: 17446 | C149: 12 | D149: 17458 | E149: 13 | F149: 17464 | K149: 0 | L149: 211
A150: 21 | B150: 17560 | C150: 12 | D150: 17572 | E150: 13 | F150: 17578 | K150: 0 | L150: 211
A151: 21 | B151: 17675 | C151: 21 | D151: 17678 | E151: 11 | F151: 17689 | K151: 0 | L151: 221
A152: 21 | B152: 17906 | C152: 21 | D152: 17910 | E152: 11 | F152: 17920 | K152: 0 | L152: 221
A153: 21 | B153: 18148 | C153: 21 | D153: 18161 | E153: 22 | F153: 18164 | K153: 0 | L153: 222
A154: 12 | B154: 18267 | C154: 14 | D154: 18273 | E154: 13 | F154: 18275 | K154: 0 | L154: 111
A155: 12 | B155: 18388 | C155: 14 | D155: 18395 | E155: 13 | F155: 18398 | K155: 0 | L155: 111
A156: 12 | B156: 18504 | C156: 14 | D156: 18509 | E156: 13 | F156: 18515 | K156: 0 | L156: 111
A157: 12 | B157: 18613 | C157: 14 | D157: 18616 | E157: 24 | F157: 18618 | K157: 0 | L157: 112
A158: 21 | B158: 18715 | C158: 12 | D158: 18732 | E158: 13 | F158: 18737 | K158: 0 | L158: 211
A159: 21 | B159: 18838 | C159: 12 | D159: 18845 | E159: 13 | F159: 18849 | K159: 0 | L159: 211
A160: 21 | B160: 18947 | C160: 12 | D160: 18955 | E160: 13 | F160: 18960 | K160: 0 | L160: 211
A161: 12 | B161: 19068 | C161: 14 | D161: 19071 | E161: 13 | F161: 19076 | K161: 0 | L161: 111
A162: 21 | B162: 19183 | C162: 12 | D162: 19193 | E162: 13 | F162: 19197 | K162: 0 | L162: 211
A163: 21 | B163: 19295 | C163: 12 | D163: 19302 | E163: 13 | F163: 19309 | K163: 0 | L163: 211
A164: 21 | B164: 19406 | C164: 21 | D164: 19407 | E164: 11 | F164: 19419 | K164: 0 | L164: 221
A165: 21 | B165: 19544 | C165: 12 | D165: 19563 | E165: 24 | F165: 19564 | K165: 0 | L165: 212
A166: 12 | B166: 19667 | C166: 14 | D166: 19670 | E166: 13 | F166: 19674 | K166: 0 | L166: 111
A167: 21 | B167: 19772 | C167: 12 | D167: 19785 | E167: 13 | F167: 19788 | K167: 0 | L167: 211
A168: 21 | B168: 19884 | C168: 12 | D168: 19895 | E168: 13 | F168: 19901 | K168: 0 | L168: 211
A169: 21 | B169: 19998 | C169: 12 | D169: 20006 | E169: 13 | F169: 20009 | K169: 0 | L169: 211
A170: 21 | B170: 20145 | C170: 12 | D170: 20156 | E170: 13 | F170: 20158 | K170: 0 | L170: 211
A171: 12 | B171: 20264 | C171: 14 | D171: 20268 | E171: 13 | F171: 20272 | K171: 0 | L171: 111
A172: 12 | B172: 20372 | C172: 23 | D172: 20382 | E172: 24 | F172: 20386 | K172: 0 | L172: 122
A173: 21 | B173: 20483 | C173: 12 | D173: 20490 | E173: 13 | F173: 20501 | K173: 0 | L173: 211
A174: 21 | B174: 20595 | C174: 12 | D174: 20606 | E174: 13 | F174: 20611 | K174: 0 | L174: 211
A175: 21 | B175: 20705 | C175: 21 | D175: 20707 | E175: 11 | F175: 20714 | K175: 0 | L175: 221
A176: 12 | B176: 20881 | C176: 14 | D176: 20884 | E176: 13 | F176: 20888 | K176: 0 | L176: 111
A177: 12 | B177: 20996 | C177: 14 | D177: 21000 | E177: 13 | F177: 21003 | K177: 0 | L177: 111
A178: 21 | B178: 21100 | C178: 12 | D178: 21107 | E178: 13 | F178: 21115 | K178: 0 | L178: 211
A179: 21 | B179: 21211 | C179: 12 | D179: 21227 | E179: 13 | F179: 21234 | K179: 0 | L179: 211
A180: 21 | B180: 21379 | C180: 21 | D180: 21409 | E180: 11 | F180: 21420 | K180: 0 | L180: 221
A181: 12 | B181: 21627 | C181: 14 | D181: 21630 | E181: 13 | F181: 21634 | K181: 0 | L181: 111
A182: 12 | B182: 21742 | C182: 14 | D182: 21749 | E182: 13 | F182: 21755 | K182: 0 | L182: 111
A183: 21 | B183: 21852 | C183: 21 | D183: 21866 | E183: 22 | F183: 21882 | K183: 0 | L183: 222
A184: 12 | B184: 21990 | C184: 14 | D184: 21995 | E184: 13 | F184: 21998 | K184: 0 | L184: 111
A185: 12 | B185: 22104 | C185: 14 | D185: 22109 | E185: 13 | F185: 22115 | K185: 0 | L185: 111
A186: 21 | B186: 22207 | C186: 12 | D186: 22216 | E186: 13 | F186: 22219 | K186: 0 | L186: 211
A187: 21 | B187: 22318 | C187: 12 | D187: 22329 | E187: 13 | F187: 22335 | K187: 0 | L187: 211
A188: 21 | B188: 22431 | C188: 12 | D188: 22445 | E188: 13 | F188: 22449 | K188: 0 | L188: 211
A189: 21 | B189: 22547 | C189: 12 | D189: 22554 | E189: 13 | F189: 22562 | K189: 0 | L189: 211
A190: 21 | B190: 22657 | C190: 12 | D190: 22669 | E190: 13 | F190: 22676 | K190: 0 | L190: 211
A191: 21 | B191: 22771 | C191: 12 | D191: 22783 | E191: 13 | F191: 22787 | K191: 0 | L191: 211
A192: 21 | B192: 22888 | C192: 12 | D192: 22900 | E192: 13 | F192: 22903 | K192: 0 | L192: 211
A193: 21 | B193: 23002 | C193: 21 | D193: 23004 | E193: 11 | F193: 23021 | K193: 0 | L193: 221
A194: 12 | B194: 23347 | C194: 14 | D194: 23350 | E194: 13 | F194: 23353 | K194: 0 | L194: 111
A195: 12 | B195: 23450 | C195: 23 | D195: 23455 | E195: 13 | F195: 23460 | K195: 0 | L195: 121
A196: 12 | B196: 23567 | C196: 14 | D196: 23572 | E196: 13 | F196: 23577 | K196: 0 | L196: 111
A197: 21 | B197: 23671 | C197: 21 | D197: 23675 | E197: 11 | F197: 23684 | K197: 0 | L197: 221
A198: 12 | B198: 23904 | C198: 14 | D198: 23909 | E198: 13 | F198: 23914 | L198: 111

Sheet !MA0394T.AYL
A1: Report for:!MA0394T.AYL
A2: Date: | B2: <date>
A3: Hen: | B3: <hen> | F3: Correct Sequence | G3: =Start!J2 -> 221 | P3: Total Sequences in Data | Q3: =4994-COUNTBLANK(L7:L5000) -> 190 | V3: Total Sequences in Block Data | W3: =COUNTA(L7:L38) -> 32 | AA3: Total Sequences in Block Data | AB3: =COUNTA(L39:L69) -> 31 | AF3: Total Sequences in Block Data | AG3: =COUNTA(L70:L101) -> 32 | AK3: Total Sequences in Block Data | AL3: =COUNTA(L102:L133) -> 32 | AP3: Total Sequences in Block Data | AQ3: =COUNTA(L134:L164) -> 31 | AU3: Total Sequences in Block Data | AV3: =COUNTA(L165:L196) -> 32
P4: Total Sequences in Summary | Q4: =SUM(O7:O14) -> 190 | V4: Total Sequences in Block Summary | W4: =SUM(U7:U14) -> 32 | AA4: Total Sequences in Block Summary | AB4: =SUM(Z7:Z14) -> 31 | AF4: Total Sequences in Block Summary | AG4: =SUM(AE7:AE14) -> 32 | AK4: Total Sequences in Block Summary | AL4: =SUM(AJ7:AJ14) -> 32 | AP4: Total Sequences in Block Summary | AQ4: =SUM(AO7:AO14) -> 31 | AU4: Total Sequences in Block Summary | AV4: =SUM(AT7:AT14) -> 32
T5: Block 1 | Y5: Block 2 | AD5: Block 3 | AI5: Block 4 | AN5: Block 5 | AS5: Block 6
A6: Sequence Component 1 | B6: Time 1 | C6: Sequence Component 2 | D6: Time 2 | E6: Sequence Component 3 | F6: Time 3 | G6: Sequence Component 4 | H6: Time 4 | I6: Sequence Component 5 | J6: Time 5 | K6: Correct? 0=No 1=Yes | L6: Sequence | N6: Frequency | P6: Relative Frequency | Q6: Variability | T6: Frequency | V6: Relative Frequency | W6: Variability | Y6: Frequency | AA6: Relative Frequency | AB6: Variability | AD6: Frequency | AF6: Relative Frequency | AG6: Variability | AI6: Frequency | AK6: Relative Frequency | AL6: Variability | AN6: Frequency | AP6: Relative Frequency | AQ6: Variability | AS6: Frequency | AU6: Relative Frequency | AV6: Variability
A7: 12 | B7: 14 | C7: 23 | D7: 20 | E7: 24 | F7: 37 | K7: 0 | L7: 122 | N7: 111 | O7: =COUNTIF($L$7:$L$500,N7) -> 23 | P7: =O7/$Q$4 -> 0.1210526316 | Q7: =IF(P7=0,0,(P7*((LOG(P7))/LOG(2)))) -> -0.3687618632 | T7: =N7 -> 111 | U7: =COUNTIF(L7:L38,T7) -> 3 | V7: =U7/(W4-U13) -> 0.1111111111 | W7: =IF(V7=0,0,(V7*((LOG(V7))/LOG(2)))) -> -0.352213889 | Y7: =N7 -> 111 | Z7: =COUNTIF(L39:L69,Y7) -> 3 | AA7: =Z7/(AB4-Z13) -> 0.12 | AB7: =IF(AA7=0,0,(AA7*((LOG(AA7))/LOG(2)))) -> -0.3670672427 | AD7: =N7 -> 111 | AE7: =COUNTIF(L70:L101,AD7) -> 3 | AF7: =AE7/(AG4-AE13) -> 0.1153846154 | AG7: =IF(AF7=0,0,(AF7*((LOG(AF7))/LOG(2)))) -> -0.3594781405 | AI7: =N7 -> 111 | AJ7: =COUNTIF(L102:L133,AI7) -> 1 | AK7: =AJ7/(AL4-AJ13) -> 0.03846153846 | AL7: =IF(AK7=0,0,(AK7*((LOG(AK7))/LOG(2)))) -> -0.180786143 | AN7: =N7 -> 111 | AO7: =COUNTIF(L134:L164,AN7) -> 4 | AP7: =AO7/(AQ4-AO13) -> 0.1666666667 | AQ7: =IF(AP7=0,0,(AP7*((LOG(AP7))/LOG(2)))) -> -0.4308270835 | AS7: =N7 -> 111 | AT7: =COUNTIF(L165:L196,AS7) -> 9 | AU7: =AT7/(AV4-AT13) -> 0.3214285714 | AV7: =IF(AU7=0,0,(AU7*((LOG(AU7))/LOG(2)))) -> -0.5263167602
A8: 21 | B8: 133 | C8: 12 | D8: 141 | E8: 13 | F8: 145 | K8: 0 | L8: 211 | N8: 112 | O8: =COUNTIF($L$7:$L$500,N8) -> 3 | P8: =O8/$Q$4 -> 0.01578947368 | Q8: =IF(P8=0,0,(P8*((LOG(P8))/LOG(2)))) -> -0.09449831223 | T8: =N8 -> 112 | U8: =COUNTIF(L7:L38,T8) -> 0 | V8: =U8/(W4-U13) -> 0 | W8: =IF(V8=0,0,(V8*((LOG(V8))/LOG(2)))) -> 0 | Y8: =N8 -> 112 | Z8: =COUNTIF(L39:L69,Y8) -> 0 | AA8: =Z8/(AB4-Z13) -> 0 | AB8: =IF(AA8=0,0,(AA8*((LOG(AA8))/LOG(2)))) -> 0 | AD8: =N8 -> 112 | AE8: =COUNTIF(L70:L101,AD8) -> 0 | AF8: =AE8/(AG4-AE13) -> 0 | AG8: =IF(AF8=0,0,(AF8*((LOG(AF8))/LOG(2)))) -> 0 | AI8: =N8 -> 112 | AJ8: =COUNTIF(L102:L133,AI8) -> 1 | AK8: =AJ8/(AL4-AJ13) -> 0.03846153846 | AL8: =IF(AK8=0,0,(AK8*((LOG(AK8))/LOG(2)))) -> -0.180786143 | AN8: =N8 -> 112 | AO8: =COUNTIF(L134:L164,AN8) -> 1 | AP8: =AO8/(AQ4-AO13) -> 0.04166666667 | AQ8: =IF(AP8=0,0,(AP8*((LOG(AP8))/LOG(2)))) -> -0.1910401042 | AS8: =N8 -> 112 | AT8: =COUNTIF(L165:L196,AS8) -> 1 | AU8: =AT8/(AV4-AT13) -> 0.03571428571 | AV8: =IF(AU8=0,0,(AU8*((LOG(AU8))/LOG(2)))) -> -0.1716912472
A9: 21 | B9: 243 | C9: 12 | D9: 254 | E9: 13 | F9: 257 | K9: 0 | L9: 211 | N9: 121 | O9: =COUNTIF($L$7:$L$500,N9) -> 5 | P9: =O9/$Q$4 -> 0.02631578947 | Q9: =IF(P9=0,0,(P9*((LOG(P9))/LOG(2)))) -> -0.1381033556 | T9: =N9 -> 121 | U9: =COUNTIF(L7:L38,T9) -> 0 | V9: =U9/(W4-U13) -> 0 | W9: =IF(V9=0,0,(V9*((LOG(V9))/LOG(2)))) -> 0 | Y9: =N9 -> 121 | Z9: =COUNTIF(L39:L69,Y9) -> 0 | AA9: =Z9/(AB4-Z13) -> 0 | AB9: =IF(AA9=0,0,(AA9*((LOG(AA9))/LOG(2)))) -> 0 | AD9: =N9 -> 121 | AE9: =COUNTIF(L70:L101,AD9) -> 2 | AF9: =AE9/(AG4-AE13) -> 0.07692307692 | AG9: =IF(AF9=0,0,(AF9*((LOG(AF9))/LOG(2)))) -> -0.2846492091 | AI9: =N9 -> 121 | AJ9: =COUNTIF(L102:L133,AI9) -> 3 | AK9: =AJ9/(AL4-AJ13) -> 0.1153846154 | AL9: =IF(AK9=0,0,(AK9*((LOG(AK9))/LOG(2)))) -> -0.3594781405 | AN9: =N9 -> 121 | AO9: =COUNTIF(L134:L164,AN9) -> 0 | AP9: =AO9/(AQ4-AO13) -> 0 | AQ9: =IF(AP9=0,0,(AP9*((LOG(AP9))/LOG(2)))) -> 0 | AS9: =N9 -> 121 | AT9: =COUNTIF(L165:L196,AS9) -> 0 | AU9: =AT9/(AV4-AT13) -> 0 | AV9: =IF(AU9=0,0,(AU9*((LOG(AU9))/LOG(2)))) -> 0
A10: 21 | B10: 354 | C10: 12 | D10: 361 | E10: 13 | F10: 365 | K10: 0 | L10: 211 | N10: 122 | O10: =COUNTIF($L$7:$L$500,N10) -> 3 | P10: =O10/$Q$4 -> 0.01578947368 | Q10: =IF(P10=0,0,(P10*((LOG(P10))/LOG(2)))) -> -0.09449831223 | T10: =N10 -> 122 | U10: =COUNTIF(L7:L38,T10) -> 3 | V10: =U10/(W4-U13) -> 0.1111111111 | W10: =IF(V10=0,0,(V10*((LOG(V10))/LOG(2)))) -> -0.352213889 | Y10: =N10 -> 122 | Z10: =COUNTIF(L39:L69,Y10) -> 0 | AA10: =Z10/(AB4-Z13) -> 0 | AB10: =IF(AA10=0,0,(AA10*((LOG(AA10))/LOG(2)))) -> 0 | AD10: =N10 -> 122 | AE10: =COUNTIF(L70:L101,AD10) -> 0 | AF10: =AE10/(AG4-AE13) -> 0 | AG10: =IF(AF10=0,0,(AF10*((LOG(AF10))/LOG(2)))) -> 0 | AI10: =N10 -> 122 | AJ10: =COUNTIF(L102:L133,AI10) -> 0 | AK10: =AJ10/(AL4-AJ13) -> 0 | AL10: =IF(AK10=0,0,(AK10*((LOG(AK10))/LOG(2)))) -> 0 | AN10: =N10 -> 122 | AO10: =COUNTIF(L134:L164,AN10) -> 0 | AP10: =AO10/(AQ4-AO13) -> 0 | AQ10: =IF(AP10=0,0,(AP10*((LOG(AP10))/LOG(2)))) -> 0 | AS10: =N10 -> 122 | AT10: =COUNTIF(L165:L196,AS10) -> 0 | AU10: =AT10/(AV4-AT13) -> 0 | AV10: =IF(AU10=0,0,(AU10*((LOG(AU10))/LOG(2)))) -> 0
A11: 21 | B11: 461 | C11: 21 | D11: 462 | E11: 11 | F11: 474 | K11: 0 | L11: 221 | N11: 211 | O11: =COUNTIF($L$7:$L$500,N11) -> 94 | P11: =O11/$Q$4 -> 0.4947368421 | Q11: =IF(P11=0,0,(P11*((LOG(P11))/LOG(2)))) -> -0.5022898691 | T11: =N11 -> 211 | U11: =COUNTIF(L7:L38,T11) -> 15 | V11: =U11/(W4-U13) -> 0.5555555556 | W11: =IF(V11=0,0,(V11*((LOG(V11))/LOG(2)))) -> -0.4711093925 | Y11: =N11 -> 211 | Z11: =COUNTIF(L39:L69,Y11) -> 15 | AA11: =Z11/(AB4-Z13) -> 0.6 | AB11: =IF(AA11=0,0,(AA11*((LOG(AA11))/LOG(2)))) -> -0.4421793565 | AD11: =N11 -> 211 | AE11: =COUNTIF(L70:L101,AD11) -> 16 | AF11: =AE11/(AG4-AE13) -> 0.6153846154 | AG11: =IF(AF11=0,0,(AF11*((LOG(AF11))/LOG(2)))) -> -0.4310398265 | AI11: =N11 -> 211 | AJ11: =COUNTIF(L102:L133,AI11) -> 19 | AK11: =AJ11/(AL4-AJ13) -> 0.7307692308 | AL11: =IF(AK11=0,0,(AK11*((LOG(AK11))/LOG(2)))) -> -0.3306819957 | AN11: =N11 -> 211 | AO11: =COUNTIF(L134:L164,AN11) -> 14 | AP11: =AO11/(AQ4-AO13) -> 0.5833333333 | AQ11: =IF(AP11=0,0,(AP11*((LOG(AP11))/LOG(2)))) -> -0.4536044209 | AS11: =N11 -> 211 | AT11: =COUNTIF(L165:L196,AS11) -> 15 | AU11: =AT11/(AV4-AT13) -> 0.5357142857 | AV11: =IF(AU11=0,0,(AU11*((LOG(AU11))/LOG(2)))) -> -0.4823916035
A12: 21 | B12: 623 | C12: 12 | D12: 635 | E12: 13 | F12: 638 | K12: 0 | L12: 211 | N12: 212 | O12: =COUNTIF($L$7:$L$500,N12) -> 14 | P12: =O12/$Q$4 -> 0.07368421053 | Q12: =IF(P12=0,0,(P12*((LOG(P12))/LOG(2)))) -> -0.2772368927 | T12: =N12 -> 212 | U12: =COUNTIF(L7:L38,T12) -> 2 | V12: =U12/(W4-U13) -> 0.07407407407 | W12: =IF(V12=0,0,(V12*((LOG(V12))/LOG(2)))) -> -0.278139815 | Y12: =N12 -> 212 | Z12: =COUNTIF(L39:L69,Y12) -> 2 | AA12: =Z12/(AB4-Z13) -> 0.08 | AB12: =IF(AA12=0,0,(AA12*((LOG(AA12))/LOG(2)))) -> -0.2915084952 | AD12: =N12 -> 212 | AE12: =COUNTIF(L70:L101,AD12) -> 3 | AF12: =AE12/(AG4-AE13) -> 0.1153846154 | AG12: =IF(AF12=0,0,(AF12*((LOG(AF12))/LOG(2)))) -> -0.3594781405 | AI12: =N12 -> 212 | AJ12: =COUNTIF(L102:L133,AI12) -> 2 | AK12: =AJ12/(AL4-AJ13) -> 0.07692307692 | AL12: =IF(AK12=0,0,(AK12*((LOG(AK12))/LOG(2)))) -> -0.2846492091 | AN12: =N12 -> 212 | AO12: =COUNTIF(L134:L164,AN12) -> 3 | AP12: =AO12/(AQ4-AO13) -> 0.125 | AQ12: =IF(AP12=0,0,(AP12*((LOG(AP12))/LOG(2)))) -> -0.375 | AS12: =N12 -> 212 | AT12: =COUNTIF(L165:L196,AS12) -> 2 | AU12: =AT12/(AV4-AT13) -> 0.07142857143 | AV12: =IF(AU12=0,0,(AU12*((LOG(AU12))/LOG(2)))) -> -0.271953923
A13: 21 | B13: 734 | C13: 21 | D13: 739 | E13: 11 | F13: 750 | K13: 0 | L13: 221 | N13: 221 | O13: =COUNTIF($L$7:$L$500,N13) -> 34 | P13: =O13/$Q$4 -> 0.1789473684 | Q13: =IF(P13=0,0,(P13*((LOG(P13))/LOG(2)))) -> -0.4442176531 | T13: =N13 -> 221 | U13: =COUNTIF(L7:L38,T13) -> 5 | Y13: =N13 -> 221 | Z13: =COUNTIF(L39:L69,Y13) -> 6 | AD13: =N13 -> 221 | AE13: =COUNTIF(L70:L101,AD13) -> 6 | AI13: =N13 -> 221 | AJ13: =COUNTIF(L102:L133,AI13) -> 6 | AN13: =N13 -> 221 | AO13: =COUNTIF(L134:L164,AN13) -> 7 | AS13: =N13 -> 221 | AT13: =COUNTIF(L165:L196,AS13) -> 4
A14: 21 | B14: 847 | C14: 21 | D14: 850 | E14: 22 | F14: 861 | K14: 0 | L14: 222 | N14: 222 | O14: =COUNTIF($L$7:$L$500,N14) -> 14 | P14: =O14/$Q$4 -> 0.07368421053 | Q14: =IF(P14=0,0,(P14*((LOG(P14))/LOG(2)))) -> -0.2772368927 | T14: =N14 -> 222 | U14: =COUNTIF(L7:L38,T14) -> 4 | V14: =U14/(W4-U13) -> 0.1481481481 | W14: =IF(V14=0,0,(V14*((LOG(V14))/LOG(2)))) -> -0.4081314818 | Y14: =N14 -> 222 | Z14: =COUNTIF(L39:L69,Y14) -> 5 | AA14: =Z14/(AB4-Z13) -> 0.2 | AB14: =IF(AA14=0,0,(AA14*((LOG(AA14))/LOG(2)))) -> -0.464385619 | AD14: =N14 -> 222 | AE14: =COUNTIF(L70:L101,AD14) -> 2 | AF14: =AE14/(AG4-AE13) -> 0.07692307692 | AG14: =IF(AF14=0,0,(AF14*((LOG(AF14))/LOG(2)))) -> -0.2846492091 | AI14: =N14 -> 222 | AJ14: =COUNTIF(L102:L133,AI14) -> 0 | AK14: =AJ14/(AL4-AJ13) -> 0 | AL14: =IF(AK14=0,0,(AK14*((LOG(AK14))/LOG(2)))) -> 0 | AN14: =N14 -> 222 | AO14: =COUNTIF(L134:L164,AN14) -> 2 | AP14: =AO14/(AQ4-AO13) -> 0.08333333333 | AQ14: =IF(AP14=0,0,(AP14*((LOG(AP14))/LOG(2)))) -> -0.2987468751 | AS14: =N14 -> 222 | AT14: =COUNTIF(L165:L196,AS14) -> 1 | AU14: =AT14/(AV4-AT13) -> 0.03571428571 | AV14: =IF(AU14=0,0,(AU14*((LOG(AU14))/LOG(2)))) -> -0.1716912472
A15: 21 | B15: 957 | C15: 12 | D15: 962 | E15: 13 | F15: 971 | K15: 0 | L15: 211 | P15: =SUM(P7:P14) -> 1 | Q15: =-SUM(Q7:Q14) -> 2.196843151 | V15: =SUM(V7:V14) -> 1 | W15: =-SUM(W7:W14) -> 1.861808467 | AA15: =SUM(AA7:AA14) -> 1 | AB15: =-SUM(AB7:AB14) -> 1.565140713 | AF15: =SUM(AF7:AF14) -> 1 | AG15: =-SUM(AG7:AG14) -> 1.719294526 | AK15: =SUM(AK7:AK14) -> 1 | AL15: =-SUM(AL7:AL14) -> 1.336381631 | AP15: =SUM(AP7:AP14) -> 1 | AQ15: =-SUM(AQ7:AQ14) -> 1.749218484 | AU15: =SUM(AU7:AU14) -> 1 | AV15: =-SUM(AV7:AV14) -> 1.624044781
A16: 21 | B16: 1067 | C16: 12 | D16: 1077 | E16: 24 | F16: 1085 | K16: 0 | L16: 212 | P16: U= | Q16: =Q15/(LOG(Q4)/LOG(2)) -> 0.2902093863 | V16: U1= | W16: =W15/(LOG(W4)/LOG(2)) -> 0.3723616935 | AA16: U2= | AB16: =AB15/(LOG(AB4)/LOG(2)) -> 0.3159222234 | AF16: U3= | AG16: =AG15/(LOG(AG4)/LOG(2)) -> 0.3438589051 | AK16: U4= | AL16: =AL15/(LOG(AL4)/LOG(2)) -> 0.2672763263 | AP16: U5= | AQ16: =AQ15/(LOG(AQ4)/LOG(2)) -> 0.3530781531 | AU16: U6= | AV16: =AV15/(LOG(AV4)/LOG(2)) -> 0.3248089562
A17: 21 | B17: 1193 | C17: 12 | D17: 1203 | E17: 13 | F17: 1207 | K17: 0 | L17: 211
A18: 21 | B18: 1306 | C18: 12 | D18: 1316 | E18: 24 | F18: 1322 | K18: 0 | L18: 212
A19: 21 | B19: 1419 | C19: 21 | D19: 1432 | E19: 22 | F19: 1434 | K19: 0 | L19: 222 | N19: Total Target Seq
A20: 21 | B20: 1532 | C20: 12 | D20: 1544 | E20: 13 | F20: 1549 | K20: 0 | L20: 211 | N20: =COUNTIF(L7:L196,G3) -> 34 | P20: 32 | Q20: 31 | R20: 32 | S20: 32 | T20: 31 | U20: 32
A21: 12 | B21: 1651 | C21: 23 | D21: 1660 | E21: 24 | F21: 1663 | K21: 0 | L21: 122 | P21: % of reinforcement given in 6 equal intervals based on number of trials
A22: 21 | B22: 1762 | C22: 12 | D22: 1776 | E22: 13 | F22: 1782 | K22: 0 | L22: 211 | P22: %_1 | Q22: %_2 | R22: %_3 | S22: %_4 | T22: %_5 | U22: %_6
A23: 21 | B23: 1876 | C23: 21 | D23: 1888 | E23: 22 | F23: 1909 | K23: 0 | L23: 222 | O23: target sequence | P23: =$G$3 -> 221 | Q23: =$G$3 -> 221 | R23: =$G$3 -> 221 | S23: =$G$3 -> 221 | T23: =$G$3 -> 221 | U23: =$G$3 -> 221
A24: 12 | B24: 2016 | C24: 23 | D24: 2024 | E24: 24 | F24: 2035 | K24: 0 | L24: 122 | O24: total reinforcement | P24: =U13 -> 5 | Q24: =Z13 -> 6 | R24: =AE13 -> 6 | S24: =AJ13 -> 6 | T24: =AO13 -> 7 | U24: =AT13 -> 4
A25: 21 | B25: 2134 | C25: 12 | D25: 2144 | E25: 13 | F25: 2147 | K25: 0 | L25: 211 | O25: % target
A26: 21 | B26: 2250 | C26: 12 | D26: 2262 | E26: 13 | F26: 2265 | K26: 0 | L26: 211 | O26: CCRF
A27: 12 | B27: 2372 | C27: 14 | D27: 2377 | E27: 13 | F27: 2380 | K27: 0 | L27: 111 | O27: % CCRf
A28: 12 | B28: 2488 | C28: 14 | D28: 2493 | E28: 13 | F28: 2498 | K28: 0 | L28: 111 | O28: average response rate | P28: =F38/P20 -> 115.3125 | Q28: =(F69-F38)/Q20 -> 120.7419355 | R28: =(F101-F69)/R20 -> 124.8125 | S28: =(F133-F101)/S20 -> 118.1875 | T28: =(F164-F133)/T20 -> 135.5483871 | U28: =(F196-F164)/U20 -> 142.875
A29: 21 | B29: 2598 | C29: 21 | D29: 2600 | E29: 11 | F29: 2613 | K29: 0 | L29: 221
A30: 21 | B30: 2716 | C30: 21 | D30: 2719 | E30: 11 | F30: 2737 | K30: 0 | L30: 221
A31: 21 | B31: 2851 | C31: 12 | D31: 2861 | E31: 13 | F31: 2865 | K31: 0 | L31: 211
A32: 12 | B32: 2983 | C32: 14 | D32: 2988 | E32: 13 | F32: 2994 | K32: 0 | L32: 111
A33: 21 | B33: 3093 | C33: 21 | D33: 3113 | E33: 22 | F33: 3123 | K33: 0 | L33: 222
A34: 21 | B34: 3220 | C34: 12 | D34: 3234 | E34: 13 | F34: 3239 | K34: 0 | L34: 211
A35: 21 | B35: 3333 | C35: 12 | D35: 3343 | E35: 13 | F35: 3347 | K35: 0 | L35: 211
A36: 21 | B36: 3444 | C36: 21 | D36: 3446 | E36: 11 | F36: 3453 | K36: 0 | L36: 221
A37: 21 | B37: 3562 | C37: 12 | D37: 3572 | E37: 13 | F37: 3578 | K37: 0 | L37: 211
A38: 21 | B38: 3675 | C38: 12 | D38: 3687 | E38: 13 | F38: 3690 | K38: 0 | L38: 211
A39: 21 | B39: 3786 | C39: 12 | D39: 3803 | E39: 13 | F39: 3806 | K39: 0 | L39: 211
A40: 21 | B40: 3898 | C40: 12 | D40: 3917 | E40: 13 | F40: 3920 | K40: 0 | L40: 211
A41: 12 | B41: 4023 | C41: 14 | D41: 4032 | E41: 13 | F41: 4037 | K41: 0 | L41: 111
A42: 21 | B42: 4132 | C42: 12 | D42: 4145 | E42: 13 | F42: 4152 | K42: 0 | L42: 211
A43: 21 | B43: 4252 | C43: 12 | D43: 4272 | E43: 13 | F43: 4275 | K43: 0 | L43: 211
A44: 21 | B44: 4373 | C44: 21 | D44: 4376 | E44: 11 | F44: 4386 | K44: 0 | L44: 221
A45: 12 | B45: 4545 | C45: 14 | D45: 4551 | E45: 13 | F45: 4556 | K45: 0 | L45: 111
A46: 21 | B46: 4651 | C46: 12 | D46: 4670 | E46: 13 | F46: 4676 | K46: 0 | L46: 211
A47: 21 | B47: 4775 | C47: 12 | D47: 4791 | E47: 13 | F47: 4797 | K47: 0 | L47: 211
A48: 21 | B48: 4895 | C48: 12 | D48: 4914 | E48: 13 | F48: 4918 | K48: 0 | L48: 211
A49: 21 | B49: 5014 | C49: 12 | D49: 5032 | E49: 13 | F49: 5034 | K49: 0 | L49: 211
A50: 21 | B50: 5131 | C50: 21 | D50: 5134 | E50: 11 | F50: 5150 | K50: 0 | L50: 221
A51: 21 | B51: 5253 | C51: 12 | D51: 5267 | E51: 13 | F51: 5270 | K51: 0 | L51: 211
A52: 21 | B52: 5366 | C52: 12 | D52: 5381 | E52: 13 | F52: 5385 | K52: 0 | L52: 211
A53: 21 | B53: 5482 | C53: 12 | D53: 5489 | E53: 24 | F53: 5496 | K53: 0 | L53: 212
A54: 21 | B54: 5590 | C54: 21 | D54: 5594 | E54: 22 | F54: 5595 | K54: 0 | L54: 222
A55: 21 | B55: 5688 | C55: 21 | D55: 5693 | E55: 22 | F55: 5698 | K55: 0 | L55: 222
A56: 21 | B56: 5795 | C56: 12 | D56: 5803 | E56: 13 | F56: 5806 | K56: 0 | L56: 211
A57: 21 | B57: 5906 | C57: 21 | D57: 5923 | E57: 22 | F57: 5943 | K57: 0 | L57: 222
A58: 21 | B58: 6039 | C58: 21 | D58: 6041 | E58: 11 | F58: 6051 | K58: 0 | L58: 221
A59: 21 | B59: 6187 | C59: 21 | D59: 6193 | E59: 22 | F59: 6200 | K59: 0 | L59: 222
A60: 21 | B60: 6297 | C60: 21 | D60: 6298 | E60: 11 | F60: 6308 | K60: 0 | L60: 221
A61: 12 | B61: 6458 | C61: 14 | D61: 6461 | E61: 13 | F61: 6465 | K61: 0 | L61: 111
A62: 21 | B62: 6560 | C62: 12 | D62: 6577 | E62: 13 | F62: 6580 | K62: 0 | L62: 211
A63: 21 | B63: 6675 | C63: 12 | D63: 6686 | E63: 13 | F63: 6690 | K63: 0 | L63: 211
A64: 21 | B64: 6787 | C64: 21 | D64: 6788 | E64: 22 | F64: 6794 | K64: 0 | L64: 222
A65: 21 | B65: 6892 | C65: 12 | D65: 6905 | E65: 13 | F65: 6917 | K65: 0 | L65: 211
A66: 21 | B66: 7014 | C66: 21 | D66: 7016 | E66: 11 | F66: 7029 | K66: 0 | L66: 221
A67: 21 | B67: 7144 | C67: 21 | D67: 7148 | E67: 11 | F67: 7165 | K67: 0 | L67: 221
A68: 21 | B68: 7305 | C68: 12 | D68: 7320 | E68: 13 | F68: 7325 | K68: 0 | L68: 211
A69: 21 | B69: 7420 | C69: 12 | D69: 7427 | E69: 24 | F69: 7433 | K69: 0 | L69: 212
A70: 21 | B70: 7527 | C70: 12 | D70: 7537 | E70: 13 | F70: 7543 | K70: 0 | L70: 211
A71: 21 | B71: 7645 | C71: 12 | D71: 7654 | E71: 13 | F71: 7658 | K71: 0 | L71: 211
A72: 21 | B72: 7756 | C72: 21 | D72: 7762 | E72: 11 | F72: 7775 | K72: 0 | L72: 221
A73: 21 | B73: 7956 | C73: 12 | D73: 7975 | E73: 13 | F73: 7981 | K73: 0 | L73: 211
A74: 21 | B74: 8078 | C74: 12 | D74: 8094 | E74: 13 | F74: 8100 | K74: 0 | L74: 211
A75: 21 | B75: 8199 | C75: 21 | D75: 8203 | E75: 11 | F75: 8218 | K75: 0 | L75: 221
A76: 12 | B76: 8362 | C76: 23 | D76: 8366 | E76: 13 | F76: 8372 | K76: 0 | L76: 121
A77: 21 | B77: 8469 | C77: 12 | D77: 8486 | E77: 13 | F77: 8489 | K77: 0 | L77: 211
A78: 12 | B78: 8591 | C78: 14 | D78: 8594 | E78: 13 | F78: 8596 | K78: 0 | L78: 111
A79: 21 | B79: 8694 | C79: 12 | D79: 8703 | E79: 13 | F79: 8709 | K79: 0 | L79: 211
A80: 21 | B80: 8801 | C80: 12 | D80: 8816 | E80: 13 | F80: 8819 | K80: 0 | L80: 211
A81: 21 | B81: 8914 | C81: 12 | D81: 8925 | E81: 13 | F81: 8929 | K81: 0 | L81: 211
A82: 21 | B82: 9028 | C82: 21 | D82: 9031 | E82: 11 | F82: 9037 | K82: 0 | L82: 221
A83: 12 | B83: 9174 | C83: 23 | D83: 9177 | E83: 13 | F83: 9182 | K83: 0 | L83: 121
A84: 21 | B84: 9278 | C84: 12 | D84: 9286 | E84: 13 | F84: 9290 | K84: 0 | L84: 211
A85: 21 | B85: 9387 | C85: 12 | D85: 9398 | E85: 13 | F85: 9401 | K85: 0 | L85: 211
A86: 21 | B86: 9496 | C86: 21 | D86: 9506 | E86: 22 | F86: 9509 | K86: 0 | L86: 222
A87: 21 | B87: 9604 | C87: 12 | D87: 9611 | E87: 24 | F87: 9620 | K87: 0 | L87: 212
A88: 21 | B88: 9720 | C88: 12 | D88: 9729 | E88: 13 | F88: 9733 | K88: 0 | L88: 211
A89: 21 | B89: 9832 | C89: 12 | D89: 9840 | E89: 13 | F89: 9847 | K89: 0 | L89: 211
A90: 21 | B90: 9945 | C90: 12 | D90: 9962 | E90: 24 | F90: 9966 | K90: 0 | L90: 212
A91: 21 | B91: 10062 | C91: 12 | D91: 10074 | E91: 13 | F91: 10077 | K91: 0 | L91: 211
A92: 21 | B92: 10176 | C92: 12 | D92: 10184 | E92: 13 | F92: 10188 | K92: 0 | L92: 211
A93: 12 | B93: 10290 | C93: 14 | D93: 10295 | E93: 13 | F93: 10297 | K93: 0 | L93: 111
A94: 21 | B94: 10389 | C94: 21 | D94: 10392 | E94: 11 | F94: 10402 | K94: 0 | L94: 221
A95: 12 | B95: 10536 | C95: 14 | D95: 10540 | E95: 13 | F95: 10544 | K95: 0 | L95: 111
A96: 21 | B96: 10641 | C96: 21 | D96: 10645 | E96: 11 | F96: 10660 | K96: 0 | L96: 221
A97: 21 | B97: 10853 | C97: 12 | D97: 10865 | E97: 13 | F97: 10868 | K97: 0 | L97: 211
A98: 21 | B98: 10964 | C98: 21 | D98: 10967 | E98: 22 | F98: 10981 | K98: 0 | L98: 222
A99: 21 | B99: 11077 | C99: 12 | D99: 11086 | E99: 13 | F99: 11090 | K99: 0 | L99: 211
A100: 21 | B100: 11184 | C100: 21 | D100: 11188 | E100: 11 | F100: 11204 | K100: 0 | L100: 221
A101: 21 | B101: 11407 | C101: 12 | D101: 11424 | E101: 24 | F101: 11427 | K101: 0 | L101: 212
A102: 21 | B102: 11535 | C102: 12 | D102: 11547 | E102: 13 | F102: 11551 | K102: 0 | L102: 211
A103: 21 | B103: 11645 | C103: 12 | D103: 11655 | E103: 13 | F103: 11659 | K103: 0 | L103: 211
A104: 21 | B104: 11759 | C104: 12 | D104: 11770 | E104: 13 | F104: 11773 | K104: 0 | L104: 211
A105: 21 | B105: 11865 | C105: 12 | D105: 11876 | E105: 13 | F105: 11880 | K105: 0 | L105: 211
A106: 21 | B106: 11977 | C106: 12 | D106: 11984 | E106: 13 | F106: 11988 | K106: 0 | L106: 211
A107: 21 | B107: 12085 | C107: 12 | D107: 12105 | E107: 24 | F107: 12108 | K107: 0 | L107: 212
A108: 21 | B108: 12201 | C108: 12 | D108: 12209 | E108: 24 | F108: 12217 | K108: 0 | L108: 212
A109: 21 | B109: 12315 | C109: 21 | D109: 12317 | E109: 11 | F109: 12330 | K109: 0 | L109: 221
A110: 21 | B110: 12490 | C110: 12 | D110: 12499 | E110: 13 | F110: 12502 | K110: 0 | L110: 211
A111: 21 | B111: 12599 | C111: 12 | D111: 12610 | E111: 13 | F111: 12614 | K111: 0 | L111: 211
A112: 12 | B112: 12722 | C112: 23 | D112: 12728 | E112: 13 | F112: 12735 | K112: 0 | L112: 121
A113: 21 | B113: 12832 | C113: 12 | D113: 12842 | E113: 13 | F113: 12846 | K113: 0 | L113: 211
A114: 21 | B114: 12944 | C114: 21 | D114: 12946 | E114: 11 | F114: 12958 | K114: 0 | L114: 221
A115: 12 | B115: 13115 | C115: 14 | D115: 13118 | E115: 13 | F115: 13121 | K115: 0 | L115: 111
A116: 21 | B116: 13217 | C116: 12 | D116: 13225 | E116: 13 | F116: 13228 | K116: 0 | L116: 211
A117: 21 | B117: 13324 | C117: 12 | D117: 13333 | E117: 13 | F117: 13337 | K117: 0 | L117: 211
A118: 21 | B118: 13435 | C118: 12 | D118: 13442 | E118: 13 | F118: 13447 | K118: 0 | L118: 211
A119: 21 | B119: 13542 | C119: 21 | D119: 13555 | E119: 11 | F119: 13560 | K119: 0 | L119: 221
A120: 12 | B120: 13670 | C120: 23 | D120: 13674 | E120: 13 | F120: 13679 | K120: 0 | L120: 121
A121: 21 | B121: 13774 | C121: 12 | D121: 13784 | E121: 13 | F121: 13787 | K121: 0 | L121: 211
A122: 21 | B122: 13886 | C122: 12 | D122: 13897 | E122: 13 | F122: 13903 | K122: 0 | L122: 211
A123: 21 | B123: 13998 | C123: 12 | D123: 14009 | E123: 13 | F123: 14015 | K123: 0 | L123: 211
A124: 21 | B124: 14113 | C124: 12 | D124: 14122 | E124: 13 | F124: 14125 | K124: 0 | L124: 211
A125: 21 | B125: 14225 | C125: 12 | D125: 14235 | E125: 13 | F125: 14241 | K125: 0 | L125: 211
A126: 21 | B126: 14340 | C126: 12 | D126: 14351 | E126: 13 | F126: 14354 | K126: 0 | L126: 211
A127: 21 | B127: 14449 | C127: 21 | D127: 14451 | E127: 11 | F127: 14461 | K127: 0 | L127: 221
A128: 12 | B128: 14581 | C128: 23 | D128: 14584 | E128: 13 | F128: 14586 | K128: 0 | L128: 121
A129: 12 | B129: 14686 | C129: 14 | D129: 14693 | E129: 24 | F129: 14697 | K129: 0 | L129: 112
A130: 21 | B130: 14789 | C130: 12 | D130: 14801 | E130: 13 | F130: 14804 | K130: 0 | L130: 211
A131: 21 | B131: 14901 | C131: 12 | D131: 14914 | E131: 13 | F131: 14918 | K131: 0 | L131: 211
A132: 21 | B132: 15016 | C132: 21 | D132: 15018 | E132: 11 | F132: 15026 | K132: 0 | L132: 221
A133: 21 | B133: 15191 | C133: 21 | D133: 15206 | E133: 11 | F133: 15209 | K133: 0 | L133: 221
A134: 21 | B134: 15341 | C134: 12 | D134: 15362 | E134: 13 | F134: 15366 | K134: 0 | L134: 211
A135: 21 | B135: 15463 | C135: 12 | D135: 15475 | E135: 13 | F135: 15481 | K135: 0 | L135: 211
A136: 21 | B136: 15579 | C136: 12 | D136: 15591 | E136: 13 | F136: 15594 | K136: 0 | L136: 211
A137: 12 | B137: 15704 | C137: 14 | D137: 15709 | E137: 13 | F137: 15715 | K137: 0 | L137: 111
A138: 21 | B138: 15812 | C138: 21 | D138: 15814 | E138: 11 | F138: 15821 | K138: 0 | L138: 221
A139: 12 | B139: 15935 | C139: 14 | D139: 15938 | E139: 24 | F139: 15940 | K139: 0 | L139: 112
A140: 21 | B140: 16038 | C140: 12 | D140: 16053 | E140: 13 | F140: 16059 | K140: 0 | L140: 211
A141: 21 | B141: 16158 | C141: 12 | D141: 16165 | E141: 13 | F141: 16169 | K141: 0 | L141: 211
A142: 21 | B142: 16269 | C142: 21 | D142: 16279 | E142: 22 | F142: 16283 | K142: 0 | L142: 222
A143: 21 | B143: 16381 | C143: 12 | D143: 16392 | E143: 13 | F143: 16395 | K143: 0 | L143: 211
A144: 21 | B144: 16493 | C144: 12 | D144: 16506 | E144: 24 | F144: 16509 | K144: 0 | L144: 212
A145: 21 | B145: 16604 | C145: 12 | D145: 16618 | E145: 13 | F145: 16621 | K145: 0 | L145: 211
A146: 12 | B146: 16726 | C146: 14 | D146: 16730 | E146: 13 | F146: 16736 | K146: 0 | L146: 111
A147: 21 | B147: 16834 | C147: 21 | D147: 16836 | E147: 11 | F147: 16843 | K147: 0 | L147: 221
A148: 21 | B148: 16982 | C148: 12 | D148: 16995 | E148: 24 | F148: 16997 | K148: 0 | L148: 212
A149: 21 | B149: 17095 | C149: 12 | D149: 17108 | E149: 13 | F149: 17111 | K149: 0 | L149: 211
A150: 21 | B150: 17205 | C150: 21 | D150: 17209 | E150: 11 | F150: 17225 | K150: 0 | L150: 221
A151: 21 | B151: 17371 | C151: 12 | D151: 17387 | E151: 24 | F151: 17390 | K151: 0 | L151: 212
A152: 21 | B152: 17483 | C152: 21 | D152: 17485 | E152: 22 | F152: 17489 | K152: 0 | L152: 222
A153: 21 | B153: 17619 | C153: 21 | D153: 17624 | E153: 11 | F153: 17638 | K153: 0 | L153: 221
A154: 12 | B154: 17788 | C154: 14 | D154: 17790 | E154: 13 | F154: 17794 | K154: 0 | L154: 111
A155: 21 | B155: 17892 | C155: 12 | D155: 17904 | E155: 13 | F155: 17907 | K155: 0 | L155: 211
A156: 21 | B156: 18004 | C156: 21 | D156: 18006 | E156: 11 | F156: 18021 | K156: 0 | L156: 221
A157: 21 | B157: 18234 | C157: 21 | D157: 18236 | E157: 11 | F157: 18243 | K157: 0 | L157: 221
A158: 21 | B158: 18363 | C158: 12 | D158: 18377 | E158: 13 | F158: 18382 | K158: 0 | L158: 211
A159: 12 | B159: 18483 | C159: 14 | D159: 18488 | E159: 13 | F159: 18492 | K159: 0 | L159: 111
A160: 21 | B160: 18591 | C160: 21 | D160: 18596 | E160: 11 | F160: 18601 | K160: 0 | L160: 221
A161: 21 | B161: 19058 | C161: 12 | D161: 19071 | E161: 13 | F161: 19082 | K161: 0 | L161: 211
A162: 21 | B162: 19178 | C162: 12 | D162: 19185 | E162: 13 | F162: 19188 | K162: 0 | L162: 211
A163: 21 | B163: 19287 | C163: 12 | D163: 19295 | E163: 13 | F163: 19298 | K163: 0 | L163: 211
A164: 21 | B164: 19398 | C164: 12 | D164: 19406 | E164: 13 | F164: 19411 | K164: 0 | L164: 211
A165: 21 | B165: 19508 | C165: 21 | D165: 19511 | E165: 11 | F165: 19519 | K165: 0 | L165: 221
A166: 12 | B166: 19640 | C166: 14 | D166: 19642 | E166: 13 | F166: 19645 | K166: 0 | L166: 111
A167: 21 | B167: 19744 | C167: 12 | D167: 19760 | E167: 24 | F167: 19764 | K167: 0 | L167: 212
A168: 12 | B168: 19868 | C168: 14 | D168: 19874 | E168: 13 | F168: 19879 | K168: 0 | L168: 111
A169: 21 | B169: 19975 | C169: 21 | D169: 19977 | E169: 11 | F169: 19993 | K169: 0 | L169: 221
A170: 12 | B170: 20096 | C170: 14 | D170: 20100 | E170: 13 | F170: 20106 | K170: 0 | L170: 111
A171: 12 | B171: 20208 | C171: 14 | D171: 20212 | E171: 13 | F171: 20215 | K171: 0 | L171: 111
A172: 21 | B172: 20314 | C172: 21 | D172: 20319 | E172: 11 | F172: 20325 | K172: 0 | L172: 221
A173: 12 | B173: 21340 | C173: 14 | D173: 21344 | E173: 13 | F173: 21350 | K173: 0 | L173: 111
A174: 12 | B174: 21537 | C174: 14 | D174: 21541 | E174: 13 | F174: 21546 | K174: 0 | L174: 111
A175: 12 | B175: 21649 | C175: 14 | D175: 21653 | E175: 13 | F175: 21658 | K175: 0 | L175: 111
A176: 12 | B176: 21766 | C176: 14 | D176: 21771 | E176: 24 | F176: 21775 | K176: 0 | L176: 112
A177: 21 | B177: 21873 | C177: 12 | D177: 21885 | E177: 13 | F177: 21888 | K177: 0 | L177: 211
A178: 21 | B178: 21983 | C178: 12 | D178: 21991 | E178: 13 | F178: 21995 | K178: 0 | L178: 211
A179: 21 | B179: 22095 | C179: 12 | D179: 22100 | E179: 13 | F179: 22103 | K179: 0 | L179: 211
A180: 21 | B180: 22199 | C180: 12 | D180: 22212 | E180: 13 | F180: 22217 | K180: 0 | L180: 211
A181: 21 | B181: 22314 | C181: 12 | D181: 22323 | E181: 13 | F181: 22329 | K181: 0 | L181: 211
A182: 21 | B182: 22426 | C182: 12 | D182: 22434 | E182: 13 | F182: 22437 | K182: 0 | L182: 211
A183: 21 | B183: 22536 | C183: 12 | D183: 22544 | E183: 13 | F183: 22547 | K183: 0 | L183: 211
A184: 21 | B184: 22647 | C184: 12 | D184: 22654 | E184: 13 | F184: 22659 | K184: 0 | L184: 211
A185: 21 | B185: 22757 | C185: 12 | D185: 22767 | E185: 13 | F185: 22769 | K185: 0 | L185: 211
A186: 21 | B186: 22865 | C186: 12 | D186: 22872 | E186: 13 | F186: 22875 | K186: 0 | L186: 211
A187: 21 | B187: 22974 | C187: 12 | D187: 22983 | E187: 13 | F187: 22986 | K187: 0 | L187: 211
A188: 21 | B188: 23084 | C188: 12 | D188: 23097 | E188: 13 | F188: 23099 | K188: 0 | L188: 211
A189: 21 | B189: 23197 | C189: 12 | D189: 23210 | E189: 24 | F189: 23214 | K189: 0 | L189: 212
A190: 12 | B190: 23318 | C190: 14 | D190: 23320 | E190: 13 | F190: 23323 | K190: 0 | L190: 111
A191: 12 | B191: 23430 | C191: 14 | D191: 23433 | E191: 13 | F191: 23436 | K191: 0 | L191: 111
A192: 21 | B192: 23536 | C192: 12 | D192: 23547 | E192: 13 | F192: 23552 | K192: 0 | L192: 211
A193: 21 | B193: 23648 | C193: 21 | D193: 23650 | E193: 22 | F193: 23652 | K193: 0 | L193: 222
A194: 21 | B194: 23748 | C194: 12 | D194: 23757 | E194: 13 | F194: 23762 | K194: 0 | L194: 211
A195: 21 | B195: 23858 | C195: 12 | D195: 23866 | E195: 13 | F195: 23872 | K195: 0 | L195: 211
A196: 21 | B196: 23970 | C196: 21 | D196: 23971 | E196: 11 | F196: 23983 | K196: 1 | L196: 221

Sheet !MA04A5T.AYL
A1: Report for:!MA04A5T.AYL
A2: Date: | B2: <date>
A3: Hen: | B3: <hen> | F3: Correct Sequence | G3: =Start!J2 -> 221 | P3: Total Sequences in Data | Q3: =4994-COUNTBLANK(L7:L5000) -> 190 | V3: Total Sequences in Block Data | W3: =COUNTA(L7:L38) -> 32 | AA3: Total Sequences in Block Data | AB3: =COUNTA(L39:L69) -> 31 | AF3: Total Sequences in Block Data | AG3: =COUNTA(L70:L101) -> 32 | AK3: Total Sequences in Block Data | AL3: =COUNTA(L102:L133) -> 32 | AP3: Total Sequences in Block Data | AQ3: =COUNTA(L134:L164) -> 31 | AU3: Total Sequences in Block Data | AV3: =COUNTA(L165:L196) -> 32
P4: Total Sequences in Summary | Q4: =SUM(O7:O14) -> 190 | V4: Total Sequences in Block Summary | W4: =SUM(U7:U14) -> 32 | AA4: Total Sequences in Block Summary | AB4: =SUM(Z7:Z14) -> 31 | AF4: Total Sequences in Block Summary | AG4: =SUM(AE7:AE14) -> 32 | AK4: Total Sequences in Block Summary | AL4: =SUM(AJ7:AJ14) -> 32 | AP4: Total Sequences in Block Summary | AQ4: =SUM(AO7:AO14) -> 31 | AU4: Total Sequences in Block Summary | AV4: =SUM(AT7:AT14) -> 32
T5: Block 1 | Y5: Block 2 | AD5: Block 3 | AI5: Block 4 | AN5: Block 5 | AS5: Block 6
A6: Sequence Component 1 | B6: Time 1 | C6: Sequence Component 2 | D6: Time 2 | E6: Sequence Component 3 | F6: Time 3 | G6: Sequence Component 4 | H6: Time 4 | I6: Sequence Component 5 | J6: Time 5 | K6: Correct? 0=No 1=Yes | L6: Sequence | N6: Frequency | P6: Relative Frequency | Q6: Variability | T6: Frequency | V6: Relative Frequency | W6: Variability | Y6: Frequency | AA6: Relative Frequency | AB6: Variability | AD6: Frequency | AF6: Relative Frequency | AG6: Variability | AI6: Frequency | AK6: Relative Frequency | AL6: Variability | AN6: Frequency | AP6: Relative Frequency | AQ6: Variability | AS6: Frequency | AU6: Relative Frequency | AV6: Variability
A7: 12 | B7: 16 | C7: 14 | D7: 19 | E7: 13 | F7: 25 | K7: 0 | L7: 111 | N7: 111 | O7: =COUNTIF($L$7:$L$500,N7) -> 50 | P7: =O7/$Q$4 -> 0.2631578947 | Q7: =IF(P7=0,0,(P7*((LOG(P7))/LOG(2)))) -> -0.5068419523 | T7: =N7 -> 111 | U7: =COUNTIF(L7:L38,T7) -> 12 | V7: =U7/(W4-U13) -> 0.4 | W7: =IF(V7=0,0,(V7*((LOG(V7))/LOG(2)))) -> -0.528771238 | Y7: =N7 -> 111 | Z7: =COUNTIF(L39:L69,Y7) -> 11 | AA7: =Z7/(AB4-Z13) -> 0.3928571429 | AB7: =IF(AA7=0,0,(AA7*((LOG(AA7))/LOG(2)))) -> -0.5295412978 | AD7: =N7 -> 111 | AE7: =COUNTIF(L70:L101,AD7) -> 3 | AF7: =AE7/(AG4-AE13) -> 0.12 | AG7: =IF(AF7=0,0,(AF7*((LOG(AF7))/LOG(2)))) -> -0.3670672427 | AI7: =N7 -> 111 | AJ7: =COUNTIF(L102:L133,AI7) -> 7 | AK7: =AJ7/(AL4-AJ13) -> 0.2592592593 | AL7: =IF(AK7=0,0,(AK7*((LOG(AK7))/LOG(2)))) -> -0.5049158541 | AN7: =N7 -> 111 | AO7: =COUNTIF(L134:L164,AN7) -> 9 | AP7: =AO7/(AQ4-AO13) -> 0.3333333333 | AQ7: =IF(AP7=0,0,(AP7*((LOG(AP7))/LOG(2)))) -> -0.5283208336 | AS7: =N7 -> 111 | AT7: =COUNTIF(L165:L196,AS7) -> 8 | AU7: =AT7/(AV4-AT13) -> 0.2666666667 | AV7: =IF(AU7=0,0,(AU7*((LOG(AU7))/LOG(2)))) -> -0.5085041588
A8: 12 | B8: 129 | C8: 14 | D8: 131 | E8: 13 | F8: 134 | K8: 0 | L8: 111 | N8: 112 | O8: =COUNTIF($L$7:$L$500,N8) -> 10 | P8: =O8/$Q$4 -> 0.05263157895 | Q8: =IF(P8=0,0,(P8*((LOG(P8))/LOG(2)))) -> -0.2235751323 | T8: =N8 -> 112 | U8: =COUNTIF(L7:L38,T8) -> 1 | V8: =U8/(W4-U13) -> 0.03333333333 | W8: =IF(V8=0,0,(V8*((LOG(V8))/LOG(2)))) -> -0.1635630199 | Y8: =N8 -> 112 | Z8: =COUNTIF(L39:L69,Y8) -> 3 | AA8: =Z8/(AB4-Z13) -> 0.1071428571 | AB8: =IF(AA8=0,0,(AA8*((LOG(AA8))/LOG(2)))) -> -0.3452563309 | AD8: =N8 -> 112 | AE8: =COUNTIF(L70:L101,AD8) -> 0 | AF8: =AE8/(AG4-AE13) -> 0 | AG8: =IF(AF8=0,0,(AF8*((LOG(AF8))/LOG(2)))) -> 0 | AI8: =N8 -> 112 | AJ8: =COUNTIF(L102:L133,AI8) -> 0 | AK8: =AJ8/(AL4-AJ13) -> 0 | AL8: =IF(AK8=0,0,(AK8*((LOG(AK8))/LOG(2)))) -> 0 | AN8: =N8 -> 112 | AO8: =COUNTIF(L134:L164,AN8) -> 1 | AP8: =AO8/(AQ4-AO13) -> 0.03703703704 | AQ8: =IF(AP8=0,0,(AP8*((LOG(AP8))/LOG(2)))) -> -0.1761069445 | AS8: =N8 -> 112 | AT8: =COUNTIF(L165:L196,AS8) -> 5 | AU8: =AT8/(AV4-AT13) -> 0.1666666667 | AV8: =IF(AU8=0,0,(AU8*((LOG(AU8))/LOG(2)))) -> -0.4308270835
A9: 12 | B9: 235 | C9: 14 | D9: 240 | E9: 13 | F9: 244 | K9: 0 | L9: 111 | N9: 121 | O9: =COUNTIF($L$7:$L$500,N9) -> 7 | P9: =O9/$Q$4 -> 0.03684210526 | Q9: =IF(P9=0,0,(P9*((LOG(P9))/LOG(2)))) -> -0.1754605516 | T9: =N9 -> 121 | U9: =COUNTIF(L7:L38,T9) -> 0 | V9: =U9/(W4-U13) -> 0 | W9: =IF(V9=0,0,(V9*((LOG(V9))/LOG(2)))) -> 0 | Y9: =N9 -> 121 | Z9: =COUNTIF(L39:L69,Y9) -> 0 | AA9: =Z9/(AB4-Z13) -> 0 | AB9: =IF(AA9=0,0,(AA9*((LOG(AA9))/LOG(2)))) -> 0 | AD9: =N9 -> 121 | AE9: =COUNTIF(L70:L101,AD9) -> 0 | AF9: =AE9/(AG4-AE13) -> 0 | AG9: =IF(AF9=0,0,(AF9*((LOG(AF9))/LOG(2)))) -> 0 | AI9: =N9 -> 121 | AJ9: =COUNTIF(L102:L133,AI9) -> 3 | AK9: =AJ9/(AL4-AJ13) -> 0.1111111111 | AL9: =IF(AK9=0,0,(AK9*((LOG(AK9))/LOG(2)))) -> -0.352213889 | AN9: =N9 -> 121 | AO9: =COUNTIF(L134:L164,AN9) -> 1 | AP9: =AO9/(AQ4-AO13) -> 0.03703703704 | AQ9: =IF(AP9=0,0,(AP9*((LOG(AP9))/LOG(2)))) -> -0.1761069445 | AS9: =N9 -> 121 | AT9: =COUNTIF(L165:L196,AS9) -> 3 | AU9: =AT9/(AV4-AT13) -> 0.1 | AV9: =IF(AU9=0,0,(AU9*((LOG(AU9))/LOG(2)))) -> -0.3321928095
A10: 12 | B10: 356 | C10: 14 | D10: 360 | E10: 13 | F10: 364 | K10: 0 | L10: 111 | N10: 122 | O10: =COUNTIF($L$7:$L$500,N10) -> 3 | P10: =O10/$Q$4 -> 0.01578947368 | Q10: =IF(P10=0,0,(P10*((LOG(P10))/LOG(2)))) -> -0.09449831223 | T10: =N10 -> 122 | U10: =COUNTIF(L7:L38,T10) -> 0 | V10: =U10/(W4-U13) -> 0 | W10: =IF(V10=0,0,(V10*((LOG(V10))/LOG(2)))) -> 0 | Y10: =N10 -> 122 | Z10: =COUNTIF(L39:L69,Y10) -> 0 | AA10: =Z10/(AB4-Z13) -> 0 | AB10: =IF(AA10=0,0,(AA10*((LOG(AA10))/LOG(2)))) -> 0 | AD10: =N10 -> 122 | AE10: =COUNTIF(L70:L101,AD10) -> 0 | AF10: =AE10/(AG4-AE13) -> 0 | AG10: =IF(AF10=0,0,(AF10*((LOG(AF10))/LOG(2)))) -> 0 | AI10: =N10 -> 122 | AJ10: =COUNTIF(L102:L133,AI10) -> 0 | AK10: =AJ10/(AL4-AJ13) -> 0 | AL10: =IF(AK10=0,0,(AK10*((LOG(AK10))/LOG(2)))) -> 0 | AN10: =N10 -> 122 | AO10: =COUNTIF(L134:L164,AN10) -> 0 | AP10: =AO10/(AQ4-AO13) -> 0 | AQ10: =IF(AP10=0,0,(AP10*((LOG(AP10))/LOG(2)))) -> 0 | AS10: =N10 -> 122 | AT10: =COUNTIF(L165:L196,AS10) -> 3 | AU10: =AT10/(AV4-AT13) -> 0.1 | AV10: =IF(AU10=0,0,(AU10*((LOG(AU10))/LOG(2)))) -> -0.3321928095
A11: 12 | B11: 468 | C11: 14 | D11: 472 | E11: 13 | F11: 475 | K11: 0 | L11: 111 | N11: 211 | O11: =COUNTIF($L$7:$L$500,N11) -> 82 | P11: =O11/$Q$4 -> 0.4315789474 | Q11: =IF(P11=0,0,(P11*((LOG(P11))/LOG(2)))) -> -0.5232047132 | T11: =N11 -> 211 | U11: =COUNTIF(L7:L38,T11) -> 15 | V11: =U11/(W4-U13) -> 0.5 | W11: =IF(V11=0,0,(V11*((LOG(V11))/LOG(2)))) -> -0.5 | Y11: =N11 -> 211 | Z11: =COUNTIF(L39:L69,Y11) -> 13 | AA11: =Z11/(AB4-Z13) -> 0.4642857143 | AB11: =IF(AA11=0,0,(AA11*((LOG(AA11))/LOG(2)))) -> -0.5139249161 | AD11: =N11 -> 211 | AE11: =COUNTIF(L70:L101,AD11) -> 13 | AF11: =AE11/(AG4-AE13) -> 0.52 | AG11: =IF(AF11=0,0,(AF11*((LOG(AF11))/LOG(2)))) -> -0.4905765652 | AI11: =N11 -> 211 | AJ11: =COUNTIF(L102:L133,AI11) -> 15 | AK11: =AJ11/(AL4-AJ13) -> 0.5555555556 | AL11: =IF(AK11=0,0,(AK11*((LOG(AK11))/LOG(2)))) -> -0.4711093925 | AN11: =N11 -> 211 | AO11: =COUNTIF(L134:L164,AN11) -> 15 | AP11: =AO11/(AQ4-AO13) -> 0.5555555556 | AQ11: =IF(AP11=0,0,(AP11*((LOG(AP11))/LOG(2)))) -> -0.4711093925 | AS11: =N11 -> 211 | AT11: =COUNTIF(L165:L196,AS11) -> 11 | AU11: =AT11/(AV4-AT13) -> 0.3666666667 | AV11: =IF(AU11=0,0,(AU11*((LOG(AU11))/LOG(2)))) -> -0.5307349582
A12: 12 | B12: 580 | C12: 14 | D12: 584 | E12: 13 | F12: 588 | K12: 0 | L12: 111 | N12: 212 | O12: =COUNTIF($L$7:$L$500,N12) -> 10 | P12: =O12/$Q$4 -> 0.05263157895 | Q12: =IF(P12=0,0,(P12*((LOG(P12))/LOG(2)))) -> -0.2235751323 | T12: =N12 -> 212 | U12: =COUNTIF(L7:L38,T12) -> 2 | V12: =U12/(W4-U13) -> 0.06666666667 | W12: =IF(V12=0,0,(V12*((LOG(V12))/LOG(2)))) -> -0.260459373 | Y12: =N12 -> 212 | Z12: =COUNTIF(L39:L69,Y12) -> 0 | AA12: =Z12/(AB4-Z13) -> 0 | AB12: =IF(AA12=0,0,(AA12*((LOG(AA12))/LOG(2)))) -> 0 | AD12: =N12 -> 212 | AE12: =COUNTIF(L70:L101,AD12) -> 6 | AF12: =AE12/(AG4-AE13) -> 0.24 | AG12: =IF(AF12=0,0,(AF12*((LOG(AF12))/LOG(2)))) -> -0.4941344854 | AI12: =N12 -> 212 | AJ12: =COUNTIF(L102:L133,AI12) -> 1 | AK12: =AJ12/(AL4-AJ13) -> 0.03703703704 | AL12: =IF(AK12=0,0,(AK12*((LOG(AK12))/LOG(2)))) -> -0.1761069445 | AN12: =N12 -> 212 | AO12: =COUNTIF(L134:L164,AN12) -> 1 | AP12: =AO12/(AQ4-AO13) -> 0.03703703704 | AQ12: =IF(AP12=0,0,(AP12*((LOG(AP12))/LOG(2)))) -> -0.1761069445 | AS12: =N12 -> 212 | AT12: =COUNTIF(L165:L196,AS12) -> 0 | AU12: =AT12/(AV4-AT13) -> 0 | AV12: =IF(AU12=0,0,(AU12*((LOG(AU12))/LOG(2)))) -> 0
A13: 21 | B13: 682 | C13: 12 | D13: 692 | E13: 13 | F13: 695 | K13: 0 | L13: 211 | N13: 221 | O13: =COUNTIF($L$7:$L$500,N13) -> 23 | P13: =O13/$Q$4 -> 0.1210526316 | Q13: =IF(P13=0,0,(P13*((LOG(P13))/LOG(2)))) -> -0.3687618632 | T13: =N13 -> 221 | U13: =COUNTIF(L7:L38,T13) -> 2 | Y13: =N13 -> 221 | Z13: =COUNTIF(L39:L69,Y13) -> 3 | AD13: =N13 -> 221 | AE13: =COUNTIF(L70:L101,AD13) -> 7 | AI13: =N13 -> 221 | AJ13: =COUNTIF(L102:L133,AI13) -> 5 | AN13: =N13 -> 221 | AO13: =COUNTIF(L134:L164,AN13) -> 4 | AS13: =N13 -> 221 | AT13: =COUNTIF(L165:L196,AS13) -> 2
A14: 21 | B14: 791 | C14: 12 | D14: 801 | E14: 13 | F14: 809 | K14: 0 | L14: 211 | N14: 222 | O14: =COUNTIF($L$7:$L$500,N14) -> 5 | P14: =O14/$Q$4 -> 0.02631578947 | Q14: =IF(P14=0,0,(P14*((LOG(P14))/LOG(2)))) -> -0.1381033556 | T14: =N14 -> 222 | U14: =COUNTIF(L7:L38,T14) -> 0 | V14: =U14/(W4-U13) -> 0 | W14: =IF(V14=0,0,(V14*((LOG(V14))/LOG(2)))) -> 0 | Y14: =N14 -> 222 | Z14: =COUNTIF(L39:L69,Y14) -> 1 | AA14: =Z14/(AB4-Z13) -> 0.03571428571 | AB14: =IF(AA14=0,0,(AA14*((LOG(AA14))/LOG(2)))) -> -0.1716912472 | AD14: =N14 -> 222 | AE14: =COUNTIF(L70:L101,AD14) -> 3 | AF14: =AE14/(AG4-AE13) -> 0.12 | AG14: =IF(AF14=0,0,(AF14*((LOG(AF14))/LOG(2)))) -> -0.3670672427 | AI14: =N14 -> 222 | AJ14: =COUNTIF(L102:L133,AI14) -> 1 | AK14: =AJ14/(AL4-AJ13) -> 0.03703703704 | AL14: =IF(AK14=0,0,(AK14*((LOG(AK14))/LOG(2)))) -> -0.1761069445 | AN14: =N14 -> 222 | AO14: =COUNTIF(L134:L164,AN14) -> 0 | AP14: =AO14/(AQ4-AO13) -> 0 | AQ14: =IF(AP14=0,0,(AP14*((LOG(AP14))/LOG(2)))) -> 0 | AS14: =N14 -> 222 | AT14: =COUNTIF(L165:L196,AS14) -> 0 | AU14: =AT14/(AV4-AT13) -> 0 | AV14: =IF(AU14=0,0,(AU14*((LOG(AU14))/LOG(2)))) -> 0
A15: 21 | B15: 903 | C15: 12 | D15: 912 | E15: 13 | F15: 920 | K15: 0 | L15: 211 | P15: =SUM(P7:P14) -> 1 | Q15: =-SUM(Q7:Q14) -> 2.254021013 | V15: =SUM(V7:V14) -> 1 | W15: =-SUM(W7:W14) -> 1.452793631 | AA15: =SUM(AA7:AA14) -> 1 | AB15: =-SUM(AB7:AB14) -> 1.560413792 | AF15: =SUM(AF7:AF14) -> 1 | AG15: =-SUM(AG7:AG14) -> 1.718845536 | AK15: =SUM(AK7:AK14) -> 1 | AL15: =-SUM(AL7:AL14) -> 1.680453025 | AP15: =SUM(AP7:AP14) -> 1 | AQ15: =-SUM(AQ7:AQ14) -> 1.52775106 | AU15: =SUM(AU7:AU14) -> 1 | AV15: =-SUM(AV7:AV14) -> 2.134451819
A16: 21 | B16: 1015 | C16: 12 | D16: 1021 | E16: 13 | F16: 1026 | K16: 0 | L16: 211 | P16: U= | Q16: =Q15/(LOG(Q4)/LOG(2)) -> 0.2977627486 | V16: U1= | W16: =W15/(LOG(W4)/LOG(2)) -> 0.2905587262 | AA16: U2= | AB16: =AB15/(LOG(AB4)/LOG(2)) -> 0.3149680986 | AF16: U3= | AG16: =AG15/(LOG(AG4)/LOG(2)) -> 0.3437691072 | AK16: U4= | AL16: =AL15/(LOG(AL4)/LOG(2)) -> 0.3360906049 | AP16: U5= | AQ16: =AQ15/(LOG(AQ4)/LOG(2)) -> 0.3083751559 | AU16: U6= | AV16: =AV15/(LOG(AV4)/LOG(2)) -> 0.4268903639
A17: 12 | B17: 1128 | C17: 14 | D17: 1131 | E17: 13 | F17: 1136 | K17: 0 | L17: 111
A18: 21 | B18: 1235 | C18: 12 | D18: 1243 | E18: 13 | F18: 1251 | K18: 0 | L18: 211
A19: 21 | B19: 1351 | C19: 12 | D19: 1359 | E19: 13 | F19: 1362 | K19: 0 | L19: 211 | N19: Total Target Seq
A20: 12 | B20: 1464 | C20: 14 | D20: 1467 | E20: 13 | F20: 1470 | K20: 0 | L20: 111 | N20: =COUNTIF(L7:L196,G3) -> 23 | P20: 32 | Q20: 31 | R20: 32 | S20: 32 | T20: 31 | U20: 32
A21: 21 | B21: 1567 | C21: 12 | D21: 1584 | E21: 24 | F21: 1588 | K21: 0 | L21: 212 | P21: % of reinforcement given in 6 equal intervals based on number of trials
A22: 12 | B22: 1689 | C22: 14 | D22: 1693 | E22: 13 | F22: 1696 | K22: 0 | L22: 111 | P22: %_1 | Q22: %_2 | R22: %_3 | S22: %_4 | T22: %_5 | U22: %_6
A23: 21 | B23: 1794 | C23: 12 | D23: 1807 | E23: 13 | F23: 1812 | K23: 0 | L23: 211 | O23: target sequence | P23: =$G$3 -> 221 | Q23: =$G$3 -> 221 | R23: =$G$3 -> 221 | S23: =$G$3 -> 221 | T23: =$G$3 -> 221 | U23: =$G$3 -> 221
A24: 21 | B24: 1911 | C24: 12 | D24: 1922 | E24: 13 | F24: 1927 | K24: 0 | L24: 211 | O24: total reinforcement | P24: =U13 -> 2 | Q24: =Z13 -> 3 | R24: =AE13 -> 7 | S24: =AJ13 -> 5 | T24: =AO13 -> 4 | U24: =AT13 -> 2
A25: 21 | B25: 2024 | C25: 12 | D25: 2042 | E25: 13 | F25: 2047 | K25: 0 | L25: 211 | O25: % target
A26: 12 | B26: 2148 | C26: 14 | D26: 2158 | E26: 24 | F26: 2161 | K26: 0 | L26: 112 | O26: CCRF
A27: 21 | B27: 2256 | C27: 21 | D27: 2258 | E27: 11 | F27: 2274 | K27: 0 | L27: 221 | O27: % CCRf
A28: 12 | B28: 2488 | C28: 14 | D28: 2495 | E28: 13 | F28: 2500 | K28: 0 | L28: 111 | O28: average response rate | P28: =F38/P20 -> 113.6875 | Q28: =(F69-F38)/Q20 -> 142.483871 | R28: =(F101-F69)/R20 -> 128.15625 | S28: =(F133-F101)/S20 -> 121.625 | T28: =(F164-F133)/T20 -> 121.7741935 | U28: =(F196-F164)/U20 -> 129.90625
A29: 21 | B29: 2596 | C29: 12 | D29: 2607 | E29: 13 | F29: 2610 | K29: 0 | L29: 211
A30: 21 | B30: 2708 | C30: 12 | D30: 2725 | E30: 13 | F30: 2730 | K30: 0 | L30: 211
A31: 21 | B31: 2824 | C31: 12 | D31: 2833 | E31: 13 | F31: 2837 | K31: 0 | L31: 211
A32: 12 | B32: 2941 | C32: 14 | D32: 2945 | E32: 13 | F32: 2948 | K32: 0 | L32: 111
A33: 12 | B33: 3049 | C33: 14 | D33: 3053 | E33: 13 | F33: 3056 | K33: 0 | L33: 111
A34: 21 | B34: 3151 | C34: 12 | D34: 3171 | E34: 24 | F34: 3175 | K34: 0 | L34: 212
A35: 21 | B35: 3271 | C35: 12 | D35: 3280 | E35: 13 | F35: 3284 | K35: 0 | L35: 211
A36: 21 | B36: 3378 | C36: 12 | D36: 3386 | E36: 13 | F36: 3392 | K36: 0 | L36: 211
A37: 21 | B37: 3510 | C37: 12 | D37: 3519 | E37: 13 | F37: 3525 | K37: 0 | L37: 211
A38: 21 | B38: 3622 | C38: 21 | D38: 3624 | E38: 11 | F38: 3638 | K38: 0 | L38: 221
A39: 12 | B39: 3840 | C39: 14 | D39: 3845 | E39: 24 | F39: 3847 | K39: 0 | L39: 112
A40: 21 | B40: 3943 | C40: 12 | D40: 3952 | E40: 13 | F40: 3958 | K40: 0 | L40: 211
A41: 21 | B41: 4053 | C41: 21 | D41: 4066 | E41: 22 | F41: 4078 | K41: 0 | L41: 222
A42: 21 | B42: 4172 | C42: 12 | D42: 4190 | E42: 13 | F42: 4196 | K42: 0 | L42: 211
A43: 12 | B43: 4296 | C43: 14 | D43: 4299 | E43: 24 | F43: 4304 | K43: 0 | L43: 112
A44: 21 | B44: 4400 | C44: 12 | D44: 4410 | E44: 13 | F44: 4416 | K44: 0 | L44: 211
A45: 21 | B45: 4517 | C45: 21 | D45: 4520 | E45: 11 | F45: 4530 | K45: 0 | L45: 221
A46: 12 | B46: 5339 | C46: 14 | D46: 5343 | E46: 13 | F46: 5347 | K46: 0 | L46: 111
A47: 12 | B47: 5448 | C47: 14 | D47: 5452 | E47: 13 | F47: 5455 | K47: 0 | L47: 111
A48: 12 | B48: 5571 | C48: 14 | D48: 5573 | E48: 13 | F48: 5579 | K48: 0 | L48: 111
A49: 21 | B49: 5679 | C49: 12 | D49: 5689 | E49: 13 | F49: 5695 | K49: 0 | L49: 211
A50: 12 | B50: 5795 | C50: 14 | D50: 5802 | E50: 13 | F50: 5812 | K50: 0 | L50: 111
A51: 21 | B51: 5907 | C51: 12 | D51: 5918 | E51: 13 | F51: 5920 | K51: 0 | L51: 211
A52: 21 | B52: 6018 | C52: 12 | D52: 6033 | E52: 13 | F52: 6038 | K52: 0 | L52: 211
A53: 12 | B53: 6143 | C53: 14 | D53: 6148 | E53: 13 | F53: 6151 | K53: 0 | L53: 111
A54: 21 | B54: 6248 | C54: 12 | D54: 6256 | E54: 13 | F54: 6263 | K54: 0 | L54: 211
A55: 12 | B55: 6366 | C55: 14 | D55: 6370 | E55: 13 | F55: 6372 | K55: 0 | L55: 111
A56: 21 | B56: 6469 | C56: 21 | D56: 6472 | E56: 11 | F56: 6485 | K56: 0 | L56: 221
A57: 12 | B57: 6643 | C57: 14 | D57: 6649 | E57: 13 | F57: 6654 | K57: 0 | L57: 111
A58: 21 | B58: 6751 | C58: 12 | D58: 6762 | E58: 13 | F58: 6766 | K58: 0 | L58: 211
A59: 21 | B59: 6863 | C59: 12 | D59: 6880 | E59: 13 | F59: 6883 | K59: 0 | L59: 211
A60: 21 | B60: 6978 | C60: 21 | D60: 6981 | E60: 11 | F60: 6993 | K60: 0 | L60: 221
A61: 12 | B61: 7124 | C61: 14 | D61: 7127 | E61: 13 | F61: 7132 | K61: 0 | L61: 111
A62: 21 | B62: 7228 | C62: 12 | D62: 7241 | E62: 13 | F62: 7247 | K62: 0 | L62: 211
A63: 21 | B63: 7344 | C63: 12 | D63: 7360 | E63: 13 | F63: 7362 | K63: 0 | L63: 211
A64: 12 | B64: 7484 | C64: 14 | D64: 7488 | E64: 13 | F64: 7490 | K64: 0 | L64: 111
A65: 21 | B65: 7585 | C65: 12 | D65: 7596 | E65: 13 | F65: 7601 | K65: 0 | L65: 211
A66: 12 | B66: 7704 | C66: 14 | D66: 7710 | E66: 24 | F66: 7714 | K66: 0 | L66: 112
A67: 12 | B67: 7813 | C67: 14 | D67: 7819 | E67: 13 | F67: 7825 | K67: 0 | L67: 111
A68: 21 | B68: 7923 | C68: 12 | D68: 7936 | E68: 13 | F68: 7940 | K68: 0 | L68: 211
A69: 12 | B69: 8043 | C69: 14 | D69: 8050 | E69: 13 | F69: 8055 | K69: 0 | L69: 111
A70: 21 | B70: 8151 | C70: 21 | D70: 8153 | E70: 11 | F70: 8165 | K70: 0 | L70: 221
A71: 21 | B71: 8332 | C71: 12 | D71: 8346 | E71: 13 | F71: 8352 | K71: 0 | L71: 211
A72: 21 | B72: 8447 | C72: 12 | D72: 8460 | E72: 13 | F72: 8463 | K72: 0 | L72: 211
A73: 21 | B73: 8562 | C73: 12 | D73: 8570 | E73: 13 | F73: 8573 | K73: 0 | L73: 211
A74: 21 | B74: 8669 | C74: 12 | D74: 8684 | E74: 24 | F74: 8688 | K74: 0 | L74: 212
A75: 21 | B75: 8783 | C75: 12 | D75: 8797 | E75: 13 | F75: 8801 | K75: 0 | L75: 211
A76: 21 | B76: 8895 | C76: 21 | D76: 8898 | E76: 22 | F76: 8902 | K76: 0 | L76: 222
A77: 21 | B77: 8998 | C77: 21 | D77: 9000 | E77: 11 | F77: 9012 | K77: 0 | L77: 221
A78: 12 | B78: 9218 | C78: 14 | D78: 9224 | E78: 13 | F78: 9230 | K78: 0 | L78: 111
A79: 21 | B79: 9326 | C79: 12 | D79: 9346 | E79: 13 | F79: 9351 | K79: 0 | L79: 211
A80: 21 | B80: 9449 | C80: 21 | D80: 9451 | E80: 22 | F80: 9453 | K80: 0 | L80: 222
A81: 21 | B81: 9546 | C81: 21 | D81: 9548 | E81: 11 | F81: 9563 | K81: 0 | L81: 221
A82: 21 | B82: 9721 | C82: 12 | D82: 9728 | E82: 13 | F82: 9734 | K82: 0 | L82: 211
A83: 21 | B83: 9826 | C83: 12 | D83: 9840 | E83: 13 | F83: 9847 | K83: 0 | L83: 211
A84: 21 | B84: 9940 | C84: 12 | D84: 9949 | E84: 13 | F84: 9955 | K84: 0 | L84: 211
A85: 21 | B85: 10052 | C85: 12 | D85: 10064 | E85: 24 | F85: 10068 | K85: 0 | L85: 212
A86: 21 | B86: 10169 | C86: 21 | D86: 10172 | E86: 11 | F86: 10184 | K86: 0 | L86: 221
A87: 21 | B87: 10284 | C87: 12 | D87: 10299 | E87: 24 | F87: 10303 | K87: 0 | L87: 212
A88: 21 | B88: 10395 | C88: 21 | D88: 10404 | E88: 11 | F88: 10409 | K88: 0 | L88: 221
A89: 21 | B89: 10600 | C89: 12 | D89: 10614 | E89: 13 | F89: 10620 | K89: 0 | L89: 211
A90: 12 | B90: 10725 | C90: 14 | D90: 10731 | E90: 13 | F90: 10737 | K90: 0 | L90: 111
A91: 21 | B91: 10840 | C91: 21 | D91: 10843 | E91: 22 | F91: 10850 | K91: 0 | L91: 222
A92: 21 | B92: 10942 | C92: 12 | D92: 10962 | E92: 24 | F92: 10967 | K92: 0 | L92: 212
A93: 21 | B93: 11064 | C93: 12 | D93: 11071 | E93: 13 | F93: 11076 | K93: 0 | L93: 211
A94: 21 | B94: 11172 | C94: 12 | D94: 11179 | E94: 13 | F94: 11185 | K94: 0 | L94: 211
A95: 21 | B95: 11283 | C95: 12 | D95: 11294 | E95: 24 | F95: 11299 | K95: 0 | L95: 212
A96: 21 | B96: 11396 | C96: 12 | D96: 11411 | E96: 24 | F96: 11418 | K96: 0 | L96: 212
A97: 21 | B97: 11511 | C97: 12 | D97: 11518 | E97: 13 | F97: 11525 | K97: 0 | L97: 211
A98: 21 | B98: 11621 | C98: 21 | D98: 11623 | E98: 11 | F98: 11630 | K98: 0 | L98: 221
A99: 21 | B99: 11810 | C99: 12 | D99: 11818 | E99: 13 | F99: 11824 | K99: 0 | L99: 211
A100: 21 | B100: 11921 | C100: 21 | D100: 11923 | E100: 11 | F100: 11936 | K100: 0 | L100: 221
A101: 12 | B101: 12147 | C101: 14 | D101: 12150 | E101: 13 | F101: 12156 | K101: 0 | L101: 111
A102: 21 | B102: 12258 | C102: 12 | D102: 12261 | E102: 13 | F102: 12266 | K102: 0 | L102: 211
A103: 21 | B103: 12362 | C103: 12 | D103: 12375 | E103: 13 | F103: 12377 | K103: 0 | L103: 211
A104: 21 | B104: 12473 | C104: 12 | D104: 12482 | E104: 13 | F104: 12485 | K104: 0 | L104: 211
A105: 21 | B105: 12582 | C105: 12 | D105: 12595 | E105: 24 | F105: 12605 | K105: 0 | L105: 212
A106: 21 | B106: 12703 | C106: 12 | D106: 12712 | E106: 13 | F106: 12715 | K106: 0 | L106: 211
A107: 12 | B107: 12816 | C107: 14 | D107: 12819 | E107: 13 | F107: 12830 | K107: 0 | L107: 111
A108: 21 | B108: 12929 | C108: 12 | D108: 12939 | E108: 13 | F108: 12942 | K108: 0 | L108: 211
A109: 21 | B109: 13039 | C109: 12 | D109: 13049 | E109: 13 | F109: 13055 | K109: 0 | L109: 211
A110: 21 | B110: 13150 | C110: 12 | D110: 13160 | E110: 13 | F110: 13166 | K110: 0 | L110: 211
A111: 21 | B111: 13262 | C111: 21 | D111: 13264 | E111: 11 | F111: 13272 | K111: 0 | L111: 221
A112: 21 | B112: 13438 | C112: 12 | D112: 13449 | E112: 13 | F112: 13452 | K112: 0 | L112: 211
A113: 21 | B113: 13549 | C113: 21 | D113: 13554 | E113: 11 | F113: 13561 | K113: 0 | L113: 221
A114: 21 | B114: 13716 | C114: 12 | D114: 13724 | E114: 13 | F114: 13727 | K114: 0 | L114: 211
A115: 12 | B115: 13828 | C115: 14 | D115: 13831 | E115: 13 | F115: 13839 | K115: 0 | L115: 111
A116: 21 | B116: 13936 | C116: 21 | D116: 13940 | E116: 22 | F116: 13944 | K116: 0 | L116: 222
A117: 12 | B117: 14044 | C117: 23 | D117: 14048 | E117: 13 | F117: 14054 | K117: 0 | L117: 121
A118: 21 | B118: 14147 | C118: 21 | D118: 14155 | E118: 11 | F118: 14162 | K118: 0 | L118: 221
A119: 12 | B119: 14383 | C119: 23 | D119: 14387 | E119: 13 | F119: 14394 | K119: 0 | L119: 121
A120: 21 | B120: 14488 | C120: 12 | D120: 14496 | E120: 13 | F120: 14502 | K120: 0 | L120: 211
A121: 21 | B121: 14596 | C121: 12 | D121: 14607 | E121: 13 | F121: 14612 | K121: 0 | L121: 211
A122: 12 | B122: 14712 | C122: 14 | D122: 14715 | E122: 13 | F122: 14721 | K122: 0 | L122: 111
A123: 21 | B123: 14815 | C123: 12 | D123: 14824 | E123: 13 | F123: 14832 | K123: 0 | L123: 211
A124: 21 | B124: 14926 | C124: 12 | D124: 14934 | E124: 13 | F124: 14937 | K124: 0 | L124: 211
A125: 12 | B125: 15038 | C125: 14 | D125: 15042 | E125: 13 | F125: 15048 | K125: 0 | L125: 111
A126: 21 | B126: 15145 | C126: 12 | D126: 15156 | E126: 13 | F126: 15162 | K126: 0 | L126: 211
A127: 21 | B127: 15259 | C127: 12 | D127: 15267 | E127: 13 | F127: 15272 | K127: 0 | L127: 211
A128: 12 | B128: 15415 | C128: 14 | D128: 15420 | E128: 13 | F128: 15426 | K128: 0 | L128: 111
A129: 12 | B129: 15531 | C129: 23 | D129: 15533 | E129: 13 | F129: 15538 | K129: 0 | L129: 121
A130: 21 | B130: 15634 | C130: 21 | D130: 15635 | E130: 11 | F130: 15642 | K130: 0 | L130: 221
A131: 12 | B131: 15812 | C131: 14 | D131: 15817 | E131: 13 | F131: 15829 | K131: 0 | L131: 111
A132: 12 | B132: 15930 | C132: 14 | D132: 15932 | E132: 13 | F132: 15939 | K132: 0 | L132: 111
A133: 21 | B133: 16036 | C133: 21 | D133: 16037 | E133: 11 | F133: 16048 | K133: 0 | L133: 221
A134: 12 | B134: 16203 | C134: 14 | D134: 16206 | E134: 13 | F134: 16212 | K134: 0 | L134: 111
A135: 21 | B135: 16307 | C135: 12 | D135: 16315 | E135: 13 | F135: 16318 | K135: 0 | L135: 211
A136: 21 | B136: 16416 | C136: 12 | D136: 16424 | E136: 13 | F136: 16427 | K136: 0 | L136: 211
A137: 12 | B137: 16533 | C137: 14 | D137: 16539 | E137: 13 | F137: 16545 | K137: 0 | L137: 111
A138: 21 | B138: 16642 | C138: 12 | D138: 16650 | E138: 13 | F138: 16654 | K138: 0 | L138: 211
A139: 21 | B139: 16746 | C139: 12 | D139: 16759 | E139: 13 | F139: 16766 | K139: 0 | L139: 211
A140: 21 | B140: 16886 | C140: 21 | D140: 16888 | E140: 11 | F140: 16894 | K140: 0 | L140: 221
A141: 21 | B141: 17113 | C141: 12 | D141: 17121 | E141: 13 | F141: 17127 | K141: 0 | L141: 211
A142: 12 | B142: 17231 | C142: 14 | D142: 17235 | E142: 13 | F142: 17242 | K142: 0 | L142: 111
A143: 21 | B143: 17336 | C143: 12 | D143: 17345 | E143: 13 | F143: 17347 | K143: 0 | L143: 211
A144: 21 | B144: 17443 | C144: 12 | D144: 17451 | E144: 13 | F144: 17457 | K144: 0 | L144: 211
A145: 21 | B145: 17554 | C145: 21 | D145: 17556 | E145: 11 | F145: 17564 | K145: 0 | L145: 221
A146: 21 | B146: 17707 | C146: 12 | D146: 17715 | E146: 13 | F146: 17720 | K146: 0 | L146: 211
A147: 21 | B147: 17818 | C147: 12 | D147: 17828 | E147: 13 | F147: 17834 | K147: 0 | L147: 211
A148: 21 | B148: 17932 | C148: 12 | D148: 17938 | E148: 24 | F148: 17941 | K148: 0 | L148: 212
A149: 12 | B149: 18038 | C149: 14 | D149: 18041 | E149: 13 | F149: 18044 | K149: 0 | L149: 111
A150: 21 | B150: 18141 | C150: 12 | D150: 18150 | E150: 13 | F150: 18153 | K150: 0 | L150: 211
A151: 12 | B151: 18254 | C151: 14 | D151: 18260 | E151: 24 | F151: 18264 | K151: 0 | L151: 112
A152: 12 | B152: 18361 | C152: 14 | D152: 18364 | E152: 13 | F152: 18369 | K152: 0 | L152: 111
A153: 12 | B153: 18470 | C153: 14 | D153: 18473 | E153: 13 | F153: 18479 | K153: 0 | L153: 111
A154: 21 | B154: 18573 | C154: 12 | D154: 18582 | E154: 13 | F154: 18586 | K154: 0 | L154: 211
A155: 12 | B155: 18694 | C155: 14 | D155: 18699 | E155: 13 | F155: 18706 | K155: 0 | L155: 111
A156: 12 | B156: 18811 | C156: 14 | D156: 18816 | E156: 13 | F156: 18821 | K156: 0 | L156: 111
A157: 21 | B157: 18916 | C157: 21 | D157: 18920 | E157: 11 | F157: 18931 | K157: 0 | L157: 221
A158: 21 | B158: 19076 | C158: 12 | D158: 19087 | E158: 13 | F158: 19089 | K158: 0 | L158: 211
A159: 12 | B159: 19204 | C159: 23 | D159: 19207 | E159: 13 | F159: 19210 | K159: 0 | L159: 121
A160: 21 | B160: 19303 | C160: 12 | D160: 19314 | E160: 13 | F160: 19319 | K160: 0 | L160: 211
A161: 21 | B161: 19414 | C161: 12 | D161: 19426 | E161: 13 | F161: 19431 | K161: 0 | L161: 211
A162: 21 | B162: 19528 | C162: 12 | D162: 19541 | E162: 13 | F162: 19544 | K162: 0 | L162: 211
A163: 21 | B163: 19637 | C163: 21 | D163: 19641 | E163: 11 | F163: 19648 | K163: 0 | L163: 221
A164: 12 | B164: 19815 | C164: 14 | D164: 19817 | E164: 13 | F164: 19823 | K164: 0 | L164: 111
A165: 12 | B165: 19925 | C165: 14 | D165: 19930 | E165: 13 | F165: 19932 | K165: 0 | L165: 111
A166: 21 | B166: 20029 | C166: 12 | D166: 20039 | E166: 13 | F166: 20045 | K166: 0 | L166: 211
A167: 12 | B167: 20147 | C167: 23 | D167: 20151 | E167: 13 | F167: 20162 | K167: 0 | L167: 121
A168: 12 | B168: 20267 | C168: 14 | D168: 20271 | E168: 24 | F168: 20275 | K168: 0 | L168: 112
A169: 12 | B169: 20399 | C169: 14 | D169: 20404 | E169: 24 | F169: 20408 | K169: 0 | L169: 112
A170: 21 | B170: 20507 | C170: 12 | D170: 20517 | E170: 13 | F170: 20524 | K170: 0 | L170: 211
A171: 12 | B171: 20636 | C171: 23 | D171: 20643 | E171: 24 | F171: 20649 | K171: 0 | L171: 122
A172: 12 | B172: 20755 | C172: 14 | D172: 20763 | E172: 24 | F172: 20770 | K172: 0 | L172: 112
A173: 12 | B173: 20871 | C173: 14 | D173: 20875 | E173: 13 | F173: 20879 | K173: 0 | L173: 111
A174: 12 | B174: 20983 | C174: 23 | D174: 20990 | E174: 24 | F174: 20999 | K174: 0 | L174: 122
A175: 21 | B175: 21118 | C175: 12 | D175: 21127 | E175: 13 | F175: 21137 | K175: 0 | L175: 211
A176: 12 | B176: 21240 | C176: 14 | D176: 21245 | E176: 13 | F176: 21250 | K176: 0 | L176: 111
A177: 21 | B177: 21377 | C177: 12 | D177: 21387 | E177: 13 | F177: 21393 | K177: 0 | L177: 211
A178: 12 | B178: 21493 | C178: 14 | D178: 21497 | E178: 24 | F178: 21500 | K178: 0 | L178: 112
A179: 12 | B179: 21600 | C179: 23 | D179: 21605 | E179: 24 | F179: 21615 | K179: 0 | L179: 122
A180: 12 | B180: 21718 | C180: 14 | D180: 21721 | E180: 13 | F180: 21726 | K180: 0 | L180: 111
A181: 12 | B181: 21831 | C181: 14 | D181: 21835 | E181: 13 | F181: 21840 | K181: 0 | L181: 111
A182: 21 | B182: 21937 | C182: 12 | D182: 21952 | E182: 13 | F182: 21956 | K182: 0 | L182: 211
A183: 21 | B183: 22051 | C183: 12 | D183: 22064 | E183: 13 | F183: 22069 | K183: 0 | L183: 211
A184: 21 | B184: 22167 | C184: 12 | D184: 22176 | E184: 13 | F184: 22183 | K184: 0 | L184: 211
A185: 21 | B185: 22277 | C185: 21 | D185: 22284 | E185: 11 | F185: 22288 | K185: 0 | L185: 221
A186: 12 | B186: 22495 | C186: 14 | D186: 22498 | E186: 13 | F186: 22504 | K186: 0 | L186: 111
A187: 21 | B187: 22658 | C187: 12 | D187: 22668 | E187: 13 | F187: 22671 | K187: 0 | L187: 211
A188: 12 | B188: 22769 | C188: 14 | D188: 22774 | E188: 24 | F188: 22776 | K188: 0 | L188: 112
A189: 12 | B189: 22914 | C189: 14 | D189: 22917 | E189: 13 | F189: 22920 | K189: 0 | L189: 111
A190: 12 | B190: 23129 | C190: 23 | D190: 23132 | E190: 13 | F190: 23135 | K190: 0 | L190: 121
A191: 21 | B191: 23233 | C191: 12 | D191: 23241 | E191: 13 | F191: 23247 | K191: 0 | L191: 211
A192: 12 | B192: 23360 | C192: 23 | D192: 23366 | E192: 13 | F192: 23373 | K192: 0 | L192: 121
A193: 21 | B193: 23468 | C193: 12 | D193: 23474 | E193: 13 | F193: 23478 | K193: 0 | L193: 211
A194: 21 | B194: 23604 | C194: 12 | D194: 23618 | E194: 13 | F194: 23622 | K194: 0 | L194: 211
A195: 12 | B195: 23725 | C195: 14 | D195: 23729 | E195: 13 | F195: 23734 | K195: 0 | L195: 111
A196: 21 | B196: 23944 | C196: 21 | D196: 23977 | E196: 11 | F196: 23980 | K196: 1 | L196: 221

Sheet !MA05A0T.AYL
A1: Report for:!MA05A0T.AYL
A2: Date: | B2: <date>
A3: Hen: | B3: <hen> | F3: Correct Sequence | G3: =Start!J2 -> 221 | P3: Total Sequences in Data | Q3: =4994-COUNTBLANK(L7:L5000) -> 187 | V3: Total Sequences in Block Data | W3: =COUNTA(L7:L37) -> 31 | AA3: Total Sequences in Block Data | AB3: =COUNTA(L38:L68) -> 31 | AF3: Total Sequences in Block Data | AG3: =COUNTA(L69:L100) -> 32 | AK3: Total Sequences in Block Data | AL3: =COUNTA(L101:L131) -> 31 | AP3: Total Sequences in Block Data | AQ3: =COUNTA(L132:L162) -> 31 | AU3: Total Sequences in Block Data | AV3: =COUNTA(L163:L193) -> 31
P4: Total Sequences in Summary | Q4: =SUM(O7:O14) -> 187 | V4: Total Sequences in Block Summary | W4: =SUM(U7:U14) -> 31 | AA4: Total Sequences in Block Summary | AB4: =SUM(Z7:Z14) -> 31 | AF4: Total Sequences in Block Summary | AG4: =SUM(AE7:AE14) -> 32 | AK4: Total Sequences in Block Summary | AL4: =SUM(AJ7:AJ14) -> 31 | AP4: Total Sequences in Block Summary | AQ4: =SUM(AO7:AO14) -> 31 | AU4: Total Sequences in Block Summary | AV4: =SUM(AT7:AT14) -> 31
T5: Block 1 | Y5: Block 2 | AD5: Block 3 | AI5: Block 4 | AN5: Block 5 | AS5: Block 6
A6: Sequence Component 1 | B6: Time 1 | C6: Sequence Component 2 | D6: Time 2 | E6: Sequence Component 3 | F6: Time 3 | G6: Sequence Component 4 | H6: Time 4 | I6: Sequence Component 5 | J6: Time 5 | K6: Correct? 0=No 1=Yes | L6: Sequence | N6: Frequency | P6: Relative Frequency | Q6: Variability | T6: Frequency | V6: Relative Frequency | W6: Variability | Y6: Frequency | AA6: Relative Frequency | AB6: Variability | AD6: Frequency | AF6: Relative Frequency | AG6: Variability | AI6: Frequency | AK6: Relative Frequency | AL6: Variability | AN6: Frequency | AP6: Relative Frequency | AQ6: Variability | AS6: Frequency | AU6: Relative Frequency | AV6: Variability
A7: 12 | B7: 9 | C7: 23 | D7: 20 | E7: 24 | F7: 23 | K7: 0 | L7: 122 | N7: 111 | O7: =COUNTIF($L$7:$L$500,N7) -> 29 | P7: =O7/$Q$4 -> 0.1550802139 | Q7: =IF(P7=0,0,(P7*((LOG(P7))/LOG(2)))) -> -0.4169972753 | T7: =N7 -> 111 | U7: =COUNTIF(L7:L37,T7) -> 7 | V7: =U7/(W4-U13) -> 0.2592592593 | W7: =IF(V7=0,0,(V7*((LOG(V7))/LOG(2)))) -> -0.5049158541 | Y7: =N7 -> 111 | Z7: =COUNTIF(L38:L68,Y7) -> 4 | AA7: =Z7/(AB4-Z13) -> 0.1481481481 | AB7: =IF(AA7=0,0,(AA7*((LOG(AA7))/LOG(2)))) -> -0.4081314818 | AD7: =N7 -> 111 | AE7: =COUNTIF(L69:L100,AD7) -> 5 | AF7: =AE7/(AG4-AE13) -> 0.1923076923 | AG7: =IF(AF7=0,0,(AF7*((LOG(AF7))/LOG(2)))) -> -0.4574060814 | AI7: =N7 -> 111 | AJ7: =COUNTIF(L101:L131,AI7) -> 4 | AK7: =AJ7/(AL4-AJ13) -> 0.16 | AL7: =IF(AK7=0,0,(AK7*((LOG(AK7))/LOG(2)))) -> -0.4230169904 | AN7: =N7 -> 111 | AO7: =COUNTIF(L132:L162,AN7) -> 4 | AP7: =AO7/(AQ4-AO13) -> 0.1481481481 | AQ7: =IF(AP7=0,0,(AP7*((LOG(AP7))/LOG(2)))) -> -0.4081314818 | AS7: =N7 -> 111 | AT7: =COUNTIF(L163:L193,AS7) -> 5 | AU7: =AT7/(AV4-AT13) -> 0.1923076923 | AV7: =IF(AU7=0,0,(AU7*((LOG(AU7))/LOG(2)))) -> -0.4574060814
A8: 12 | B8: 129 | C8: 14 | D8: 133 | E8: 13 | F8: 136 | K8: 0 | L8: 111 | N8: 112 | O8: =COUNTIF($L$7:$L$500,N8) -> 3 | P8: =O8/$Q$4 -> 0.01604278075 | Q8: =IF(P8=0,0,(P8*((LOG(P8))/LOG(2)))) -> -0.09564596726 | T8: =N8 -> 112 | U8: =COUNTIF(L7:L37,T8) -> 2 | V8: =U8/(W4-U13) -> 0.07407407407 | W8: =IF(V8=0,0,(V8*((LOG(V8))/LOG(2)))) -> -0.278139815 | Y8: =N8 -> 112 | Z8: =COUNTIF(L38:L68,Y8) -> 1 | AA8: =Z8/(AB4-Z13) -> 0.03703703704 | AB8: =IF(AA8=0,0,(AA8*((LOG(AA8))/LOG(2)))) -> -0.1761069445 | AD8: =N8 -> 112 | AE8: =COUNTIF(L69:L100,AD8) -> 0 | AF8: =AE8/(AG4-AE13) -> 0 | AG8: =IF(AF8=0,0,(AF8*((LOG(AF8))/LOG(2)))) -> 0 | AI8: =N8 -> 112 | AJ8: =COUNTIF(L101:L131,AI8) -> 0 | AK8: =AJ8/(AL4-AJ13) -> 0 | AL8: =IF(AK8=0,0,(AK8*((LOG(AK8))/LOG(2)))) -> 0 | AN8: =N8 -> 112 | AO8: =COUNTIF(L132:L162,AN8) -> 0 | AP8: =AO8/(AQ4-AO13) -> 0 | AQ8: =IF(AP8=0,0,(AP8*((LOG(AP8))/LOG(2)))) -> 0 | AS8: =N8 -> 112 | AT8: =COUNTIF(L163:L193,AS8) -> 0 | AU8: =AT8/(AV4-AT13) -> 0 | AV8: =IF(AU8=0,0,(AU8*((LOG(AU8))/LOG(2)))) -> 0
A9: 12 | B9: 242 | C9: 14 | D9: 247 | E9: 13 | F9: 253 | K9: 0 | L9: 111 | N9: 121 | O9: =COUNTIF($L$7:$L$500,N9) -> 4 | P9: =O9/$Q$4 -> 0.02139037433 | Q9: =IF(P9=0,0,(P9*((LOG(P9))/LOG(2)))) -> -0.1186501489 | T9: =N9 -> 121 | U9: =COUNTIF(L7:L37,T9) -> 0 | V9: =U9/(W4-U13) -> 0 | W9: =IF(V9=0,0,(V9*((LOG(V9))/LOG(2)))) -> 0 | Y9: =N9 -> 121 | Z9: =COUNTIF(L38:L68,Y9) -> 1 | AA9: =Z9/(AB4-Z13) -> 0.03703703704 | AB9: =IF(AA9=0,0,(AA9*((LOG(AA9))/LOG(2)))) -> -0.1761069445 | AD9: =N9 -> 121 | AE9: =COUNTIF(L69:L100,AD9) -> 1 | AF9: =AE9/(AG4-AE13) -> 0.03846153846 | AG9: =IF(AF9=0,0,(AF9*((LOG(AF9))/LOG(2)))) -> -0.180786143 | AI9: =N9 -> 121 | AJ9: =COUNTIF(L101:L131,AI9) -> 2 | AK9: =AJ9/(AL4-AJ13) -> 0.08 | AL9: =IF(AK9=0,0,(AK9*((LOG(AK9))/LOG(2)))) -> -0.2915084952 | AN9: =N9 -> 121 | AO9: =COUNTIF(L132:L162,AN9) -> 0 | AP9: =AO9/(AQ4-AO13) -> 0 | AQ9: =IF(AP9=0,0,(AP9*((LOG(AP9))/LOG(2)))) -> 0 | AS9: =N9 -> 121 | AT9: =COUNTIF(L163:L193,AS9) -> 0 | AU9: =AT9/(AV4-AT13) -> 0 | AV9: =IF(AU9=0,0,(AU9*((LOG(AU9))/LOG(2)))) -> 0
A10: 21 | B10: 350 | C10: 12 | D10: 361 | E10: 13 | F10: 365 | K10: 0 | L10: 211 | N10: 122 | O10: =COUNTIF($L$7:$L$500,N10) -> 3 | P10: =O10/$Q$4 -> 0.01604278075 | Q10: =IF(P10=0,0,(P10*((LOG(P10))/LOG(2)))) -> -0.09564596726 | T10: =N10 -> 122 | U10: =COUNTIF(L7:L37,T10) -> 2 | V10: =U10/(W4-U13) -> 0.07407407407 | W10: =IF(V10=0,0,(V10*((LOG(V10))/LOG(2)))) -> -0.278139815 | Y10: =N10 -> 122 | Z10: =COUNTIF(L38:L68,Y10) -> 0 | AA10: =Z10/(AB4-Z13) -> 0 | AB10: =IF(AA10=0,0,(AA10*((LOG(AA10))/LOG(2)))) -> 0 | AD10: =N10 -> 122 | AE10: =COUNTIF(L69:L100,AD10) -> 1 | AF10: =AE10/(AG4-AE13) -> 0.03846153846 | AG10: =IF(AF10=0,0,(AF10*((LOG(AF10))/LOG(2)))) -> -0.180786143 | AI10: =N10 -> 122 | AJ10: =COUNTIF(L101:L131,AI10) -> 0 | AK10: =AJ10/(AL4-AJ13) -> 0 | AL10: =IF(AK10=0,0,(AK10*((LOG(AK10))/LOG(2)))) -> 0 | AN10: =N10 -> 122 | AO10: =COUNTIF(L132:L162,AN10) -> 0 | AP10: =AO10/(AQ4-AO13) -> 0 | AQ10: =IF(AP10=0,0,(AP10*((LOG(AP10))/LOG(2)))) -> 0 | AS10: =N10 -> 122 | AT10: =COUNTIF(L163:L193,AS10) -> 0 | AU10: =AT10/(AV4-AT13) -> 0 | AV10: =IF(AU10=0,0,(AU10*((LOG(AU10))/LOG(2)))) -> 0
A11: 21 | B11: 460 | C11: 12 | D11: 468 | E11: 13 | F11: 471 | K11: 0 | L11: 211 | N11: 211 | O11: =COUNTIF($L$7:$L$500,N11) -> 104 | P11: =O11/$Q$4 -> 0.5561497326 | Q11: =IF(P11=0,0,(P11*((LOG(P11))/LOG(2)))) -> -0.4707555783 | T11: =N11 -> 211 | U11: =COUNTIF(L7:L37,T11) -> 16 | V11: =U11/(W4-U13) -> 0.5925925926 | W11: =IF(V11=0,0,(V11*((LOG(V11))/LOG(2)))) -> -0.447340742 | Y11: =N11 -> 211 | Z11: =COUNTIF(L38:L68,Y11) -> 20 | AA11: =Z11/(AB4-Z13) -> 0.7407407407 | AB11: =IF(AA11=0,0,(AA11*((LOG(AA11))/LOG(2)))) -> -0.3207106721 | AD11: =N11 -> 211 | AE11: =COUNTIF(L69:L100,AD11) -> 16 | AF11: =AE11/(AG4-AE13) -> 0.6153846154 | AG11: =IF(AF11=0,0,(AF11*((LOG(AF11))/LOG(2)))) -> -0.4310398265 | AI11: =N11 -> 211 | AJ11: =COUNTIF(L101:L131,AI11) -> 16 | AK11: =AJ11/(AL4-AJ13) -> 0.64 | AL11: =IF(AK11=0,0,(AK11*((LOG(AK11))/LOG(2)))) -> -0.4120679615 | AN11: =N11 -> 211 | AO11: =COUNTIF(L132:L162,AN11) -> 18 | AP11: =AO11/(AQ4-AO13) -> 0.6666666667 | AQ11: =IF(AP11=0,0,(AP11*((LOG(AP11))/LOG(2)))) -> -0.3899750005 | AS11: =N11 -> 211 | AT11: =COUNTIF(L163:L193,AS11) -> 18 | AU11: =AT11/(AV4-AT13) -> 0.6923076923 | AV11: =IF(AU11=0,0,(AU11*((LOG(AU11))/LOG(2)))) -> -0.3672794193
A12: 12 | B12: 575 | C12: 14 | D12: 578 | E12: 13 | F12: 581 | K12: 0 | L12: 111 | N12: 212 | O12: =COUNTIF($L$7:$L$500,N12) -> 9 | P12: =O12/$Q$4 -> 0.04812834225 | Q12: =IF(P12=0,0,(P12*((LOG(P12))/LOG(2)))) -> -0.2106562841 | T12: =N12 -> 212 | U12: =COUNTIF(L7:L37,T12) -> 0 | V12: =U12/(W4-U13) -> 0 | W12: =IF(V12=0,0,(V12*((LOG(V12))/LOG(2)))) -> 0 | Y12: =N12 -> 212 | Z12: =COUNTIF(L38:L68,Y12) -> 0 | AA12: =Z12/(AB4-Z13) -> 0 | AB12: =IF(AA12=0,0,(AA12*((LOG(AA12))/LOG(2)))) -> 0 | AD12: =N12 -> 212 | AE12: =COUNTIF(L69:L100,AD12) -> 1 | AF12: =AE12/(AG4-AE13) -> 0.03846153846 | AG12: =IF(AF12=0,0,(AF12*((LOG(AF12))/LOG(2)))) -> -0.180786143 | AI12: =N12 -> 212 | AJ12: =COUNTIF(L101:L131,AI12) -> 3 | AK12: =AJ12/(AL4-AJ13) -> 0.12 | AL12: =IF(AK12=0,0,(AK12*((LOG(AK12))/LOG(2)))) -> -0.3670672427 | AN12: =N12 -> 212 | AO12: =COUNTIF(L132:L162,AN12) -> 4 | AP12: =AO12/(AQ4-AO13) -> 0.1481481481 | AQ12: =IF(AP12=0,0,(AP12*((LOG(AP12))/LOG(2)))) -> -0.4081314818 | AS12: =N12 -> 212 | AT12: =COUNTIF(L163:L193,AS12) -> 1 | AU12: =AT12/(AV4-AT13) -> 0.03846153846 | AV12: =IF(AU12=0,0,(AU12*((LOG(AU12))/LOG(2)))) -> -0.180786143
A13: 21 | B13: 676 | C13: 12 | D13: 685 | E13: 13 | F13: 689 | K13: 0 | L13: 211 | N13: 221 | O13: =COUNTIF($L$7:$L$500,N13) -> 29 | P13: =O13/$Q$4 -> 0.1550802139 | Q13: =IF(P13=0,0,(P13*((LOG(P13))/LOG(2)))) -> -0.4169972753 | T13: =N13 -> 221 | U13: =COUNTIF(L7:L37,T13) -> 4 | Y13: =N13 -> 221 | Z13: =COUNTIF(L38:L68,Y13) -> 4 | AD13: =N13 -> 221 | AE13: =COUNTIF(L69:L100,AD13) -> 6 | AI13: =N13 -> 221 | AJ13: =COUNTIF(L101:L131,AI13) -> 6 | AN13: =N13 -> 221 | AO13: =COUNTIF(L132:L162,AN13) -> 4 | AS13: =N13 -> 221 | AT13: =COUNTIF(L163:L193,AS13) -> 5
A14: 12 | B14: 791 | C14: 14 | D14: 796 | E14: 13 | F14: 800 | K14: 0 | L14: 111 | N14: 222 | O14: =COUNTIF($L$7:$L$500,N14) -> 6 | P14: =O14/$Q$4 -> 0.0320855615 | Q14: =IF(P14=0,0,(P14*((LOG(P14))/LOG(2)))) -> -0.159206373 | T14: =N14 -> 222 | U14: =COUNTIF(L7:L37,T14) -> 0 | V14: =U14/(W4-U13) -> 0 | W14: =IF(V14=0,0,(V14*((LOG(V14))/LOG(2)))) -> 0 | Y14: =N14 -> 222 | Z14: =COUNTIF(L38:L68,Y14) -> 1 | AA14: =Z14/(AB4-Z13) -> 0.03703703704 | AB14: =IF(AA14=0,0,(AA14*((LOG(AA14))/LOG(2)))) -> -0.1761069445 | AD14: =N14 -> 222 | AE14: =COUNTIF(L69:L100,AD14) -> 2 | AF14: =AE14/(AG4-AE13) -> 0.07692307692 | AG14: =IF(AF14=0,0,(AF14*((LOG(AF14))/LOG(2)))) -> -0.2846492091 | AI14: =N14 -> 222 | AJ14: =COUNTIF(L101:L131,AI14) -> 0 | AK14: =AJ14/(AL4-AJ13) -> 0 | AL14: =IF(AK14=0,0,(AK14*((LOG(AK14))/LOG(2)))) -> 0 | AN14: =N14 -> 222 | AO14: =COUNTIF(L132:L162,AN14) -> 1 | AP14: =AO14/(AQ4-AO13) -> 0.03703703704 | AQ14: =IF(AP14=0,0,(AP14*((LOG(AP14))/LOG(2)))) -> -0.1761069445 | AS14: =N14 -> 222 | AT14: =COUNTIF(L163:L193,AS14) -> 2 | AU14: =AT14/(AV4-AT13) -> 0.07692307692 | AV14: =IF(AU14=0,0,(AU14*((LOG(AU14))/LOG(2)))) -> -0.2846492091
A15: 21 | B15: 897 | C15: 12 | D15: 910 | E15: 13 | F15: 917 | K15: 0 | L15: 211 | P15: =SUM(P7:P14) -> 1 | Q15: =-SUM(Q7:Q14) -> 1.984554869 | V15: =SUM(V7:V14) -> 1 | W15: =-SUM(W7:W14) -> 1.508536226 | AA15: =SUM(AA7:AA14) -> 1 | AB15: =-SUM(AB7:AB14) -> 1.257162987 | AF15: =SUM(AF7:AF14) -> 1 | AG15: =-SUM(AG7:AG14) -> 1.715453546 | AK15: =SUM(AK7:AK14) -> 1 | AL15: =-SUM(AL7:AL14) -> 1.49366069 | AP15: =SUM(AP7:AP14) -> 1 | AQ15: =-SUM(AQ7:AQ14) -> 1.382344909 | AU15: =SUM(AU7:AU14) -> 1 | AV15: =-SUM(AV7:AV14) -> 1.290120853
A16: 12 | B16: 1021 | C16: 14 | D16: 1025 | E16: 13 | F16: 1028 | K16: 0 | L16: 111 | P16: U= | Q16: =Q15/(LOG(Q4)/LOG(2)) -> 0.2629631142 | V16: U1= | W16: =W15/(LOG(W4)/LOG(2)) -> 0.3044966593 | AA16: U2= | AB16: =AB15/(LOG(AB4)/LOG(2)) -> 0.2537572007 | AF16: U3= | AG16: =AG15/(LOG(AG4)/LOG(2)) -> 0.3430907092 | AK16: U4= | AL16: =AL15/(LOG(AL4)/LOG(2)) -> 0.3014940459 | AP16: U5= | AQ16: =AQ15/(LOG(AQ4)/LOG(2)) -> 0.2790250571 | AU16: U6= | AV16: =AV15/(LOG(AV4)/LOG(2)) -> 0.2604097157
A17: 21 | B17: 1127 | C17: 12 | D17: 1135 | E17: 13 | F17: 1138 | K17: 0 | L17: 211
A18: 21 | B18: 1232 | C18: 12 | D18: 1243 | E18: 13 | F18: 1253 | K18: 0 | L18: 211
A19: 21 | B19: 1349 | C19: 12 | D19: 1360 | E19: 13 | F19: 1363 | K19: 0 | L19: 211 | N19: Total Target Seq
A20: 21 | B20: 1456 | C20: 21 | D20: 1463 | E20: 11 | F20: 1478 | K20: 0 | L20: 221 | N20: =COUNTIF(L7:L193,G3) -> 29 | P20: 31 | Q20: 31 | R20: 32 | S20: 31 | T20: 31 | U20: 31
A21: 12 | B21: 1646 | C21: 14 | D21: 1651 | E21: 24 | F21: 1655 | K21: 0 | L21: 112 | P21: % of reinforcement given in 6 equal intervals based on number of trials
A22: 21 | B22: 1748 | C22: 12 | D22: 1756 | E22: 13 | F22: 1760 | K22: 0 | L22: 211 | P22: %_1 | Q22: %_2 | R22: %_3 | S22: %_4 | T22: %_5 | U22: %_6
A23: 21 | B23: 1875 | C23: 12 | D23: 1884 | E23: 13 | F23: 1889 | K23: 0 | L23: 211 | O23: target sequence | P23: =$G$3 -> 221 | Q23: =$G$3 -> 221 | R23: =$G$3 -> 221 | S23: =$G$3 -> 221 | T23: =$G$3 -> 221 | U23: =$G$3 -> 221
A24: 12 | B24: 1989 | C24: 23 | D24: 1997 | E24: 24 | F24: 1999 | K24: 0 | L24: 122 | O24: total reinforcement | P24: =U13 -> 4 | Q24: =Z13 -> 4 | R24: =AE13 -> 6 | S24: =AJ13 -> 6 | T24: =AO13 -> 4 | U24: =AT13 -> 5
A25: 21 | B25: 2095 | C25: 21 | D25: 2096 | E25: 11 | F25: 2113 | K25: 0 | L25: 221 | O25: % target
A26: 12 | B26: 2255 | C26: 14 | D26: 2260 | E26: 24 | F26: 2264 | K26: 0 | L26: 112 | O26: CCRF
A27: 12 | B27: 2366 | C27: 14 | D27: 2369 | E27: 13 | F27: 2372 | K27: 0 | L27: 111 | O27: % CCRf
A28: 21 | B28: 2468 | C28: 12 | D28: 2476 | E28: 13 | F28: 2479 | K28: 0 | L28: 211 | O28: average response rate | P28: =F37/P20 -> 114.2580645 | Q28: =(F68-F37)/Q20 -> 129.1935484 | R28: =(F100-F68)/R20 -> 131.53125 | S28: =(F131-F100)/S20 -> 131.9032258 | T28: =(F162-F131)/T20 -> 126.483871 | U28: =(F193-F162)/U20 -> 133.4193548
A29: 21 | B29: 2576 | C29: 21 | D29: 2579 | E29: 11 | F29: 2594 | K29: 0 | L29: 221
A30: 21 | B30: 2748 | C30: 12 | D30: 2757 | E30: 13 | F30: 2760 | K30: 0 | L30: 211
A31: 21 | B31: 2854 | C31: 12 | D31: 2862 | E31: 13 | F31: 2866 | K31: 0 | L31: 211
A32: 21 | B32: 2965 | C32: 12 | D32: 2979 | E32: 13 | F32: 2985 | K32: 0 | L32: 211
A33: 21 | B33: 3083 | C33: 12 | D33: 3096 | E33: 13 | F33: 3102 | K33: 0 | L33: 211
A34: 21 | B34: 3199 | C34: 12 | D34: 3208 | E34: 13 | F34: 3213 | K34: 0 | L34: 211
A35: 12 | B35: 3315 | C35: 14 | D35: 3318 | E35: 13 | F35: 3321 | K35: 0 | L35: 111
A36: 21 | B36: 3415 | C36: 12 | D36: 3426 | E36: 13 | F36: 3431 | K36: 0 | L36: 211
A37: 21 | B37: 3528 | C37: 21 | D37: 3530 | E37: 11 | F37: 3542 | K37: 0 | L37: 221
A38: 12 | B38: 3684 | C38: 14 | D38: 3689 | E38: 13 | F38: 3694 | K38: 0 | L38: 111
A39: 21 | B39: 3786 | C39: 12 | D39: 3796 | E39: 13 | F39: 3799 | K39: 0 | L39: 211
A40: 21 | B40: 3895 | C40: 12 | D40: 3906 | E40: 13 | F40: 3909 | K40: 0 | L40: 211
A41: 12 | B41: 4008 | C41: 14 | D41: 4011 | E41: 13 | F41: 4016 | K41: 0 | L41: 111
A42: 21 | B42: 4111 | C42: 12 | D42: 4122 | E42: 13 | F42: 4127 | K42: 0 | L42: 211
A43: 21 | B43: 4223 | C43: 12 | D43: 4233 | E43: 13 | F43: 4236 | K43: 0 | L43: 211
A44: 21 | B44: 4332 | C44: 12 | D44: 4340 | E44: 13 | F44: 4342 | K44: 0 | L44: 211
A45: 21 | B45: 4473 | C45: 12 | D45: 4487 | E45: 13 | F45: 4492 | K45: 0 | L45: 211
A46: 21 | B46: 4589 | C46: 12 | D46: 4601 | E46: 13 | F46: 4604 | K46: 0 | L46: 211
A47: 21 | B47: 4701 | C47: 21 | D47: 4705 | E47: 11 | F47: 4719 | K47: 0 | L47: 221
A48: 12 | B48: 5004 | C48: 23 | D48: 5009 | E48: 13 | F48: 5015 | K48: 0 | L48: 121
A49: 21 | B49: 5137 | C49: 12 | D49: 5145 | E49: 13 | F49: 5148 | K49: 0 | L49: 211
A50: 21 | B50: 5245 | C50: 12 | D50: 5255 | E50: 13 | F50: 5260 | K50: 0 | L50: 211
A51: 21 | B51: 5357 | C51: 12 | D51: 5368 | E51: 13 | F51: 5371 | K51: 0 | L51: 211
A52: 21 | B52: 5468 | C52: 12 | D52: 5484 | E52: 13 | F52: 5486 | K52: 0 | L52: 211
A53: 21 | B53: 5581 | C53: 21 | D53: 5585 | E53: 11 | F53: 5597 | K53: 0 | L53: 221
A54: 12 | B54: 5820 | C54: 14 | D54: 5824 | E54: 13 | F54: 5829 | K54: 0 | L54: 111
A55: 21 | B55: 5926 | C55: 12 | D55: 5936 | E55: 13 | F55: 5939 | K55: 0 | L55: 211
A56: 21 | B56: 6038 | C56: 12 | D56: 6051 | E56: 13 | F56: 6054 | K56: 0 | L56: 211
A57: 21 | B57: 6151 | C57: 21 | D57: 6153 | E57: 22 | F57: 6160 | K57: 0 | L57: 222
A58: 21 | B58: 6254 | C58: 12 | D58: 6265 | E58: 13 | F58: 6268 | K58: 0 | L58: 211
A59: 21 | B59: 6364 | C59: 21 | D59: 6367 | E59: 11 | F59: 6382 | K59: 0 | L59: 221
A60: 12 | B60: 6534 | C60: 14 | D60: 6539 | E60: 13 | F60: 6544 | K60: 0 | L60: 111
A61: 21 | B61: 6641 | C61: 12 | D61: 6653 | E61: 13 | F61: 6660 | K61: 0 | L61: 211
A62: 21 | B62: 6757 | C62: 12 | D62: 6767 | E62: 13 | F62: 6773 | K62: 0 | L62: 211
A63: 21 | B63: 6869 | C63: 21 | D63: 6872 | E63: 11 | F63: 6886 | K63: 0 | L63: 221
A64: 21 | B64: 7075 | C64: 12 | D64: 7086 | E64: 13 | F64: 7090 | K64: 0 | L64: 211
A65: 21 | B65: 7186 | C65: 12 | D65: 7200 | E65: 13 | F65: 7210 | K65: 0 | L65: 211
A66: 21 | B66: 7304 | C66: 12 | D66: 7321 | E66: 13 | F66: 7328 | K66: 0 | L66: 211
A67: 12 | B67: 7429 | C67: 14 | D67: 7433 | E67: 24 | F67: 7440 | K67: 0 | L67: 112
A68: 21 | B68: 7535 | C68: 12 | D68: 7544 | E68: 13 | F68: 7547 | K68: 0 | L68: 211
A69: 21 | B69: 7639 | C69: 12 | D69: 7653 | E69: 13 | F69: 7658 | K69: 0 | L69: 211
A70: 21 | B70: 7756 | C70: 12 | D70: 7765 | E70: 13 | F70: 7771 | K70: 0 | L70: 211
A71: 21 | B71: 7867 | C71: 12 | D71: 7878 | E71: 13 | F71: 7881 | K71: 0 | L71: 211
A72: 21 | B72: 7978 | C72: 21 | D72: 7981 | E72: 11 | F72: 7994 | K72: 0 | L72: 221
A73: 21 | B73: 8338 | C73: 12 | D73: 8352 | E73: 13 | F73: 8357 | K73: 0 | L73: 211
A74: 21 | B74: 8451 | C74: 21 | D74: 8459 | E74: 22 | F74: 8461 | K74: 0 | L74: 222
A75: 21 | B75: 8554 | C75: 12 | D75: 8566 | E75: 13 | F75: 8568 | K75: 0 | L75: 211
A76: 21 | B76: 8663 | C76: 21 | D76: 8666 | E76: 11 | F76: 8673 | K76: 0 | L76: 221
A77: 21 | B77: 8768 | C77: 12 | D77: 8783 | E77: 13 | F77: 8794 | K77: 0 | L77: 211
A78: 21 | B78: 8888 | C78: 12 | D78: 8898 | E78: 13 | F78: 8901 | K78: 0 | L78: 211
A79: 21 | B79: 8998 | C79: 12 | D79: 9008 | E79: 13 | F79: 9011 | K79: 0 | L79: 211
A80: 12 | B80: 9114 | C80: 14 | D80: 9119 | E80: 13 | F80: 9124 | K80: 0 | L80: 111
A81: 12 | B81: 9227 | C81: 14 | D81: 9231 | E81: 13 | F81: 9237 | K81: 0 | L81: 111
A82: 21 | B82: 9332 | C82: 12 | D82: 9340 | E82: 13 | F82: 9347 | K82: 0 | L82: 211
A83: 21 | B83: 9439 | C83: 12 | D83: 9448 | E83: 13 | F83: 9451 | K83: 0 | L83: 211
A84: 21 | B84: 9547 | C84: 21 | D84: 9550 | E84: 11 | F84: 9557 | K84: 0 | L84: 221
A85: 21 | B85: 9743 | C85: 12 | D85: 9752 | E85: 13 | F85: 9755 | K85: 0 | L85: 211
A86: 21 | B86: 9851 | C86: 12 | D86: 9862 | E86: 13 | F86: 9865 | K86: 0 | L86: 211
A87: 21 | B87: 9957 | C87: 21 | D87: 9961 | E87: 11 | F87: 9969 | K87: 0 | L87: 221
A88: 21 | B88: 10073 | C88: 12 | D88: 10090 | E88: 24 | F88: 10092 | K88: 0 | L88: 212
A89: 21 | B89: 10188 | C89: 12 | D89: 10202 | E89: 13 | F89: 10206 | K89: 0 | L89: 211
A90: 21 | B90: 10304 | C90: 12 | D90: 10311 | E90: 13 | F90: 10314 | K90: 0 | L90: 211
A91: 21 | B91: 10408 | C91: 12 | D91: 10416 | E91: 13 | F91: 10420 | K91: 0 | L91: 211
A92: 12 | B92: 10523 | C92: 14 | D92: 10526 | E92: 13 | F92: 10533 | K92: 0 | L92: 111
A93: 21 | B93: 10630 | C93: 21 | D93: 10634 | E93: 11 | F93: 10645 | K93: 0 | L93: 221
A94: 12 | B94: 11052 | C94: 23 | D94: 11054 | E94: 13 | F94: 11056 | K94: 0 | L94: 121
A95: 21 | B95: 11150 | C95: 21 | D95: 11154 | E95: 22 | F95: 11156 | K95: 0 | L95: 222
A96: 21 | B96: 11249 | C96: 21 | D96: 11253 | E96: 11 | F96: 11260 | K96: 0 | L96: 221
A97: 12 | B97: 11408 | C97: 14 | D97: 11410 | E97: 13 | F97: 11412 | K97: 0 | L97: 111
A98: 12 | B98: 11517 | C98: 23 | D98: 11525 | E98: 24 | F98: 11539 | K98: 0 | L98: 122
A99: 12 | B99: 11641 | C99: 14 | D99: 11644 | E99: 13 | F99: 11647 | K99: 0 | L99: 111
A100: 21 | B100: 11743 | C100: 12 | D100: 11751 | E100: 13 | F100: 11756 | K100: 0 | L100: 211
A101: 21 | B101: 11852 | C101: 12 | D101: 11864 | E101: 13 | F101: 11867 | K101: 0 | L101: 211
A102: 21 | B102: 11962 | C102: 21 | D102: 11964 | E102: 11 | F102: 11974 | K102: 0 | L102: 221
A103: 21 | B103: 12102 | C103: 12 | D103: 12110 | E103: 13 | F103: 12116 | K103: 0 | L103: 211
A104: 21 | B104: 12212 | C104: 12 | D104: 12219 | E104: 13 | F104: 12224 | K104: 0 | L104: 211
A105: 12 | B105: 12326 | C105: 14 | D105: 12329 | E105: 13 | F105: 12334 | K105: 0 | L105: 111
A106: 21 | B106: 12431 | C106: 21 | D106: 12434 | E106: 11 | F106: 12448 | K106: 0 | L106: 221
A107: 21 | B107: 12565 | C107: 12 | D107: 12581 | E107: 13 | F107: 12587 | K107: 0 | L107: 211
A108: 21 | B108: 12679 | C108: 21 | D108: 12682 | E108: 11 | F108: 12693 | K108: 0 | L108: 221
A109: 12 | B109: 12835 | C109: 23 | D109: 12838 | E109: 13 | F109: 12844 | K109: 0 | L109: 121
A110: 12 | B110: 12948 | C110: 14 | D110: 12951 | E110: 13 | F110: 12958 | K110: 0 | L110: 111
A111: 21 | B111: 13057 | C111: 12 | D111: 13067 | E111: 13 | F111: 13073 | K111: 0 | L111: 211
A112: 21 | B112: 13166 | C112: 12 | D112: 13174 | E112: 13 | F112: 13178 | K112: 0 | L112: 211
A113: 21 | B113: 13274 | C113: 12 | D113: 13286 | E113: 13 | F113: 13291 | K113: 0 | L113: 211
A114: 21 | B114: 13388 | C114: 12 | D114: 13396 | E114: 13 | F114: 13401 | K114: 0 | L114: 211
A115: 21 | B115: 13497 | C115: 12 | D115: 13509 | E115: 24 | F115: 13518 | K115: 0 | L115: 212
A116: 12 | B116: 13625 | C116: 14 | D116: 13629 | E116: 13 | F116: 13635 | K116: 0 | L116: 111
A117: 21 | B117: 13733 | C117: 12 | D117: 13745 | E117: 24 | F117: 13749 | K117: 0 | L117: 212
A118: 21 | B118: 13844 | C118: 12 | D118: 13852 | E118: 13 | F118: 13858 | K118: 0 | L118: 211
A119: 21 | B119: 13950 | C119: 12 | D119: 13958 | E119: 13 | F119: 13961 | K119: 0 | L119: 211
A120: 21 | B120: 14056 | C120: 21 | D120: 14058 | E120: 11 | F120: 14065 | K120: 0 | L120: 221
A121: 21 | B121: 14379 | C121: 12 | D121: 14390 | E121: 13 | F121: 14395 | K121: 0 | L121: 211
A122: 12 | B122: 14501 | C122: 23 | D122: 14504 | E122: 13 | F122: 14507 | K122: 0 | L122: 121
A123: 21 | B123: 14603 | C123: 21 | D123: 14606 | E123: 11 | F123: 14617 | K123: 0 | L123: 221
A124: 12 | B124: 14857 | C124: 14 | D124: 14862 | E124: 13 | F124: 14868 | K124: 0 | L124: 111
A125: 21 | B125: 14965 | C125: 12 | D125: 14976 | E125: 13 | F125: 14981 | K125: 0 | L125: 211
A126: 21 | B126: 15077 | C126: 12 | D126: 15089 | E126: 13 | F126: 15096 | K126: 0 | L126: 211
A127: 21 | B127: 15193 | C127: 12 | D127: 15204 | E127: 24 | F127: 15208 | K127: 0 | L127: 212
A128: 21 | B128: 15302 | C128: 12 | D128: 15309 | E128: 13 | F128: 15312 | K128: 0 | L128: 211
A129: 21 | B129: 15408 | C129: 21 | D129: 15410 | E129: 11 | F129: 15426 | K129: 0 | L129: 221
A130: 21 | B130: 15711 | C130: 12 | D130: 15724 | E130: 13 | F130: 15736 | K130: 0 | L130: 211
A131: 21 | B131: 15833 | C131: 12 | D131: 15841 | E131: 13 | F131: 15845 | K131: 0 | L131: 211
A132: 21 | B132: 15945 | C132: 12 | D132: 15958 | E132: 24 | F132: 15962 | K132: 0 | L132: 212
A133: 21 | B133: 16057 | C133: 12 | D133: 16071 | E133: 13 | F133: 16077 | K133: 0 | L133: 211
A134: 21 | B134: 16173 | C134: 21 | D134: 16175 | E134: 11 | F134: 16183 | K134: 0 | L134: 221
A135: 12 | B135: 16495 | C135: 14 | D135: 16501 | E135: 13 | F135: 16507 | K135: 0 | L135: 111
A136: 21 | B136: 16604 | C136: 12 | D136: 16613 | E136: 13 | F136: 16616 | K136: 0 | L136: 211
A137: 21 | B137: 16709 | C137: 21 | D137: 16713 | E137: 11 | F137: 16724 | K137: 0 | L137: 221
A138: 21 | B138: 16900 | C138: 12 | D138: 16915 | E138: 13 | F138: 16923 | K138: 0 | L138: 211
A139: 21 | B139: 17019 | C139: 12 | D139: 17031 | E139: 13 | F139: 17036 | K139: 0 | L139: 211
A140: 21 | B140: 17129 | C140: 12 | D140: 17143 | E140: 13 | F140: 17150 | K140: 0 | L140: 211
A141: 21 | B141: 17245 | C141: 12 | D141: 17251 | E141: 13 | F141: 17257 | K141: 0 | L141: 211
A142: 21 | B142: 17348 | C142: 21 | D142: 17353 | E142: 11 | F142: 17366 | K142: 0 | L142: 221
A143: 21 | B143: 17495 | C143: 12 | D143: 17509 | E143: 13 | F143: 17515 | K143: 0 | L143: 211
A144: 21 | B144: 17613 | C144: 12 | D144: 17620 | E144: 13 | F144: 17622 | K144: 0 | L144: 211
A145: 12 | B145: 17733 | C145: 14 | D145: 17738 | E145: 13 | F145: 17745 | K145: 0 | L145: 111
A146: 21 | B146: 17839 | C146: 12 | D146: 17849 | E146: 13 | F146: 17851 | K146: 0 | L146: 211
A147: 21 | B147: 17947 | C147: 12 | D147: 17960 | E147: 24 | F147: 17971 | K147: 0 | L147: 212
A148: 21 | B148: 18068 | C148: 12 | D148: 18080 | E148: 13 | F148: 18091 | K148: 0 | L148: 211
A149: 21 | B149: 18185 | C149: 21 | D149: 18187 | E149: 11 | F149: 18202 | K149: 0 | L149: 221
A150: 12 | B150: 18390 | C150: 14 | D150: 18395 | E150: 13 | F150: 18401 | K150: 0 | L150: 111
A151: 12 | B151: 18506 | C151: 14 | D151: 18512 | E151: 13 | F151: 18519 | K151: 0 | L151: 111
A152: 21 | B152: 18616 | C152: 12 | D152: 18627 | E152: 24 | F152: 18633 | K152: 0 | L152: 212
A153: 21 | B153: 18730 | C153: 21 | D153: 18733 | E153: 22 | F153: 18736 | K153: 0 | L153: 222
A154: 21 | B154: 18830 | C154: 12 | D154: 18840 | E154: 13 | F154: 18845 | K154: 0 | L154: 211
A155: 21 | B155: 18942 | C155: 12 | D155: 18955 | E155: 13 | F155: 18962 | K155: 0 | L155: 211
A156: 21 | B156: 19060 | C156: 12 | D156: 19070 | E156: 13 | F156: 19082 | K156: 0 | L156: 211
A157: 21 | B157: 19179 | C157: 12 | D157: 19193 | E157: 13 | F157: 19200 | K157: 0 | L157: 211
A158: 21 | B158: 19296 | C158: 12 | D158: 19305 | E158: 13 | F158: 19307 | K158: 0 | L158: 211
A159: 21 | B159: 19403 | C159: 12 | D159: 19411 | E159: 13 | F159: 19417 | K159: 0 | L159: 211
A160: 21 | B160: 19513 | C160: 12 | D160: 19528 | E160: 24 | F160: 19530 | K160: 0 | L160: 212
A161: 21 | B161: 19629 | C161: 12 | D161: 19639 | E161: 13 | F161: 19651 | K161: 0 | L161: 211
A162: 21 | B162: 19748 | C162: 12 | D162: 19760 | E162: 13 | F162: 19766 | K162: 0 | L162: 211
A163: 21 | B163: 19865 | C163: 21 | D163: 19881 | E163: 22 | F163: 19884 | K163: 0 | L163: 222
A164: 21 | B164: 19981 | C164: 21 | D164: 19986 | E164: 11 | F164: 20002 | K164: 0 | L164: 221
A165: 21 | B165: 20337 | C165: 12 | D165: 20349 | E165: 13 | F165: 20354 | K165: 0 | L165: 211
A166: 21 | B166: 20450 | C166: 21 | D166: 20452 | E166: 11 | F166: 20469 | K166: 0 | L166: 221
A167: 21 | B167: 20762 | C167: 12 | D167: 20776 | E167: 13 | F167: 20781 | K167: 0 | L167: 211
A168: 21 | B168: 20876 | C168: 12 | D168: 20886 | E168: 13 | F168: 20891 | K168: 0 | L168: 211
A169: 21 | B169: 20987 | C169: 12 | D169: 20996 | E169: 13 | F169: 20999 | K169: 0 | L169: 211
A170: 21 | B170: 21096 | C170: 12 | D170: 21115 | E170: 13 | F170: 21121 | K170: 0 | L170: 211
A171: 21 | B171: 21219 | C171: 21 | D171: 21222 | E171: 22 | F171: 21225 | K171: 0 | L171: 222
A172: 12 | B172: 21326 | C172: 14 | D172: 21331 | E172: 13 | F172: 21343 | K172: 0 | L172: 111
A173: 21 | B173: 21474 | C173: 21 | D173: 21476 | E173: 11 | F173: 21487 | K173: 0 | L173: 221
A174: 21 | B174: 21604 | C174: 12 | D174: 21613 | E174: 13 | F174: 21618 | K174: 0 | L174: 211
A175: 12 | B175: 21717 | C175: 14 | D175: 21722 | E175: 13 | F175: 21727 | K175: 0 | L175: 111
A176: 21 | B176: 21823 | C176: 21 | D176: 21825 | E176: 11 | F176: 21837 | K176: 0 | L176: 221
A177: 21 | B177: 21986 | C177: 12 | D177: 22000 | E177: 13 | F177: 22006 | K177: 0 | L177: 211
A178: 21 | B178: 22102 | C178: 21 | D178: 22104 | E178: 11 | F178: 22116 | K178: 0 | L178: 221
A179: 12 | B179: 22274 | C179: 14 | D179: 22277 | E179: 13 | F179: 22283 | K179: 0 | L179: 111
A180: 21 | B180: 22379 | C180: 12 | D180: 22394 | E180: 13 | F180: 22399 | K180: 0 | L180: 211
A181: 21 | B181: 22495 | C181: 12 | D181: 22507 | E181: 13 | F181: 22513 | K181: 0 | L181: 211
A182: 21 | B182: 22605 | C182: 12 | D182: 22613 | E182: 13 | F182: 22620 | K182: 0 | L182: 211
A183: 21 | B183: 22713 | C183: 12 | D183: 22721 | E183: 13 | F183: 22724 | K183: 0 | L183: 211
A184: 21 | B184: 22820 | C184: 12 | D184: 22833 | E184: 13 | F184: 22846 | K184: 0 | L184: 211
A185: 21 | B185: 22942 | C185: 12 | D185: 22957 | E185: 13 | F185: 22968 | K185: 0 | L185: 211
A186: 21 | B186: 23064 | C186: 12 | D186: 23078 | E186: 13 | F186: 23096 | K186: 0 | L186: 211
A187: 21 | B187: 23193 | C187: 12 | D187: 23205 | E187: 13 | F187: 23211 | K187: 0 | L187: 211
A188: 21 | B188: 23309 | C188: 12 | D188: 23326 | E188: 24 | F188: 23330 | K188: 0 | L188: 212
A189: 12 | B189: 23431 | C189: 14 | D189: 23434 | E189: 13 | F189: 23437 | K189: 0 | L189: 111
A190: 21 | B190: 23534 | C190: 12 | D190: 23546 | E190: 13 | F190: 23553 | K190: 0 | L190: 211
A191: 21 | B191: 23646 | C191: 12 | D191: 23657 | E191: 13 | F191: 23669 | K191: 0 | L191: 211
A192: 12 | B192: 23771 | C192: 14 | D192: 23774 | E192: 13 | F192: 23780 | K192: 0 | L192: 111
A193: 21 | B193: 23877 | C193: 12 | D193: 23891 | E193: 13 | F193: 23902 | K193: 0 | L193: 211

Sheet !MA0685T.AYL
A1: Report for:!MA0685T.AYL
A2: Date: | B2: <date>
A3: Hen: | B3: <hen> | F3: Correct Sequence | G3: =Start!J2 -> 221 | P3: Total Sequences in Data | Q3: =4994-COUNTBLANK(L7:L5000) -> 187 | V3: Total Sequences in Block Data | W3: =COUNTA(L7:L37) -> 31 | AA3: Total Sequences in Block Data | AB3: =COUNTA(L38:L68) -> 31 | AF3: Total Sequences in Block Data | AG3: =COUNTA(L69:L100) -> 32 | AK3: Total Sequences in Block Data | AL3: =COUNTA(L101:L131) -> 31 | AP3: Total Sequences in Block Data | AQ3: =COUNTA(L132:L162) -> 31 | AU3: Total Sequences in Block Data | AV3: =COUNTA(L163:L193) -> 31
P4: Total Sequences in Summary | Q4: =SUM(O7:O14) -> 187 | V4: Total Sequences in Block Summary | W4: =SUM(U7:U14) -> 31 | AA4: Total Sequences in Block Summary | AB4: =SUM(Z7:Z14) -> 31 | AF4: Total Sequences in Block Summary | AG4: =SUM(AE7:AE14) -> 32 | AK4: Total Sequences in Block Summary | AL4: =SUM(AJ7:AJ14) -> 31 | AP4: Total Sequences in Block Summary | AQ4: =SUM(AO7:AO14) -> 31 | AU4: Total Sequences in Block Summary | AV4: =SUM(AT7:AT14) -> 31
T5: Block 1 | Y5: Block 2 | AD5: Block 3 | AI5: Block 4 | AN5: Block 5 | AS5: Block 6
A6: Sequence Component 1 | B6: Time 1 | C6: Sequence Component 2 | D6: Time 2 | E6: Sequence Component 3 | F6: Time 3 | G6: Sequence Component 4 | H6: Time 4 | I6: Sequence Component 5 | J6: Time 5 | K6: Correct? 0=No 1=Yes | L6: Sequence | N6: Frequency | P6: Relative Frequency | Q6: Variability | T6: Frequency | V6: Relative Frequency | W6: Variability | Y6: Frequency | AA6: Relative Frequency | AB6: Variability | AD6: Frequency | AF6: Relative Frequency | AG6: Variability | AI6: Frequency | AK6: Relative Frequency | AL6: Variability | AN6: Frequency | AP6: Relative Frequency | AQ6: Variability | AS6: Frequency | AU6: Relative Frequency | AV6: Variability
A7: 21 | B7: 8 | C7: 12 | D7: 19 | E7: 13 | F7: 27 | K7: 0 | L7: 211 | N7: 111 | O7: =COUNTIF($L$7:$L$500,N7) -> 35 | P7: =O7/$Q$4 -> 0.1871657754 | Q7: =IF(P7=0,0,(P7*((LOG(P7))/LOG(2)))) -> -0.4524941203 | T7: =N7 -> 111 | U7: =COUNTIF(L7:L37,T7) -> 6 | V7: =U7/(W4-U13) -> 0.2 | W7: =IF(V7=0,0,(V7*((LOG(V7))/LOG(2)))) -> -0.464385619 | Y7: =N7 -> 111 | Z7: =COUNTIF(L38:L68,Y7) -> 2 | AA7: =Z7/(AB4-Z13) -> 0.07692307692 | AB7: =IF(AA7=0,0,(AA7*((LOG(AA7))/LOG(2)))) -> -0.2846492091 | AD7: =N7 -> 111 | AE7: =COUNTIF(L69:L100,AD7) -> 9 | AF7: =AE7/(AG4-AE13) -> 0.3333333333 | AG7: =IF(AF7=0,0,(AF7*((LOG(AF7))/LOG(2)))) -> -0.5283208336 | AI7: =N7 -> 111 | AJ7: =COUNTIF(L101:L131,AI7) -> 6 | AK7: =AJ7/(AL4-AJ13) -> 0.2068965517 | AL7: =IF(AK7=0,0,(AK7*((LOG(AK7))/LOG(2)))) -> -0.4702796885 | AN7: =N7 -> 111 | AO7: =COUNTIF(L132:L162,AN7) -> 5 | AP7: =AO7/(AQ4-AO13) -> 0.1724137931 | AQ7: =IF(AP7=0,0,(AP7*((LOG(AP7))/LOG(2)))) -> -0.4372505 | AS7: =N7 -> 111 | AT7: =COUNTIF(L163:L193,AS7) -> 7 | AU7: =AT7/(AV4-AT13) -> 0.25 | AV7: =IF(AU7=0,0,(AU7*((LOG(AU7))/LOG(2)))) -> -0.5
A8: 21 | B8: 136 | C8: 21 | D8: 140 | E8: 22 | F8: 147 | K8: 0 | L8: 222 | N8: 112 | O8: =COUNTIF($L$7:$L$500,N8) -> 6 | P8: =O8/$Q$4 -> 0.0320855615 | Q8: =IF(P8=0,0,(P8*((LOG(P8))/LOG(2)))) -> -0.159206373 | T8: =N8 -> 112 | U8: =COUNTIF(L7:L37,T8) -> 0 | V8: =U8/(W4-U13) -> 0 | W8: =IF(V8=0,0,(V8*((LOG(V8))/LOG(2)))) -> 0 | Y8: =N8 -> 112 | Z8: =COUNTIF(L38:L68,Y8) -> 1 | AA8: =Z8/(AB4-Z13) -> 0.03846153846 | AB8: =IF(AA8=0,0,(AA8*((LOG(AA8))/LOG(2)))) -> -0.180786143 | AD8: =N8 -> 112 | AE8: =COUNTIF(L69:L100,AD8) -> 1 | AF8: =AE8/(AG4-AE13) -> 0.03703703704 | AG8: =IF(AF8=0,0,(AF8*((LOG(AF8))/LOG(2)))) -> -0.1761069445 | AI8: =N8 -> 112 | AJ8: =COUNTIF(L101:L131,AI8) -> 1 | AK8: =AJ8/(AL4-AJ13) -> 0.03448275862 | AL8: =IF(AK8=0,0,(AK8*((LOG(AK8))/LOG(2)))) -> -0.167516586 | AN8: =N8 -> 112 | AO8: =COUNTIF(L132:L162,AN8) -> 1 | AP8: =AO8/(AQ4-AO13) -> 0.03448275862 | AQ8: =IF(AP8=0,0,(AP8*((LOG(AP8))/LOG(2)))) -> -0.167516586 | AS8: =N8 -> 112 | AT8: =COUNTIF(L163:L193,AS8) -> 2 | AU8: =AT8/(AV4-AT13) -> 0.07142857143 | AV8: =IF(AU8=0,0,(AU8*((LOG(AU8))/LOG(2)))) -> -0.271953923
A9: 12 | B9: 269 | C9: 14 | D9: 275 | E9: 13 | F9: 281 | K9: 0 | L9: 111 | N9: 121 | O9: =COUNTIF($L$7:$L$500,N9) -> 2 | P9: =O9/$Q$4 -> 0.01069518717 | Q9: =IF(P9=0,0,(P9*((LOG(P9))/LOG(2)))) -> -0.0700202616 | T9: =N9 -> 121 | U9: =COUNTIF(L7:L37,T9) -> 1 | V9: =U9/(W4-U13) -> 0.03333333333 | W9: =IF(V9=0,0,(V9*((LOG(V9))/LOG(2)))) -> -0.1635630199 | Y9: =N9 -> 121 | Z9: =COUNTIF(L38:L68,Y9) -> 0 | AA9: =Z9/(AB4-Z13) -> 0 | AB9: =IF(AA9=0,0,(AA9*((LOG(AA9))/LOG(2)))) -> 0 | AD9: =N9 -> 121 | AE9: =COUNTIF(L69:L100,AD9) -> 0 | AF9: =AE9/(AG4-AE13) -> 0 | AG9: =IF(AF9=0,0,(AF9*((LOG(AF9))/LOG(2)))) -> 0 | AI9: =N9 -> 121 | AJ9: =COUNTIF(L101:L131,AI9) -> 0 | AK9: =AJ9/(AL4-AJ13) -> 0 | AL9: =IF(AK9=0,0,(AK9*((LOG(AK9))/LOG(2)))) -> 0 | AN9: =N9 -> 121 | AO9: =COUNTIF(L132:L162,AN9) -> 0 | AP9: =AO9/(AQ4-AO13) -> 0 | AQ9: =IF(AP9=0,0,(AP9*((LOG(AP9))/LOG(2)))) -> 0 | AS9: =N9 -> 121 | AT9: =COUNTIF(L163:L193,AS9) -> 1 | AU9: =AT9/(AV4-AT13) -> 0.03571428571 | AV9: =IF(AU9=0,0,(AU9*((LOG(AU9))/LOG(2)))) -> -0.1716912472
A10: 21 | B10: 378 | C10: 12 | D10: 391 | E10: 13 | F10: 397 | K10: 0 | L10: 211 | N10: 122 | O10: =COUNTIF($L$7:$L$500,N10) -> 1 | P10: =O10/$Q$4 -> 0.005347593583 | Q10: =IF(P10=0,0,(P10*((LOG(P10))/LOG(2)))) -> -0.04035772438 | T10: =N10 -> 122 | U10: =COUNTIF(L7:L37,T10) -> 0 | V10: =U10/(W4-U13) -> 0 | W10: =IF(V10=0,0,(V10*((LOG(V10))/LOG(2)))) -> 0 | Y10: =N10 -> 122 | Z10: =COUNTIF(L38:L68,Y10) -> 0 | AA10: =Z10/(AB4-Z13) -> 0 | AB10: =IF(AA10=0,0,(AA10*((LOG(AA10))/LOG(2)))) -> 0 | AD10: =N10 -> 122 | AE10: =COUNTIF(L69:L100,AD10) -> 0 | AF10: =AE10/(AG4-AE13) -> 0 | AG10: =IF(AF10=0,0,(AF10*((LOG(AF10))/LOG(2)))) -> 0 | AI10: =N10 -> 122 | AJ10: =COUNTIF(L101:L131,AI10) -> 0 | AK10: =AJ10/(AL4-AJ13) -> 0 | AL10: =IF(AK10=0,0,(AK10*((LOG(AK10))/LOG(2)))) -> 0 | AN10: =N10 -> 122 | AO10: =COUNTIF(L132:L162,AN10) -> 0 | AP10: =AO10/(AQ4-AO13) -> 0 | AQ10: =IF(AP10=0,0,(AP10*((LOG(AP10))/LOG(2)))) -> 0 | AS10: =N10 -> 122 | AT10: =COUNTIF(L163:L193,AS10) -> 1 | AU10: =AT10/(AV4-AT13) -> 0.03571428571 | AV10: =IF(AU10=0,0,(AU10*((LOG(AU10))/LOG(2)))) -> -0.1716912472
A11: 21 | B11: 494 | C11: 12 | D11: 509 | E11: 13 | F11: 514 | K11: 0 | L11: 211 | N11: 211 | O11: =COUNTIF($L$7:$L$500,N11) -> 116 | P11: =O11/$Q$4 -> 0.6203208556 | Q11: =IF(P11=0,0,(P11*((LOG(P11))/LOG(2)))) -> -0.4273473899 | T11: =N11 -> 211 | U11: =COUNTIF(L7:L37,T11) -> 21 | V11: =U11/(W4-U13) -> 0.7 | W11: =IF(V11=0,0,(V11*((LOG(V11))/LOG(2)))) -> -0.360201221 | Y11: =N11 -> 211 | Z11: =COUNTIF(L38:L68,Y11) -> 22 | AA11: =Z11/(AB4-Z13) -> 0.8461538462 | AB11: =IF(AA11=0,0,(AA11*((LOG(AA11))/LOG(2)))) -> -0.2039299303 | AD11: =N11 -> 211 | AE11: =COUNTIF(L69:L100,AD11) -> 14 | AF11: =AE11/(AG4-AE13) -> 0.5185185185 | AG11: =IF(AF11=0,0,(AF11*((LOG(AF11))/LOG(2)))) -> -0.4913131897 | AI11: =N11 -> 211 | AJ11: =COUNTIF(L101:L131,AI11) -> 22 | AK11: =AJ11/(AL4-AJ13) -> 0.7586206897 | AL11: =IF(AK11=0,0,(AK11*((LOG(AK11))/LOG(2)))) -> -0.3023478029 | AN11: =N11 -> 211 | AO11: =COUNTIF(L132:L162,AN11) -> 22 | AP11: =AO11/(AQ4-AO13) -> 0.7586206897 | AQ11: =IF(AP11=0,0,(AP11*((LOG(AP11))/LOG(2)))) -> -0.3023478029 | AS11: =N11 -> 211 | AT11: =COUNTIF(L163:L193,AS11) -> 15 | AU11: =AT11/(AV4-AT13) -> 0.5357142857 | AV11: =IF(AU11=0,0,(AU11*((LOG(AU11))/LOG(2)))) -> -0.4823916035
A12: 21 | B12: 611 | C12: 12 | D12: 619 | E12: 13 | F12: 623 | K12: 0 | L12: 211 | N12: 212 | O12: =COUNTIF($L$7:$L$500,N12) -> 3 | P12: =O12/$Q$4 -> 0.01604278075 | Q12: =IF(P12=0,0,(P12*((LOG(P12))/LOG(2)))) -> -0.09564596726 | T12: =N12 -> 212 | U12: =COUNTIF(L7:L37,T12) -> 1 | V12: =U12/(W4-U13) -> 0.03333333333 | W12: =IF(V12=0,0,(V12*((LOG(V12))/LOG(2)))) -> -0.1635630199 | Y12: =N12 -> 212 | Z12: =COUNTIF(L38:L68,Y12) -> 0 | AA12: =Z12/(AB4-Z13) -> 0 | AB12: =IF(AA12=0,0,(AA12*((LOG(AA12))/LOG(2)))) -> 0 | AD12: =N12 -> 212 | AE12: =COUNTIF(L69:L100,AD12) -> 1 | AF12: =AE12/(AG4-AE13) -> 0.03703703704 | AG12: =IF(AF12=0,0,(AF12*((LOG(AF12))/LOG(2)))) -> -0.1761069445 | AI12: =N12 -> 212 | AJ12: =COUNTIF(L101:L131,AI12) -> 0 | AK12: =AJ12/(AL4-AJ13) -> 0 | AL12: =IF(AK12=0,0,(AK12*((LOG(AK12))/LOG(2)))) -> 0 | AN12: =N12 -> 212 | AO12: =COUNTIF(L132:L162,AN12) -> 1 | AP12: =AO12/(AQ4-AO13) -> 0.03448275862 | AQ12: =IF(AP12=0,0,(AP12*((LOG(AP12))/LOG(2)))) -> -0.167516586 | AS12: =N12 -> 212 | AT12: =COUNTIF(L163:L193,AS12) -> 0 | AU12: =AT12/(AV4-AT13) -> 0 | AV12: =IF(AU12=0,0,(AU12*((LOG(AU12))/LOG(2)))) -> 0
A13: 21 | B13: 735 | C13: 12 | D13: 745 | E13: 13 | F13: 750 | K13: 0 | L13: 211 | N13: 221 | O13: =COUNTIF($L$7:$L$500,N13) -> 18 | P13: =O13/$Q$4 -> 0.09625668449 | Q13: =IF(P13=0,0,(P13*((LOG(P13))/LOG(2)))) -> -0.3250558837 | T13: =N13 -> 221 | U13: =COUNTIF(L7:L37,T13) -> 1 | Y13: =N13 -> 221 | Z13: =COUNTIF(L38:L68,Y13) -> 5 | AD13: =N13 -> 221 | AE13: =COUNTIF(L69:L100,AD13) -> 5 | AI13: =N13 -> 221 | AJ13: =COUNTIF(L101:L131,AI13) -> 2 | AN13: =N13 -> 221 | AO13: =COUNTIF(L132:L162,AN13) -> 2 | AS13: =N13 -> 221 | AT13: =COUNTIF(L163:L193,AS13) -> 3
A14: 12 | B14: 1020 | C14: 14 | D14: 1025 | E14: 13 | F14: 1032 | K14: 0 | L14: 111 | N14: 222 | O14: =COUNTIF($L$7:$L$500,N14) -> 6 | P14: =O14/$Q$4 -> 0.0320855615 | Q14: =IF(P14=0,0,(P14*((LOG(P14))/LOG(2)))) -> -0.159206373 | T14: =N14 -> 222 | U14: =COUNTIF(L7:L37,T14) -> 1 | V14: =U14/(W4-U13) -> 0.03333333333 | W14: =IF(V14=0,0,(V14*((LOG(V14))/LOG(2)))) -> -0.1635630199 | Y14: =N14 -> 222 | Z14: =COUNTIF(L38:L68,Y14) -> 1 | AA14: =Z14/(AB4-Z13) -> 0.03846153846 | AB14: =IF(AA14=0,0,(AA14*((LOG(AA14))/LOG(2)))) -> -0.180786143 | AD14: =N14 -> 222 | AE14: =COUNTIF(L69:L100,AD14) -> 2 | AF14: =AE14/(AG4-AE13) -> 0.07407407407 | AG14: =IF(AF14=0,0,(AF14*((LOG(AF14))/LOG(2)))) -> -0.278139815 | AI14: =N14 -> 222 | AJ14: =COUNTIF(L101:L131,AI14) -> 0 | AK14: =AJ14/(AL4-AJ13) -> 0 | AL14: =IF(AK14=0,0,(AK14*((LOG(AK14))/LOG(2)))) -> 0 | AN14: =N14 -> 222 | AO14: =COUNTIF(L132:L162,AN14) -> 0 | AP14: =AO14/(AQ4-AO13) -> 0 | AQ14: =IF(AP14=0,0,(AP14*((LOG(AP14))/LOG(2)))) -> 0 | AS14: =N14 -> 222 | AT14: =COUNTIF(L163:L193,AS14) -> 2 | AU14: =AT14/(AV4-AT13) -> 0.07142857143 | AV14: =IF(AU14=0,0,(AU14*((LOG(AU14))/LOG(2)))) -> -0.271953923
A15: 12 | B15: 1428 | C15: 14 | D15: 1431 | E15: 13 | F15: 1434 | K15: 0 | L15: 111 | P15: =SUM(P7:P14) -> 1 | Q15: =-SUM(Q7:Q14) -> 1.729334093 | V15: =SUM(V7:V14) -> 1 | W15: =-SUM(W7:W14) -> 1.3152759 | AA15: =SUM(AA7:AA14) -> 1 | AB15: =-SUM(AB7:AB14) -> 0.8501514254 | AF15: =SUM(AF7:AF14) -> 1 | AG15: =-SUM(AG7:AG14) -> 1.649987727 | AK15: =SUM(AK7:AK14) -> 1 | AL15: =-SUM(AL7:AL14) -> 0.9401440774 | AP15: =SUM(AP7:AP14) -> 1 | AQ15: =-SUM(AQ7:AQ14) -> 1.074631475 | AU15: =SUM(AU7:AU14) -> 1 | AV15: =-SUM(AV7:AV14) -> 1.869681944
A16: 21 | B16: 1535 | C16: 12 | D16: 1548 | E16: 13 | F16: 1551 | K16: 0 | L16: 211 | P16: U= | Q16: =Q15/(LOG(Q4)/LOG(2)) -> 0.2291451275 | V16: U1= | W16: =W15/(LOG(W4)/LOG(2)) -> 0.2654872389 | AA16: U2= | AB16: =AB15/(LOG(AB4)/LOG(2)) -> 0.1716022887 | AF16: U3= | AG16: =AG15/(LOG(AG4)/LOG(2)) -> 0.3299975455 | AK16: U4= | AL16: =AL15/(LOG(AL4)/LOG(2)) -> 0.1897672233 | AP16: U5= | AQ16: =AQ15/(LOG(AQ4)/LOG(2)) -> 0.2169133816 | AU16: U6= | AV16: =AV15/(LOG(AV4)/LOG(2)) -> 0.3773935926
A17: 21 | B17: 1647 | C17: 12 | D17: 1659 | E17: 13 | F17: 1664 | K17: 0 | L17: 211
A18: 21 | B18: 1760 | C18: 12 | D18: 1775 | E18: 13 | F18: 1781 | K18: 0 | L18: 211
A19: 21 | B19: 1880 | C19: 12 | D19: 1892 | E19: 13 | F19: 1897 | K19: 0 | L19: 211 | N19: Total Target Seq
A20: 21 | B20: 1999 | C20: 12 | D20: 2019 | E20: 13 | F20: 2024 | K20: 0 | L20: 211 | N20: =COUNTIF(L7:L193,G3) -> 18 | P20: 31 | Q20: 31 | R20: 32 | S20: 31 | T20: 31 | U20: 31
A21: 12 | B21: 2141 | C21: 23 | D21: 2143 | E21: 13 | F21: 2146 | K21: 0 | L21: 121 | P21: % of reinforcement given in 6 equal intervals based on number of trials
A22: 21 | B22: 2243 | C22: 12 | D22: 2252 | E22: 13 | F22: 2255 | K22: 0 | L22: 211 | P22: %_1 | Q22: %_2 | R22: %_3 | S22: %_4 | T22: %_5 | U22: %_6
A23: 21 | B23: 2393 | C23: 12 | D23: 2404 | E23: 24 | F23: 2409 | K23: 0 | L23: 212 | O23: target sequence | P23: =$G$3 -> 221 | Q23: =$G$3 -> 221 | R23: =$G$3 -> 221 | S23: =$G$3 -> 221 | T23: =$G$3 -> 221 | U23: =$G$3 -> 221
A24: 21 | B24: 2505 | C24: 12 | D24: 2515 | E24: 13 | F24: 2521 | K24: 0 | L24: 211 | O24: total reinforcement | P24: =U13 -> 1 | Q24: =Z13 -> 5 | R24: =AE13 -> 5 | S24: =AJ13 -> 2 | T24: =AO13 -> 2 | U24: =AT13 -> 3
A25: 21 | B25: 2617 | C25: 12 | D25: 2627 | E25: 13 | F25: 2632 | K25: 0 | L25: 211 | O25: % target
A26: 21 | B26: 2734 | C26: 12 | D26: 2748 | E26: 13 | F26: 2759 | K26: 0 | L26: 211 | O26: CCRF
A27: 21 | B27: 2855 | C27: 12 | D27: 2865 | E27: 13 | F27: 2870 | K27: 0 | L27: 211 | O27: % CCRf
A28: 21 | B28: 2966 | C28: 21 | D28: 2969 | E28: 11 | F28: 2980 | K28: 0 | L28: 221 | O28: average response rate | P28: =F37/P20 -> 141.6774194 | Q28: =(F68-F37)/Q20 -> 122.6774194 | R28: =(F100-F68)/R20 -> 123.84375 | S28: =(F131-F100)/S20 -> 113.9677419 | T28: =(F162-F131)/T20 -> 125.9677419 | U28: =(F193-F162)/U20 -> 139.2903226
A29: 12 | B29: 3479 | C29: 14 | D29: 3483 | E29: 13 | F29: 3487 | K29: 0 | L29: 111
A30: 21 | B30: 3583 | C30: 12 | D30: 3591 | E30: 13 | F30: 3594 | K30: 0 | L30: 211
A31: 21 | B31: 3694 | C31: 12 | D31: 3702 | E31: 13 | F31: 3707 | K31: 0 | L31: 211
A32: 12 | B32: 3809 | C32: 14 | D32: 3815 | E32: 13 | F32: 3821 | K32: 0 | L32: 111
A33: 21 | B33: 3919 | C33: 12 | D33: 3926 | E33: 13 | F33: 3929 | K33: 0 | L33: 211
A34: 21 | B34: 4028 | C34: 12 | D34: 4039 | E34: 13 | F34: 4044 | K34: 0 | L34: 211
A35: 12 | B35: 4149 | C35: 14 | D35: 4152 | E35: 13 | F35: 4157 | K35: 0 | L35: 111
A36: 21 | B36: 4253 | C36: 12 | D36: 4266 | E36: 13 | F36: 4273 | K36: 0 | L36: 211
A37: 21 | B37: 4370 | C37: 12 | D37: 4387 | E37: 13 | F37: 4392 | K37: 0 | L37: 211
A38: 21 | B38: 4490 | C38: 12 | D38: 4498 | E38: 13 | F38: 4502 | K38: 0 | L38: 211
A39: 21 | B39: 4599 | C39: 12 | D39: 4607 | E39: 13 | F39: 4611 | K39: 0 | L39: 211
A40: 21 | B40: 4707 | C40: 12 | D40: 4718 | E40: 13 | F40: 4721 | K40: 0 | L40: 211
A41: 21 | B41: 4817 | C41: 12 | D41: 4828 | E41: 13 | F41: 4833 | K41: 0 | L41: 211
A42: 21 | B42: 4930 | C42: 12 | D42: 4936 | E42: 13 | F42: 4938 | K42: 0 | L42: 211
A43: 21 | B43: 5036 | C43: 21 | D43: 5038 | E43: 11 | F43: 5061 | K43: 0 | L43: 221
A44: 21 | B44: 5198 | C44: 12 | D44: 5211 | E44: 13 | F44: 5216 | K44: 0 | L44: 211
A45: 21 | B45: 5310 | C45: 12 | D45: 5320 | E45: 13 | F45: 5322 | K45: 0 | L45: 211
A46: 21 | B46: 5419 | C46: 12 | D46: 5427 | E46: 13 | F46: 5431 | K46: 0 | L46: 211
A47: 12 | B47: 5539 | C47: 14 | D47: 5544 | E47: 13 | F47: 5551 | K47: 0 | L47: 111
A48: 21 | B48: 5676 | C48: 21 | D48: 5680 | E48: 22 | F48: 5691 | K48: 0 | L48: 222
A49: 21 | B49: 5783 | C49: 12 | D49: 5790 | E49: 13 | F49: 5795 | K49: 0 | L49: 211
A50: 21 | B50: 5891 | C50: 12 | D50: 5899 | E50: 13 | F50: 5903 | K50: 0 | L50: 211
A51: 21 | B51: 5998 | C51: 12 | D51: 6010 | E51: 13 | F51: 6013 | K51: 0 | L51: 211
A52: 21 | B52: 6108 | C52: 12 | D52: 6120 | E52: 13 | F52: 6126 | K52: 0 | L52: 211
A53: 21 | B53: 6225 | C53: 12 | D53: 6240 | E53: 13 | F53: 6242 | K53: 0 | L53: 211
A54: 21 | B54: 6338 | C54: 12 | D54: 6350 | E54: 13 | F54: 6355 | K54: 0 | L54: 211
A55: 21 | B55: 6452 | C55: 12 | D55: 6463 | E55: 13 | F55: 6468 | K55: 0 | L55: 211
A56: 21 | B56: 6566 | C56: 12 | D56: 6574 | E56: 13 | F56: 6578 | K56: 0 | L56: 211
A57: 21 | B57: 6676 | C57: 12 | D57: 6688 | E57: 13 | F57: 6693 | K57: 0 | L57: 211
A58: 21 | B58: 6790 | C58: 12 | D58: 6799 | E58: 13 | F58: 6802 | K58: 0 | L58: 211
A59: 21 | B59: 6898 | C59: 21 | D59: 6900 | E59: 11 | F59: 6907 | K59: 0 | L59: 221
A60: 12 | B60: 7127 | C60: 14 | D60: 7129 | E60: 13 | F60: 7135 | K60: 0 | L60: 111
A61: 21 | B61: 7273 | C61: 21 | D61: 7275 | E61: 11 | F61: 7288 | K61: 0 | L61: 221
A62: 21 | B62: 7410 | C62: 12 | D62: 7420 | E62: 13 | F62: 7423 | K62: 0 | L62: 211
A63: 21 | B63: 7519 | C63: 12 | D63: 7531 | E63: 13 | F63: 7536 | K63: 0 | L63: 211
A64: 21 | B64: 7631 | C64: 12 | D64: 7644 | E64: 13 | F64: 7649 | K64: 0 | L64: 211
A65: 21 | B65: 7756 | C65: 21 | D65: 7758 | E65: 11 | F65: 7770 | K65: 0 | L65: 221
A66: 21 | B66: 7918 | C66: 12 | D66: 7929 | E66: 13 | F66: 7934 | K66: 0 | L66: 211
A67: 21 | B67: 8026 | C67: 21 | D67: 8030 | E67: 11 | F67: 8043 | K67: 0 | L67: 221
A68: 12 | B68: 8189 | C68: 14 | D68: 8192 | E68: 24 | F68: 8195 | K68: 0 | L68: 112
A69: 21 | B69: 8291 | C69: 21 | D69: 8293 | E69: 11 | F69: 8304 | K69: 0 | L69: 221
A70: 12 | B70: 8532 | C70: 14 | D70: 8537 | E70: 24 | F70: 8541 | K70: 0 | L70: 112
A71: 21 | B71: 8639 | C71: 21 | D71: 8645 | E71: 11 | F71: 8654 | K71: 0 | L71: 221
A72: 21 | B72: 8854 | C72: 12 | D72: 8864 | E72: 13 | F72: 8869 | K72: 0 | L72: 211
A73: 21 | B73: 8965 | C73: 12 | D73: 8977 | E73: 13 | F73: 8981 | K73: 0 | L73: 211
A74: 21 | B74: 9077 | C74: 21 | D74: 9094 | E74: 22 | F74: 9097 | K74: 0 | L74: 222
A75: 12 | B75: 9197 | C75: 14 | D75: 9202 | E75: 13 | F75: 9204 | K75: 0 | L75: 111
A76: 21 | B76: 9299 | C76: 21 | D76: 9301 | E76: 11 | F76: 9313 | K76: 0 | L76: 221
A77: 21 | B77: 9451 | C77: 12 | D77: 9462 | E77: 13 | F77: 9467 | K77: 0 | L77: 211
A78: 12 | B78: 9574 | C78: 14 | D78: 9579 | E78: 13 | F78: 9585 | K78: 0 | L78: 111
A79: 21 | B79: 9682 | C79: 12 | D79: 9694 | E79: 13 | F79: 9699 | K79: 0 | L79: 211
A80: 21 | B80: 9796 | C80: 12 | D80: 9809 | E80: 13 | F80: 9813 | K80: 0 | L80: 211
A81: 21 | B81: 9910 | C81: 12 | D81: 9922 | E81: 13 | F81: 9927 | K81: 0 | L81: 211
A82: 21 | B82: 10023 | C82: 12 | D82: 10031 | E82: 13 | F82: 10034 | K82: 0 | L82: 211
A83: 12 | B83: 10142 | C83: 14 | D83: 10148 | E83: 13 | F83: 10155 | K83: 0 | L83: 111
A84: 12 | B84: 10255 | C84: 14 | D84: 10262 | E84: 13 | F84: 10266 | K84: 0 | L84: 111
A85: 21 | B85: 10362 | C85: 21 | D85: 10368 | E85: 11 | F85: 10369 | K85: 0 | L85: 221
A86: 12 | B86: 10476 | C86: 14 | D86: 10479 | E86: 13 | F86: 10481 | K86: 0 | L86: 111
A87: 12 | B87: 10575 | C87: 14 | D87: 10578 | E87: 13 | F87: 10583 | K87: 0 | L87: 111
A88: 21 | B88: 10680 | C88: 12 | D88: 10694 | E88: 24 | F88: 10705 | K88: 0 | L88: 212
A89: 12 | B89: 10807 | C89: 14 | D89: 10810 | E89: 13 | F89: 10814 | K89: 0 | L89: 111
A90: 21 | B90: 10911 | C90: 12 | D90: 10922 | E90: 13 | F90: 10927 | K90: 0 | L90: 211
A91: 12 | B91: 11029 | C91: 14 | D91: 11031 | E91: 13 | F91: 11034 | K91: 0 | L91: 111
A92: 21 | B92: 11131 | C92: 12 | D92: 11141 | E92: 13 | F92: 11143 | K92: 0 | L92: 211
A93: 21 | B93: 11240 | C93: 12 | D93: 11252 | E93: 13 | F93: 11263 | K93: 0 | L93: 211
A94: 21 | B94: 11359 | C94: 12 | D94: 11372 | E94: 13 | F94: 11377 | K94: 0 | L94: 211
A95: 21 | B95: 11530 | C95: 21 | D95: 11534 | E95: 22 | F95: 11540 | K95: 0 | L95: 222
A96: 21 | B96: 11636 | C96: 12 | D96: 11647 | E96: 13 | F96: 11653 | K96: 0 | L96: 211
A97: 21 | B97: 11745 | C97: 21 | D97: 11749 | E97: 11 | F97: 11760 | K97: 0 | L97: 221
A98: 21 | B98: 11925 | C98: 12 | D98: 11933 | E98: 13 | F98: 11940 | K98: 0 | L98: 211
A99: 12 | B99: 12043 | C99: 14 | D99: 12046 | E99: 13 | F99: 12051 | K99: 0 | L99: 111
A100: 21 | B100: 12146 | C100: 12 | D100: 12154 | E100: 13 | F100: 12158 | K100: 0 | L100: 211
A101: 21 | B101: 12254 | C101: 12 | D101: 12260 | E101: 13 | F101: 12264 | K101: 0 | L101: 211
A102: 12 | B102: 12365 | C102: 14 | D102: 12369 | E102: 13 | F102: 12377 | K102: 0 | L102: 111
A103: 12 | B103: 12478 | C103: 14 | D103: 12481 | E103: 13 | F103: 12487 | K103: 0 | L103: 111
A104: 21 | B104: 12583 | C104: 12 | D104: 12591 | E104: 13 | F104: 12593 | K104: 0 | L104: 211
A105: 21 | B105: 12691 | C105: 12 | D105: 12702 | E105: 13 | F105: 12707 | K105: 0 | L105: 211
A106: 21 | B106: 12805 | C106: 12 | D106: 12813 | E106: 13 | F106: 12816 | K106: 0 | L106: 211
A107: 21 | B107: 12911 | C107: 12 | D107: 12919 | E107: 13 | F107: 12924 | K107: 0 | L107: 211
A108: 21 | B108: 13018 | C108: 12 | D108: 13027 | E108: 13 | F108: 13030 | K108: 0 | L108: 211
A109: 21 | B109: 13129 | C109: 12 | D109: 13138 | E109: 13 | F109: 13141 | K109: 0 | L109: 211
A110: 21 | B110: 13238 | C110: 12 | D110: 13249 | E110: 13 | F110: 13259 | K110: 0 | L110: 211
A111: 21 | B111: 13355 | C111: 12 | D111: 13363 | E111: 13 | F111: 13366 | K111: 0 | L111: 211
A112: 21 | B112: 13471 | C112: 12 | D112: 13485 | E112: 13 | F112: 13490 | K112: 0 | L112: 211
A113: 12 | B113: 13600 | C113: 14 | D113: 13610 | E113: 13 | F113: 13622 | K113: 0 | L113: 111
A114: 21 | B114: 13714 | C114: 12 | D114: 13725 | E114: 13 | F114: 13729 | K114: 0 | L114: 211
A115: 21 | B115: 13827 | C115: 12 | D115: 13834 | E115: 13 | F115: 13846 | K115: 0 | L115: 211
A116: 21 | B116: 13944 | C116: 12 | D116: 13954 | E116: 13 | F116: 13960 | K116: 0 | L116: 211
A117: 21 | B117: 14056 | C117: 21 | D117: 14058 | E117: 11 | F117: 14065 | K117: 0 | L117: 221
A118: 12 | B118: 14220 | C118: 14 | D118: 14225 | E118: 13 | F118: 14231 | K118: 0 | L118: 111
A119: 21 | B119: 14327 | C119: 12 | D119: 14339 | E119: 13 | F119: 14344 | K119: 0 | L119: 211
A120: 21 | B120: 14440 | C120: 12 | D120: 14452 | E120: 13 | F120: 14457 | K120: 0 | L120: 211
A121: 21 | B121: 14552 | C121: 12 | D121: 14559 | E121: 13 | F121: 14564 | K121: 0 | L121: 211
A122: 12 | B122: 14667 | C122: 14 | D122: 14672 | E122: 13 | F122: 14677 | K122: 0 | L122: 111
A123: 21 | B123: 14773 | C123: 12 | D123: 14780 | E123: 13 | F123: 14783 | K123: 0 | L123: 211
A124: 12 | B124: 14890 | C124: 14 | D124: 14896 | E124: 13 | F124: 14902 | K124: 0 | L124: 111
A125: 21 | B125: 14996 | C125: 12 | D125: 15005 | E125: 13 | F125: 15008 | K125: 0 | L125: 211
A126: 21 | B126: 15107 | C126: 12 | D126: 15117 | E126: 13 | F126: 15123 | K126: 0 | L126: 211
A127: 21 | B127: 15218 | C127: 12 | D127: 15230 | E127: 13 | F127: 15235 | K127: 0 | L127: 211
A128: 21 | B128: 15330 | C128: 21 | D128: 15332 | E128: 11 | F128: 15340 | K128: 0 | L128: 221
A129: 12 | B129: 15461 | C129: 14 | D129: 15467 | E129: 24 | F129: 15471 | K129: 0 | L129: 112
A130: 21 | B130: 15567 | C130: 12 | D130: 15574 | E130: 13 | F130: 15577 | K130: 0 | L130: 211
A131: 21 | B131: 15673 | C131: 12 | D131: 15685 | E131: 13 | F131: 15691 | K131: 0 | L131: 211
A132: 21 | B132: 15788 | C132: 12 | D132: 15799 | E132: 13 | F132: 15805 | K132: 0 | L132: 211
A133: 21 | B133: 15902 | C133: 12 | D133: 15917 | E133: 13 | F133: 15922 | K133: 0 | L133: 211
A134: 21 | B134: 16017 | C134: 12 | D134: 16027 | E134: 13 | F134: 16031 | K134: 0 | L134: 211
A135: 21 | B135: 16129 | C135: 12 | D135: 16135 | E135: 13 | F135: 16138 | K135: 0 | L135: 211
A136: 21 | B136: 16234 | C136: 12 | D136: 16245 | E136: 13 | F136: 16249 | K136: 0 | L136: 211
A137: 21 | B137: 16347 | C137: 12 | D137: 16354 | E137: 13 | F137: 16357 | K137: 0 | L137: 211
A138: 21 | B138: 16455 | C138: 12 | D138: 16468 | E138: 13 | F138: 16472 | K138: 0 | L138: 211
A139: 21 | B139: 16570 | C139: 12 | D139: 16584 | E139: 24 | F139: 16587 | K139: 0 | L139: 212
A140: 21 | B140: 16684 | C140: 12 | D140: 16691 | E140: 13 | F140: 16695 | K140: 0 | L140: 211
A141: 21 | B141: 16791 | C141: 12 | D141: 16798 | E141: 13 | F141: 16803 | K141: 0 | L141: 211
A142: 12 | B142: 16988 | C142: 14 | D142: 16991 | E142: 13 | F142: 16998 | K142: 0 | L142: 111
A143: 21 | B143: 17095 | C143: 12 | D143: 17101 | E143: 13 | F143: 17108 | K143: 0 | L143: 211
A144: 21 | B144: 17203 | C144: 12 | D144: 17209 | E144: 13 | F144: 17215 | K144: 0 | L144: 211
A145: 12 | B145: 17343 | C145: 14 | D145: 17347 | E145: 13 | F145: 17352 | K145: 0 | L145: 111
A146: 21 | B146: 17448 | C146: 12 | D146: 17458 | E146: 13 | F146: 17465 | K146: 0 | L146: 211
A147: 21 | B147: 17562 | C147: 12 | D147: 17578 | E147: 13 | F147: 17584 | K147: 0 | L147: 211
A148: 21 | B148: 17680 | C148: 12 | D148: 17689 | E148: 13 | F148: 17692 | K148: 0 | L148: 211
A149: 12 | B149: 17800 | C149: 14 | D149: 17806 | E149: 13 | F149: 17813 | K149: 0 | L149: 111
A150: 21 | B150: 17911 | C150: 12 | D150: 17921 | E150: 13 | F150: 17928 | K150: 0 | L150: 211
A151: 21 | B151: 18022 | C151: 12 | D151: 18033 | E151: 13 | F151: 18038 | K151: 0 | L151: 211
A152: 21 | B152: 18136 | C152: 21 | D152: 18139 | E152: 11 | F152: 18156 | K152: 0 | L152: 221
A153: 12 | B153: 18355 | C153: 14 | D153: 18365 | E153: 13 | F153: 18372 | K153: 0 | L153: 111
A154: 12 | B154: 18478 | C154: 14 | D154: 18481 | E154: 13 | F154: 18486 | K154: 0 | L154: 111
A155: 21 | B155: 18585 | C155: 12 | D155: 18596 | E155: 13 | F155: 18600 | K155: 0 | L155: 211
A156: 21 | B156: 18697 | C156: 12 | D156: 18709 | E156: 13 | F156: 18714 | K156: 0 | L156: 211
A157: 21 | B157: 18808 | C157: 21 | D157: 18810 | E157: 11 | F157: 18817 | K157: 0 | L157: 221
A158: 21 | B158: 19119 | C158: 12 | D158: 19128 | E158: 13 | F158: 19133 | K158: 0 | L158: 211
A159: 21 | B159: 19234 | C159: 12 | D159: 19244 | E159: 13 | F159: 19250 | K159: 0 | L159: 211
A160: 12 | B160: 19357 | C160: 14 | D160: 19362 | E160: 24 | F160: 19367 | K160: 0 | L160: 112
A161: 21 | B161: 19464 | C161: 12 | D161: 19476 | E161: 13 | F161: 19481 | K161: 0 | L161: 211
A162: 21 | B162: 19580 | C162: 12 | D162: 19591 | E162: 13 | F162: 19596 | K162: 0 | L162: 211
A163: 21 | B163: 19690 | C163: 21 | D163: 19694 | E163: 11 | F163: 19704 | K163: 0 | L163: 221
A164: 12 | B164: 19897 | C164: 23 | D164: 19904 | E164: 13 | F164: 19910 | K164: 0 | L164: 121
A165: 21 | B165: 20009 | C165: 12 | D165: 20018 | E165: 13 | F165: 20024 | K165: 0 | L165: 211
A166: 21 | B166: 20117 | C166: 21 | D166: 20120 | E166: 11 | F166: 20128 | K166: 0 | L166: 221
A167: 12 | B167: 20313 | C167: 14 | D167: 20317 | E167: 24 | F167: 20320 | K167: 0 | L167: 112
A168: 21 | B168: 20417 | C168: 12 | D168: 20423 | E168: 13 | F168: 20432 | K168: 0 | L168: 211
A169: 21 | B169: 20529 | C169: 12 | D169: 20540 | E169: 13 | F169: 20544 | K169: 0 | L169: 211
A170: 12 | B170: 20649 | C170: 14 | D170: 20652 | E170: 13 | F170: 20655 | K170: 0 | L170: 111
A171: 21 | B171: 20751 | C171: 12 | D171: 20761 | E171: 13 | F171: 20771 | K171: 0 | L171: 211
A172: 12 | B172: 20879 | C172: 14 | D172: 20884 | E172: 24 | F172: 20889 | K172: 0 | L172: 112
A173: 21 | B173: 21045 | C173: 12 | D173: 21055 | E173: 13 | F173: 21059 | K173: 0 | L173: 211
A174: 21 | B174: 21153 | C174: 21 | D174: 21155 | E174: 11 | F174: 21165 | K174: 0 | L174: 221
A175: 12 | B175: 21459 | C175: 14 | D175: 21470 | E175: 13 | F175: 21475 | K175: 0 | L175: 111
A176: 12 | B176: 21586 | C176: 14 | D176: 21588 | E176: 13 | F176: 21595 | K176: 0 | L176: 111
A177: 21 | B177: 21707 | C177: 21 | D177: 21712 | E177: 22 | F177: 21718 | K177: 0 | L177: 222
A178: 21 | B178: 21813 | C178: 12 | D178: 21823 | E178: 13 | F178: 21828 | K178: 0 | L178: 211
A179: 21 | B179: 21925 | C179: 12 | D179: 21933 | E179: 13 | F179: 21940 | K179: 0 | L179: 211
A180: 21 | B180: 22037 | C180: 12 | D180: 22044 | E180: 13 | F180: 22047 | K180: 0 | L180: 211
A181: 21 | B181: 22143 | C181: 12 | D181: 22152 | E181: 13 | F181: 22155 | K181: 0 | L181: 211
A182: 21 | B182: 22253 | C182: 12 | D182: 22264 | E182: 13 | F182: 22270 | K182: 0 | L182: 211
A183: 21 | B183: 22365 | C183: 12 | D183: 22377 | E183: 13 | F183: 22383 | K183: 0 | L183: 211
A184: 12 | B184: 22483 | C184: 14 | D184: 22486 | E184: 13 | F184: 22495 | K184: 0 | L184: 111
A185: 21 | B185: 22592 | C185: 12 | D185: 22601 | E185: 13 | F185: 22604 | K185: 0 | L185: 211
A186: 21 | B186: 22700 | C186: 12 | D186: 22711 | E186: 13 | F186: 22717 | K186: 0 | L186: 211
A187: 21 | B187: 23224 | C187: 21 | D187: 23229 | E187: 22 | F187: 23235 | K187: 0 | L187: 222
A188: 12 | B188: 23337 | C188: 14 | D188: 23341 | E188: 13 | F188: 23344 | K188: 0 | L188: 111
A189: 12 | B189: 23447 | C189: 23 | D189: 23456 | E189: 24 | F189: 23471 | K189: 0 | L189: 122
A190: 12 | B190: 23573 | C190: 14 | D190: 23578 | E190: 13 | F190: 23583 | K190: 0 | L190: 111
A191: 21 | B191: 23675 | C191: 12 | D191: 23684 | E191: 13 | F191: 23687 | K191: 0 | L191: 211
A192: 21 | B192: 23785 | C192: 12 | D192: 23795 | E192: 13 | F192: 23800 | K192: 0 | L192: 211
A193: 12 | B193: 23903 | C193: 14 | D193: 23907 | E193: 13 | F193: 23914 | L193: 111

Sheet !MA0791T.AYL
A1: Report for:!MA0791T.AYL
A2: Date: | B2: <date>
A3: Hen: | B3: <hen> | F3: Correct Sequence | G3: =Start!J2 -> 221 | P3: Total Sequences in Data | Q3: =4994-COUNTBLANK(L7:L5000) -> 190 | V3: Total Sequences in Block Data | W3: =COUNTA(L7:L38) -> 32 | AA3: Total Sequences in Block Data | AB3: =COUNTA(L39:L69) -> 31 | AF3: Total Sequences in Block Data | AG3: =COUNTA(L70:L101) -> 32 | AK3: Total Sequences in Block Data | AL3: =COUNTA(L102:L133) -> 32 | AP3: Total Sequences in Block Data | AQ3: =COUNTA(L134:L164) -> 31 | AU3: Total Sequences in Block Data | AV3: =COUNTA(L165:L196) -> 32
P4: Total Sequences in Summary | Q4: =SUM(O7:O14) -> 190 | V4: Total Sequences in Block Summary | W4: =SUM(U7:U14) -> 32 | AA4: Total Sequences in Block Summary | AB4: =SUM(Z7:Z14) -> 31 | AF4: Total Sequences in Block Summary | AG4: =SUM(AE7:AE14) -> 32 | AK4: Total Sequences in Block Summary | AL4: =SUM(AJ7:AJ14) -> 32 | AP4: Total Sequences in Block Summary | AQ4: =SUM(AO7:AO14) -> 31 | AU4: Total Sequences in Block Summary | AV4: =SUM(AT7:AT14) -> 32
T5: Block 1 | Y5: Block 2 | AD5: Block 3 | AI5: Block 4 | AN5: Block 5 | AS5: Block 6
A6: Sequence Component 1 | B6: Time 1 | C6: Sequence Component 2 | D6: Time 2 | E6: Sequence Component 3 | F6: Time 3 | G6: Sequence Component 4 | H6: Time 4 | I6: Sequence Component 5 | J6: Time 5 | K6: Correct? 0=No 1=Yes | L6: Sequence | N6: Frequency | P6: Relative Frequency | Q6: Variability | T6: Frequency | V6: Relative Frequency | W6: Variability | Y6: Frequency | AA6: Relative Frequency | AB6: Variability | AD6: Frequency | AF6: Relative Frequency | AG6: Variability | AI6: Frequency | AK6: Relative Frequency | AL6: Variability | AN6: Frequency | AP6: Relative Frequency | AQ6: Variability | AS6: Frequency | AU6: Relative Frequency | AV6: Variability
A7: 21 | B7: 5 | C7: 12 | D7: 19 | E7: 13 | F7: 22 | K7: 0 | L7: 211 | N7: 111 | O7: =COUNTIF($L$7:$L$500,N7) -> 19 | P7: =O7/$Q$4 -> 0.1 | Q7: =IF(P7=0,0,(P7*((LOG(P7))/LOG(2)))) -> -0.3321928095 | T7: =N7 -> 111 | U7: =COUNTIF(L7:L38,T7) -> 9 | V7: =U7/(W4-U13) -> 0.3214285714 | W7: =IF(V7=0,0,(V7*((LOG(V7))/LOG(2)))) -> -0.5263167602 | Y7: =N7 -> 111 | Z7: =COUNTIF(L39:L69,Y7) -> 3 | AA7: =Z7/(AB4-Z13) -> 0.12 | AB7: =IF(AA7=0,0,(AA7*((LOG(AA7))/LOG(2)))) -> -0.3670672427 | AD7: =N7 -> 111 | AE7: =COUNTIF(L70:L101,AD7) -> 1 | AF7: =AE7/(AG4-AE13) -> 0.03846153846 | AG7: =IF(AF7=0,0,(AF7*((LOG(AF7))/LOG(2)))) -> -0.180786143 | AI7: =N7 -> 111 | AJ7: =COUNTIF(L102:L133,AI7) -> 0 | AK7: =AJ7/(AL4-AJ13) -> 0 | AL7: =IF(AK7=0,0,(AK7*((LOG(AK7))/LOG(2)))) -> 0 | AN7: =N7 -> 111 | AO7: =COUNTIF(L134:L164,AN7) -> 3 | AP7: =AO7/(AQ4-AO13) -> 0.1111111111 | AQ7: =IF(AP7=0,0,(AP7*((LOG(AP7))/LOG(2)))) -> -0.352213889 | AS7: =N7 -> 111 | AT7: =COUNTIF(L165:L196,AS7) -> 3 | AU7: =AT7/(AV4-AT13) -> 0.1071428571 | AV7: =IF(AU7=0,0,(AU7*((LOG(AU7))/LOG(2)))) -> -0.3452563309
A8: 12 | B8: 128 | C8: 14 | D8: 132 | E8: 13 | F8: 139 | K8: 0 | L8: 111 | N8: 112 | O8: =COUNTIF($L$7:$L$500,N8) -> 12 | P8: =O8/$Q$4 -> 0.06315789474 | Q8: =IF(P8=0,0,(P8*((LOG(P8))/LOG(2)))) -> -0.2516774594 | T8: =N8 -> 112 | U8: =COUNTIF(L7:L38,T8) -> 2 | V8: =U8/(W4-U13) -> 0.07142857143 | W8: =IF(V8=0,0,(V8*((LOG(V8))/LOG(2)))) -> -0.271953923 | Y8: =N8 -> 112 | Z8: =COUNTIF(L39:L69,Y8) -> 0 | AA8: =Z8/(AB4-Z13) -> 0 | AB8: =IF(AA8=0,0,(AA8*((LOG(AA8))/LOG(2)))) -> 0 | AD8: =N8 -> 112 | AE8: =COUNTIF(L70:L101,AD8) -> 1 | AF8: =AE8/(AG4-AE13) -> 0.03846153846 | AG8: =IF(AF8=0,0,(AF8*((LOG(AF8))/LOG(2)))) -> -0.180786143 | AI8: =N8 -> 112 | AJ8: =COUNTIF(L102:L133,AI8) -> 4 | AK8: =AJ8/(AL4-AJ13) -> 0.1481481481 | AL8: =IF(AK8=0,0,(AK8*((LOG(AK8))/LOG(2)))) -> -0.4081314818 | AN8: =N8 -> 112 | AO8: =COUNTIF(L134:L164,AN8) -> 2 | AP8: =AO8/(AQ4-AO13) -> 0.07407407407 | AQ8: =IF(AP8=0,0,(AP8*((LOG(AP8))/LOG(2)))) -> -0.278139815 | AS8: =N8 -> 112 | AT8: =COUNTIF(L165:L196,AS8) -> 3 | AU8: =AT8/(AV4-AT13) -> 0.1071428571 | AV8: =IF(AU8=0,0,(AU8*((LOG(AU8))/LOG(2)))) -> -0.3452563309
A9: 12 | B9: 346 | C9: 23 | D9: 348 | E9: 13 | F9: 351 | K9: 0 | L9: 121 | N9: 121 | O9: =COUNTIF($L$7:$L$500,N9) -> 2 | P9: =O9/$Q$4 -> 0.01052631579 | Q9: =IF(P9=0,0,(P9*((LOG(P9))/LOG(2)))) -> -0.06915637482 | T9: =N9 -> 121 | U9: =COUNTIF(L7:L38,T9) -> 1 | V9: =U9/(W4-U13) -> 0.03571428571 | W9: =IF(V9=0,0,(V9*((LOG(V9))/LOG(2)))) -> -0.1716912472 | Y9: =N9 -> 121 | Z9: =COUNTIF(L39:L69,Y9) -> 1 | AA9: =Z9/(AB4-Z13) -> 0.04 | AB9: =IF(AA9=0,0,(AA9*((LOG(AA9))/LOG(2)))) -> -0.1857542476 | AD9: =N9 -> 121 | AE9: =COUNTIF(L70:L101,AD9) -> 0 | AF9: =AE9/(AG4-AE13) -> 0 | AG9: =IF(AF9=0,0,(AF9*((LOG(AF9))/LOG(2)))) -> 0 | AI9: =N9 -> 121 | AJ9: =COUNTIF(L102:L133,AI9) -> 0 | AK9: =AJ9/(AL4-AJ13) -> 0 | AL9: =IF(AK9=0,0,(AK9*((LOG(AK9))/LOG(2)))) -> 0 | AN9: =N9 -> 121 | AO9: =COUNTIF(L134:L164,AN9) -> 0 | AP9: =AO9/(AQ4-AO13) -> 0 | AQ9: =IF(AP9=0,0,(AP9*((LOG(AP9))/LOG(2)))) -> 0 | AS9: =N9 -> 121 | AT9: =COUNTIF(L165:L196,AS9) -> 0 | AU9: =AT9/(AV4-AT13) -> 0 | AV9: =IF(AU9=0,0,(AU9*((LOG(AU9))/LOG(2)))) -> 0
A10: 12 | B10: 456 | C10: 14 | D10: 461 | E10: 13 | F10: 468 | K10: 0 | L10: 111 | N10: 122 | O10: =COUNTIF($L$7:$L$500,N10) -> 4 | P10: =O10/$Q$4 -> 0.02105263158 | Q10: =IF(P10=0,0,(P10*((LOG(P10))/LOG(2)))) -> -0.1172601181 | T10: =N10 -> 122 | U10: =COUNTIF(L7:L38,T10) -> 0 | V10: =U10/(W4-U13) -> 0 | W10: =IF(V10=0,0,(V10*((LOG(V10))/LOG(2)))) -> 0 | Y10: =N10 -> 122 | Z10: =COUNTIF(L39:L69,Y10) -> 1 | AA10: =Z10/(AB4-Z13) -> 0.04 | AB10: =IF(AA10=0,0,(AA10*((LOG(AA10))/LOG(2)))) -> -0.1857542476 | AD10: =N10 -> 122 | AE10: =COUNTIF(L70:L101,AD10) -> 0 | AF10: =AE10/(AG4-AE13) -> 0 | AG10: =IF(AF10=0,0,(AF10*((LOG(AF10))/LOG(2)))) -> 0 | AI10: =N10 -> 122 | AJ10: =COUNTIF(L102:L133,AI10) -> 1 | AK10: =AJ10/(AL4-AJ13) -> 0.03703703704 | AL10: =IF(AK10=0,0,(AK10*((LOG(AK10))/LOG(2)))) -> -0.1761069445 | AN10: =N10 -> 122 | AO10: =COUNTIF(L134:L164,AN10) -> 0 | AP10: =AO10/(AQ4-AO13) -> 0 | AQ10: =IF(AP10=0,0,(AP10*((LOG(AP10))/LOG(2)))) -> 0 | AS10: =N10 -> 122 | AT10: =COUNTIF(L165:L196,AS10) -> 2 | AU10: =AT10/(AV4-AT13) -> 0.07142857143 | AV10: =IF(AU10=0,0,(AU10*((LOG(AU10))/LOG(2)))) -> -0.271953923
A11: 12 | B11: 572 | C11: 14 | D11: 576 | E11: 13 | F11: 581 | K11: 0 | L11: 111 | N11: 211 | O11: =COUNTIF($L$7:$L$500,N11) -> 96 | P11: =O11/$Q$4 -> 0.5052631579 | Q11: =IF(P11=0,0,(P11*((LOG(P11))/LOG(2)))) -> -0.4976302017 | T11: =N11 -> 211 | U11: =COUNTIF(L7:L38,T11) -> 14 | V11: =U11/(W4-U13) -> 0.5 | W11: =IF(V11=0,0,(V11*((LOG(V11))/LOG(2)))) -> -0.5 | Y11: =N11 -> 211 | Z11: =COUNTIF(L39:L69,Y11) -> 17 | AA11: =Z11/(AB4-Z13) -> 0.68 | AB11: =IF(AA11=0,0,(AA11*((LOG(AA11))/LOG(2)))) -> -0.378347477 | AD11: =N11 -> 211 | AE11: =COUNTIF(L70:L101,AD11) -> 22 | AF11: =AE11/(AG4-AE13) -> 0.8461538462 | AG11: =IF(AF11=0,0,(AF11*((LOG(AF11))/LOG(2)))) -> -0.2039299303 | AI11: =N11 -> 211 | AJ11: =COUNTIF(L102:L133,AI11) -> 18 | AK11: =AJ11/(AL4-AJ13) -> 0.6666666667 | AL11: =IF(AK11=0,0,(AK11*((LOG(AK11))/LOG(2)))) -> -0.3899750005 | AN11: =N11 -> 211 | AO11: =COUNTIF(L134:L164,AN11) -> 15 | AP11: =AO11/(AQ4-AO13) -> 0.5555555556 | AQ11: =IF(AP11=0,0,(AP11*((LOG(AP11))/LOG(2)))) -> -0.4711093925 | AS11: =N11 -> 211 | AT11: =COUNTIF(L165:L196,AS11) -> 10 | AU11: =AT11/(AV4-AT13) -> 0.3571428571 | AV11: =IF(AU11=0,0,(AU11*((LOG(AU11))/LOG(2)))) -> -0.5305095811
A12: 21 | B12: 680 | C12: 12 | D12: 692 | E12: 13 | F12: 697 | K12: 0 | L12: 211 | N12: 212 | O12: =COUNTIF($L$7:$L$500,N12) -> 18 | P12: =O12/$Q$4 -> 0.09473684211 | Q12: =IF(P12=0,0,(P12*((LOG(P12))/LOG(2)))) -> -0.3220986891 | T12: =N12 -> 212 | U12: =COUNTIF(L7:L38,T12) -> 0 | V12: =U12/(W4-U13) -> 0 | W12: =IF(V12=0,0,(V12*((LOG(V12))/LOG(2)))) -> 0 | Y12: =N12 -> 212 | Z12: =COUNTIF(L39:L69,Y12) -> 0 | AA12: =Z12/(AB4-Z13) -> 0 | AB12: =IF(AA12=0,0,(AA12*((LOG(AA12))/LOG(2)))) -> 0 | AD12: =N12 -> 212 | AE12: =COUNTIF(L70:L101,AD12) -> 1 | AF12: =AE12/(AG4-AE13) -> 0.03846153846 | AG12: =IF(AF12=0,0,(AF12*((LOG(AF12))/LOG(2)))) -> -0.180786143 | AI12: =N12 -> 212 | AJ12: =COUNTIF(L102:L133,AI12) -> 2 | AK12: =AJ12/(AL4-AJ13) -> 0.07407407407 | AL12: =IF(AK12=0,0,(AK12*((LOG(AK12))/LOG(2)))) -> -0.278139815 | AN12: =N12 -> 212 | AO12: =COUNTIF(L134:L164,AN12) -> 5 | AP12: =AO12/(AQ4-AO13) -> 0.1851851852 | AQ12: =IF(AP12=0,0,(AP12*((LOG(AP12))/LOG(2)))) -> -0.4505480384 | AS12: =N12 -> 212 | AT12: =COUNTIF(L165:L196,AS12) -> 10 | AU12: =AT12/(AV4-AT13) -> 0.3571428571 | AV12: =IF(AU12=0,0,(AU12*((LOG(AU12))/LOG(2)))) -> -0.5305095811
A13: 12 | B13: 805 | C13: 14 | D13: 815 | E13: 13 | F13: 821 | K13: 0 | L13: 111 | N13: 221 | O13: =COUNTIF($L$7:$L$500,N13) -> 29 | P13: =O13/$Q$4 -> 0.1526315789 | Q13: =IF(P13=0,0,(P13*((LOG(P13))/LOG(2)))) -> -0.4139177041 | T13: =N13 -> 221 | U13: =COUNTIF(L7:L38,T13) -> 4 | Y13: =N13 -> 221 | Z13: =COUNTIF(L39:L69,Y13) -> 6 | AD13: =N13 -> 221 | AE13: =COUNTIF(L70:L101,AD13) -> 6 | AI13: =N13 -> 221 | AJ13: =COUNTIF(L102:L133,AI13) -> 5 | AN13: =N13 -> 221 | AO13: =COUNTIF(L134:L164,AN13) -> 4 | AS13: =N13 -> 221 | AT13: =COUNTIF(L165:L196,AS13) -> 4
A14: 12 | B14: 930 | C14: 14 | D14: 936 | E14: 13 | F14: 942 | K14: 0 | L14: 111 | N14: 222 | O14: =COUNTIF($L$7:$L$500,N14) -> 10 | P14: =O14/$Q$4 -> 0.05263157895 | Q14: =IF(P14=0,0,(P14*((LOG(P14))/LOG(2)))) -> -0.2235751323 | T14: =N14 -> 222 | U14: =COUNTIF(L7:L38,T14) -> 2 | V14: =U14/(W4-U13) -> 0.07142857143 | W14: =IF(V14=0,0,(V14*((LOG(V14))/LOG(2)))) -> -0.271953923 | Y14: =N14 -> 222 | Z14: =COUNTIF(L39:L69,Y14) -> 3 | AA14: =Z14/(AB4-Z13) -> 0.12 | AB14: =IF(AA14=0,0,(AA14*((LOG(AA14))/LOG(2)))) -> -0.3670672427 | AD14: =N14 -> 222 | AE14: =COUNTIF(L70:L101,AD14) -> 1 | AF14: =AE14/(AG4-AE13) -> 0.03846153846 | AG14: =IF(AF14=0,0,(AF14*((LOG(AF14))/LOG(2)))) -> -0.180786143 | AI14: =N14 -> 222 | AJ14: =COUNTIF(L102:L133,AI14) -> 2 | AK14: =AJ14/(AL4-AJ13) -> 0.07407407407 | AL14: =IF(AK14=0,0,(AK14*((LOG(AK14))/LOG(2)))) -> -0.278139815 | AN14: =N14 -> 222 | AO14: =COUNTIF(L134:L164,AN14) -> 2 | AP14: =AO14/(AQ4-AO13) -> 0.07407407407 | AQ14: =IF(AP14=0,0,(AP14*((LOG(AP14))/LOG(2)))) -> -0.278139815 | AS14: =N14 -> 222 | AT14: =COUNTIF(L165:L196,AS14) -> 0 | AU14: =AT14/(AV4-AT13) -> 0 | AV14: =IF(AU14=0,0,(AU14*((LOG(AU14))/LOG(2)))) -> 0
A15: 21 | B15: 1042 | C15: 12 | D15: 1050 | E15: 13 | F15: 1053 | K15: 0 | L15: 211 | P15: =SUM(P7:P14) -> 1 | Q15: =-SUM(Q7:Q14) -> 2.227508489 | V15: =SUM(V7:V14) -> 1 | W15: =-SUM(W7:W14) -> 1.741915853 | AA15: =SUM(AA7:AA14) -> 1 | AB15: =-SUM(AB7:AB14) -> 1.483990458 | AF15: =SUM(AF7:AF14) -> 1 | AG15: =-SUM(AG7:AG14) -> 0.9270745024 | AK15: =SUM(AK7:AK14) -> 1 | AL15: =-SUM(AL7:AL14) -> 1.530493057 | AP15: =SUM(AP7:AP14) -> 1 | AQ15: =-SUM(AQ7:AQ14) -> 1.83015095 | AU15: =SUM(AU7:AU14) -> 1 | AV15: =-SUM(AV7:AV14) -> 2.023485747
A16: 21 | B16: 1148 | C16: 21 | D16: 1150 | E16: 22 | F16: 1152 | K16: 0 | L16: 222 | P16: U= | Q16: =Q15/(LOG(Q4)/LOG(2)) -> 0.2942603669 | V16: U1= | W16: =W15/(LOG(W4)/LOG(2)) -> 0.3483831707 | AA16: U2= | AB16: =AB15/(LOG(AB4)/LOG(2)) -> 0.2995421184 | AF16: U3= | AG16: =AG15/(LOG(AG4)/LOG(2)) -> 0.1854149005 | AK16: U4= | AL16: =AL15/(LOG(AL4)/LOG(2)) -> 0.3060986114 | AP16: U5= | AQ16: =AQ15/(LOG(AQ4)/LOG(2)) -> 0.3694142975 | AU16: U6= | AV16: =AV15/(LOG(AV4)/LOG(2)) -> 0.4046971494
A17: 12 | B17: 1264 | C17: 14 | D17: 1270 | E17: 13 | F17: 1275 | K17: 0 | L17: 111
A18: 12 | B18: 1382 | C18: 14 | D18: 1391 | E18: 24 | F18: 1400 | K18: 0 | L18: 112
A19: 12 | B19: 1522 | C19: 14 | D19: 1536 | E19: 13 | F19: 1540 | K19: 0 | L19: 111 | N19: Total Target Seq
A20: 21 | B20: 1636 | C20: 12 | D20: 1647 | E20: 13 | F20: 1652 | K20: 0 | L20: 211 | N20: =COUNTIF(L7:L196,G3) -> 29 | P20: 32 | Q20: 31 | R20: 32 | S20: 32 | T20: 31 | U20: 32
A21: 21 | B21: 1752 | C21: 12 | D21: 1767 | E21: 13 | F21: 1772 | K21: 0 | L21: 211 | P21: % of reinforcement given in 6 equal intervals based on number of trials
A22: 21 | B22: 1868 | C22: 12 | D22: 1880 | E22: 13 | F22: 1883 | K22: 0 | L22: 211 | P22: %_1 | Q22: %_2 | R22: %_3 | S22: %_4 | T22: %_5 | U22: %_6
A23: 21 | B23: 1980 | C23: 21 | D23: 1983 | E23: 11 | F23: 1995 | K23: 0 | L23: 221 | O23: target sequence | P23: =$G$3 -> 221 | Q23: =$G$3 -> 221 | R23: =$G$3 -> 221 | S23: =$G$3 -> 221 | T23: =$G$3 -> 221 | U23: =$G$3 -> 221
A24: 12 | B24: 2127 | C24: 14 | D24: 2131 | E24: 13 | F24: 2136 | K24: 0 | L24: 111 | O24: total reinforcement | P24: =U13 -> 4 | Q24: =Z13 -> 6 | R24: =AE13 -> 6 | S24: =AJ13 -> 5 | T24: =AO13 -> 4 | U24: =AT13 -> 4
A25: 21 | B25: 2233 | C25: 21 | D25: 2235 | E25: 11 | F25: 2248 | K25: 0 | L25: 221 | O25: % target
A26: 12 | B26: 2382 | C26: 14 | D26: 2387 | E26: 13 | F26: 2392 | K26: 0 | L26: 111 | O26: CCRF
A27: 21 | B27: 2489 | C27: 12 | D27: 2500 | E27: 13 | F27: 2505 | K27: 0 | L27: 211 | O27: % CCRf
A28: 21 | B28: 2604 | C28: 12 | D28: 2612 | E28: 13 | F28: 2620 | K28: 0 | L28: 211 | O28: average response rate | P28: =F38/P20 -> 119.46875 | Q28: =(F69-F38)/Q20 -> 131.7419355 | R28: =(F101-F69)/R20 -> 123.625 | S28: =(F133-F101)/S20 -> 115.65625 | T28: =(F164-F133)/T20 -> 132.7096774 | U28: =(F196-F164)/U20 -> 134.625
A29: 21 | B29: 2716 | C29: 12 | D29: 2724 | E29: 13 | F29: 2727 | K29: 0 | L29: 211
A30: 21 | B30: 2823 | C30: 21 | D30: 2840 | E30: 22 | F30: 2860 | K30: 0 | L30: 222
A31: 21 | B31: 2956 | C31: 21 | D31: 2959 | E31: 11 | F31: 2971 | K31: 0 | L31: 221
A32: 21 | B32: 3064 | C32: 21 | D32: 3068 | E32: 11 | F32: 3076 | K32: 0 | L32: 221
A33: 21 | B33: 3171 | C33: 12 | D33: 3184 | E33: 13 | F33: 3187 | K33: 0 | L33: 211
A34: 21 | B34: 3284 | C34: 12 | D34: 3292 | E34: 13 | F34: 3296 | K34: 0 | L34: 211
A35: 12 | B35: 3459 | C35: 14 | D35: 3464 | E35: 24 | F35: 3468 | K35: 0 | L35: 112
A36: 21 | B36: 3589 | C36: 12 | D36: 3599 | E36: 13 | F36: 3604 | K36: 0 | L36: 211
A37: 21 | B37: 3701 | C37: 12 | D37: 3708 | E37: 13 | F37: 3711 | K37: 0 | L37: 211
A38: 21 | B38: 3806 | C38: 12 | D38: 3817 | E38: 13 | F38: 3823 | K38: 0 | L38: 211
A39: 21 | B39: 3921 | C39: 12 | D39: 3938 | E39: 13 | F39: 3943 | K39: 0 | L39: 211
A40: 21 | B40: 4224 | C40: 21 | D40: 4228 | E40: 22 | F40: 4231 | K40: 0 | L40: 222
A41: 12 | B41: 4341 | C41: 14 | D41: 4346 | E41: 13 | F41: 4352 | K41: 0 | L41: 111
A42: 21 | B42: 4449 | C42: 12 | D42: 4458 | E42: 13 | F42: 4464 | K42: 0 | L42: 211
A43: 12 | B43: 4577 | C43: 14 | D43: 4582 | E43: 13 | F43: 4588 | K43: 0 | L43: 111
A44: 21 | B44: 4683 | C44: 12 | D44: 4693 | E44: 13 | F44: 4702 | K44: 0 | L44: 211
A45: 21 | B45: 4795 | C45: 21 | D45: 4799 | E45: 22 | F45: 4801 | K45: 0 | L45: 222
A46: 21 | B46: 4900 | C46: 12 | D46: 4909 | E46: 13 | F46: 4912 | K46: 0 | L46: 211
A47: 21 | B47: 5009 | C47: 12 | D47: 5018 | E47: 13 | F47: 5025 | K47: 0 | L47: 211
A48: 21 | B48: 5117 | C48: 21 | D48: 5122 | E48: 11 | F48: 5134 | K48: 0 | L48: 221
A49: 21 | B49: 5403 | C49: 12 | D49: 5411 | E49: 13 | F49: 5416 | K49: 0 | L49: 211
A50: 21 | B50: 5521 | C50: 12 | D50: 5536 | E50: 13 | F50: 5541 | K50: 0 | L50: 211
A51: 21 | B51: 5637 | C51: 21 | D51: 5640 | E51: 11 | F51: 5647 | K51: 0 | L51: 221
A52: 21 | B52: 5780 | C52: 12 | D52: 5789 | E52: 13 | F52: 5794 | K52: 0 | L52: 211
A53: 21 | B53: 5890 | C53: 12 | D53: 5897 | E53: 13 | F53: 5900 | K53: 0 | L53: 211
A54: 21 | B54: 5995 | C54: 21 | D54: 6006 | E54: 22 | F54: 6010 | K54: 0 | L54: 222
A55: 21 | B55: 6107 | C55: 12 | D55: 6116 | E55: 13 | F55: 6121 | K55: 0 | L55: 211
A56: 21 | B56: 6218 | C56: 12 | D56: 6230 | E56: 13 | F56: 6234 | K56: 0 | L56: 211
A57: 21 | B57: 6326 | C57: 21 | D57: 6331 | E57: 11 | F57: 6343 | K57: 0 | L57: 221
A58: 12 | B58: 6455 | C58: 23 | D58: 6462 | E58: 24 | F58: 6476 | K58: 0 | L58: 122
A59: 21 | B59: 6572 | C59: 21 | D59: 6574 | E59: 11 | F59: 6587 | K59: 0 | L59: 221
A60: 12 | B60: 6879 | C60: 14 | D60: 6885 | E60: 13 | F60: 6890 | K60: 0 | L60: 111
A61: 12 | B61: 7003 | C61: 23 | D61: 7007 | E61: 13 | F61: 7014 | K61: 0 | L61: 121
A62: 21 | B62: 7111 | C62: 12 | D62: 7122 | E62: 13 | F62: 7128 | K62: 0 | L62: 211
A63: 21 | B63: 7223 | C63: 21 | D63: 7227 | E63: 11 | F63: 7239 | K63: 0 | L63: 221
A64: 21 | B64: 7342 | C64: 12 | D64: 7353 | E64: 13 | F64: 7355 | K64: 0 | L64: 211
A65: 21 | B65: 7452 | C65: 12 | D65: 7460 | E65: 13 | F65: 7463 | K65: 0 | L65: 211
A66: 21 | B66: 7558 | C66: 12 | D66: 7567 | E66: 13 | F66: 7570 | K66: 0 | L66: 211
A67: 21 | B67: 7664 | C67: 12 | D67: 7675 | E67: 13 | F67: 7677 | K67: 0 | L67: 211
A68: 21 | B68: 7772 | C68: 12 | D68: 7786 | E68: 13 | F68: 7797 | K68: 0 | L68: 211
A69: 21 | B69: 7892 | C69: 21 | D69: 7896 | E69: 11 | F69: 7907 | K69: 0 | L69: 221
A70: 21 | B70: 8076 | C70: 12 | D70: 8087 | E70: 13 | F70: 8102 | K70: 0 | L70: 211
A71: 21 | B71: 8199 | C71: 12 | D71: 8210 | E71: 13 | F71: 8215 | K71: 0 | L71: 211
A72: 21 | B72: 8308 | C72: 21 | D72: 8311 | E72: 11 | F72: 8319 | K72: 0 | L72: 221
A73: 21 | B73: 8492 | C73: 12 | D73: 8510 | E73: 13 | F73: 8515 | K73: 0 | L73: 211
A74: 21 | B74: 8607 | C74: 21 | D74: 8609 | E74: 11 | F74: 8616 | K74: 0 | L74: 221
A75: 21 | B75: 8745 | C75: 21 | D75: 8748 | E75: 11 | F75: 8759 | K75: 0 | L75: 221
A76: 21 | B76: 8872 | C76: 12 | D76: 8879 | E76: 13 | F76: 8885 | K76: 0 | L76: 211
A77: 21 | B77: 8981 | C77: 12 | D77: 8989 | E77: 13 | F77: 8994 | K77: 0 | L77: 211
A78: 21 | B78: 9089 | C78: 21 | D78: 9092 | E78: 11 | F78: 9098 | K78: 0 | L78: 221
A79: 21 | B79: 9234 | C79: 12 | D79: 9241 | E79: 13 | F79: 9247 | K79: 0 | L79: 211
A80: 12 | B80: 9347 | C80: 14 | D80: 9352 | E80: 13 | F80: 9357 | K80: 0 | L80: 111
A81: 21 | B81: 9455 | C81: 21 | D81: 9462 | E81: 22 | F81: 9466 | K81: 0 | L81: 222
A82: 21 | B82: 9563 | C82: 12 | D82: 9571 | E82: 13 | F82: 9574 | K82: 0 | L82: 211
A83: 21 | B83: 9670 | C83: 12 | D83: 9682 | E83: 13 | F83: 9688 | K83: 0 | L83: 211
A84: 21 | B84: 9783 | C84: 12 | D84: 9792 | E84: 13 | F84: 9798 | K84: 0 | L84: 211
A85: 21 | B85: 9892 | C85: 12 | D85: 9906 | E85: 13 | F85: 9912 | K85: 0 | L85: 211
A86: 21 | B86: 10007 | C86: 12 | D86: 10016 | E86: 13 | F86: 10019 | K86: 0 | L86: 211
A87: 21 | B87: 10115 | C87: 12 | D87: 10122 | E87: 13 | F87: 10127 | K87: 0 | L87: 211
A88: 21 | B88: 10222 | C88: 21 | D88: 10226 | E88: 11 | F88: 10233 | K88: 0 | L88: 221
A89: 21 | B89: 10486 | C89: 12 | D89: 10494 | E89: 13 | F89: 10499 | K89: 0 | L89: 211
A90: 21 | B90: 10592 | C90: 12 | D90: 10602 | E90: 13 | F90: 10607 | K90: 0 | L90: 211
A91: 21 | B91: 10704 | C91: 12 | D91: 10714 | E91: 13 | F91: 10717 | K91: 0 | L91: 211
A92: 21 | B92: 10813 | C92: 12 | D92: 10821 | E92: 13 | F92: 10826 | K92: 0 | L92: 211
A93: 12 | B93: 10927 | C93: 14 | D93: 10933 | E93: 24 | F93: 10937 | K93: 0 | L93: 112
A94: 21 | B94: 11032 | C94: 12 | D94: 11043 | E94: 13 | F94: 11047 | K94: 0 | L94: 211
A95: 21 | B95: 11144 | C95: 12 | D95: 11152 | E95: 13 | F95: 11159 | K95: 0 | L95: 211
A96: 21 | B96: 11259 | C96: 12 | D96: 11267 | E96: 13 | F96: 11272 | K96: 0 | L96: 211
A97: 21 | B97: 11367 | C97: 12 | D97: 11381 | E97: 13 | F97: 11386 | K97: 0 | L97: 211
A98: 21 | B98: 11487 | C98: 12 | D98: 11501 | E98: 24 | F98: 11505 | K98: 0 | L98: 212
A99: 21 | B99: 11600 | C99: 21 | D99: 11602 | E99: 11 | F99: 11612 | K99: 0 | L99: 221
A100: 21 | B100: 11740 | C100: 12 | D100: 11749 | E100: 13 | F100: 11752 | K100: 0 | L100: 211
A101: 21 | B101: 11844 | C101: 12 | D101: 11856 | E101: 13 | F101: 11863 | K101: 0 | L101: 211
A102: 21 | B102: 11959 | C102: 12 | D102: 11971 | E102: 13 | F102: 11976 | K102: 0 | L102: 211
A103: 21 | B103: 12072 | C103: 21 | D103: 12074 | E103: 11 | F103: 12083 | K103: 0 | L103: 221
A104: 21 | B104: 12234 | C104: 12 | D104: 12242 | E104: 13 | F104: 12245 | K104: 0 | L104: 211
A105: 12 | B105: 12343 | C105: 23 | D105: 12349 | E105: 24 | F105: 12355 | K105: 0 | L105: 122
A106: 21 | B106: 12453 | C106: 12 | D106: 12461 | E106: 13 | F106: 12464 | K106: 0 | L106: 211
A107: 21 | B107: 12560 | C107: 12 | D107: 12569 | E107: 13 | F107: 12575 | K107: 0 | L107: 211
A108: 21 | B108: 12672 | C108: 12 | D108: 12678 | E108: 13 | F108: 12683 | K108: 0 | L108: 211
A109: 21 | B109: 12780 | C109: 21 | D109: 12781 | E109: 22 | F109: 12785 | K109: 0 | L109: 222
A110: 21 | B110: 12877 | C110: 21 | D110: 12884 | E110: 11 | F110: 12891 | K110: 0 | L110: 221
A111: 21 | B111: 13007 | C111: 21 | D111: 13012 | E111: 11 | F111: 13021 | K111: 0 | L111: 221
A112: 12 | B112: 13211 | C112: 14 | D112: 13216 | E112: 24 | F112: 13218 | K112: 0 | L112: 112
A113: 21 | B113: 13312 | C113: 12 | D113: 13321 | E113: 13 | F113: 13324 | K113: 0 | L113: 211
A114: 21 | B114: 13420 | C114: 12 | D114: 13430 | E114: 13 | F114: 13437 | K114: 0 | L114: 211
A115: 21 | B115: 13532 | C115: 12 | D115: 13544 | E115: 13 | F115: 13550 | K115: 0 | L115: 211
A116: 21 | B116: 13648 | C116: 12 | D116: 13660 | E116: 13 | F116: 13665 | K116: 0 | L116: 211
A117: 21 | B117: 13759 | C117: 21 | D117: 13761 | E117: 11 | F117: 13769 | K117: 0 | L117: 221
A118: 21 | B118: 13871 | C118: 12 | D118: 13878 | E118: 13 | F118: 13881 | K118: 0 | L118: 211
A119: 21 | B119: 13980 | C119: 12 | D119: 13993 | E119: 24 | F119: 13997 | K119: 0 | L119: 212
A120: 21 | B120: 14094 | C120: 21 | D120: 14096 | E120: 11 | F120: 14103 | K120: 0 | L120: 221
A121: 21 | B121: 14194 | C121: 12 | D121: 14205 | E121: 13 | F121: 14210 | K121: 0 | L121: 211
A122: 12 | B122: 14315 | C122: 14 | D122: 14322 | E122: 24 | F122: 14328 | K122: 0 | L122: 112
A123: 12 | B123: 14430 | C123: 14 | D123: 14436 | E123: 24 | F123: 14440 | K123: 0 | L123: 112
A124: 21 | B124: 14534 | C124: 12 | D124: 14547 | E124: 13 | F124: 14553 | K124: 0 | L124: 211
A125: 21 | B125: 14650 | C125: 12 | D125: 14660 | E125: 13 | F125: 14666 | K125: 0 | L125: 211
A126: 21 | B126: 14760 | C126: 12 | D126: 14772 | E126: 13 | F126: 14778 | K126: 0 | L126: 211
A127: 12 | B127: 14878 | C127: 14 | D127: 14885 | E127: 24 | F127: 14908 | K127: 0 | L127: 112
A128: 21 | B128: 15003 | C128: 12 | D128: 15012 | E128: 13 | F128: 15020 | K128: 0 | L128: 211
A129: 21 | B129: 15116 | C129: 12 | D129: 15128 | E129: 13 | F129: 15135 | K129: 0 | L129: 211
A130: 21 | B130: 15227 | C130: 12 | D130: 15237 | E130: 13 | F130: 15243 | K130: 0 | L130: 211
A131: 21 | B131: 15340 | C131: 12 | D131: 15350 | E131: 24 | F131: 15355 | K131: 0 | L131: 212
A132: 21 | B132: 15451 | C132: 21 | D132: 15454 | E132: 22 | F132: 15460 | K132: 0 | L132: 222
A133: 21 | B133: 15553 | C133: 12 | D133: 15561 | E133: 13 | F133: 15564 | K133: 0 | L133: 211
A134: 21 | B134: 15660 | C134: 21 | D134: 15664 | E134: 11 | F134: 15677 | K134: 0 | L134: 221
A135: 21 | B135: 15791 | C135: 21 | D135: 15793 | E135: 11 | F135: 15803 | K135: 0 | L135: 221
A136: 12 | B136: 16236 | C136: 14 | D136: 16242 | E136: 24 | F136: 16246 | K136: 0 | L136: 112
A137: 21 | B137: 16345 | C137: 12 | D137: 16352 | E137: 13 | F137: 16355 | K137: 0 | L137: 211
A138: 21 | B138: 16452 | C138: 12 | D138: 16464 | E138: 24 | F138: 16469 | K138: 0 | L138: 212
A139: 21 | B139: 16563 | C139: 12 | D139: 16570 | E139: 13 | F139: 16573 | K139: 0 | L139: 211
A140: 21 | B140: 16671 | C140: 12 | D140: 16678 | E140: 13 | F140: 16684 | K140: 0 | L140: 211
A141: 21 | B141: 16778 | C141: 12 | D141: 16787 | E141: 24 | F141: 16796 | K141: 0 | L141: 212
A142: 21 | B142: 16894 | C142: 12 | D142: 16900 | E142: 13 | F142: 16906 | K142: 0 | L142: 211
A143: 21 | B143: 17001 | C143: 12 | D143: 17014 | E143: 24 | F143: 17028 | K143: 0 | L143: 212
A144: 21 | B144: 17120 | C144: 12 | D144: 17133 | E144: 13 | F144: 17139 | K144: 0 | L144: 211
A145: 21 | B145: 17233 | C145: 12 | D145: 17243 | E145: 24 | F145: 17247 | K145: 0 | L145: 212
A146: 21 | B146: 17344 | C146: 12 | D146: 17352 | E146: 13 | F146: 17358 | K146: 0 | L146: 211
A147: 21 | B147: 17454 | C147: 12 | D147: 17467 | E147: 24 | F147: 17480 | K147: 0 | L147: 212
A148: 12 | B148: 17581 | C148: 14 | D148: 17585 | E148: 24 | F148: 17589 | K148: 0 | L148: 112
A149: 21 | B149: 17684 | C149: 12 | D149: 17696 | E149: 13 | F149: 17703 | K149: 0 | L149: 211
A150: 21 | B150: 17795 | C150: 21 | D150: 17801 | E150: 11 | F150: 17816 | K150: 0 | L150: 221
A151: 12 | B151: 18049 | C151: 14 | D151: 18055 | E151: 13 | F151: 18061 | K151: 0 | L151: 111
A152: 21 | B152: 18157 | C152: 21 | D152: 18159 | E152: 22 | F152: 18161 | K152: 0 | L152: 222
A153: 21 | B153: 18257 | C153: 12 | D153: 18272 | E153: 13 | F153: 18277 | K153: 0 | L153: 211
A154: 12 | B154: 18381 | C154: 14 | D154: 18384 | E154: 13 | F154: 18392 | K154: 0 | L154: 111
A155: 12 | B155: 18491 | C155: 14 | D155: 18496 | E155: 13 | F155: 18502 | K155: 0 | L155: 111
A156: 21 | B156: 18598 | C156: 12 | D156: 18609 | E156: 13 | F156: 18616 | K156: 0 | L156: 211
A157: 21 | B157: 18712 | C157: 12 | D157: 18725 | E157: 13 | F157: 18732 | K157: 0 | L157: 211
A158: 21 | B158: 18829 | C158: 12 | D158: 18840 | E158: 13 | F158: 18846 | K158: 0 | L158: 211
A159: 21 | B159: 18944 | C159: 12 | D159: 18958 | E159: 13 | F159: 18965 | K159: 0 | L159: 211
A160: 21 | B160: 19060 | C160: 12 | D160: 19074 | E160: 13 | F160: 19083 | K160: 0 | L160: 211
A161: 21 | B161: 19181 | C161: 12 | D161: 19190 | E161: 13 | F161: 19197 | K161: 0 | L161: 211
A162: 21 | B162: 19295 | C162: 21 | D162: 19303 | E162: 22 | F162: 19313 | K162: 0 | L162: 222
A163: 21 | B163: 19408 | C163: 21 | D163: 19410 | E163: 11 | F163: 19420 | K163: 0 | L163: 221
A164: 21 | B164: 19661 | C164: 12 | D164: 19672 | E164: 13 | F164: 19678 | K164: 0 | L164: 211
A165: 21 | B165: 19775 | C165: 12 | D165: 19786 | E165: 13 | F165: 19792 | K165: 0 | L165: 211
A166: 21 | B166: 19888 | C166: 21 | D166: 19891 | E166: 11 | F166: 19903 | K166: 0 | L166: 221
A167: 12 | B167: 20125 | C167: 23 | D167: 20133 | E167: 24 | F167: 20145 | K167: 0 | L167: 122
A168: 12 | B168: 20247 | C168: 14 | D168: 20253 | E168: 24 | F168: 20256 | K168: 0 | L168: 112
A169: 21 | B169: 20351 | C169: 12 | D169: 20361 | E169: 24 | F169: 20387 | K169: 0 | L169: 212
A170: 12 | B170: 20491 | C170: 14 | D170: 20496 | E170: 24 | F170: 20501 | K170: 0 | L170: 112
A171: 21 | B171: 20594 | C171: 12 | D171: 20608 | E171: 24 | F171: 20613 | K171: 0 | L171: 212
A172: 21 | B172: 20708 | C172: 21 | D172: 20710 | E172: 11 | F172: 20720 | K172: 0 | L172: 221
A173: 12 | B173: 21058 | C173: 14 | D173: 21063 | E173: 13 | F173: 21069 | K173: 0 | L173: 111
A174: 21 | B174: 21166 | C174: 12 | D174: 21177 | E174: 13 | F174: 21182 | K174: 0 | L174: 211
A175: 21 | B175: 21279 | C175: 12 | D175: 21294 | E175: 24 | F175: 21298 | K175: 0 | L175: 212
A176: 21 | B176: 21394 | C176: 12 | D176: 21408 | E176: 24 | F176: 21420 | K176: 0 | L176: 212
A177: 12 | B177: 21525 | C177: 14 | D177: 21531 | E177: 13 | F177: 21539 | K177: 0 | L177: 111
A178: 21 | B178: 21631 | C178: 21 | D178: 21634 | E178: 11 | F178: 21645 | K178: 0 | L178: 221
A179: 21 | B179: 21765 | C179: 12 | D179: 21777 | E179: 13 | F179: 21782 | K179: 0 | L179: 211
A180: 21 | B180: 21878 | C180: 12 | D180: 21890 | E180: 13 | F180: 21893 | K180: 0 | L180: 211
A181: 12 | B181: 22000 | C181: 14 | D181: 22003 | E181: 24 | F181: 22015 | K181: 0 | L181: 112
A182: 21 | B182: 22112 | C182: 12 | D182: 22125 | E182: 24 | F182: 22137 | K182: 0 | L182: 212
A183: 21 | B183: 22231 | C183: 12 | D183: 22244 | E183: 24 | F183: 22248 | K183: 0 | L183: 212
A184: 21 | B184: 22343 | C184: 12 | D184: 22349 | E184: 13 | F184: 22354 | K184: 0 | L184: 211
A185: 21 | B185: 22449 | C185: 12 | D185: 22459 | E185: 13 | F185: 22467 | K185: 0 | L185: 211
A186: 21 | B186: 22560 | C186: 12 | D186: 22572 | E186: 24 | F186: 22583 | K186: 0 | L186: 212
A187: 21 | B187: 22678 | C187: 21 | D187: 22680 | E187: 11 | F187: 22691 | K187: 0 | L187: 221
A188: 12 | B188: 22997 | C188: 14 | D188: 23003 | E188: 13 | F188: 23008 | K188: 0 | L188: 111
A189: 21 | B189: 23156 | C189: 12 | D189: 23169 | E189: 13 | F189: 23174 | K189: 0 | L189: 211
A190: 21 | B190: 23270 | C190: 12 | D190: 23282 | E190: 13 | F190: 23287 | K190: 0 | L190: 211
A191: 21 | B191: 23382 | C191: 12 | D191: 23392 | E191: 24 | F191: 23404 | K191: 0 | L191: 212
A192: 21 | B192: 23502 | C192: 12 | D192: 23518 | E192: 24 | F192: 23526 | K192: 0 | L192: 212
A193: 12 | B193: 23622 | C193: 23 | D193: 23629 | E193: 24 | F193: 23632 | K193: 0 | L193: 122
A194: 21 | B194: 23730 | C194: 12 | D194: 23743 | E194: 13 | F194: 23750 | K194: 0 | L194: 211
A195: 21 | B195: 23842 | C195: 12 | D195: 23854 | E195: 24 | F195: 23865 | K195: 0 | L195: 212
A196: 21 | B196: 23962 | C196: 12 | D196: 23973 | E196: 13 | F196: 23986 | L196: 211

Sheet !MA08A5T.AYL
A1: Report for:!MA08A5T.AYL
A2: Date: | B2: <date>
A3: Hen: | B3: <hen> | F3: Correct Sequence | G3: =Start!J2 -> 221 | P3: Total Sequences in Data | Q3: =4994-COUNTBLANK(L7:L5000) -> 254 | V3: Total Sequences in Block Data | W3: =COUNTA(L7:L48) -> 42 | AA3: Total Sequences in Block Data | AB3: =COUNTA(L49:L91) -> 43 | AF3: Total Sequences in Block Data | AG3: =COUNTA(L92:L133) -> 42 | AK3: Total Sequences in Block Data | AL3: =COUNTA(L134:L175) -> 42 | AP3: Total Sequences in Block Data | AQ3: =COUNTA(L176:L218) -> 43 | AU3: Total Sequences in Block Data | AV3: =COUNTA(L219:L260) -> 42
P4: Total Sequences in Summary | Q4: =SUM(O7:O14) -> 254 | V4: Total Sequences in Block Summary | W4: =SUM(U7:U14) -> 42 | AA4: Total Sequences in Block Summary | AB4: =SUM(Z7:Z14) -> 43 | AF4: Total Sequences in Block Summary | AG4: =SUM(AE7:AE14) -> 42 | AK4: Total Sequences in Block Summary | AL4: =SUM(AJ7:AJ14) -> 42 | AP4: Total Sequences in Block Summary | AQ4: =SUM(AO7:AO14) -> 43 | AU4: Total Sequences in Block Summary | AV4: =SUM(AT7:AT14) -> 42
T5: Block 1 | Y5: Block 2 | AD5: Block 3 | AI5: Block 4 | AN5: Block 5 | AS5: Block 6
A6: Sequence Component 1 | B6: Time 1 | C6: Sequence Component 2 | D6: Time 2 | E6: Sequence Component 3 | F6: Time 3 | G6: Sequence Component 4 | H6: Time 4 | I6: Sequence Component 5 | J6: Time 5 | K6: Correct? 0=No 1=Yes | L6: Sequence | N6: Frequency | P6: Relative Frequency | Q6: Variability | T6: Frequency | V6: Relative Frequency | W6: Variability | Y6: Frequency | AA6: Relative Frequency | AB6: Variability | AD6: Frequency | AF6: Relative Frequency | AG6: Variability | AI6: Frequency | AK6: Relative Frequency | AL6: Variability | AN6: Frequency | AP6: Relative Frequency | AQ6: Variability | AS6: Frequency | AU6: Relative Frequency | AV6: Variability
A7: 12 | B7: 0 | C7: 14 | D7: 0 | E7: 24 | F7: 0 | K7: 0 | L7: 112 | N7: 111 | O7: =COUNTIF($L$7:$L$500,N7) -> 49 | P7: =O7/$Q$4 -> 0.1929133858 | Q7: =IF(P7=0,0,(P7*((LOG(P7))/LOG(2)))) -> -0.4579715248 | T7: =N7 -> 111 | U7: =COUNTIF(L7:L48,T7) -> 6 | V7: =U7/(W4-U13) -> 0.15 | W7: =IF(V7=0,0,(V7*((LOG(V7))/LOG(2)))) -> -0.4105448391 | Y7: =N7 -> 111 | Z7: =COUNTIF(L49:L91,Y7) -> 13 | AA7: =Z7/(AB4-Z13) -> 0.3333333333 | AB7: =IF(AA7=0,0,(AA7*((LOG(AA7))/LOG(2)))) -> -0.5283208336 | AD7: =N7 -> 111 | AE7: =COUNTIF(L92:L133,AD7) -> 14 | AF7: =AE7/(AG4-AE13) -> 0.4 | AG7: =IF(AF7=0,0,(AF7*((LOG(AF7))/LOG(2)))) -> -0.528771238 | AI7: =N7 -> 111 | AJ7: =COUNTIF(L134:L175,AI7) -> 9 | AK7: =AJ7/(AL4-AJ13) -> 0.225 | AL7: =IF(AK7=0,0,(AK7*((LOG(AK7))/LOG(2)))) -> -0.484200696 | AN7: =N7 -> 111 | AO7: =COUNTIF(L176:L218,AN7) -> 6 | AP7: =AO7/(AQ4-AO13) -> 0.1538461538 | AQ7: =IF(AP7=0,0,(AP7*((LOG(AP7))/LOG(2)))) -> -0.4154522643 | AS7: =N7 -> 111 | AT7: =COUNTIF(L219:L260,AS7) -> 1 | AU7: =AT7/(AV4-AT13) -> 0.0243902439 | AV7: =IF(AU7=0,0,(AU7*((LOG(AU7))/LOG(2)))) -> -0.1306720001
A8: 12 | B8: 0 | C8: 23 | D8: 0 | E8: 24 | F8: 0 | K8: 0 | L8: 122 | N8: 112 | O8: =COUNTIF($L$7:$L$500,N8) -> 15 | P8: =O8/$Q$4 -> 0.05905511811 | Q8: =IF(P8=0,0,(P8*((LOG(P8))/LOG(2)))) -> -0.2410508322 | T8: =N8 -> 112 | U8: =COUNTIF(L7:L48,T8) -> 3 | V8: =U8/(W4-U13) -> 0.075 | W8: =IF(V8=0,0,(V8*((LOG(V8))/LOG(2)))) -> -0.2802724196 | Y8: =N8 -> 112 | Z8: =COUNTIF(L49:L91,Y8) -> 6 | AA8: =Z8/(AB4-Z13) -> 0.1538461538 | AB8: =IF(AA8=0,0,(AA8*((LOG(AA8))/LOG(2)))) -> -0.4154522643 | AD8: =N8 -> 112 | AE8: =COUNTIF(L92:L133,AD8) -> 4 | AF8: =AE8/(AG4-AE13) -> 0.1142857143 | AG8: =IF(AF8=0,0,(AF8*((LOG(AF8))/LOG(2)))) -> -0.3576323448 | AI8: =N8 -> 112 | AJ8: =COUNTIF(L134:L175,AI8) -> 2 | AK8: =AJ8/(AL4-AJ13) -> 0.05 | AL8: =IF(AK8=0,0,(AK8*((LOG(AK8))/LOG(2)))) -> -0.2160964047 | AN8: =N8 -> 112 | AO8: =COUNTIF(L176:L218,AN8) -> 0 | AP8: =AO8/(AQ4-AO13) -> 0 | AQ8: =IF(AP8=0,0,(AP8*((LOG(AP8))/LOG(2)))) -> 0 | AS8: =N8 -> 112 | AT8: =COUNTIF(L219:L260,AS8) -> 0 | AU8: =AT8/(AV4-AT13) -> 0 | AV8: =IF(AU8=0,0,(AU8*((LOG(AU8))/LOG(2)))) -> 0
A9: 21 | B9: 0 | C9: 12 | D9: 0 | E9: 13 | F9: 0 | K9: 0 | L9: 211 | N9: 121 | O9: =COUNTIF($L$7:$L$500,N9) -> 17 | P9: =O9/$Q$4 -> 0.06692913386 | Q9: =IF(P9=0,0,(P9*((LOG(P9))/LOG(2)))) -> -0.2611053991 | T9: =N9 -> 121 | U9: =COUNTIF(L7:L48,T9) -> 6 | V9: =U9/(W4-U13) -> 0.15 | W9: =IF(V9=0,0,(V9*((LOG(V9))/LOG(2)))) -> -0.4105448391 | Y9: =N9 -> 121 | Z9: =COUNTIF(L49:L91,Y9) -> 2 | AA9: =Z9/(AB4-Z13) -> 0.05128205128 | AB9: =IF(AA9=0,0,(AA9*((LOG(AA9))/LOG(2)))) -> -0.2197642164 | AD9: =N9 -> 121 | AE9: =COUNTIF(L92:L133,AD9) -> 6 | AF9: =AE9/(AG4-AE13) -> 0.1714285714 | AG9: =IF(AF9=0,0,(AF9*((LOG(AF9))/LOG(2)))) -> -0.4361692314 | AI9: =N9 -> 121 | AJ9: =COUNTIF(L134:L175,AI9) -> 2 | AK9: =AJ9/(AL4-AJ13) -> 0.05 | AL9: =IF(AK9=0,0,(AK9*((LOG(AK9))/LOG(2)))) -> -0.2160964047 | AN9: =N9 -> 121 | AO9: =COUNTIF(L176:L218,AN9) -> 0 | AP9: =AO9/(AQ4-AO13) -> 0 | AQ9: =IF(AP9=0,0,(AP9*((LOG(AP9))/LOG(2)))) -> 0 | AS9: =N9 -> 121 | AT9: =COUNTIF(L219:L260,AS9) -> 1 | AU9: =AT9/(AV4-AT13) -> 0.0243902439 | AV9: =IF(AU9=0,0,(AU9*((LOG(AU9))/LOG(2)))) -> -0.1306720001
A10: 21 | B10: 0 | C10: 21 | D10: 0 | E10: 22 | F10: 0 | K10: 0 | L10: 222 | N10: 122 | O10: =COUNTIF($L$7:$L$500,N10) -> 15 | P10: =O10/$Q$4 -> 0.05905511811 | Q10: =IF(P10=0,0,(P10*((LOG(P10))/LOG(2)))) -> -0.2410508322 | T10: =N10 -> 122 | U10: =COUNTIF(L7:L48,T10) -> 4 | V10: =U10/(W4-U13) -> 0.1 | W10: =IF(V10=0,0,(V10*((LOG(V10))/LOG(2)))) -> -0.3321928095 | Y10: =N10 -> 122 | Z10: =COUNTIF(L49:L91,Y10) -> 5 | AA10: =Z10/(AB4-Z13) -> 0.1282051282 | AB10: =IF(AA10=0,0,(AA10*((LOG(AA10))/LOG(2)))) -> -0.37993258 | AD10: =N10 -> 122 | AE10: =COUNTIF(L92:L133,AD10) -> 1 | AF10: =AE10/(AG4-AE13) -> 0.02857142857 | AG10: =IF(AF10=0,0,(AF10*((LOG(AF10))/LOG(2)))) -> -0.1465509433 | AI10: =N10 -> 122 | AJ10: =COUNTIF(L134:L175,AI10) -> 1 | AK10: =AJ10/(AL4-AJ13) -> 0.025 | AL10: =IF(AK10=0,0,(AK10*((LOG(AK10))/LOG(2)))) -> -0.1330482024 | AN10: =N10 -> 122 | AO10: =COUNTIF(L176:L218,AN10) -> 3 | AP10: =AO10/(AQ4-AO13) -> 0.07692307692 | AQ10: =IF(AP10=0,0,(AP10*((LOG(AP10))/LOG(2)))) -> -0.2846492091 | AS10: =N10 -> 122 | AT10: =COUNTIF(L219:L260,AS10) -> 1 | AU10: =AT10/(AV4-AT13) -> 0.0243902439 | AV10: =IF(AU10=0,0,(AU10*((LOG(AU10))/LOG(2)))) -> -0.1306720001
A11: 21 | B11: 0 | C11: 21 | D11: 0 | E11: 22 | F11: 0 | K11: 0 | L11: 222 | N11: 211 | O11: =COUNTIF($L$7:$L$500,N11) -> 19 | P11: =O11/$Q$4 -> 0.07480314961 | Q11: =IF(P11=0,0,(P11*((LOG(P11))/LOG(2)))) -> -0.2798204185 | T11: =N11 -> 211 | U11: =COUNTIF(L7:L48,T11) -> 7 | V11: =U11/(W4-U13) -> 0.175 | W11: =IF(V11=0,0,(V11*((LOG(V11))/LOG(2)))) -> -0.4400503052 | Y11: =N11 -> 211 | Z11: =COUNTIF(L49:L91,Y11) -> 6 | AA11: =Z11/(AB4-Z13) -> 0.1538461538 | AB11: =IF(AA11=0,0,(AA11*((LOG(AA11))/LOG(2)))) -> -0.4154522643 | AD11: =N11 -> 211 | AE11: =COUNTIF(L92:L133,AD11) -> 4 | AF11: =AE11/(AG4-AE13) -> 0.1142857143 | AG11: =IF(AF11=0,0,(AF11*((LOG(AF11))/LOG(2)))) -> -0.3576323448 | AI11: =N11 -> 211 | AJ11: =COUNTIF(L134:L175,AI11) -> 2 | AK11: =AJ11/(AL4-AJ13) -> 0.05 | AL11: =IF(AK11=0,0,(AK11*((LOG(AK11))/LOG(2)))) -> -0.2160964047 | AN11: =N11 -> 211 | AO11: =COUNTIF(L176:L218,AN11) -> 0 | AP11: =AO11/(AQ4-AO13) -> 0 | AQ11: =IF(AP11=0,0,(AP11*((LOG(AP11))/LOG(2)))) -> 0 | AS11: =N11 -> 211 | AT11: =COUNTIF(L219:L260,AS11) -> 0 | AU11: =AT11/(AV4-AT13) -> 0 | AV11: =IF(AU11=0,0,(AU11*((LOG(AU11))/LOG(2)))) -> 0
A12: 21 | B12: 0 | C12: 21 | D12: 0 | E12: 22 | F12: 0 | K12: 0 | L12: 222 | N12: 212 | O12: =COUNTIF($L$7:$L$500,N12) -> 22 | P12: =O12/$Q$4 -> 0.08661417323 | Q12: =IF(P12=0,0,(P12*((LOG(P12))/LOG(2)))) -> -0.3056833366 | T12: =N12 -> 212 | U12: =COUNTIF(L7:L48,T12) -> 9 | V12: =U12/(W4-U13) -> 0.225 | W12: =IF(V12=0,0,(V12*((LOG(V12))/LOG(2)))) -> -0.484200696 | Y12: =N12 -> 212 | Z12: =COUNTIF(L49:L91,Y12) -> 3 | AA12: =Z12/(AB4-Z13) -> 0.07692307692 | AB12: =IF(AA12=0,0,(AA12*((LOG(AA12))/LOG(2)))) -> -0.2846492091 | AD12: =N12 -> 212 | AE12: =COUNTIF(L92:L133,AD12) -> 0 | AF12: =AE12/(AG4-AE13) -> 0 | AG12: =IF(AF12=0,0,(AF12*((LOG(AF12))/LOG(2)))) -> 0 | AI12: =N12 -> 212 | AJ12: =COUNTIF(L134:L175,AI12) -> 8 | AK12: =AJ12/(AL4-AJ13) -> 0.2 | AL12: =IF(AK12=0,0,(AK12*((LOG(AK12))/LOG(2)))) -> -0.464385619 | AN12: =N12 -> 212 | AO12: =COUNTIF(L176:L218,AN12) -> 2 | AP12: =AO12/(AQ4-AO13) -> 0.05128205128 | AQ12: =IF(AP12=0,0,(AP12*((LOG(AP12))/LOG(2)))) -> -0.2197642164 | AS12: =N12 -> 212 | AT12: =COUNTIF(L219:L260,AS12) -> 0 | AU12: =AT12/(AV4-AT13) -> 0 | AV12: =IF(AU12=0,0,(AU12*((LOG(AU12))/LOG(2)))) -> 0
A13: 21 | B13: 0 | C13: 12 | D13: 0 | E13: 24 | F13: 0 | K13: 0 | L13: 212 | N13: 221 | O13: =COUNTIF($L$7:$L$500,N13) -> 20 | P13: =O13/$Q$4 -> 0.07874015748 | Q13: =IF(P13=0,0,(P13*((LOG(P13))/LOG(2)))) -> -0.2887209915 | T13: =N13 -> 221 | U13: =COUNTIF(L7:L48,T13) -> 2 | Y13: =N13 -> 221 | Z13: =COUNTIF(L49:L91,Y13) -> 4 | AD13: =N13 -> 221 | AE13: =COUNTIF(L92:L133,AD13) -> 7 | AI13: =N13 -> 221 | AJ13: =COUNTIF(L134:L175,AI13) -> 2 | AN13: =N13 -> 221 | AO13: =COUNTIF(L176:L218,AN13) -> 4 | AS13: =N13 -> 221 | AT13: =COUNTIF(L219:L260,AS13) -> 1
A14: 12 | B14: 0 | C14: 23 | D14: 0 | E14: 24 | F14: 0 | K14: 0 | L14: 122 | N14: 222 | O14: =COUNTIF($L$7:$L$500,N14) -> 97 | P14: =O14/$Q$4 -> 0.3818897638 | Q14: =IF(P14=0,0,(P14*((LOG(P14))/LOG(2)))) -> -0.5303577517 | T14: =N14 -> 222 | U14: =COUNTIF(L7:L48,T14) -> 5 | V14: =U14/(W4-U13) -> 0.125 | W14: =IF(V14=0,0,(V14*((LOG(V14))/LOG(2)))) -> -0.375 | Y14: =N14 -> 222 | Z14: =COUNTIF(L49:L91,Y14) -> 4 | AA14: =Z14/(AB4-Z13) -> 0.1025641026 | AB14: =IF(AA14=0,0,(AA14*((LOG(AA14))/LOG(2)))) -> -0.3369643301 | AD14: =N14 -> 222 | AE14: =COUNTIF(L92:L133,AD14) -> 6 | AF14: =AE14/(AG4-AE13) -> 0.1714285714 | AG14: =IF(AF14=0,0,(AF14*((LOG(AF14))/LOG(2)))) -> -0.4361692314 | AI14: =N14 -> 222 | AJ14: =COUNTIF(L134:L175,AI14) -> 16 | AK14: =AJ14/(AL4-AJ13) -> 0.4 | AL14: =IF(AK14=0,0,(AK14*((LOG(AK14))/LOG(2)))) -> -0.528771238 | AN14: =N14 -> 222 | AO14: =COUNTIF(L176:L218,AN14) -> 28 | AP14: =AO14/(AQ4-AO13) -> 0.7179487179 | AQ14: =IF(AP14=0,0,(AP14*((LOG(AP14))/LOG(2)))) -> -0.3432134439 | AS14: =N14 -> 222 | AT14: =COUNTIF(L219:L260,AS14) -> 38 | AU14: =AT14/(AV4-AT13) -> 0.9268292683 | AV14: =IF(AU14=0,0,(AU14*((LOG(AU14))/LOG(2)))) -> -0.1016031869
A15: 21 | B15: 0 | C15: 21 | D15: 0 | E15: 11 | F15: 0 | K15: 0 | L15: 221 | P15: =SUM(P7:P14) -> 1 | Q15: =-SUM(Q7:Q14) -> 2.605761086 | V15: =SUM(V7:V14) -> 1 | W15: =-SUM(W7:W14) -> 2.732805909 | AA15: =SUM(AA7:AA14) -> 1 | AB15: =-SUM(AB7:AB14) -> 2.580535698 | AF15: =SUM(AF7:AF14) -> 1 | AG15: =-SUM(AG7:AG14) -> 2.262925334 | AK15: =SUM(AK7:AK14) -> 1 | AL15: =-SUM(AL7:AL14) -> 2.25869497 | AP15: =SUM(AP7:AP14) -> 1 | AQ15: =-SUM(AQ7:AQ14) -> 1.263079134 | AU15: =SUM(AU7:AU14) -> 1 | AV15: =-SUM(AV7:AV14) -> 0.4936191873
A16: 12 | B16: 0 | C16: 14 | D16: 0 | E16: 13 | F16: 0 | K16: 0 | L16: 111 | P16: U= | Q16: =Q15/(LOG(Q4)/LOG(2)) -> 0.3261814915 | V16: U1= | W16: =W15/(LOG(W4)/LOG(2)) -> 0.5067961869 | AA16: U2= | AB16: =AB15/(LOG(AB4)/LOG(2)) -> 0.4755639126 | AF16: U3= | AG16: =AG15/(LOG(AG4)/LOG(2)) -> 0.4196572932 | AK16: U4= | AL16: =AL15/(LOG(AL4)/LOG(2)) -> 0.4188727763 | AP16: U5= | AQ16: =AQ15/(LOG(AQ4)/LOG(2)) -> 0.2327713797 | AU16: U6= | AV16: =AV15/(LOG(AV4)/LOG(2)) -> 0.09154119622
A17: 21 | B17: 0 | C17: 12 | D17: 0 | E17: 24 | F17: 0 | K17: 0 | L17: 212
A18: 21 | B18: 0 | C18: 21 | D18: 0 | E18: 22 | F18: 0 | K18: 0 | L18: 222
A19: 12 | B19: 0 | C19: 14 | D19: 0 | E19: 13 | F19: 0 | K19: 0 | L19: 111 | N19: Total Target Seq
A20: 21 | B20: 0 | C20: 12 | D20: 0 | E20: 24 | F20: 0 | K20: 0 | L20: 212 | N20: =COUNTIF(L7:L260,G3) -> 20 | P20: 42 | Q20: 43 | R20: 42 | S20: 42 | T20: 43 | U20: 42
A21: 21 | B21: 0 | C21: 21 | D21: 0 | E21: 22 | F21: 0 | K21: 0 | L21: 222 | P21: % of reinforcement given in 6 equal intervals based on number of trials
A22: 21 | B22: 0 | C22: 12 | D22: 0 | E22: 13 | F22: 0 | K22: 0 | L22: 211 | P22: %_1 | Q22: %_2 | R22: %_3 | S22: %_4 | T22: %_5 | U22: %_6
A23: 21 | B23: 0 | C23: 12 | D23: 0 | E23: 24 | F23: 0 | K23: 0 | L23: 212 | O23: target sequence | P23: =$G$3 -> 221 | Q23: =$G$3 -> 221 | R23: =$G$3 -> 221 | S23: =$G$3 -> 221 | T23: =$G$3 -> 221 | U23: =$G$3 -> 221
A24: 21 | B24: 0 | C24: 12 | D24: 0 | E24: 13 | F24: 0 | K24: 0 | L24: 211 | O24: total reinforcement | P24: =U13 -> 2 | Q24: =Z13 -> 4 | R24: =AE13 -> 7 | S24: =AJ13 -> 2 | T24: =AO13 -> 4 | U24: =AT13 -> 1
A25: 12 | B25: 0 | C25: 23 | D25: 0 | E25: 13 | F25: 0 | K25: 0 | L25: 121 | O25: % target
A26: 12 | B26: 0 | C26: 23 | D26: 0 | E26: 13 | F26: 0 | K26: 0 | L26: 121 | O26: CCRF
A27: 12 | B27: 0 | C27: 23 | D27: 0 | E27: 13 | F27: 0 | K27: 0 | L27: 121 | O27: % CCRf
A28: 21 | B28: 0 | C28: 12 | D28: 0 | E28: 13 | F28: 0 | K28: 0 | L28: 211 | O28: average response rate | P28: =F48/P20 -> 0 | Q28: =(F91-F48)/Q20 -> 0 | R28: =(F133-F91)/R20 -> 0 | S28: =(F175-F133)/S20 -> 0 | T28: =(F218-F175)/T20 -> 0 | U28: =(F260-F218)/U20 -> 0
A29: 12 | B29: 0 | C29: 14 | D29: 0 | E29: 13 | F29: 0 | K29: 0 | L29: 111
A30: 21 | B30: 0 | C30: 12 | D30: 0 | E30: 24 | F30: 0 | K30: 0 | L30: 212
A31: 21 | B31: 0 | C31: 12 | D31: 0 | E31: 24 | F31: 0 | K31: 0 | L31: 212
A32: 21 | B32: 0 | C32: 12 | D32: 0 | E32: 13 | F32: 0 | K32: 0 | L32: 211
A33: 12 | B33: 0 | C33: 23 | D33: 0 | E33: 13 | F33: 0 | K33: 0 | L33: 121
A34: 12 | B34: 0 | C34: 14 | D34: 0 | E34: 13 | F34: 0 | K34: 0 | L34: 111
A35: 21 | B35: 0 | C35: 12 | D35: 0 | E35: 24 | F35: 0 | K35: 0 | L35: 212
A36: 12 | B36: 0 | C36: 14 | D36: 0 | E36: 24 | F36: 0 | K36: 0 | L36: 112
A37: 12 | B37: 0 | C37: 23 | D37: 0 | E37: 13 | F37: 0 | K37: 0 | L37: 121
A38: 21 | B38: 0 | C38: 21 | D38: 0 | E38: 11 | F38: 0 | K38: 0 | L38: 221
A39: 12 | B39: 0 | C39: 14 | D39: 0 | E39: 13 | F39: 0 | K39: 0 | L39: 111
A40: 12 | B40: 0 | C40: 14 | D40: 0 | E40: 13 | F40: 0 | K40: 0 | L40: 111
A41: 12 | B41: 0 | C41: 23 | D41: 0 | E41: 24 | F41: 0 | K41: 0 | L41: 122
A42: 12 | B42: 0 | C42: 23 | D42: 0 | E42: 13 | F42: 0 | K42: 0 | L42: 121
A43: 21 | B43: 0 | C43: 12 | D43: 0 | E43: 13 | F43: 0 | K43: 0 | L43: 211
A44: 12 | B44: 0 | C44: 23 | D44: 0 | E44: 24 | F44: 0 | K44: 0 | L44: 122
A45: 21 | B45: 0 | C45: 12 | D45: 0 | E45: 24 | F45: 0 | K45: 0 | L45: 212
A46: 12 | B46: 0 | C46: 14 | D46: 0 | E46: 24 | F46: 0 | K46: 0 | L46: 112
A47: 21 | B47: 0 | C47: 12 | D47: 0 | E47: 24 | F47: 0 | K47: 0 | L47: 212
A48: 21 | B48: 0 | C48: 12 | D48: 0 | E48: 13 | F48: 0 | K48: 0 | L48: 211
A49: 21 | B49: 0 | C49: 21 | D49: 0 | E49: 11 | F49: 0 | K49: 0 | L49: 221
A50: 12 | B50: 0 | C50: 14 | D50: 0 | E50: 13 | F50: 0 | K50: 0 | L50: 111
A51: 12 | B51: 0 | C51: 14 | D51: 0 | E51: 13 | F51: 0 | K51: 0 | L51: 111
A52: 12 | B52: 0 | C52: 14 | D52: 0 | E52: 13 | F52: 0 | K52: 0 | L52: 111
A53: 12 | B53: 0 | C53: 14 | D53: 0 | E53: 13 | F53: 0 | K53: 0 | L53: 111
A54: 12 | B54: 0 | C54: 14 | D54: 0 | E54: 13 | F54: 0 | K54: 0 | L54: 111
A55: 12 | B55: 0 | C55: 23 | D55: 0 | E55: 24 | F55: 0 | K55: 0 | L55: 122
A56: 12 | B56: 0 | C56: 14 | D56: 0 | E56: 24 | F56: 0 | K56: 0 | L56: 112
A57: 12 | B57: 0 | C57: 23 | D57: 0 | E57: 13 | F57: 0 | K57: 0 | L57: 121
A58: 21 | B58: 0 | C58: 12 | D58: 0 | E58: 13 | F58: 0 | K58: 0 | L58: 211
A59: 12 | B59: 0 | C59: 23 | D59: 0 | E59: 24 | F59: 0 | K59: 0 | L59: 122
A60: 21 | B60: 0 | C60: 12 | D60: 0 | E60: 13 | F60: 0 | K60: 0 | L60: 211
A61: 21 | B61: 0 | C61: 21 | D61: 0 | E61: 22 | F61: 0 | K61: 0 | L61: 222
A62: 21 | B62: 0 | C62: 12 | D62: 0 | E62: 24 | F62: 0 | K62: 0 | L62: 212
A63: 12 | B63: 0 | C63: 14 | D63: 0 | E63: 13 | F63: 0 | K63: 0 | L63: 111
A64: 21 | B64: 0 | C64: 12 | D64: 0 | E64: 13 | F64: 0 | K64: 0 | L64: 211
A65: 21 | B65: 0 | C65: 12 | D65: 0 | E65: 13 | F65: 0 | K65: 0 | L65: 211
A66: 21 | B66: 0 | C66: 21 | D66: 0 | E66: 11 | F66: 0 | K66: 0 | L66: 221
A67: 12 | B67: 0 | C67: 14 | D67: 0 | E67: 13 | F67: 0 | K67: 0 | L67: 111
A68: 12 | B68: 0 | C68: 23 | D68: 0 | E68: 24 | F68: 0 | K68: 0 | L68: 122
A69: 12 | B69: 0 | C69: 23 | D69: 0 | E69: 24 | F69: 0 | K69: 0 | L69: 122
A70: 12 | B70: 0 | C70: 14 | D70: 0 | E70: 24 | F70: 0 | K70: 0 | L70: 112
A71: 12 | B71: 0 | C71: 14 | D71: 0 | E71: 13 | F71: 0 | K71: 0 | L71: 111
A72: 12 | B72: 0 | C72: 14 | D72: 0 | E72: 24 | F72: 0 | K72: 0 | L72: 112
A73: 21 | B73: 0 | C73: 12 | D73: 0 | E73: 13 | F73: 0 | K73: 0 | L73: 211
A74: 21 | B74: 0 | C74: 21 | D74: 0 | E74: 11 | F74: 0 | K74: 0 | L74: 221
A75: 12 | B75: 0 | C75: 14 | D75: 0 | E75: 13 | F75: 0 | K75: 0 | L75: 111
A76: 12 | B76: 0 | C76: 14 | D76: 0 | E76: 24 | F76: 0 | K76: 0 | L76: 112
A77: 21 | B77: 0 | C77: 21 | D77: 0 | E77: 22 | F77: 0 | K77: 0 | L77: 222
A78: 12 | B78: 0 | C78: 14 | D78: 0 | E78: 24 | F78: 0 | K78: 0 | L78: 112
A79: 21 | B79: 0 | C79: 12 | D79: 0 | E79: 24 | F79: 0 | K79: 0 | L79: 212
A80: 21 | B80: 0 | C80: 21 | D80: 0 | E80: 22 | F80: 0 | K80: 0 | L80: 222
A81: 12 | B81: 0 | C81: 23 | D81: 0 | E81: 24 | F81: 0 | K81: 0 | L81: 122
A82: 21 | B82: 0 | C82: 21 | D82: 0 | E82: 22 | F82: 0 | K82: 0 | L82: 222
A83: 12 | B83: 0 | C83: 14 | D83: 0 | E83: 24 | F83: 0 | K83: 0 | L83: 112
A84: 21 | B84: 0 | C84: 12 | D84: 0 | E84: 24 | F84: 0 | K84: 0 | L84: 212
A85: 12 | B85: 0 | C85: 23 | D85: 0 | E85: 13 | F85: 0 | K85: 0 | L85: 121
A86: 21 | B86: 0 | C86: 12 | D86: 0 | E86: 13 | F86: 0 | K86: 0 | L86: 211
A87: 21 | B87: 0 | C87: 21 | D87: 0 | E87: 11 | F87: 0 | K87: 0 | L87: 221
A88: 12 | B88: 0 | C88: 14 | D88: 0 | E88: 13 | F88: 0 | K88: 0 | L88: 111
A89: 12 | B89: 0 | C89: 14 | D89: 0 | E89: 13 | F89: 0 | K89: 0 | L89: 111
A90: 12 | B90: 0 | C90: 14 | D90: 0 | E90: 13 | F90: 0 | K90: 0 | L90: 111
A91: 12 | B91: 0 | C91: 14 | D91: 0 | E91: 13 | F91: 0 | K91: 0 | L91: 111
A92: 12 | B92: 0 | C92: 14 | D92: 0 | E92: 13 | F92: 0 | K92: 0 | L92: 111
A93: 12 | B93: 0 | C93: 14 | D93: 0 | E93: 13 | F93: 0 | K93: 0 | L93: 111
A94: 12 | B94: 0 | C94: 14 | D94: 0 | E94: 13 | F94: 0 | K94: 0 | L94: 111
A95: 12 | B95: 0 | C95: 14 | D95: 0 | E95: 13 | F95: 0 | K95: 0 | L95: 111
A96: 12 | B96: 0 | C96: 14 | D96: 0 | E96: 24 | F96: 0 | K96: 0 | L96: 112
A97: 21 | B97: 0 | C97: 21 | D97: 0 | E97: 22 | F97: 0 | K97: 0 | L97: 222
A98: 21 | B98: 0 | C98: 21 | D98: 0 | E98: 22 | F98: 0 | K98: 0 | L98: 222
A99: 12 | B99: 0 | C99: 14 | D99: 0 | E99: 13 | F99: 0 | K99: 0 | L99: 111
A100: 21 | B100: 0 | C100: 21 | D100: 0 | E100: 22 | F100: 0 | K100: 0 | L100: 222
A101: 21 | B101: 0 | C101: 21 | D101: 0 | E101: 11 | F101: 0 | K101: 0 | L101: 221
A102: 12 | B102: 0 | C102: 23 | D102: 0 | E102: 13 | F102: 0 | K102: 0 | L102: 121
A103: 21 | B103: 0 | C103: 12 | D103: 0 | E103: 13 | F103: 0 | K103: 0 | L103: 211
A104: 12 | B104: 0 | C104: 23 | D104: 0 | E104: 13 | F104: 0 | K104: 0 | L104: 121
A105: 21 | B105: 0 | C105: 12 | D105: 0 | E105: 13 | F105: 0 | K105: 0 | L105: 211
A106: 21 | B106: 0 | C106: 21 | D106: 0 | E106: 22 | F106: 0 | K106: 0 | L106: 222
A107: 21 | B107: 0 | C107: 12 | D107: 0 | E107: 13 | F107: 0 | K107: 0 | L107: 211
A108: 12 | B108: 0 | C108: 23 | D108: 0 | E108: 13 | F108: 0 | K108: 0 | L108: 121
A109: 21 | B109: 0 | C109: 21 | D109: 0 | E109: 22 | F109: 0 | K109: 0 | L109: 222
A110: 21 | B110: 0 | C110: 21 | D110: 0 | E110: 11 | F110: 0 | K110: 0 | L110: 221
A111: 12 | B111: 0 | C111: 14 | D111: 0 | E111: 13 | F111: 0 | K111: 0 | L111: 111
A112: 12 | B112: 0 | C112: 14 | D112: 0 | E112: 13 | F112: 0 | K112: 0 | L112: 111
A113: 12 | B113: 0 | C113: 14 | D113: 0 | E113: 24 | F113: 0 | K113: 0 | L113: 112
A114: 21 | B114: 0 | C114: 21 | D114: 0 | E114: 11 | F114: 0 | K114: 0 | L114: 221
A115: 12 | B115: 0 | C115: 14 | D115: 0 | E115: 13 | F115: 0 | K115: 0 | L115: 111
A116: 12 | B116: 0 | C116: 14 | D116: 0 | E116: 13 | F116: 0 | K116: 0 | L116: 111
A117: 21 | B117: 0 | C117: 12 | D117: 0 | E117: 13 | F117: 0 | K117: 0 | L117: 211
A118: 12 | B118: 0 | C118: 14 | D118: 0 | E118: 13 | F118: 0 | K118: 0 | L118: 111
A119: 12 | B119: 0 | C119: 23 | D119: 0 | E119: 13 | F119: 0 | K119: 0 | L119: 121
A120: 12 | B120: 0 | C120: 23 | D120: 0 | E120: 13 | F120: 0 | K120: 0 | L120: 121
A121: 12 | B121: 0 | C121: 14 | D121: 0 | E121: 24 | F121: 0 | K121: 0 | L121: 112
A122: 12 | B122: 0 | C122: 23 | D122: 0 | E122: 13 | F122: 0 | K122: 0 | L122: 121
A123: 21 | B123: 0 | C123: 21 | D123: 0 | E123: 11 | F123: 0 | K123: 0 | L123: 221
A124: 12 | B124: 0 | C124: 14 | D124: 0 | E124: 13 | F124: 0 | K124: 0 | L124: 111
A125: 12 | B125: 0 | C125: 14 | D125: 0 | E125: 13 | F125: 0 | K125: 0 | L125: 111
A126: 12 | B126: 0 | C126: 14 | D126: 0 | E126: 24 | F126: 0 | K126: 0 | L126: 112
A127: 21 | B127: 0 | C127: 21 | D127: 0 | E127: 11 | F127: 0 | K127: 0 | L127: 221
A128: 12 | B128: 0 | C128: 14 | D128: 0 | E128: 13 | F128: 0 | K128: 0 | L128: 111
A129: 21 | B129: 0 | C129: 21 | D129: 0 | E129: 11 | F129: 0 | K129: 0 | L129: 221
A130: 12 | B130: 0 | C130: 23 | D130: 0 | E130: 24 | F130: 0 | K130: 0 | L130: 122
A131: 21 | B131: 0 | C131: 21 | D131: 0 | E131: 22 | F131: 0 | K131: 0 | L131: 222
A132: 21 | B132: 0 | C132: 21 | D132: 0 | E132: 11 | F132: 0 | K132: 0 | L132: 221
A133: 12 | B133: 0 | C133: 14 | D133: 0 | E133: 13 | F133: 0 | K133: 0 | L133: 111
A134: 12 | B134: 0 | C134: 14 | D134: 0 | E134: 13 | F134: 0 | K134: 0 | L134: 111
A135: 12 | B135: 0 | C135: 14 | D135: 0 | E135: 13 | F135: 0 | K135: 0 | L135: 111
A136: 12 | B136: 0 | C136: 14 | D136: 0 | E136: 24 | F136: 0 | K136: 0 | L136: 112
A137: 21 | B137: 0 | C137: 21 | D137: 0 | E137: 22 | F137: 0 | K137: 0 | L137: 222
A138: 21 | B138: 0 | C138: 21 | D138: 0 | E138: 22 | F138: 0 | K138: 0 | L138: 222
A139: 21 | B139: 0 | C139: 21 | D139: 0 | E139: 22 | F139: 0 | K139: 0 | L139: 222
A140: 21 | B140: 0 | C140: 12 | D140: 0 | E140: 24 | F140: 0 | K140: 0 | L140: 212
A141: 21 | B141: 0 | C141: 21 | D141: 0 | E141: 11 | F141: 0 | K141: 0 | L141: 221
A142: 12 | B142: 0 | C142: 14 | D142: 0 | E142: 13 | F142: 0 | K142: 0 | L142: 111
A143: 12 | B143: 0 | C143: 14 | D143: 0 | E143: 13 | F143: 0 | K143: 0 | L143: 111
A144: 12 | B144: 0 | C144: 14 | D144: 0 | E144: 13 | F144: 0 | K144: 0 | L144: 111
A145: 12 | B145: 0 | C145: 14 | D145: 0 | E145: 13 | F145: 0 | K145: 0 | L145: 111
A146: 12 | B146: 0 | C146: 14 | D146: 0 | E146: 24 | F146: 0 | K146: 0 | L146: 112
A147: 21 | B147: 0 | C147: 12 | D147: 0 | E147: 24 | F147: 0 | K147: 0 | L147: 212
A148: 21 | B148: 0 | C148: 21 | D148: 0 | E148: 22 | F148: 0 | K148: 0 | L148: 222
A149: 21 | B149: 0 | C149: 21 | D149: 0 | E149: 22 | F149: 0 | K149: 0 | L149: 222
A150: 12 | B150: 0 | C150: 23 | D150: 0 | E150: 13 | F150: 0 | K150: 0 | L150: 121
A151: 21 | B151: 0 | C151: 12 | D151: 0 | E151: 24 | F151: 0 | K151: 0 | L151: 212
A152: 21 | B152: 0 | C152: 12 | D152: 0 | E152: 24 | F152: 0 | K152: 0 | L152: 212
A153: 21 | B153: 0 | C153: 12 | D153: 0 | E153: 24 | F153: 0 | K153: 0 | L153: 212
A154: 21 | B154: 0 | C154: 21 | D154: 0 | E154: 22 | F154: 0 | K154: 0 | L154: 222
A155: 21 | B155: 0 | C155: 12 | D155: 0 | E155: 13 | F155: 0 | K155: 0 | L155: 211
A156: 21 | B156: 0 | C156: 21 | D156: 0 | E156: 22 | F156: 0 | K156: 0 | L156: 222
A157: 21 | B157: 0 | C157: 21 | D157: 0 | E157: 11 | F157: 0 | K157: 0 | L157: 221
A158: 12 | B158: 0 | C158: 14 | D158: 0 | E158: 13 | F158: 0 | K158: 0 | L158: 111
A159: 12 | B159: 0 | C159: 14 | D159: 0 | E159: 13 | F159: 0 | K159: 0 | L159: 111
A160: 12 | B160: 0 | C160: 14 | D160: 0 | E160: 13 | F160: 0 | K160: 0 | L160: 111
A161: 21 | B161: 0 | C161: 21 | D161: 0 | E161: 22 | F161: 0 | K161: 0 | L161: 222
A162: 21 | B162: 0 | C162: 21 | D162: 0 | E162: 22 | F162: 0 | K162: 0 | L162: 222
A163: 21 | B163: 0 | C163: 21 | D163: 0 | E163: 22 | F163: 0 | K163: 0 | L163: 222
A164: 21 | B164: 0 | C164: 21 | D164: 0 | E164: 22 | F164: 0 | K164: 0 | L164: 222
A165: 21 | B165: 0 | C165: 12 | D165: 0 | E165: 24 | F165: 0 | K165: 0 | L165: 212
A166: 21 | B166: 0 | C166: 21 | D166: 0 | E166: 22 | F166: 0 | K166: 0 | L166: 222
A167: 12 | B167: 0 | C167: 23 | D167: 0 | E167: 24 | F167: 0 | K167: 0 | L167: 122
A168: 21 | B168: 0 | C168: 21 | D168: 0 | E168: 22 | F168: 0 | K168: 0 | L168: 222
A169: 12 | B169: 0 | C169: 23 | D169: 0 | E169: 13 | F169: 0 | K169: 0 | L169: 121
A170: 21 | B170: 0 | C170: 21 | D170: 0 | E170: 22 | F170: 0 | K170: 0 | L170: 222
A171: 21 | B171: 0 | C171: 21 | D171: 0 | E171: 22 | F171: 0 | K171: 0 | L171: 222
A172: 21 | B172: 0 | C172: 21 | D172: 0 | E172: 22 | F172: 0 | K172: 0 | L172: 222
A173: 21 | B173: 0 | C173: 12 | D173: 0 | E173: 24 | F173: 0 | K173: 0 | L173: 212
A174: 21 | B174: 0 | C174: 12 | D174: 0 | E174: 24 | F174: 0 | K174: 0 | L174: 212
A175: 21 | B175: 0 | C175: 12 | D175: 0 | E175: 13 | F175: 0 | K175: 0 | L175: 211
A176: 21 | B176: 0 | C176: 21 | D176: 0 | E176: 22 | F176: 0 | K176: 0 | L176: 222
A177: 21 | B177: 0 | C177: 21 | D177: 0 | E177: 11 | F177: 0 | K177: 0 | L177: 221
A178: 12 | B178: 0 | C178: 23 | D178: 0 | E178: 24 | F178: 0 | K178: 0 | L178: 122
A179: 21 | B179: 0 | C179: 12 | D179: 0 | E179: 24 | F179: 0 | K179: 0 | L179: 212
A180: 21 | B180: 0 | C180: 21 | D180: 0 | E180: 11 | F180: 0 | K180: 0 | L180: 221
A181: 12 | B181: 0 | C181: 14 | D181: 0 | E181: 13 | F181: 0 | K181: 0 | L181: 111
A182: 12 | B182: 0 | C182: 14 | D182: 0 | E182: 13 | F182: 0 | K182: 0 | L182: 111
A183: 12 | B183: 0 | C183: 14 | D183: 0 | E183: 13 | F183: 0 | K183: 0 | L183: 111
A184: 12 | B184: 0 | C184: 14 | D184: 0 | E184: 13 | F184: 0 | K184: 0 | L184: 111
A185: 21 | B185: 0 | C185: 21 | D185: 0 | E185: 11 | F185: 0 | K185: 0 | L185: 221
A186: 12 | B186: 0 | C186: 14 | D186: 0 | E186: 13 | F186: 0 | K186: 0 | L186: 111
A187: 12 | B187: 0 | C187: 23 | D187: 0 | E187: 24 | F187: 0 | K187: 0 | L187: 122
A188: 21 | B188: 0 | C188: 21 | D188: 0 | E188: 22 | F188: 0 | K188: 0 | L188: 222
A189: 21 | B189: 0 | C189: 12 | D189: 0 | E189: 24 | F189: 0 | K189: 0 | L189: 212
A190: 21 | B190: 0 | C190: 21 | D190: 0 | E190: 11 | F190: 0 | K190: 0 | L190: 221
A191: 12 | B191: 0 | C191: 14 | D191: 0 | E191: 13 | F191: 0 | K191: 0 | L191: 111
A192: 12 | B192: 0 | C192: 23 | D192: 0 | E192: 24 | F192: 0 | K192: 0 | L192: 122
A193: 21 | B193: 0 | C193: 21 | D193: 0 | E193: 22 | F193: 0 | K193: 0 | L193: 222
A194: 21 | B194: 0 | C194: 21 | D194: 0 | E194: 22 | F194: 0 | K194: 0 | L194: 222
A195: 21 | B195: 0 | C195: 21 | D195: 0 | E195: 22 | F195: 0 | K195: 0 | L195: 222
A196: 21 | B196: 0 | C196: 21 | D196: 0 | E196: 22 | F196: 0 | K196: 0 | L196: 222
A197: 21 | B197: 0 | C197: 21 | D197: 0 | E197: 22 | F197: 0 | K197: 0 | L197: 222
A198: 21 | B198: 0 | C198: 21 | D198: 0 | E198: 22 | F198: 0 | K198: 0 | L198: 222
A199: 21 | B199: 0 | C199: 21 | D199: 0 | E199: 22 | F199: 0 | K199: 0 | L199: 222
A200: 21 | B200: 0 | C200: 21 | D200: 0 | E200: 22 | F200: 0 | K200: 0 | L200: 222
... 60 more rows

Sheet !MA0992T.AYL
A1: Report for:!MA0992T.AYL
A2: Date: | B2: <date>
A3: Hen: | B3: <hen> | F3: Correct Sequence | G3: =Start!J2 -> 221 | P3: Total Sequences in Data | Q3: =4994-COUNTBLANK(L7:L5000) -> 164 | V3: Total Sequences in Block Data | W3: =COUNTA(L7:L33) -> 27 | AA3: Total Sequences in Block Data | AB3: =COUNTA(L34:L61) -> 28 | AF3: Total Sequences in Block Data | AG3: =COUNTA(L62:L88) -> 27 | AK3: Total Sequences in Block Data | AL3: =COUNTA(L89:L115) -> 27 | AP3: Total Sequences in Block Data | AQ3: =COUNTA(L116:L143) -> 28 | AU3: Total Sequences in Block Data | AV3: =COUNTA(L144:L170) -> 27
P4: Total Sequences in Summary | Q4: =SUM(O7:O14) -> 164 | V4: Total Sequences in Block Summary | W4: =SUM(U7:U14) -> 27 | AA4: Total Sequences in Block Summary | AB4: =SUM(Z7:Z14) -> 28 | AF4: Total Sequences in Block Summary | AG4: =SUM(AE7:AE14) -> 27 | AK4: Total Sequences in Block Summary | AL4: =SUM(AJ7:AJ14) -> 27 | AP4: Total Sequences in Block Summary | AQ4: =SUM(AO7:AO14) -> 28 | AU4: Total Sequences in Block Summary | AV4: =SUM(AT7:AT14) -> 27
T5: Block 1 | Y5: Block 2 | AD5: Block 3 | AI5: Block 4 | AN5: Block 5 | AS5: Block 6
A6: Sequence Component 1 | B6: Time 1 | C6: Sequence Component 2 | D6: Time 2 | E6: Sequence Component 3 | F6: Time 3 | G6: Sequence Component 4 | H6: Time 4 | I6: Sequence Component 5 | J6: Time 5 | K6: Correct? 0=No 1=Yes | L6: Sequence | N6: Frequency | P6: Relative Frequency | Q6: Variability | T6: Frequency | V6: Relative Frequency | W6: Variability | Y6: Frequency | AA6: Relative Frequency | AB6: Variability | AD6: Frequency | AF6: Relative Frequency | AG6: Variability | AI6: Frequency | AK6: Relative Frequency | AL6: Variability | AN6: Frequency | AP6: Relative Frequency | AQ6: Variability | AS6: Frequency | AU6: Relative Frequency | AV6: Variability
A7: 21 | B7: 17 | C7: 12 | D7: 29 | E7: 24 | F7: 34 | K7: 0 | L7: 212 | N7: 111 | O7: =COUNTIF($L$7:$L$500,N7) -> 1 | P7: =O7/$Q$4 -> 0.006097560976 | Q7: =IF(P7=0,0,(P7*((LOG(P7))/LOG(2)))) -> -0.04486312198 | T7: =N7 -> 111 | U7: =COUNTIF(L7:L33,T7) -> 0 | V7: =U7/(W4-U13) -> 0 | W7: =IF(V7=0,0,(V7*((LOG(V7))/LOG(2)))) -> 0 | Y7: =N7 -> 111 | Z7: =COUNTIF(L34:L61,Y7) -> 0 | AA7: =Z7/(AB4-Z13) -> 0 | AB7: =IF(AA7=0,0,(AA7*((LOG(AA7))/LOG(2)))) -> 0 | AD7: =N7 -> 111 | AE7: =COUNTIF(L62:L88,AD7) -> 0 | AF7: =AE7/(AG4-AE13) -> 0 | AG7: =IF(AF7=0,0,(AF7*((LOG(AF7))/LOG(2)))) -> 0 | AI7: =N7 -> 111 | AJ7: =COUNTIF(L89:L115,AI7) -> 0 | AK7: =AJ7/(AL4-AJ13) -> 0 | AL7: =IF(AK7=0,0,(AK7*((LOG(AK7))/LOG(2)))) -> 0 | AN7: =N7 -> 111 | AO7: =COUNTIF(L116:L143,AN7) -> 0 | AP7: =AO7/(AQ4-AO13) -> 0 | AQ7: =IF(AP7=0,0,(AP7*((LOG(AP7))/LOG(2)))) -> 0 | AS7: =N7 -> 111 | AT7: =COUNTIF(L144:L170,AS7) -> 1 | AU7: =AT7/(AV4-AT13) -> 0.04761904762 | AV7: =IF(AU7=0,0,(AU7*((LOG(AU7))/LOG(2)))) -> -0.2091579725
A8: 21 | B8: 130 | C8: 21 | D8: 146 | E8: 22 | F8: 149 | K8: 0 | L8: 222 | N8: 112 | O8: =COUNTIF($L$7:$L$500,N8) -> 3 | P8: =O8/$Q$4 -> 0.01829268293 | Q8: =IF(P8=0,0,(P8*((LOG(P8))/LOG(2)))) -> -0.1055961495 | T8: =N8 -> 112 | U8: =COUNTIF(L7:L33,T8) -> 0 | V8: =U8/(W4-U13) -> 0 | W8: =IF(V8=0,0,(V8*((LOG(V8))/LOG(2)))) -> 0 | Y8: =N8 -> 112 | Z8: =COUNTIF(L34:L61,Y8) -> 0 | AA8: =Z8/(AB4-Z13) -> 0 | AB8: =IF(AA8=0,0,(AA8*((LOG(AA8))/LOG(2)))) -> 0 | AD8: =N8 -> 112 | AE8: =COUNTIF(L62:L88,AD8) -> 1 | AF8: =AE8/(AG4-AE13) -> 0.04761904762 | AG8: =IF(AF8=0,0,(AF8*((LOG(AF8))/LOG(2)))) -> -0.2091579725 | AI8: =N8 -> 112 | AJ8: =COUNTIF(L89:L115,AI8) -> 1 | AK8: =AJ8/(AL4-AJ13) -> 0.04347826087 | AL8: =IF(AK8=0,0,(AK8*((LOG(AK8))/LOG(2)))) -> -0.1966766068 | AN8: =N8 -> 112 | AO8: =COUNTIF(L116:L143,AN8) -> 1 | AP8: =AO8/(AQ4-AO13) -> 0.05263157895 | AQ8: =IF(AP8=0,0,(AP8*((LOG(AP8))/LOG(2)))) -> -0.2235751323 | AS8: =N8 -> 112 | AT8: =COUNTIF(L144:L170,AS8) -> 0 | AU8: =AT8/(AV4-AT13) -> 0 | AV8: =IF(AU8=0,0,(AU8*((LOG(AU8))/LOG(2)))) -> 0
A9: 21 | B9: 276 | C9: 21 | D9: 295 | E9: 22 | F9: 298 | K9: 0 | L9: 222 | N9: 121 | O9: =COUNTIF($L$7:$L$500,N9) -> 0 | P9: =O9/$Q$4 -> 0 | Q9: =IF(P9=0,0,(P9*((LOG(P9))/LOG(2)))) -> 0 | T9: =N9 -> 121 | U9: =COUNTIF(L7:L33,T9) -> 0 | V9: =U9/(W4-U13) -> 0 | W9: =IF(V9=0,0,(V9*((LOG(V9))/LOG(2)))) -> 0 | Y9: =N9 -> 121 | Z9: =COUNTIF(L34:L61,Y9) -> 0 | AA9: =Z9/(AB4-Z13) -> 0 | AB9: =IF(AA9=0,0,(AA9*((LOG(AA9))/LOG(2)))) -> 0 | AD9: =N9 -> 121 | AE9: =COUNTIF(L62:L88,AD9) -> 0 | AF9: =AE9/(AG4-AE13) -> 0 | AG9: =IF(AF9=0,0,(AF9*((LOG(AF9))/LOG(2)))) -> 0 | AI9: =N9 -> 121 | AJ9: =COUNTIF(L89:L115,AI9) -> 0 | AK9: =AJ9/(AL4-AJ13) -> 0 | AL9: =IF(AK9=0,0,(AK9*((LOG(AK9))/LOG(2)))) -> 0 | AN9: =N9 -> 121 | AO9: =COUNTIF(L116:L143,AN9) -> 0 | AP9: =AO9/(AQ4-AO13) -> 0 | AQ9: =IF(AP9=0,0,(AP9*((LOG(AP9))/LOG(2)))) -> 0 | AS9: =N9 -> 121 | AT9: =COUNTIF(L144:L170,AS9) -> 0 | AU9: =AT9/(AV4-AT13) -> 0 | AV9: =IF(AU9=0,0,(AU9*((LOG(AU9))/LOG(2)))) -> 0
A10: 21 | B10: 395 | C10: 12 | D10: 402 | E10: 24 | F10: 408 | K10: 0 | L10: 212 | N10: 122 | O10: =COUNTIF($L$7:$L$500,N10) -> 1 | P10: =O10/$Q$4 -> 0.006097560976 | Q10: =IF(P10=0,0,(P10*((LOG(P10))/LOG(2)))) -> -0.04486312198 | T10: =N10 -> 122 | U10: =COUNTIF(L7:L33,T10) -> 0 | V10: =U10/(W4-U13) -> 0 | W10: =IF(V10=0,0,(V10*((LOG(V10))/LOG(2)))) -> 0 | Y10: =N10 -> 122 | Z10: =COUNTIF(L34:L61,Y10) -> 1 | AA10: =Z10/(AB4-Z13) -> 0.04545454545 | AB10: =IF(AA10=0,0,(AA10*((LOG(AA10))/LOG(2)))) -> -0.2027014372 | AD10: =N10 -> 122 | AE10: =COUNTIF(L62:L88,AD10) -> 0 | AF10: =AE10/(AG4-AE13) -> 0 | AG10: =IF(AF10=0,0,(AF10*((LOG(AF10))/LOG(2)))) -> 0 | AI10: =N10 -> 122 | AJ10: =COUNTIF(L89:L115,AI10) -> 0 | AK10: =AJ10/(AL4-AJ13) -> 0 | AL10: =IF(AK10=0,0,(AK10*((LOG(AK10))/LOG(2)))) -> 0 | AN10: =N10 -> 122 | AO10: =COUNTIF(L116:L143,AN10) -> 0 | AP10: =AO10/(AQ4-AO13) -> 0 | AQ10: =IF(AP10=0,0,(AP10*((LOG(AP10))/LOG(2)))) -> 0 | AS10: =N10 -> 122 | AT10: =COUNTIF(L144:L170,AS10) -> 0 | AU10: =AT10/(AV4-AT13) -> 0 | AV10: =IF(AU10=0,0,(AU10*((LOG(AU10))/LOG(2)))) -> 0
A11: 21 | B11: 504 | C11: 21 | D11: 506 | E11: 22 | F11: 522 | K11: 0 | L11: 222 | N11: 211 | O11: =COUNTIF($L$7:$L$500,N11) -> 77 | P11: =O11/$Q$4 -> 0.4695121951 | Q11: =IF(P11=0,0,(P11*((LOG(P11))/LOG(2)))) -> -0.5121276873 | T11: =N11 -> 211 | U11: =COUNTIF(L7:L33,T11) -> 10 | V11: =U11/(W4-U13) -> 0.5555555556 | W11: =IF(V11=0,0,(V11*((LOG(V11))/LOG(2)))) -> -0.4711093925 | Y11: =N11 -> 211 | Z11: =COUNTIF(L34:L61,Y11) -> 16 | AA11: =Z11/(AB4-Z13) -> 0.7272727273 | AB11: =IF(AA11=0,0,(AA11*((LOG(AA11))/LOG(2)))) -> -0.3341320863 | AD11: =N11 -> 211 | AE11: =COUNTIF(L62:L88,AD11) -> 16 | AF11: =AE11/(AG4-AE13) -> 0.7619047619 | AG11: =IF(AF11=0,0,(AF11*((LOG(AF11))/LOG(2)))) -> -0.2989085126 | AI11: =N11 -> 211 | AJ11: =COUNTIF(L89:L115,AI11) -> 9 | AK11: =AJ11/(AL4-AJ13) -> 0.3913043478 | AL11: =IF(AK11=0,0,(AK11*((LOG(AK11))/LOG(2)))) -> -0.5296840257 | AN11: =N11 -> 211 | AO11: =COUNTIF(L116:L143,AN11) -> 12 | AP11: =AO11/(AQ4-AO13) -> 0.6315789474 | AQ11: =IF(AP11=0,0,(AP11*((LOG(AP11))/LOG(2)))) -> -0.4187147449 | AS11: =N11 -> 211 | AT11: =COUNTIF(L144:L170,AS11) -> 14 | AU11: =AT11/(AV4-AT13) -> 0.6666666667 | AV11: =IF(AU11=0,0,(AU11*((LOG(AU11))/LOG(2)))) -> -0.3899750005
A12: 21 | B12: 619 | C12: 12 | D12: 630 | E12: 13 | F12: 635 | K12: 0 | L12: 211 | N12: 212 | O12: =COUNTIF($L$7:$L$500,N12) -> 26 | P12: =O12/$Q$4 -> 0.1585365854 | Q12: =IF(P12=0,0,(P12*((LOG(P12))/LOG(2)))) -> -0.4212495088 | T12: =N12 -> 212 | U12: =COUNTIF(L7:L33,T12) -> 5 | V12: =U12/(W4-U13) -> 0.2777777778 | W12: =IF(V12=0,0,(V12*((LOG(V12))/LOG(2)))) -> -0.513332474 | Y12: =N12 -> 212 | Z12: =COUNTIF(L34:L61,Y12) -> 1 | AA12: =Z12/(AB4-Z13) -> 0.04545454545 | AB12: =IF(AA12=0,0,(AA12*((LOG(AA12))/LOG(2)))) -> -0.2027014372 | AD12: =N12 -> 212 | AE12: =COUNTIF(L62:L88,AD12) -> 2 | AF12: =AE12/(AG4-AE13) -> 0.09523809524 | AG12: =IF(AF12=0,0,(AF12*((LOG(AF12))/LOG(2)))) -> -0.3230778498 | AI12: =N12 -> 212 | AJ12: =COUNTIF(L89:L115,AI12) -> 10 | AK12: =AJ12/(AL4-AJ13) -> 0.4347826087 | AL12: =IF(AK12=0,0,(AK12*((LOG(AK12))/LOG(2)))) -> -0.5224495049 | AN12: =N12 -> 212 | AO12: =COUNTIF(L116:L143,AN12) -> 5 | AP12: =AO12/(AQ4-AO13) -> 0.2631578947 | AQ12: =IF(AP12=0,0,(AP12*((LOG(AP12))/LOG(2)))) -> -0.5068419523 | AS12: =N12 -> 212 | AT12: =COUNTIF(L144:L170,AS12) -> 3 | AU12: =AT12/(AV4-AT13) -> 0.1428571429 | AV12: =IF(AU12=0,0,(AU12*((LOG(AU12))/LOG(2)))) -> -0.4010507032
A13: 21 | B13: 730 | C13: 12 | D13: 742 | E13: 24 | F13: 753 | K13: 0 | L13: 212 | N13: 221 | O13: =COUNTIF($L$7:$L$500,N13) -> 40 | P13: =O13/$Q$4 -> 0.243902439 | Q13: =IF(P13=0,0,(P13*((LOG(P13))/LOG(2)))) -> -0.4964936365 | T13: =N13 -> 221 | U13: =COUNTIF(L7:L33,T13) -> 9 | Y13: =N13 -> 221 | Z13: =COUNTIF(L34:L61,Y13) -> 6 | AD13: =N13 -> 221 | AE13: =COUNTIF(L62:L88,AD13) -> 6 | AI13: =N13 -> 221 | AJ13: =COUNTIF(L89:L115,AI13) -> 4 | AN13: =N13 -> 221 | AO13: =COUNTIF(L116:L143,AN13) -> 9 | AS13: =N13 -> 221 | AT13: =COUNTIF(L144:L170,AS13) -> 6
A14: 21 | B14: 850 | C14: 12 | D14: 859 | E14: 13 | F14: 868 | K14: 0 | L14: 211 | N14: 222 | O14: =COUNTIF($L$7:$L$500,N14) -> 16 | P14: =O14/$Q$4 -> 0.09756097561 | Q14: =IF(P14=0,0,(P14*((LOG(P14))/LOG(2)))) -> -0.3275660492 | T14: =N14 -> 222 | U14: =COUNTIF(L7:L33,T14) -> 3 | V14: =U14/(W4-U13) -> 0.1666666667 | W14: =IF(V14=0,0,(V14*((LOG(V14))/LOG(2)))) -> -0.4308270835 | Y14: =N14 -> 222 | Z14: =COUNTIF(L34:L61,Y14) -> 4 | AA14: =Z14/(AB4-Z13) -> 0.1818181818 | AB14: =IF(AA14=0,0,(AA14*((LOG(AA14))/LOG(2)))) -> -0.4471693852 | AD14: =N14 -> 222 | AE14: =COUNTIF(L62:L88,AD14) -> 2 | AF14: =AE14/(AG4-AE13) -> 0.09523809524 | AG14: =IF(AF14=0,0,(AF14*((LOG(AF14))/LOG(2)))) -> -0.3230778498 | AI14: =N14 -> 222 | AJ14: =COUNTIF(L89:L115,AI14) -> 3 | AK14: =AJ14/(AL4-AJ13) -> 0.1304347826 | AL14: =IF(AK14=0,0,(AK14*((LOG(AK14))/LOG(2)))) -> -0.3832955811 | AN14: =N14 -> 222 | AO14: =COUNTIF(L116:L143,AN14) -> 1 | AP14: =AO14/(AQ4-AO13) -> 0.05263157895 | AQ14: =IF(AP14=0,0,(AP14*((LOG(AP14))/LOG(2)))) -> -0.2235751323 | AS14: =N14 -> 222 | AT14: =COUNTIF(L144:L170,AS14) -> 3 | AU14: =AT14/(AV4-AT13) -> 0.1428571429 | AV14: =IF(AU14=0,0,(AU14*((LOG(AU14))/LOG(2)))) -> -0.4010507032
A15: 21 | B15: 968 | C15: 21 | D15: 971 | E15: 11 | F15: 982 | K15: 0 | L15: 221 | P15: =SUM(P7:P14) -> 1 | Q15: =-SUM(Q7:Q14) -> 1.952759275 | V15: =SUM(V7:V14) -> 1 | W15: =-SUM(W7:W14) -> 1.41526895 | AA15: =SUM(AA7:AA14) -> 1 | AB15: =-SUM(AB7:AB14) -> 1.186704346 | AF15: =SUM(AF7:AF14) -> 1 | AG15: =-SUM(AG7:AG14) -> 1.154222185 | AK15: =SUM(AK7:AK14) -> 1 | AL15: =-SUM(AL7:AL14) -> 1.632105718 | AP15: =SUM(AP7:AP14) -> 1 | AQ15: =-SUM(AQ7:AQ14) -> 1.372706962 | AU15: =SUM(AU7:AU14) -> 1 | AV15: =-SUM(AV7:AV14) -> 1.401234379
A16: 21 | B16: 1112 | C16: 21 | D16: 1116 | E16: 11 | F16: 1124 | K16: 0 | L16: 221 | P16: U= | Q16: =Q15/(LOG(Q4)/LOG(2)) -> 0.2654088308 | V16: U1= | W16: =W15/(LOG(W4)/LOG(2)) -> 0.2976450966 | AA16: U2= | AB16: =AB15/(LOG(AB4)/LOG(2)) -> 0.2468518271 | AF16: U3= | AG16: =AG15/(LOG(AG4)/LOG(2)) -> 0.2427443728 | AK16: U4= | AL16: =AL15/(LOG(AL4)/LOG(2)) -> 0.3432480196 | AP16: U5= | AQ16: =AQ15/(LOG(AQ4)/LOG(2)) -> 0.2855430864 | AU16: U6= | AV16: =AV15/(LOG(AV4)/LOG(2)) -> 0.2946934872
A17: 21 | B17: 1217 | C17: 12 | D17: 1227 | E17: 13 | F17: 1231 | K17: 0 | L17: 211
A18: 21 | B18: 1324 | C18: 21 | D18: 1326 | E18: 11 | F18: 1340 | K18: 0 | L18: 221
A19: 21 | B19: 1432 | C19: 21 | D19: 1436 | E19: 11 | F19: 1451 | K19: 0 | L19: 221 | N19: Total Target Seq
A20: 21 | B20: 1580 | C20: 21 | D20: 1583 | E20: 11 | F20: 1592 | K20: 0 | L20: 221 | N20: =COUNTIF(L7:L170,G3) -> 40 | P20: 27 | Q20: 28 | R20: 27 | S20: 27 | T20: 28 | U20: 27
A21: 21 | B21: 1684 | C21: 12 | D21: 1698 | E21: 13 | F21: 1703 | K21: 0 | L21: 211 | P21: % of reinforcement given in 6 equal intervals based on number of trials
A22: 21 | B22: 1801 | C22: 12 | D22: 1810 | E22: 13 | F22: 1816 | K22: 0 | L22: 211 | P22: %_1 | Q22: %_2 | R22: %_3 | S22: %_4 | T22: %_5 | U22: %_6
A23: 21 | B23: 1910 | C23: 12 | D23: 1918 | E23: 13 | F23: 1923 | K23: 0 | L23: 211 | O23: target sequence | P23: =$G$3 -> 221 | Q23: =$G$3 -> 221 | R23: =$G$3 -> 221 | S23: =$G$3 -> 221 | T23: =$G$3 -> 221 | U23: =$G$3 -> 221
A24: 21 | B24: 2022 | C24: 12 | D24: 2030 | E24: 13 | F24: 2032 | K24: 0 | L24: 211 | O24: total reinforcement | P24: =U13 -> 9 | Q24: =Z13 -> 6 | R24: =AE13 -> 6 | S24: =AJ13 -> 4 | T24: =AO13 -> 9 | U24: =AT13 -> 6
A25: 21 | B25: 2127 | C25: 12 | D25: 2134 | E25: 13 | F25: 2140 | K25: 0 | L25: 211 | O25: % target
A26: 21 | B26: 2236 | C26: 12 | D26: 2244 | E26: 13 | F26: 2247 | K26: 0 | L26: 211 | O26: CCRF
A27: 21 | B27: 2342 | C27: 12 | D27: 2352 | E27: 24 | F27: 2362 | K27: 0 | L27: 212 | O27: % CCRf
A28: 21 | B28: 2459 | C28: 21 | D28: 2462 | E28: 11 | F28: 2472 | K28: 0 | L28: 221 | O28: average response rate | P28: =F33/P20 -> 116.1111111 | Q28: =(F61-F33)/Q20 -> 122.6071429 | R28: =(F88-F61)/R20 -> 123.6666667 | S28: =(F115-F88)/S20 -> 135.2962963 | T28: =(F143-F115)/T20 -> 147.7857143 | U28: =(F170-F143)/U20 -> 218.1481481
A29: 21 | B29: 2666 | C29: 12 | D29: 2678 | E29: 13 | F29: 2680 | K29: 0 | L29: 211
A30: 21 | B30: 2775 | C30: 21 | D30: 2777 | E30: 11 | F30: 2786 | K30: 0 | L30: 221
A31: 21 | B31: 2907 | C31: 12 | D31: 2922 | E31: 24 | F31: 2927 | K31: 0 | L31: 212
A32: 21 | B32: 3020 | C32: 21 | D32: 3025 | E32: 11 | F32: 3035 | K32: 0 | L32: 221
A33: 21 | B33: 3123 | C33: 21 | D33: 3126 | E33: 11 | F33: 3135 | K33: 0 | L33: 221
A34: 21 | B34: 3324 | C34: 12 | D34: 3332 | E34: 13 | F34: 3338 | K34: 0 | L34: 211
A35: 21 | B35: 3435 | C35: 12 | D35: 3446 | E35: 13 | F35: 3453 | K35: 0 | L35: 211
A36: 21 | B36: 3549 | C36: 21 | D36: 3552 | E36: 11 | F36: 3560 | K36: 0 | L36: 221
A37: 21 | B37: 3662 | C37: 21 | D37: 3667 | E37: 22 | F37: 3670 | K37: 0 | L37: 222
A38: 21 | B38: 3764 | C38: 12 | D38: 3773 | E38: 13 | F38: 3778 | K38: 0 | L38: 211
A39: 21 | B39: 3874 | C39: 21 | D39: 3877 | E39: 11 | F39: 3888 | K39: 0 | L39: 221
A40: 21 | B40: 4035 | C40: 12 | D40: 4047 | E40: 24 | F40: 4051 | K40: 0 | L40: 212
A41: 21 | B41: 4149 | C41: 12 | D41: 4156 | E41: 13 | F41: 4162 | K41: 0 | L41: 211
A42: 21 | B42: 4260 | C42: 12 | D42: 4267 | E42: 13 | F42: 4274 | K42: 0 | L42: 211
A43: 21 | B43: 4369 | C43: 12 | D43: 4377 | E43: 13 | F43: 4384 | K43: 0 | L43: 211
A44: 21 | B44: 4480 | C44: 21 | D44: 4482 | E44: 11 | F44: 4497 | K44: 0 | L44: 221
A45: 21 | B45: 4671 | C45: 12 | D45: 4682 | E45: 13 | F45: 4687 | K45: 0 | L45: 211
A46: 21 | B46: 4780 | C46: 12 | D46: 4789 | E46: 13 | F46: 4793 | K46: 0 | L46: 211
A47: 21 | B47: 4889 | C47: 12 | D47: 4897 | E47: 13 | F47: 4902 | K47: 0 | L47: 211
A48: 21 | B48: 4999 | C48: 12 | D48: 5007 | E48: 13 | F48: 5013 | K48: 0 | L48: 211
A49: 21 | B49: 5110 | C49: 12 | D49: 5120 | E49: 13 | F49: 5126 | K49: 0 | L49: 211
A50: 21 | B50: 5223 | C50: 12 | D50: 5233 | E50: 13 | F50: 5236 | K50: 0 | L50: 211
A51: 21 | B51: 5331 | C51: 12 | D51: 5339 | E51: 13 | F51: 5344 | K51: 0 | L51: 211
A52: 21 | B52: 5443 | C52: 12 | D52: 5450 | E52: 13 | F52: 5455 | K52: 0 | L52: 211
A53: 21 | B53: 5551 | C53: 21 | D53: 5553 | E53: 11 | F53: 5564 | K53: 0 | L53: 221
A54: 21 | B54: 5701 | C54: 21 | D54: 5709 | E54: 22 | F54: 5712 | K54: 0 | L54: 222
A55: 12 | B55: 5811 | C55: 23 | D55: 5817 | E55: 24 | F55: 5821 | K55: 0 | L55: 122
A56: 21 | B56: 5916 | C56: 12 | D56: 5923 | E56: 13 | F56: 5926 | K56: 0 | L56: 211
A57: 21 | B57: 6021 | C57: 21 | D57: 6025 | E57: 11 | F57: 6032 | K57: 0 | L57: 221
A58: 21 | B58: 6190 | C58: 21 | D58: 6193 | E58: 22 | F58: 6198 | K58: 0 | L58: 222
A59: 21 | B59: 6294 | C59: 21 | D59: 6296 | E59: 11 | F59: 6307 | K59: 0 | L59: 221
A60: 21 | B60: 6441 | C60: 21 | D60: 6452 | E60: 22 | F60: 6463 | K60: 0 | L60: 222
A61: 21 | B61: 6557 | C61: 12 | D61: 6563 | E61: 13 | F61: 6568 | K61: 0 | L61: 211
A62: 21 | B62: 6662 | C62: 21 | D62: 6665 | E62: 11 | F62: 6671 | K62: 0 | L62: 221
A63: 21 | B63: 6852 | C63: 12 | D63: 6861 | E63: 13 | F63: 6865 | K63: 0 | L63: 211
A64: 21 | B64: 6959 | C64: 12 | D64: 6966 | E64: 13 | F64: 6971 | K64: 0 | L64: 211
A65: 21 | B65: 7066 | C65: 12 | D65: 7072 | E65: 13 | F65: 7079 | K65: 0 | L65: 211
A66: 21 | B66: 7175 | C66: 12 | D66: 7185 | E66: 13 | F66: 7191 | K66: 0 | L66: 211
A67: 21 | B67: 7288 | C67: 12 | D67: 7295 | E67: 13 | F67: 7300 | K67: 0 | L67: 211
A68: 21 | B68: 7395 | C68: 12 | D68: 7403 | E68: 13 | F68: 7409 | K68: 0 | L68: 211
A69: 21 | B69: 7505 | C69: 21 | D69: 7507 | E69: 11 | F69: 7514 | K69: 0 | L69: 221
A70: 21 | B70: 7637 | C70: 21 | D70: 7640 | E70: 22 | F70: 7645 | K70: 0 | L70: 222
A71: 12 | B71: 7747 | C71: 14 | D71: 7752 | E71: 24 | F71: 7757 | K71: 0 | L71: 112
A72: 21 | B72: 7860 | C72: 21 | D72: 7862 | E72: 22 | F72: 7871 | K72: 0 | L72: 222
A73: 21 | B73: 7969 | C73: 12 | D73: 7981 | E73: 24 | F73: 7985 | K73: 0 | L73: 212
A74: 21 | B74: 8080 | C74: 21 | D74: 8082 | E74: 11 | F74: 8089 | K74: 0 | L74: 221
A75: 21 | B75: 8309 | C75: 12 | D75: 8321 | E75: 13 | F75: 8326 | K75: 0 | L75: 211
A76: 21 | B76: 8423 | C76: 12 | D76: 8431 | E76: 13 | F76: 8437 | K76: 0 | L76: 211
A77: 21 | B77: 8533 | C77: 12 | D77: 8546 | E77: 13 | F77: 8555 | K77: 0 | L77: 211
A78: 21 | B78: 8651 | C78: 12 | D78: 8660 | E78: 13 | F78: 8666 | K78: 0 | L78: 211
A79: 21 | B79: 8761 | C79: 21 | D79: 8765 | E79: 11 | F79: 8772 | K79: 0 | L79: 221
A80: 21 | B80: 8913 | C80: 12 | D80: 8922 | E80: 13 | F80: 8925 | K80: 0 | L80: 211
A81: 21 | B81: 9056 | C81: 21 | D81: 9060 | E81: 11 | F81: 9072 | K81: 0 | L81: 221
A82: 21 | B82: 9184 | C82: 12 | D82: 9200 | E82: 13 | F82: 9205 | K82: 0 | L82: 211
A83: 21 | B83: 9301 | C83: 12 | D83: 9309 | E83: 13 | F83: 9315 | K83: 0 | L83: 211
A84: 21 | B84: 9410 | C84: 12 | D84: 9421 | E84: 24 | F84: 9431 | K84: 0 | L84: 212
A85: 21 | B85: 9525 | C85: 12 | D85: 9532 | E85: 13 | F85: 9537 | K85: 0 | L85: 211
A86: 21 | B86: 9632 | C86: 12 | D86: 9642 | E86: 13 | F86: 9644 | K86: 0 | L86: 211
A87: 21 | B87: 9738 | C87: 21 | D87: 9741 | E87: 11 | F87: 9747 | K87: 0 | L87: 221
A88: 21 | B88: 9893 | C88: 12 | D88: 9902 | E88: 13 | F88: 9907 | K88: 0 | L88: 211
A89: 21 | B89: 10003 | C89: 12 | D89: 10013 | E89: 13 | F89: 10020 | K89: 0 | L89: 211
A90: 21 | B90: 10116 | C90: 12 | D90: 10124 | E90: 24 | F90: 10137 | K90: 0 | L90: 212
A91: 21 | B91: 10233 | C91: 12 | D91: 10242 | E91: 24 | F91: 10254 | K91: 0 | L91: 212
A92: 21 | B92: 10349 | C92: 12 | D92: 10358 | E92: 13 | F92: 10365 | K92: 0 | L92: 211
A93: 21 | B93: 10459 | C93: 21 | D93: 10463 | E93: 11 | F93: 10469 | K93: 0 | L93: 221
A94: 21 | B94: 10672 | C94: 12 | D94: 10679 | E94: 13 | F94: 10687 | K94: 0 | L94: 211
A95: 21 | B95: 10782 | C95: 12 | D95: 10793 | E95: 13 | F95: 10798 | K95: 0 | L95: 211
A96: 21 | B96: 10906 | C96: 12 | D96: 10914 | E96: 13 | F96: 10917 | K96: 0 | L96: 211
A97: 21 | B97: 11014 | C97: 12 | D97: 11022 | E97: 13 | F97: 11028 | K97: 0 | L97: 211
A98: 21 | B98: 11123 | C98: 12 | D98: 11132 | E98: 13 | F98: 11141 | K98: 0 | L98: 211
A99: 21 | B99: 11239 | C99: 12 | D99: 11250 | E99: 24 | F99: 11255 | K99: 0 | L99: 212
A100: 21 | B100: 11351 | C100: 21 | D100: 11353 | E100: 11 | F100: 11361 | K100: 0 | L100: 221
A101: 21 | B101: 11875 | C101: 21 | D101: 11880 | E101: 22 | F101: 11891 | K101: 0 | L101: 222
A102: 21 | B102: 11989 | C102: 12 | D102: 11999 | E102: 24 | F102: 12018 | K102: 0 | L102: 212
A103: 21 | B103: 12122 | C103: 21 | D103: 12129 | E103: 22 | F103: 12136 | K103: 0 | L103: 222
A104: 21 | B104: 12229 | C104: 21 | D104: 12233 | E104: 11 | F104: 12240 | K104: 0 | L104: 221
A105: 21 | B105: 12394 | C105: 21 | D105: 12398 | E105: 22 | F105: 12403 | K105: 0 | L105: 222
A106: 21 | B106: 12498 | C106: 12 | D106: 12510 | E106: 24 | F106: 12524 | K106: 0 | L106: 212
A107: 21 | B107: 12615 | C107: 12 | D107: 12624 | E107: 24 | F107: 12633 | K107: 0 | L107: 212
A108: 21 | B108: 12725 | C108: 21 | D108: 12730 | E108: 11 | F108: 12738 | K108: 0 | L108: 221
A109: 21 | B109: 12879 | C109: 12 | D109: 12887 | E109: 13 | F109: 12889 | K109: 0 | L109: 211
A110: 21 | B110: 12984 | C110: 12 | D110: 12991 | E110: 24 | F110: 13001 | K110: 0 | L110: 212
A111: 21 | B111: 13095 | C111: 12 | D111: 13103 | E111: 24 | F111: 13113 | K111: 0 | L111: 212
A112: 21 | B112: 13209 | C112: 12 | D112: 13217 | E112: 24 | F112: 13227 | K112: 0 | L112: 212
A113: 12 | B113: 13325 | C113: 14 | D113: 13328 | E113: 24 | F113: 13330 | K113: 0 | L113: 112
A114: 21 | B114: 13426 | C114: 12 | D114: 13433 | E114: 24 | F114: 13443 | K114: 0 | L114: 212
A115: 21 | B115: 13540 | C115: 12 | D115: 13553 | E115: 13 | F115: 13560 | K115: 0 | L115: 211
A116: 21 | B116: 13655 | C116: 12 | D116: 13668 | E116: 24 | F116: 13679 | K116: 0 | L116: 212
A117: 21 | B117: 13771 | C117: 21 | D117: 13775 | E117: 11 | F117: 13783 | K117: 0 | L117: 221
A118: 12 | B118: 13937 | C118: 14 | D118: 13943 | E118: 24 | F118: 13945 | K118: 0 | L118: 112
A119: 21 | B119: 14041 | C119: 21 | D119: 14044 | E119: 11 | F119: 14050 | K119: 0 | L119: 221
A120: 21 | B120: 14190 | C120: 12 | D120: 14209 | E120: 13 | F120: 14215 | K120: 0 | L120: 211
A121: 21 | B121: 14310 | C121: 12 | D121: 14327 | E121: 24 | F121: 14334 | K121: 0 | L121: 212
A122: 21 | B122: 14426 | C122: 21 | D122: 14430 | E122: 11 | F122: 14437 | K122: 0 | L122: 221
A123: 21 | B123: 14565 | C123: 12 | D123: 14576 | E123: 24 | F123: 14580 | K123: 0 | L123: 212
A124: 21 | B124: 14675 | C124: 21 | D124: 14677 | E124: 11 | F124: 14685 | K124: 0 | L124: 221
A125: 21 | B125: 14849 | C125: 12 | D125: 14858 | E125: 13 | F125: 14863 | K125: 0 | L125: 211
A126: 21 | B126: 14958 | C126: 12 | D126: 14967 | E126: 13 | F126: 14973 | K126: 0 | L126: 211
A127: 21 | B127: 15070 | C127: 12 | D127: 15085 | E127: 24 | F127: 15098 | K127: 0 | L127: 212
A128: 21 | B128: 15191 | C128: 21 | D128: 15193 | E128: 11 | F128: 15204 | K128: 0 | L128: 221
A129: 21 | B129: 15415 | C129: 12 | D129: 15426 | E129: 13 | F129: 15430 | K129: 0 | L129: 211
A130: 21 | B130: 15526 | C130: 21 | D130: 15531 | E130: 11 | F130: 15539 | K130: 0 | L130: 221
A131: 21 | B131: 15737 | C131: 12 | D131: 15744 | E131: 13 | F131: 15747 | K131: 0 | L131: 211
A132: 21 | B132: 15845 | C132: 12 | D132: 15851 | E132: 13 | F132: 15857 | K132: 0 | L132: 211
A133: 21 | B133: 15955 | C133: 12 | D133: 15966 | E133: 13 | F133: 15973 | K133: 0 | L133: 211
A134: 21 | B134: 16069 | C134: 12 | D134: 16083 | E134: 24 | F134: 16088 | K134: 0 | L134: 212
A135: 21 | B135: 16183 | C135: 21 | D135: 16187 | E135: 11 | F135: 16197 | K135: 0 | L135: 221
A136: 21 | B136: 16352 | C136: 12 | D136: 16363 | E136: 13 | F136: 16369 | K136: 0 | L136: 211
A137: 21 | B137: 16466 | C137: 21 | D137: 16470 | E137: 11 | F137: 16478 | K137: 0 | L137: 221
A138: 21 | B138: 16976 | C138: 12 | D138: 16990 | E138: 13 | F138: 17001 | K138: 0 | L138: 211
A139: 21 | B139: 17097 | C139: 12 | D139: 17106 | E139: 13 | F139: 17112 | K139: 0 | L139: 211
A140: 21 | B140: 17206 | C140: 12 | D140: 17217 | E140: 13 | F140: 17225 | K140: 0 | L140: 211
A141: 21 | B141: 17317 | C141: 21 | D141: 17321 | E141: 11 | F141: 17346 | K141: 0 | L141: 221
A142: 21 | B142: 17580 | C142: 12 | D142: 17590 | E142: 13 | F142: 17600 | K142: 0 | L142: 211
A143: 21 | B143: 17691 | C143: 21 | D143: 17695 | E143: 22 | F143: 17698 | K143: 0 | L143: 222
A144: 21 | B144: 17793 | C144: 12 | D144: 17806 | E144: 13 | F144: 17818 | K144: 0 | L144: 211
A145: 21 | B145: 17915 | C145: 12 | D145: 17924 | E145: 24 | F145: 17941 | K145: 0 | L145: 212
A146: 21 | B146: 18038 | C146: 12 | D146: 18047 | E146: 13 | F146: 18057 | K146: 0 | L146: 211
A147: 21 | B147: 18152 | C147: 12 | D147: 18165 | E147: 13 | F147: 18174 | K147: 0 | L147: 211
A148: 21 | B148: 18266 | C148: 21 | D148: 18269 | E148: 11 | F148: 18277 | K148: 0 | L148: 221
A149: 12 | B149: 18411 | C149: 14 | D149: 18415 | E149: 13 | F149: 18425 | K149: 0 | L149: 111
A150: 21 | B150: 18522 | C150: 12 | D150: 18530 | E150: 13 | F150: 18538 | K150: 0 | L150: 211
A151: 21 | B151: 18635 | C151: 12 | D151: 18642 | E151: 13 | F151: 18647 | K151: 0 | L151: 211
A152: 21 | B152: 18743 | C152: 12 | D152: 18753 | E152: 24 | F152: 18766 | K152: 0 | L152: 212
A153: 21 | B153: 18860 | C153: 12 | D153: 18870 | E153: 13 | F153: 18872 | K153: 0 | L153: 211
A154: 21 | B154: 18969 | C154: 12 | D154: 18981 | E154: 13 | F154: 18989 | K154: 0 | L154: 211
A155: 21 | B155: 19081 | C155: 12 | D155: 19092 | E155: 13 | F155: 19100 | K155: 0 | L155: 211
A156: 21 | B156: 19196 | C156: 21 | D156: 19200 | E156: 11 | F156: 19210 | K156: 0 | L156: 221
A157: 21 | B157: 19404 | C157: 12 | D157: 19416 | E157: 13 | F157: 19422 | K157: 0 | L157: 211
A158: 21 | B158: 19516 | C158: 21 | D158: 19520 | E158: 11 | F158: 19528 | K158: 0 | L158: 221
A159: 21 | B159: 20033 | C159: 21 | D159: 20037 | E159: 11 | F159: 20046 | K159: 0 | L159: 221
A160: 21 | B160: 21401 | C160: 12 | D160: 21414 | E160: 13 | F160: 21421 | K160: 0 | L160: 211
A161: 21 | B161: 21525 | C161: 21 | D161: 21529 | E161: 22 | F161: 21541 | K161: 0 | L161: 222
A162: 21 | B162: 21637 | C162: 12 | D162: 21646 | E162: 13 | F162: 21656 | K162: 0 | L162: 211
A163: 21 | B163: 21753 | C163: 21 | D163: 21758 | E163: 11 | F163: 21766 | K163: 0 | L163: 221
A164: 21 | B164: 22902 | C164: 21 | D164: 22905 | E164: 22 | F164: 22913 | K164: 0 | L164: 222
A165: 21 | B165: 23011 | C165: 12 | D165: 23019 | E165: 13 | F165: 23024 | K165: 0 | L165: 211
A166: 21 | B166: 23118 | C166: 12 | D166: 23129 | E166: 13 | F166: 23141 | K166: 0 | L166: 211
A167: 21 | B167: 23237 | C167: 12 | D167: 23246 | E167: 13 | F167: 23254 | K167: 0 | L167: 211
A168: 21 | B168: 23351 | C168: 21 | D168: 23355 | E168: 22 | F168: 23360 | K168: 0 | L168: 222
A169: 21 | B169: 23454 | C169: 12 | D169: 23463 | E169: 24 | F169: 23481 | K169: 0 | L169: 212
A170: 21 | B170: 23574 | C170: 21 | D170: 23577 | E170: 11 | F170: 23588 | K170: 1 | L170: 221

Sheet !MA10A3T.AYL
A1: Report for:!MA10A3T.AYL
A2: Date: | B2: <date>
A3: Hen: | B3: <hen> | F3: Correct Sequence | G3: =Start!J2 -> 221 | P3: Total Sequences in Data | Q3: =4994-COUNTBLANK(L7:L5000) -> 127 | V3: Total Sequences in Block Data | W3: =COUNTA(L7:L27) -> 21 | AA3: Total Sequences in Block Data | AB3: =COUNTA(L28:L48) -> 21 | AF3: Total Sequences in Block Data | AG3: =COUNTA(L49:L70) -> 22 | AK3: Total Sequences in Block Data | AL3: =COUNTA(L71:L91) -> 21 | AP3: Total Sequences in Block Data | AQ3: =COUNTA(L92:L112) -> 21 | AU3: Total Sequences in Block Data | AV3: =COUNTA(L113:L133) -> 21
P4: Total Sequences in Summary | Q4: =SUM(O7:O14) -> 127 | V4: Total Sequences in Block Summary | W4: =SUM(U7:U14) -> 21 | AA4: Total Sequences in Block Summary | AB4: =SUM(Z7:Z14) -> 21 | AF4: Total Sequences in Block Summary | AG4: =SUM(AE7:AE14) -> 22 | AK4: Total Sequences in Block Summary | AL4: =SUM(AJ7:AJ14) -> 21 | AP4: Total Sequences in Block Summary | AQ4: =SUM(AO7:AO14) -> 21 | AU4: Total Sequences in Block Summary | AV4: =SUM(AT7:AT14) -> 21
T5: Block 1 | Y5: Block 2 | AD5: Block 3 | AI5: Block 4 | AN5: Block 5 | AS5: Block 6
A6: Sequence Component 1 | B6: Time 1 | C6: Sequence Component 2 | D6: Time 2 | E6: Sequence Component 3 | F6: Time 3 | G6: Sequence Component 4 | H6: Time 4 | I6: Sequence Component 5 | J6: Time 5 | K6: Correct? 0=No 1=Yes | L6: Sequence | N6: Frequency | P6: Relative Frequency | Q6: Variability | T6: Frequency | V6: Relative Frequency | W6: Variability | Y6: Frequency | AA6: Relative Frequency | AB6: Variability | AD6: Frequency | AF6: Relative Frequency | AG6: Variability | AI6: Frequency | AK6: Relative Frequency | AL6: Variability | AN6: Frequency | AP6: Relative Frequency | AQ6: Variability | AS6: Frequency | AU6: Relative Frequency | AV6: Variability
A7: 12 | B7: 7 | C7: 14 | D7: 12 | E7: 13 | F7: 14 | K7: 0 | L7: 111 | N7: 111 | O7: =COUNTIF($L$7:$L$500,N7) -> 5 | P7: =O7/$Q$4 -> 0.03937007874 | Q7: =IF(P7=0,0,(P7*((LOG(P7))/LOG(2)))) -> -0.1837305745 | T7: =N7 -> 111 | U7: =COUNTIF(L7:L27,T7) -> 2 | V7: =U7/(W4-U13) -> 0.1176470588 | W7: =IF(V7=0,0,(V7*((LOG(V7))/LOG(2)))) -> -0.3632309225 | Y7: =N7 -> 111 | Z7: =COUNTIF(L28:L48,Y7) -> 1 | AA7: =Z7/(AB4-Z13) -> 0.06666666667 | AB7: =IF(AA7=0,0,(AA7*((LOG(AA7))/LOG(2)))) -> -0.260459373 | AD7: =N7 -> 111 | AE7: =COUNTIF(L49:L70,AD7) -> 0 | AF7: =AE7/(AG4-AE13) -> 0 | AG7: =IF(AF7=0,0,(AF7*((LOG(AF7))/LOG(2)))) -> 0 | AI7: =N7 -> 111 | AJ7: =COUNTIF(L71:L91,AI7) -> 1 | AK7: =AJ7/(AL4-AJ13) -> 0.07142857143 | AL7: =IF(AK7=0,0,(AK7*((LOG(AK7))/LOG(2)))) -> -0.271953923 | AN7: =N7 -> 111 | AO7: =COUNTIF(L92:L112,AN7) -> 0 | AP7: =AO7/(AQ4-AO13) -> 0 | AQ7: =IF(AP7=0,0,(AP7*((LOG(AP7))/LOG(2)))) -> 0 | AS7: =N7 -> 111 | AT7: =COUNTIF(L113:L133,AS7) -> 1 | AU7: =AT7/(AV4-AT13) -> 0.0625 | AV7: =IF(AU7=0,0,(AU7*((LOG(AU7))/LOG(2)))) -> -0.25
A8: 21 | B8: 112 | C8: 12 | D8: 119 | E8: 13 | F8: 126 | K8: 0 | L8: 211 | N8: 112 | O8: =COUNTIF($L$7:$L$500,N8) -> 0 | P8: =O8/$Q$4 -> 0 | Q8: =IF(P8=0,0,(P8*((LOG(P8))/LOG(2)))) -> 0 | T8: =N8 -> 112 | U8: =COUNTIF(L7:L27,T8) -> 0 | V8: =U8/(W4-U13) -> 0 | W8: =IF(V8=0,0,(V8*((LOG(V8))/LOG(2)))) -> 0 | Y8: =N8 -> 112 | Z8: =COUNTIF(L28:L48,Y8) -> 0 | AA8: =Z8/(AB4-Z13) -> 0 | AB8: =IF(AA8=0,0,(AA8*((LOG(AA8))/LOG(2)))) -> 0 | AD8: =N8 -> 112 | AE8: =COUNTIF(L49:L70,AD8) -> 0 | AF8: =AE8/(AG4-AE13) -> 0 | AG8: =IF(AF8=0,0,(AF8*((LOG(AF8))/LOG(2)))) -> 0 | AI8: =N8 -> 112 | AJ8: =COUNTIF(L71:L91,AI8) -> 0 | AK8: =AJ8/(AL4-AJ13) -> 0 | AL8: =IF(AK8=0,0,(AK8*((LOG(AK8))/LOG(2)))) -> 0 | AN8: =N8 -> 112 | AO8: =COUNTIF(L92:L112,AN8) -> 0 | AP8: =AO8/(AQ4-AO13) -> 0 | AQ8: =IF(AP8=0,0,(AP8*((LOG(AP8))/LOG(2)))) -> 0 | AS8: =N8 -> 112 | AT8: =COUNTIF(L113:L133,AS8) -> 0 | AU8: =AT8/(AV4-AT13) -> 0 | AV8: =IF(AU8=0,0,(AU8*((LOG(AU8))/LOG(2)))) -> 0
A9: 21 | B9: 222 | C9: 12 | D9: 231 | E9: 13 | F9: 239 | K9: 0 | L9: 211 | N9: 121 | O9: =COUNTIF($L$7:$L$500,N9) -> 0 | P9: =O9/$Q$4 -> 0 | Q9: =IF(P9=0,0,(P9*((LOG(P9))/LOG(2)))) -> 0 | T9: =N9 -> 121 | U9: =COUNTIF(L7:L27,T9) -> 0 | V9: =U9/(W4-U13) -> 0 | W9: =IF(V9=0,0,(V9*((LOG(V9))/LOG(2)))) -> 0 | Y9: =N9 -> 121 | Z9: =COUNTIF(L28:L48,Y9) -> 0 | AA9: =Z9/(AB4-Z13) -> 0 | AB9: =IF(AA9=0,0,(AA9*((LOG(AA9))/LOG(2)))) -> 0 | AD9: =N9 -> 121 | AE9: =COUNTIF(L49:L70,AD9) -> 0 | AF9: =AE9/(AG4-AE13) -> 0 | AG9: =IF(AF9=0,0,(AF9*((LOG(AF9))/LOG(2)))) -> 0 | AI9: =N9 -> 121 | AJ9: =COUNTIF(L71:L91,AI9) -> 0 | AK9: =AJ9/(AL4-AJ13) -> 0 | AL9: =IF(AK9=0,0,(AK9*((LOG(AK9))/LOG(2)))) -> 0 | AN9: =N9 -> 121 | AO9: =COUNTIF(L92:L112,AN9) -> 0 | AP9: =AO9/(AQ4-AO13) -> 0 | AQ9: =IF(AP9=0,0,(AP9*((LOG(AP9))/LOG(2)))) -> 0 | AS9: =N9 -> 121 | AT9: =COUNTIF(L113:L133,AS9) -> 0 | AU9: =AT9/(AV4-AT13) -> 0 | AV9: =IF(AU9=0,0,(AU9*((LOG(AU9))/LOG(2)))) -> 0
A10: 21 | B10: 332 | C10: 21 | D10: 336 | E10: 11 | F10: 350 | K10: 0 | L10: 221 | N10: 122 | O10: =COUNTIF($L$7:$L$500,N10) -> 2 | P10: =O10/$Q$4 -> 0.0157480315 | Q10: =IF(P10=0,0,(P10*((LOG(P10))/LOG(2)))) -> -0.09430999507 | T10: =N10 -> 122 | U10: =COUNTIF(L7:L27,T10) -> 1 | V10: =U10/(W4-U13) -> 0.05882352941 | W10: =IF(V10=0,0,(V10*((LOG(V10))/LOG(2)))) -> -0.2404389907 | Y10: =N10 -> 122 | Z10: =COUNTIF(L28:L48,Y10) -> 1 | AA10: =Z10/(AB4-Z13) -> 0.06666666667 | AB10: =IF(AA10=0,0,(AA10*((LOG(AA10))/LOG(2)))) -> -0.260459373 | AD10: =N10 -> 122 | AE10: =COUNTIF(L49:L70,AD10) -> 0 | AF10: =AE10/(AG4-AE13) -> 0 | AG10: =IF(AF10=0,0,(AF10*((LOG(AF10))/LOG(2)))) -> 0 | AI10: =N10 -> 122 | AJ10: =COUNTIF(L71:L91,AI10) -> 0 | AK10: =AJ10/(AL4-AJ13) -> 0 | AL10: =IF(AK10=0,0,(AK10*((LOG(AK10))/LOG(2)))) -> 0 | AN10: =N10 -> 122 | AO10: =COUNTIF(L92:L112,AN10) -> 0 | AP10: =AO10/(AQ4-AO13) -> 0 | AQ10: =IF(AP10=0,0,(AP10*((LOG(AP10))/LOG(2)))) -> 0 | AS10: =N10 -> 122 | AT10: =COUNTIF(L113:L133,AS10) -> 0 | AU10: =AT10/(AV4-AT13) -> 0 | AV10: =IF(AU10=0,0,(AU10*((LOG(AU10))/LOG(2)))) -> 0
A11: 21 | B11: 486 | C11: 21 | D11: 491 | E11: 11 | F11: 505 | K11: 0 | L11: 221 | N11: 211 | O11: =COUNTIF($L$7:$L$500,N11) -> 57 | P11: =O11/$Q$4 -> 0.4488188976 | Q11: =IF(P11=0,0,(P11*((LOG(P11))/LOG(2)))) -> -0.5187424909 | T11: =N11 -> 211 | U11: =COUNTIF(L7:L27,T11) -> 10 | V11: =U11/(W4-U13) -> 0.5882352941 | W11: =IF(V11=0,0,(V11*((LOG(V11))/LOG(2)))) -> -0.4503145567 | Y11: =N11 -> 211 | Z11: =COUNTIF(L28:L48,Y11) -> 10 | AA11: =Z11/(AB4-Z13) -> 0.6666666667 | AB11: =IF(AA11=0,0,(AA11*((LOG(AA11))/LOG(2)))) -> -0.3899750005 | AD11: =N11 -> 211 | AE11: =COUNTIF(L49:L70,AD11) -> 6 | AF11: =AE11/(AG4-AE13) -> 0.5 | AG11: =IF(AF11=0,0,(AF11*((LOG(AF11))/LOG(2)))) -> -0.5 | AI11: =N11 -> 211 | AJ11: =COUNTIF(L71:L91,AI11) -> 11 | AK11: =AJ11/(AL4-AJ13) -> 0.7857142857 | AL11: =IF(AK11=0,0,(AK11*((LOG(AK11))/LOG(2)))) -> -0.2733683098 | AN11: =N11 -> 211 | AO11: =COUNTIF(L92:L112,AN11) -> 10 | AP11: =AO11/(AQ4-AO13) -> 0.7692307692 | AQ11: =IF(AP11=0,0,(AP11*((LOG(AP11))/LOG(2)))) -> -0.2911627871 | AS11: =N11 -> 211 | AT11: =COUNTIF(L113:L133,AS11) -> 10 | AU11: =AT11/(AV4-AT13) -> 0.625 | AV11: =IF(AU11=0,0,(AU11*((LOG(AU11))/LOG(2)))) -> -0.4237949407
A12: 21 | B12: 638 | C12: 12 | D12: 646 | E12: 13 | F12: 651 | K12: 0 | L12: 211 | N12: 212 | O12: =COUNTIF($L$7:$L$500,N12) -> 13 | P12: =O12/$Q$4 -> 0.1023622047 | Q12: =IF(P12=0,0,(P12*((LOG(P12))/LOG(2)))) -> -0.3365920047 | T12: =N12 -> 212 | U12: =COUNTIF(L7:L27,T12) -> 2 | V12: =U12/(W4-U13) -> 0.1176470588 | W12: =IF(V12=0,0,(V12*((LOG(V12))/LOG(2)))) -> -0.3632309225 | Y12: =N12 -> 212 | Z12: =COUNTIF(L28:L48,Y12) -> 2 | AA12: =Z12/(AB4-Z13) -> 0.1333333333 | AB12: =IF(AA12=0,0,(AA12*((LOG(AA12))/LOG(2)))) -> -0.3875854127 | AD12: =N12 -> 212 | AE12: =COUNTIF(L49:L70,AD12) -> 3 | AF12: =AE12/(AG4-AE13) -> 0.25 | AG12: =IF(AF12=0,0,(AF12*((LOG(AF12))/LOG(2)))) -> -0.5 | AI12: =N12 -> 212 | AJ12: =COUNTIF(L71:L91,AI12) -> 2 | AK12: =AJ12/(AL4-AJ13) -> 0.1428571429 | AL12: =IF(AK12=0,0,(AK12*((LOG(AK12))/LOG(2)))) -> -0.4010507032 | AN12: =N12 -> 212 | AO12: =COUNTIF(L92:L112,AN12) -> 2 | AP12: =AO12/(AQ4-AO13) -> 0.1538461538 | AQ12: =IF(AP12=0,0,(AP12*((LOG(AP12))/LOG(2)))) -> -0.4154522643 | AS12: =N12 -> 212 | AT12: =COUNTIF(L113:L133,AS12) -> 2 | AU12: =AT12/(AV4-AT13) -> 0.125 | AV12: =IF(AU12=0,0,(AU12*((LOG(AU12))/LOG(2)))) -> -0.375
A13: 21 | B13: 754 | C13: 21 | D13: 758 | E13: 22 | F13: 760 | K13: 0 | L13: 222 | N13: 221 | O13: =COUNTIF($L$7:$L$500,N13) -> 40 | P13: =O13/$Q$4 -> 0.3149606299 | Q13: =IF(P13=0,0,(P13*((LOG(P13))/LOG(2)))) -> -0.5249627061 | T13: =N13 -> 221 | U13: =COUNTIF(L7:L27,T13) -> 4 | Y13: =N13 -> 221 | Z13: =COUNTIF(L28:L48,Y13) -> 6 | AD13: =N13 -> 221 | AE13: =COUNTIF(L49:L70,AD13) -> 10 | AI13: =N13 -> 221 | AJ13: =COUNTIF(L71:L91,AI13) -> 7 | AN13: =N13 -> 221 | AO13: =COUNTIF(L92:L112,AN13) -> 8 | AS13: =N13 -> 221 | AT13: =COUNTIF(L113:L133,AS13) -> 5
A14: 21 | B14: 855 | C14: 12 | D14: 864 | E14: 13 | F14: 871 | K14: 0 | L14: 211 | N14: 222 | O14: =COUNTIF($L$7:$L$500,N14) -> 10 | P14: =O14/$Q$4 -> 0.07874015748 | Q14: =IF(P14=0,0,(P14*((LOG(P14))/LOG(2)))) -> -0.2887209915 | T14: =N14 -> 222 | U14: =COUNTIF(L7:L27,T14) -> 2 | V14: =U14/(W4-U13) -> 0.1176470588 | W14: =IF(V14=0,0,(V14*((LOG(V14))/LOG(2)))) -> -0.3632309225 | Y14: =N14 -> 222 | Z14: =COUNTIF(L28:L48,Y14) -> 1 | AA14: =Z14/(AB4-Z13) -> 0.06666666667 | AB14: =IF(AA14=0,0,(AA14*((LOG(AA14))/LOG(2)))) -> -0.260459373 | AD14: =N14 -> 222 | AE14: =COUNTIF(L49:L70,AD14) -> 3 | AF14: =AE14/(AG4-AE13) -> 0.25 | AG14: =IF(AF14=0,0,(AF14*((LOG(AF14))/LOG(2)))) -> -0.5 | AI14: =N14 -> 222 | AJ14: =COUNTIF(L71:L91,AI14) -> 0 | AK14: =AJ14/(AL4-AJ13) -> 0 | AL14: =IF(AK14=0,0,(AK14*((LOG(AK14))/LOG(2)))) -> 0 | AN14: =N14 -> 222 | AO14: =COUNTIF(L92:L112,AN14) -> 1 | AP14: =AO14/(AQ4-AO13) -> 0.07692307692 | AQ14: =IF(AP14=0,0,(AP14*((LOG(AP14))/LOG(2)))) -> -0.2846492091 | AS14: =N14 -> 222 | AT14: =COUNTIF(L113:L133,AS14) -> 3 | AU14: =AT14/(AV4-AT13) -> 0.1875 | AV14: =IF(AU14=0,0,(AU14*((LOG(AU14))/LOG(2)))) -> -0.4528195311
A15: 21 | B15: 968 | C15: 12 | D15: 977 | E15: 13 | F15: 983 | K15: 0 | L15: 211 | P15: =SUM(P7:P14) -> 1 | Q15: =-SUM(Q7:Q14) -> 1.947058763 | V15: =SUM(V7:V14) -> 1 | W15: =-SUM(W7:W14) -> 1.780446315 | AA15: =SUM(AA7:AA14) -> 1 | AB15: =-SUM(AB7:AB14) -> 1.558938532 | AF15: =SUM(AF7:AF14) -> 1 | AG15: =-SUM(AG7:AG14) -> 1.5 | AK15: =SUM(AK7:AK14) -> 1 | AL15: =-SUM(AL7:AL14) -> 0.946372936 | AP15: =SUM(AP7:AP14) -> 1 | AQ15: =-SUM(AQ7:AQ14) -> 0.9912642605 | AU15: =SUM(AU7:AU14) -> 1 | AV15: =-SUM(AV7:AV14) -> 1.501614472
A16: 21 | B16: 1090 | C16: 12 | D16: 1104 | E16: 24 | F16: 1110 | K16: 0 | L16: 212 | P16: U= | Q16: =Q15/(LOG(Q4)/LOG(2)) -> 0.2786016039 | V16: U1= | W16: =W15/(LOG(W4)/LOG(2)) -> 0.4053546553 | AA16: U2= | AB16: =AB15/(LOG(AB4)/LOG(2)) -> 0.3549239234 | AF16: U3= | AG16: =AG15/(LOG(AG4)/LOG(2)) -> 0.3363657363 | AK16: U4= | AL16: =AL15/(LOG(AL4)/LOG(2)) -> 0.2154609617 | AP16: U5= | AQ16: =AQ15/(LOG(AQ4)/LOG(2)) -> 0.2256813807 | AU16: U6= | AV16: =AV15/(LOG(AV4)/LOG(2)) -> 0.3418729402
A17: 21 | B17: 1205 | C17: 21 | D17: 1210 | E17: 11 | F17: 1217 | K17: 0 | L17: 221
A18: 12 | B18: 1415 | C18: 14 | D18: 1425 | E18: 13 | F18: 1431 | K18: 0 | L18: 111
A19: 12 | B19: 1538 | C19: 23 | D19: 1550 | E19: 24 | F19: 1554 | K19: 0 | L19: 122 | N19: Total Target Seq
A20: 21 | B20: 1651 | C20: 12 | D20: 1664 | E20: 13 | F20: 1673 | K20: 0 | L20: 211 | N20: =COUNTIF(L7:L133,G3) -> 40 | P20: 21 | Q20: 21 | R20: 22 | S20: 21 | T20: 21 | U20: 21
A21: 21 | B21: 1769 | C21: 12 | D21: 1778 | E21: 13 | F21: 1786 | K21: 0 | L21: 211 | P21: % of reinforcement given in 6 equal intervals based on number of trials
A22: 21 | B22: 1877 | C22: 12 | D22: 1885 | E22: 13 | F22: 1893 | K22: 0 | L22: 211 | P22: %_1 | Q22: %_2 | R22: %_3 | S22: %_4 | T22: %_5 | U22: %_6
A23: 21 | B23: 1988 | C23: 21 | D23: 1991 | E23: 22 | F23: 1994 | K23: 0 | L23: 222 | O23: target sequence | P23: =$G$3 -> 221 | Q23: =$G$3 -> 221 | R23: =$G$3 -> 221 | S23: =$G$3 -> 221 | T23: =$G$3 -> 221 | U23: =$G$3 -> 221
A24: 21 | B24: 2105 | C24: 21 | D24: 2110 | E24: 11 | F24: 2118 | K24: 0 | L24: 221 | O24: total reinforcement | P24: =U13 -> 4 | Q24: =Z13 -> 6 | R24: =AE13 -> 10 | S24: =AJ13 -> 7 | T24: =AO13 -> 8 | U24: =AT13 -> 5
A25: 21 | B25: 2361 | C25: 12 | D25: 2377 | E25: 13 | F25: 2383 | K25: 0 | L25: 211 | O25: % target
A26: 21 | B26: 2478 | C26: 12 | D26: 2493 | E26: 24 | F26: 2507 | K26: 0 | L26: 212 | O26: CCRF
A27: 21 | B27: 2603 | C27: 12 | D27: 2612 | E27: 13 | F27: 2619 | K27: 0 | L27: 211 | O27: % CCRf
A28: 21 | B28: 2715 | C28: 12 | D28: 2725 | E28: 13 | F28: 2738 | K28: 0 | L28: 211 | O28: average response rate | P28: =F27/P20 -> 124.7142857 | Q28: =(F48-F27)/Q20 -> 137.4761905 | R28: =(F70-F48)/R20 -> 130.0454545 | S28: =(F91-F70)/S20 -> 124.952381 | T28: =(F112-F91)/T20 -> 135.3333333 | U28: =(F133-F112)/U20 -> 132.9047619
A29: 21 | B29: 2834 | C29: 12 | D29: 2845 | E29: 13 | F29: 2854 | K29: 0 | L29: 211
A30: 21 | B30: 2950 | C30: 21 | D30: 2956 | E30: 22 | F30: 2960 | K30: 0 | L30: 222
A31: 21 | B31: 3057 | C31: 12 | D31: 3070 | E31: 24 | F31: 3082 | K31: 0 | L31: 212
A32: 21 | B32: 3177 | C32: 21 | D32: 3180 | E32: 11 | F32: 3191 | K32: 0 | L32: 221
A33: 21 | B33: 3306 | C33: 12 | D33: 3315 | E33: 13 | F33: 3322 | K33: 0 | L33: 211
A34: 21 | B34: 3420 | C34: 12 | D34: 3429 | E34: 13 | F34: 3435 | K34: 0 | L34: 211
A35: 21 | B35: 3530 | C35: 21 | D35: 3532 | E35: 11 | F35: 3541 | K35: 0 | L35: 221
A36: 21 | B36: 3707 | C36: 12 | D36: 3715 | E36: 13 | F36: 3721 | K36: 0 | L36: 211
A37: 21 | B37: 3817 | C37: 12 | D37: 3830 | E37: 13 | F37: 3834 | K37: 0 | L37: 211
A38: 21 | B38: 3930 | C38: 21 | D38: 3935 | E38: 11 | F38: 3944 | K38: 0 | L38: 221
A39: 21 | B39: 4151 | C39: 12 | D39: 4159 | E39: 13 | F39: 4166 | K39: 0 | L39: 211
A40: 21 | B40: 4262 | C40: 21 | D40: 4264 | E40: 11 | F40: 4276 | K40: 0 | L40: 221
A41: 21 | B41: 4502 | C41: 12 | D41: 4511 | E41: 13 | F41: 4519 | K41: 0 | L41: 211
A42: 12 | B42: 4628 | C42: 23 | D42: 4636 | E42: 24 | F42: 4639 | K42: 0 | L42: 122
A43: 21 | B43: 4734 | C43: 21 | D43: 4737 | E43: 11 | F43: 4744 | K43: 0 | L43: 221
A44: 21 | B44: 4939 | C44: 12 | D44: 4946 | E44: 13 | F44: 4952 | K44: 0 | L44: 211
A45: 21 | B45: 5049 | C45: 21 | D45: 5052 | E45: 11 | F45: 5059 | K45: 0 | L45: 221
A46: 12 | B46: 5267 | C46: 14 | D46: 5272 | E46: 13 | F46: 5278 | K46: 0 | L46: 111
A47: 21 | B47: 5376 | C47: 12 | D47: 5389 | E47: 24 | F47: 5393 | K47: 0 | L47: 212
A48: 21 | B48: 5487 | C48: 12 | D48: 5499 | E48: 13 | F48: 5506 | K48: 0 | L48: 211
A49: 21 | B49: 5599 | C49: 21 | D49: 5603 | E49: 11 | F49: 5615 | K49: 0 | L49: 221
A50: 21 | B50: 5809 | C50: 12 | D50: 5817 | E50: 13 | F50: 5826 | K50: 0 | L50: 211
A51: 21 | B51: 5923 | C51: 12 | D51: 5933 | E51: 13 | F51: 5946 | K51: 0 | L51: 211
A52: 21 | B52: 6048 | C52: 21 | D52: 6052 | E52: 22 | F52: 6057 | K52: 0 | L52: 222
A53: 21 | B53: 6154 | C53: 21 | D53: 6159 | E53: 11 | F53: 6165 | K53: 0 | L53: 221
A54: 21 | B54: 6329 | C54: 21 | D54: 6332 | E54: 11 | F54: 6344 | K54: 0 | L54: 221
A55: 21 | B55: 6511 | C55: 21 | D55: 6515 | E55: 11 | F55: 6526 | K55: 0 | L55: 221
A56: 21 | B56: 6658 | C56: 12 | D56: 6667 | E56: 13 | F56: 6672 | K56: 0 | L56: 211
A57: 21 | B57: 6768 | C57: 21 | D57: 6771 | E57: 11 | F57: 6779 | K57: 0 | L57: 221
A58: 21 | B58: 6898 | C58: 21 | D58: 6901 | E58: 11 | F58: 6911 | K58: 0 | L58: 221
A59: 21 | B59: 7004 | C59: 12 | D59: 7014 | E59: 13 | F59: 7017 | K59: 0 | L59: 211
A60: 21 | B60: 7114 | C60: 21 | D60: 7117 | E60: 11 | F60: 7127 | K60: 0 | L60: 221
A61: 21 | B61: 7263 | C61: 21 | D61: 7266 | E61: 11 | F61: 7279 | K61: 0 | L61: 221
A62: 21 | B62: 7374 | C62: 12 | D62: 7384 | E62: 13 | F62: 7388 | K62: 0 | L62: 211
A63: 21 | B63: 7492 | C63: 21 | D63: 7499 | E63: 22 | F63: 7505 | K63: 0 | L63: 222
A64: 21 | B64: 7600 | C64: 12 | D64: 7613 | E64: 24 | F64: 7624 | K64: 0 | L64: 212
A65: 21 | B65: 7718 | C65: 21 | D65: 7721 | E65: 22 | F65: 7722 | K65: 0 | L65: 222
A66: 21 | B66: 7816 | C66: 12 | D66: 7824 | E66: 13 | F66: 7833 | K66: 0 | L66: 211
A67: 21 | B67: 7928 | C67: 12 | D67: 7940 | E67: 24 | F67: 7953 | K67: 0 | L67: 212
A68: 21 | B68: 8058 | C68: 21 | D68: 8060 | E68: 11 | F68: 8066 | K68: 0 | L68: 221
A69: 21 | B69: 8182 | C69: 21 | D69: 8187 | E69: 11 | F69: 8197 | K69: 0 | L69: 221
A70: 21 | B70: 8351 | C70: 12 | D70: 8363 | E70: 24 | F70: 8367 | K70: 0 | L70: 212
A71: 21 | B71: 8465 | C71: 21 | D71: 8471 | E71: 11 | F71: 8479 | K71: 0 | L71: 221
A72: 21 | B72: 8585 | C72: 21 | D72: 8590 | E72: 11 | F72: 8602 | K72: 0 | L72: 221
A73: 12 | B73: 8790 | C73: 14 | D73: 8796 | E73: 13 | F73: 8801 | K73: 0 | L73: 111
A74: 21 | B74: 8900 | C74: 12 | D74: 8907 | E74: 13 | F74: 8915 | K74: 0 | L74: 211
A75: 21 | B75: 9010 | C75: 12 | D75: 9015 | E75: 13 | F75: 9020 | K75: 0 | L75: 211
A76: 21 | B76: 9116 | C76: 21 | D76: 9120 | E76: 11 | F76: 9132 | K76: 0 | L76: 221
A77: 21 | B77: 9233 | C77: 12 | D77: 9242 | E77: 13 | F77: 9251 | K77: 0 | L77: 211
A78: 21 | B78: 9351 | C78: 12 | D78: 9359 | E78: 13 | F78: 9367 | K78: 0 | L78: 211
A79: 21 | B79: 9462 | C79: 12 | D79: 9473 | E79: 24 | F79: 9484 | K79: 0 | L79: 212
A80: 21 | B80: 9579 | C80: 12 | D80: 9586 | E80: 13 | F80: 9594 | K80: 0 | L80: 211
A81: 21 | B81: 9691 | C81: 12 | D81: 9705 | E81: 13 | F81: 9714 | K81: 0 | L81: 211
A82: 21 | B82: 9808 | C82: 21 | D82: 9812 | E82: 11 | F82: 9818 | K82: 0 | L82: 221
A83: 21 | B83: 9975 | C83: 12 | D83: 9984 | E83: 13 | F83: 9989 | K83: 0 | L83: 211
A84: 21 | B84: 10084 | C84: 12 | D84: 10096 | E84: 13 | F84: 10106 | K84: 0 | L84: 211
A85: 21 | B85: 10202 | C85: 21 | D85: 10208 | E85: 11 | F85: 10219 | K85: 0 | L85: 221
A86: 21 | B86: 10335 | C86: 12 | D86: 10345 | E86: 13 | F86: 10352 | K86: 0 | L86: 211
A87: 21 | B87: 10445 | C87: 21 | D87: 10448 | E87: 11 | F87: 10457 | K87: 0 | L87: 221
A88: 21 | B88: 10607 | C88: 12 | D88: 10615 | E88: 13 | F88: 10622 | K88: 0 | L88: 211
A89: 21 | B89: 10717 | C89: 21 | D89: 10721 | E89: 11 | F89: 10732 | K89: 0 | L89: 221
A90: 21 | B90: 10841 | C90: 12 | D90: 10854 | E90: 13 | F90: 10869 | K90: 0 | L90: 211
A91: 21 | B91: 10966 | C91: 12 | D91: 10979 | E91: 24 | F91: 10991 | K91: 0 | L91: 212
A92: 21 | B92: 11085 | C92: 12 | D92: 11097 | E92: 24 | F92: 11108 | K92: 0 | L92: 212
A93: 21 | B93: 11203 | C93: 12 | D93: 11212 | E93: 13 | F93: 11220 | K93: 0 | L93: 211
A94: 21 | B94: 11315 | C94: 12 | D94: 11329 | E94: 13 | F94: 11347 | K94: 0 | L94: 211
A95: 21 | B95: 11443 | C95: 21 | D95: 11448 | E95: 11 | F95: 11456 | K95: 0 | L95: 221
A96: 21 | B96: 11612 | C96: 12 | D96: 11620 | E96: 24 | F96: 11631 | K96: 0 | L96: 212
A97: 21 | B97: 11731 | C97: 12 | D97: 11739 | E97: 13 | F97: 11747 | K97: 0 | L97: 211
A98: 21 | B98: 11841 | C98: 21 | D98: 11843 | E98: 11 | F98: 11851 | K98: 0 | L98: 221
A99: 21 | B99: 12012 | C99: 12 | D99: 12021 | E99: 13 | F99: 12038 | K99: 0 | L99: 211
A100: 21 | B100: 12135 | C100: 21 | D100: 12137 | E100: 11 | F100: 12144 | K100: 0 | L100: 221
A101: 21 | B101: 12381 | C101: 12 | D101: 12389 | E101: 13 | F101: 12395 | K101: 0 | L101: 211
A102: 21 | B102: 12492 | C102: 21 | D102: 12496 | E102: 11 | F102: 12505 | K102: 0 | L102: 221
A103: 21 | B103: 12654 | C103: 21 | D103: 12657 | E103: 11 | F103: 12664 | K103: 0 | L103: 221
A104: 21 | B104: 12756 | C104: 12 | D104: 12763 | E104: 13 | F104: 12768 | K104: 0 | L104: 211
A105: 21 | B105: 12863 | C105: 21 | D105: 12875 | E105: 22 | F105: 12884 | K105: 0 | L105: 222
A106: 21 | B106: 12979 | C106: 21 | D106: 12982 | E106: 11 | F106: 12988 | K106: 0 | L106: 221
A107: 21 | B107: 13124 | C107: 12 | D107: 13135 | E107: 13 | F107: 13143 | K107: 0 | L107: 211
A108: 21 | B108: 13237 | C108: 21 | D108: 13244 | E108: 11 | F108: 13251 | K108: 0 | L108: 221
A109: 21 | B109: 13404 | C109: 12 | D109: 13412 | E109: 13 | F109: 13419 | K109: 0 | L109: 211
A110: 21 | B110: 13513 | C110: 21 | D110: 13520 | E110: 11 | F110: 13532 | K110: 0 | L110: 221
A111: 21 | B111: 13669 | C111: 12 | D111: 13678 | E111: 13 | F111: 13684 | K111: 0 | L111: 211
A112: 21 | B112: 13815 | C112: 12 | D112: 13823 | E112: 13 | F112: 13833 | K112: 0 | L112: 211
A113: 21 | B113: 13930 | C113: 12 | D113: 13939 | E113: 24 | F113: 13950 | K113: 0 | L113: 212
A114: 21 | B114: 14055 | C114: 12 | D114: 14064 | E114: 24 | F114: 14077 | K114: 0 | L114: 212
A115: 21 | B115: 14174 | C115: 21 | D115: 14181 | E115: 11 | F115: 14193 | K115: 0 | L115: 221
A116: 21 | B116: 14324 | C116: 12 | D116: 14333 | E116: 13 | F116: 14338 | K116: 0 | L116: 211
A117: 21 | B117: 14433 | C117: 12 | D117: 14447 | E117: 13 | F117: 14464 | K117: 0 | L117: 211
A118: 21 | B118: 14560 | C118: 12 | D118: 14574 | E118: 13 | F118: 14589 | K118: 0 | L118: 211
A119: 21 | B119: 14685 | C119: 12 | D119: 14695 | E119: 13 | F119: 14705 | K119: 0 | L119: 211
A120: 21 | B120: 14801 | C120: 21 | D120: 14806 | E120: 11 | F120: 14816 | K120: 0 | L120: 221
A121: 21 | B121: 14990 | C121: 12 | D121: 15000 | E121: 13 | F121: 15009 | K121: 0 | L121: 211
A122: 21 | B122: 15108 | C122: 12 | D122: 15118 | E122: 13 | F122: 15126 | K122: 0 | L122: 211
A123: 21 | B123: 15220 | C123: 21 | D123: 15225 | E123: 11 | F123: 15235 | K123: 0 | L123: 221
A124: 21 | B124: 15494 | C124: 12 | D124: 15509 | E124: 13 | F124: 15514 | K124: 0 | L124: 211
A125: 12 | B125: 15662 | C125: 14 | D125: 15664 | E125: 13 | F125: 15672 | K125: 0 | L125: 111
A126: 21 | B126: 15766 | C126: 21 | D126: 15769 | E126: 22 | F126: 15772 | K126: 0 | L126: 222
A127: 21 | B127: 15868 | C127: 12 | D127: 15875 | E127: 13 | F127: 15884 | K127: 0 | L127: 211
A128: 21 | B128: 15980 | C128: 21 | D128: 15986 | E128: 11 | F128: 15996 | K128: 0 | L128: 221
A129: 21 | B129: 16178 | C129: 12 | D129: 16188 | E129: 13 | F129: 16190 | K129: 0 | L129: 211
A130: 21 | B130: 16284 | C130: 12 | D130: 16298 | E130: 13 | F130: 16310 | K130: 0 | L130: 211
A131: 21 | B131: 16406 | C131: 21 | D131: 16413 | E131: 22 | F131: 16416 | K131: 0 | L131: 222
A132: 21 | B132: 16511 | C132: 21 | D132: 16514 | E132: 22 | F132: 16515 | K132: 0 | L132: 222
A133: 21 | B133: 16612 | C133: 21 | D133: 16617 | E133: 11 | F133: 16624 | K133: 1 | L133: 221

Sheet !MA11B0T.AYL
A1: Report for:!MA11B0T.AYL
A2: Date: | B2: <date>
A3: Hen: | B3: <hen> | F3: Correct Sequence | G3: =Start!J2 -> 221 | P3: Total Sequences in Data | Q3: =4994-COUNTBLANK(L7:L5000) -> 137 | V3: Total Sequences in Block Data | W3: =COUNTA(L7:L29) -> 23 | AA3: Total Sequences in Block Data | AB3: =COUNTA(L30:L52) -> 23 | AF3: Total Sequences in Block Data | AG3: =COUNTA(L53:L74) -> 22 | AK3: Total Sequences in Block Data | AL3: =COUNTA(L75:L97) -> 23 | AP3: Total Sequences in Block Data | AQ3: =COUNTA(L98:L120) -> 23 | AU3: Total Sequences in Block Data | AV3: =COUNTA(L121:L143) -> 23
P4: Total Sequences in Summary | Q4: =SUM(O7:O14) -> 137 | V4: Total Sequences in Block Summary | W4: =SUM(U7:U14) -> 23 | AA4: Total Sequences in Block Summary | AB4: =SUM(Z7:Z14) -> 23 | AF4: Total Sequences in Block Summary | AG4: =SUM(AE7:AE14) -> 22 | AK4: Total Sequences in Block Summary | AL4: =SUM(AJ7:AJ14) -> 23 | AP4: Total Sequences in Block Summary | AQ4: =SUM(AO7:AO14) -> 23 | AU4: Total Sequences in Block Summary | AV4: =SUM(AT7:AT14) -> 23
T5: Block 1 | Y5: Block 2 | AD5: Block 3 | AI5: Block 4 | AN5: Block 5 | AS5: Block 6
A6: Sequence Component 1 | B6: Time 1 | C6: Sequence Component 2 | D6: Time 2 | E6: Sequence Component 3 | F6: Time 3 | G6: Sequence Component 4 | H6: Time 4 | I6: Sequence Component 5 | J6: Time 5 | K6: Correct? 0=No 1=Yes | L6: Sequence | N6: Frequency | P6: Relative Frequency | Q6: Variability | T6: Frequency | V6: Relative Frequency | W6: Variability | Y6: Frequency | AA6: Relative Frequency | AB6: Variability | AD6: Frequency | AF6: Relative Frequency | AG6: Variability | AI6: Frequency | AK6: Relative Frequency | AL6: Variability | AN6: Frequency | AP6: Relative Frequency | AQ6: Variability | AS6: Frequency | AU6: Relative Frequency | AV6: Variability
A7: 21 | B7: 2 | C7: 12 | D7: 10 | E7: 13 | F7: 13 | K7: 0 | L7: 211 | N7: 111 | O7: =COUNTIF($L$7:$L$500,N7) -> 6 | P7: =O7/$Q$4 -> 0.04379562044 | Q7: =IF(P7=0,0,(P7*((LOG(P7))/LOG(2)))) -> -0.1976526824 | T7: =N7 -> 111 | U7: =COUNTIF(L7:L29,T7) -> 0 | V7: =U7/(W4-U13) -> 0 | W7: =IF(V7=0,0,(V7*((LOG(V7))/LOG(2)))) -> 0 | Y7: =N7 -> 111 | Z7: =COUNTIF(L30:L52,Y7) -> 0 | AA7: =Z7/(AB4-Z13) -> 0 | AB7: =IF(AA7=0,0,(AA7*((LOG(AA7))/LOG(2)))) -> 0 | AD7: =N7 -> 111 | AE7: =COUNTIF(L53:L74,AD7) -> 0 | AF7: =AE7/(AG4-AE13) -> 0 | AG7: =IF(AF7=0,0,(AF7*((LOG(AF7))/LOG(2)))) -> 0 | AI7: =N7 -> 111 | AJ7: =COUNTIF(L75:L97,AI7) -> 2 | AK7: =AJ7/(AL4-AJ13) -> 0.1666666667 | AL7: =IF(AK7=0,0,(AK7*((LOG(AK7))/LOG(2)))) -> -0.4308270835 | AN7: =N7 -> 111 | AO7: =COUNTIF(L98:L120,AN7) -> 1 | AP7: =AO7/(AQ4-AO13) -> 0.04761904762 | AQ7: =IF(AP7=0,0,(AP7*((LOG(AP7))/LOG(2)))) -> -0.2091579725 | AS7: =N7 -> 111 | AT7: =COUNTIF(L121:L143,AS7) -> 3 | AU7: =AT7/(AV4-AT13) -> 0.1666666667 | AV7: =IF(AU7=0,0,(AU7*((LOG(AU7))/LOG(2)))) -> -0.4308270835
A8: 21 | B8: 105 | C8: 12 | D8: 123 | E8: 13 | F8: 129 | K8: 0 | L8: 211 | N8: 112 | O8: =COUNTIF($L$7:$L$500,N8) -> 3 | P8: =O8/$Q$4 -> 0.02189781022 | Q8: =IF(P8=0,0,(P8*((LOG(P8))/LOG(2)))) -> -0.1207241514 | T8: =N8 -> 112 | U8: =COUNTIF(L7:L29,T8) -> 0 | V8: =U8/(W4-U13) -> 0 | W8: =IF(V8=0,0,(V8*((LOG(V8))/LOG(2)))) -> 0 | Y8: =N8 -> 112 | Z8: =COUNTIF(L30:L52,Y8) -> 1 | AA8: =Z8/(AB4-Z13) -> 0.05263157895 | AB8: =IF(AA8=0,0,(AA8*((LOG(AA8))/LOG(2)))) -> -0.2235751323 | AD8: =N8 -> 112 | AE8: =COUNTIF(L53:L74,AD8) -> 2 | AF8: =AE8/(AG4-AE13) -> 0.1428571429 | AG8: =IF(AF8=0,0,(AF8*((LOG(AF8))/LOG(2)))) -> -0.4010507032 | AI8: =N8 -> 112 | AJ8: =COUNTIF(L75:L97,AI8) -> 0 | AK8: =AJ8/(AL4-AJ13) -> 0 | AL8: =IF(AK8=0,0,(AK8*((LOG(AK8))/LOG(2)))) -> 0 | AN8: =N8 -> 112 | AO8: =COUNTIF(L98:L120,AN8) -> 0 | AP8: =AO8/(AQ4-AO13) -> 0 | AQ8: =IF(AP8=0,0,(AP8*((LOG(AP8))/LOG(2)))) -> 0 | AS8: =N8 -> 112 | AT8: =COUNTIF(L121:L143,AS8) -> 0 | AU8: =AT8/(AV4-AT13) -> 0 | AV8: =IF(AU8=0,0,(AU8*((LOG(AU8))/LOG(2)))) -> 0
A9: 21 | B9: 227 | C9: 12 | D9: 236 | E9: 24 | F9: 249 | K9: 0 | L9: 212 | N9: 121 | O9: =COUNTIF($L$7:$L$500,N9) -> 2 | P9: =O9/$Q$4 -> 0.01459854015 | Q9: =IF(P9=0,0,(P9*((LOG(P9))/LOG(2)))) -> -0.08902236617 | T9: =N9 -> 121 | U9: =COUNTIF(L7:L29,T9) -> 1 | V9: =U9/(W4-U13) -> 0.05263157895 | W9: =IF(V9=0,0,(V9*((LOG(V9))/LOG(2)))) -> -0.2235751323 | Y9: =N9 -> 121 | Z9: =COUNTIF(L30:L52,Y9) -> 0 | AA9: =Z9/(AB4-Z13) -> 0 | AB9: =IF(AA9=0,0,(AA9*((LOG(AA9))/LOG(2)))) -> 0 | AD9: =N9 -> 121 | AE9: =COUNTIF(L53:L74,AD9) -> 1 | AF9: =AE9/(AG4-AE13) -> 0.07142857143 | AG9: =IF(AF9=0,0,(AF9*((LOG(AF9))/LOG(2)))) -> -0.271953923 | AI9: =N9 -> 121 | AJ9: =COUNTIF(L75:L97,AI9) -> 0 | AK9: =AJ9/(AL4-AJ13) -> 0 | AL9: =IF(AK9=0,0,(AK9*((LOG(AK9))/LOG(2)))) -> 0 | AN9: =N9 -> 121 | AO9: =COUNTIF(L98:L120,AN9) -> 0 | AP9: =AO9/(AQ4-AO13) -> 0 | AQ9: =IF(AP9=0,0,(AP9*((LOG(AP9))/LOG(2)))) -> 0 | AS9: =N9 -> 121 | AT9: =COUNTIF(L121:L143,AS9) -> 0 | AU9: =AT9/(AV4-AT13) -> 0 | AV9: =IF(AU9=0,0,(AU9*((LOG(AU9))/LOG(2)))) -> 0
A10: 12 | B10: 364 | C10: 23 | D10: 377 | E10: 24 | F10: 383 | K10: 0 | L10: 122 | N10: 122 | O10: =COUNTIF($L$7:$L$500,N10) -> 2 | P10: =O10/$Q$4 -> 0.01459854015 | Q10: =IF(P10=0,0,(P10*((LOG(P10))/LOG(2)))) -> -0.08902236617 | T10: =N10 -> 122 | U10: =COUNTIF(L7:L29,T10) -> 1 | V10: =U10/(W4-U13) -> 0.05263157895 | W10: =IF(V10=0,0,(V10*((LOG(V10))/LOG(2)))) -> -0.2235751323 | Y10: =N10 -> 122 | Z10: =COUNTIF(L30:L52,Y10) -> 1 | AA10: =Z10/(AB4-Z13) -> 0.05263157895 | AB10: =IF(AA10=0,0,(AA10*((LOG(AA10))/LOG(2)))) -> -0.2235751323 | AD10: =N10 -> 122 | AE10: =COUNTIF(L53:L74,AD10) -> 0 | AF10: =AE10/(AG4-AE13) -> 0 | AG10: =IF(AF10=0,0,(AF10*((LOG(AF10))/LOG(2)))) -> 0 | AI10: =N10 -> 122 | AJ10: =COUNTIF(L75:L97,AI10) -> 0 | AK10: =AJ10/(AL4-AJ13) -> 0 | AL10: =IF(AK10=0,0,(AK10*((LOG(AK10))/LOG(2)))) -> 0 | AN10: =N10 -> 122 | AO10: =COUNTIF(L98:L120,AN10) -> 0 | AP10: =AO10/(AQ4-AO13) -> 0 | AQ10: =IF(AP10=0,0,(AP10*((LOG(AP10))/LOG(2)))) -> 0 | AS10: =N10 -> 122 | AT10: =COUNTIF(L121:L143,AS10) -> 0 | AU10: =AT10/(AV4-AT13) -> 0 | AV10: =IF(AU10=0,0,(AU10*((LOG(AU10))/LOG(2)))) -> 0
A11: 21 | B11: 479 | C11: 12 | D11: 489 | E11: 13 | F11: 497 | K11: 0 | L11: 211 | N11: 211 | O11: =COUNTIF($L$7:$L$500,N11) -> 69 | P11: =O11/$Q$4 -> 0.503649635 | Q11: =IF(P11=0,0,(P11*((LOG(P11))/LOG(2)))) -> -0.4983651548 | T11: =N11 -> 211 | U11: =COUNTIF(L7:L29,T11) -> 7 | V11: =U11/(W4-U13) -> 0.3684210526 | W11: =IF(V11=0,0,(V11*((LOG(V11))/LOG(2)))) -> -0.5307372705 | Y11: =N11 -> 211 | Z11: =COUNTIF(L30:L52,Y11) -> 14 | AA11: =Z11/(AB4-Z13) -> 0.7368421053 | AB11: =IF(AA11=0,0,(AA11*((LOG(AA11))/LOG(2)))) -> -0.3246324358 | AD11: =N11 -> 211 | AE11: =COUNTIF(L53:L74,AD11) -> 9 | AF11: =AE11/(AG4-AE13) -> 0.6428571429 | AG11: =IF(AF11=0,0,(AF11*((LOG(AF11))/LOG(2)))) -> -0.4097763775 | AI11: =N11 -> 211 | AJ11: =COUNTIF(L75:L97,AI11) -> 9 | AK11: =AJ11/(AL4-AJ13) -> 0.75 | AL11: =IF(AK11=0,0,(AK11*((LOG(AK11))/LOG(2)))) -> -0.3112781245 | AN11: =N11 -> 211 | AO11: =COUNTIF(L98:L120,AN11) -> 15 | AP11: =AO11/(AQ4-AO13) -> 0.7142857143 | AQ11: =IF(AP11=0,0,(AP11*((LOG(AP11))/LOG(2)))) -> -0.346733448 | AS11: =N11 -> 211 | AT11: =COUNTIF(L121:L143,AS11) -> 15 | AU11: =AT11/(AV4-AT13) -> 0.8333333333 | AV11: =IF(AU11=0,0,(AU11*((LOG(AU11))/LOG(2)))) -> -0.2191953382
A12: 21 | B12: 590 | C12: 21 | D12: 594 | E12: 11 | F12: 603 | K12: 0 | L12: 221 | N12: 212 | O12: =COUNTIF($L$7:$L$500,N12) -> 12 | P12: =O12/$Q$4 -> 0.08759124088 | Q12: =IF(P12=0,0,(P12*((LOG(P12))/LOG(2)))) -> -0.307714124 | T12: =N12 -> 212 | U12: =COUNTIF(L7:L29,T12) -> 7 | V12: =U12/(W4-U13) -> 0.3684210526 | W12: =IF(V12=0,0,(V12*((LOG(V12))/LOG(2)))) -> -0.5307372705 | Y12: =N12 -> 212 | Z12: =COUNTIF(L30:L52,Y12) -> 0 | AA12: =Z12/(AB4-Z13) -> 0 | AB12: =IF(AA12=0,0,(AA12*((LOG(AA12))/LOG(2)))) -> 0 | AD12: =N12 -> 212 | AE12: =COUNTIF(L53:L74,AD12) -> 2 | AF12: =AE12/(AG4-AE13) -> 0.1428571429 | AG12: =IF(AF12=0,0,(AF12*((LOG(AF12))/LOG(2)))) -> -0.4010507032 | AI12: =N12 -> 212 | AJ12: =COUNTIF(L75:L97,AI12) -> 0 | AK12: =AJ12/(AL4-AJ13) -> 0 | AL12: =IF(AK12=0,0,(AK12*((LOG(AK12))/LOG(2)))) -> 0 | AN12: =N12 -> 212 | AO12: =COUNTIF(L98:L120,AN12) -> 3 | AP12: =AO12/(AQ4-AO13) -> 0.1428571429 | AQ12: =IF(AP12=0,0,(AP12*((LOG(AP12))/LOG(2)))) -> -0.4010507032 | AS12: =N12 -> 212 | AT12: =COUNTIF(L121:L143,AS12) -> 0 | AU12: =AT12/(AV4-AT13) -> 0 | AV12: =IF(AU12=0,0,(AU12*((LOG(AU12))/LOG(2)))) -> 0
A13: 21 | B13: 761 | C13: 21 | D13: 764 | E13: 11 | F13: 775 | K13: 0 | L13: 221 | N13: 221 | O13: =COUNTIF($L$7:$L$500,N13) -> 34 | P13: =O13/$Q$4 -> 0.2481751825 | Q13: =IF(P13=0,0,(P13*((LOG(P13))/LOG(2)))) -> -0.4989733885 | T13: =N13 -> 221 | U13: =COUNTIF(L7:L29,T13) -> 4 | Y13: =N13 -> 221 | Z13: =COUNTIF(L30:L52,Y13) -> 4 | AD13: =N13 -> 221 | AE13: =COUNTIF(L53:L74,AD13) -> 8 | AI13: =N13 -> 221 | AJ13: =COUNTIF(L75:L97,AI13) -> 11 | AN13: =N13 -> 221 | AO13: =COUNTIF(L98:L120,AN13) -> 2 | AS13: =N13 -> 221 | AT13: =COUNTIF(L121:L143,AS13) -> 5
A14: 21 | B14: 913 | C14: 12 | D14: 926 | E14: 13 | F14: 932 | K14: 0 | L14: 211 | N14: 222 | O14: =COUNTIF($L$7:$L$500,N14) -> 9 | P14: =O14/$Q$4 -> 0.06569343066 | Q14: =IF(P14=0,0,(P14*((LOG(P14))/LOG(2)))) -> -0.2580508302 | T14: =N14 -> 222 | U14: =COUNTIF(L7:L29,T14) -> 3 | V14: =U14/(W4-U13) -> 0.1578947368 | W14: =IF(V14=0,0,(V14*((LOG(V14))/LOG(2)))) -> -0.4204681599 | Y14: =N14 -> 222 | Z14: =COUNTIF(L30:L52,Y14) -> 3 | AA14: =Z14/(AB4-Z13) -> 0.1578947368 | AB14: =IF(AA14=0,0,(AA14*((LOG(AA14))/LOG(2)))) -> -0.4204681599 | AD14: =N14 -> 222 | AE14: =COUNTIF(L53:L74,AD14) -> 0 | AF14: =AE14/(AG4-AE13) -> 0 | AG14: =IF(AF14=0,0,(AF14*((LOG(AF14))/LOG(2)))) -> 0 | AI14: =N14 -> 222 | AJ14: =COUNTIF(L75:L97,AI14) -> 1 | AK14: =AJ14/(AL4-AJ13) -> 0.08333333333 | AL14: =IF(AK14=0,0,(AK14*((LOG(AK14))/LOG(2)))) -> -0.2987468751 | AN14: =N14 -> 222 | AO14: =COUNTIF(L98:L120,AN14) -> 2 | AP14: =AO14/(AQ4-AO13) -> 0.09523809524 | AQ14: =IF(AP14=0,0,(AP14*((LOG(AP14))/LOG(2)))) -> -0.3230778498 | AS14: =N14 -> 222 | AT14: =COUNTIF(L121:L143,AS14) -> 0 | AU14: =AT14/(AV4-AT13) -> 0 | AV14: =IF(AU14=0,0,(AU14*((LOG(AU14))/LOG(2)))) -> 0
A15: 21 | B15: 1033 | C15: 12 | D15: 1047 | E15: 24 | F15: 1057 | K15: 0 | L15: 212 | P15: =SUM(P7:P14) -> 1 | Q15: =-SUM(Q7:Q14) -> 2.059525064 | V15: =SUM(V7:V14) -> 1 | W15: =-SUM(W7:W14) -> 1.929092965 | AA15: =SUM(AA7:AA14) -> 1 | AB15: =-SUM(AB7:AB14) -> 1.19225086 | AF15: =SUM(AF7:AF14) -> 1 | AG15: =-SUM(AG7:AG14) -> 1.483831707 | AK15: =SUM(AK7:AK14) -> 1 | AL15: =-SUM(AL7:AL14) -> 1.040852083 | AP15: =SUM(AP7:AP14) -> 1 | AQ15: =-SUM(AQ7:AQ14) -> 1.280019973 | AU15: =SUM(AU7:AU14) -> 1 | AV15: =-SUM(AV7:AV14) -> 0.6500224216
A16: 21 | B16: 1150 | C16: 12 | D16: 1158 | E16: 24 | F16: 1174 | K16: 0 | L16: 212 | P16: U= | Q16: =Q15/(LOG(Q4)/LOG(2)) -> 0.2901543751 | V16: U1= | W16: =W15/(LOG(W4)/LOG(2)) -> 0.4264544145 | AA16: U2= | AB16: =AB15/(LOG(AB4)/LOG(2)) -> 0.2635646139 | AF16: U3= | AG16: =AG15/(LOG(AG4)/LOG(2)) -> 0.3327400964 | AK16: U4= | AL16: =AL15/(LOG(AL4)/LOG(2)) -> 0.2300956841 | AP16: U5= | AQ16: =AQ15/(LOG(AQ4)/LOG(2)) -> 0.2829672691 | AU16: U6= | AV16: =AV15/(LOG(AV4)/LOG(2)) -> 0.1436970308
A17: 21 | B17: 1269 | C17: 12 | D17: 1277 | E17: 24 | F17: 1290 | K17: 0 | L17: 212
A18: 21 | B18: 1384 | C18: 12 | D18: 1398 | E18: 24 | F18: 1467 | K18: 0 | L18: 212
A19: 21 | B19: 1560 | C19: 21 | D19: 1561 | E19: 11 | F19: 1569 | K19: 0 | L19: 221 | N19: Total Target Seq
A20: 21 | B20: 1755 | C20: 12 | D20: 1768 | E20: 13 | F20: 1811 | K20: 0 | L20: 211 | N20: =COUNTIF(L7:L143,G3) -> 34 | P20: 23 | Q20: 23 | R20: 22 | S20: 23 | T20: 23 | U20: 23
A21: 21 | B21: 1905 | C21: 21 | D21: 1908 | E21: 22 | F21: 1911 | K21: 0 | L21: 222 | P21: % of reinforcement given in 6 equal intervals based on number of trials
A22: 21 | B22: 2011 | C22: 21 | D22: 2014 | E22: 22 | F22: 2018 | K22: 0 | L22: 222 | P22: %_1 | Q22: %_2 | R22: %_3 | S22: %_4 | T22: %_5 | U22: %_6
A23: 21 | B23: 2117 | C23: 12 | D23: 2125 | E23: 24 | F23: 2179 | K23: 0 | L23: 212 | O23: target sequence | P23: =$G$3 -> 221 | Q23: =$G$3 -> 221 | R23: =$G$3 -> 221 | S23: =$G$3 -> 221 | T23: =$G$3 -> 221 | U23: =$G$3 -> 221
A24: 21 | B24: 2275 | C24: 21 | D24: 2306 | E24: 22 | F24: 2311 | K24: 0 | L24: 222 | O24: total reinforcement | P24: =U13 -> 4 | Q24: =Z13 -> 4 | R24: =AE13 -> 8 | S24: =AJ13 -> 11 | T24: =AO13 -> 2 | U24: =AT13 -> 5
A25: 21 | B25: 2405 | C25: 12 | D25: 2414 | E25: 13 | F25: 2428 | K25: 0 | L25: 211 | O25: % target
A26: 21 | B26: 2525 | C26: 21 | D26: 2527 | E26: 11 | F26: 2540 | K26: 0 | L26: 221 | O26: CCRF
A27: 21 | B27: 2758 | C27: 12 | D27: 2770 | E27: 13 | F27: 2785 | K27: 0 | L27: 211 | O27: % CCRf
A28: 21 | B28: 2881 | C28: 12 | D28: 2890 | E28: 24 | F28: 2902 | K28: 0 | L28: 212 | O28: average response rate | P28: =F29/P20 -> 132.6086957 | Q28: =(F52-F29)/Q20 -> 155.4782609 | R28: =(F74-F52)/R20 -> 199.0454545 | S28: =(F97-F74)/S20 -> 147.9565217 | T28: =(F120-F97)/T20 -> 178.6521739 | U28: =(F143-F120)/U20 -> 236.173913
A29: 12 | B29: 3009 | C29: 23 | D29: 3042 | E29: 13 | F29: 3050 | K29: 0 | L29: 121
A30: 21 | B30: 3144 | C30: 12 | D30: 3157 | E30: 13 | F30: 3188 | K30: 0 | L30: 211
A31: 21 | B31: 3282 | C31: 21 | D31: 3285 | E31: 11 | F31: 3294 | K31: 0 | L31: 221
A32: 21 | B32: 3733 | C32: 12 | D32: 3746 | E32: 13 | F32: 3762 | K32: 0 | L32: 211
A33: 21 | B33: 3870 | C33: 12 | D33: 3880 | E33: 13 | F33: 3886 | K33: 0 | L33: 211
A34: 12 | B34: 3988 | C34: 23 | D34: 4003 | E34: 24 | F34: 4009 | K34: 0 | L34: 122
A35: 21 | B35: 4111 | C35: 12 | D35: 4118 | E35: 13 | F35: 4123 | K35: 0 | L35: 211
A36: 21 | B36: 4216 | C36: 12 | D36: 4224 | E36: 13 | F36: 4246 | K36: 0 | L36: 211
A37: 21 | B37: 4339 | C37: 21 | D37: 4342 | E37: 11 | F37: 4350 | K37: 0 | L37: 221
A38: 21 | B38: 4613 | C38: 12 | D38: 4619 | E38: 13 | F38: 4625 | K38: 0 | L38: 211
A39: 12 | B39: 4728 | C39: 14 | D39: 4730 | E39: 24 | F39: 4742 | K39: 0 | L39: 112
A40: 21 | B40: 4849 | C40: 12 | D40: 4859 | E40: 13 | F40: 4864 | K40: 0 | L40: 211
A41: 21 | B41: 4961 | C41: 12 | D41: 4970 | E41: 13 | F41: 4989 | K41: 0 | L41: 211
A42: 21 | B42: 5084 | C42: 12 | D42: 5092 | E42: 13 | F42: 5104 | K42: 0 | L42: 211
A43: 21 | B43: 5210 | C43: 12 | D43: 5218 | E43: 13 | F43: 5224 | K43: 0 | L43: 211
A44: 21 | B44: 5322 | C44: 12 | D44: 5332 | E44: 13 | F44: 5351 | K44: 0 | L44: 211
A45: 21 | B45: 5447 | C45: 21 | D45: 5453 | E45: 11 | F45: 5455 | K45: 0 | L45: 221
A46: 21 | B46: 5934 | C46: 12 | D46: 5941 | E46: 13 | F46: 5945 | K46: 0 | L46: 211
A47: 21 | B47: 6039 | C47: 21 | D47: 6043 | E47: 22 | F47: 6045 | K47: 0 | L47: 222
A48: 21 | B48: 6141 | C48: 21 | D48: 6145 | E48: 22 | F48: 6147 | K48: 0 | L48: 222
A49: 21 | B49: 6240 | C49: 21 | D49: 6244 | E49: 22 | F49: 6246 | K49: 0 | L49: 222
A50: 21 | B50: 6342 | C50: 12 | D50: 6352 | E50: 13 | F50: 6366 | K50: 0 | L50: 211
A51: 21 | B51: 6462 | C51: 21 | D51: 6467 | E51: 11 | F51: 6477 | K51: 0 | L51: 221
A52: 21 | B52: 6607 | C52: 12 | D52: 6617 | E52: 13 | F52: 6626 | K52: 0 | L52: 211
A53: 12 | B53: 6738 | C53: 14 | D53: 6745 | E53: 24 | F53: 6750 | K53: 0 | L53: 112
A54: 21 | B54: 6847 | C54: 12 | D54: 6856 | E54: 24 | F54: 6877 | K54: 0 | L54: 212
A55: 21 | B55: 6971 | C55: 21 | D55: 6973 | E55: 11 | F55: 6981 | K55: 0 | L55: 221
A56: 21 | B56: 7149 | C56: 21 | D56: 7152 | E56: 11 | F56: 7159 | K56: 0 | L56: 221
A57: 21 | B57: 7345 | C57: 12 | D57: 7353 | E57: 13 | F57: 7358 | K57: 0 | L57: 211
A58: 21 | B58: 7451 | C58: 21 | D58: 7456 | E58: 11 | F58: 7464 | K58: 0 | L58: 221
A59: 21 | B59: 7667 | C59: 12 | D59: 7680 | E59: 13 | F59: 7686 | K59: 0 | L59: 211
A60: 21 | B60: 7784 | C60: 12 | D60: 7792 | E60: 24 | F60: 7859 | K60: 0 | L60: 212
A61: 21 | B61: 7952 | C61: 21 | D61: 7962 | E61: 11 | F61: 7971 | K61: 0 | L61: 221
A62: 21 | B62: 8252 | C62: 21 | D62: 8254 | E62: 11 | F62: 8264 | K62: 0 | L62: 221
A63: 21 | B63: 8413 | C63: 12 | D63: 8423 | E63: 13 | F63: 8428 | K63: 0 | L63: 211
A64: 21 | B64: 8525 | C64: 12 | D64: 8535 | E64: 13 | F64: 8546 | K64: 0 | L64: 211
A65: 21 | B65: 8641 | C65: 21 | D65: 8645 | E65: 11 | F65: 8654 | K65: 0 | L65: 221
A66: 21 | B66: 9591 | C66: 12 | D66: 9603 | E66: 13 | F66: 9610 | K66: 0 | L66: 211
A67: 12 | B67: 9717 | C67: 14 | D67: 9724 | E67: 24 | F67: 9729 | K67: 0 | L67: 112
A68: 21 | B68: 9850 | C68: 12 | D68: 9858 | E68: 13 | F68: 9865 | K68: 0 | L68: 211
A69: 21 | B69: 9959 | C69: 21 | D69: 9962 | E69: 11 | F69: 9970 | K69: 0 | L69: 221
A70: 12 | B70: 10557 | C70: 23 | D70: 10558 | E70: 13 | F70: 10563 | K70: 0 | L70: 121
A71: 21 | B71: 10658 | C71: 12 | D71: 10666 | E71: 13 | F71: 10677 | K71: 0 | L71: 211
A72: 21 | B72: 10771 | C72: 12 | D72: 10781 | E72: 13 | F72: 10791 | K72: 0 | L72: 211
A73: 21 | B73: 10886 | C73: 12 | D73: 10893 | E73: 13 | F73: 10901 | K73: 0 | L73: 211
A74: 21 | B74: 10995 | C74: 21 | D74: 10997 | E74: 11 | F74: 11005 | K74: 0 | L74: 221
A75: 21 | B75: 11096 | C75: 12 | D75: 11104 | E75: 13 | F75: 11110 | K75: 0 | L75: 211
A76: 12 | B76: 11211 | C76: 14 | D76: 11221 | E76: 13 | F76: 11229 | K76: 0 | L76: 111
A77: 21 | B77: 11324 | C77: 21 | D77: 11326 | E77: 11 | F77: 11332 | K77: 0 | L77: 221
A78: 21 | B78: 11480 | C78: 12 | D78: 11491 | E78: 13 | F78: 11496 | K78: 0 | L78: 211
A79: 21 | B79: 11593 | C79: 21 | D79: 11596 | E79: 11 | F79: 11603 | K79: 0 | L79: 221
A80: 21 | B80: 11800 | C80: 12 | D80: 11808 | E80: 13 | F80: 11811 | K80: 0 | L80: 211
A81: 21 | B81: 11909 | C81: 21 | D81: 11912 | E81: 11 | F81: 11919 | K81: 0 | L81: 221
A82: 21 | B82: 12036 | C82: 21 | D82: 12037 | E82: 11 | F82: 12046 | K82: 0 | L82: 221
A83: 21 | B83: 12211 | C83: 12 | D83: 12219 | E83: 13 | F83: 12225 | K83: 0 | L83: 211
A84: 12 | B84: 12328 | C84: 14 | D84: 12336 | E84: 13 | F84: 12345 | K84: 0 | L84: 111
A85: 21 | B85: 12441 | C85: 12 | D85: 12449 | E85: 13 | F85: 12456 | K85: 0 | L85: 211
A86: 21 | B86: 12550 | C86: 12 | D86: 12559 | E86: 13 | F86: 12575 | K86: 0 | L86: 211
A87: 21 | B87: 12669 | C87: 21 | D87: 12671 | E87: 11 | F87: 12678 | K87: 0 | L87: 221
A88: 21 | B88: 13342 | C88: 12 | D88: 13351 | E88: 13 | F88: 13358 | K88: 0 | L88: 211
A89: 21 | B89: 13455 | C89: 21 | D89: 13459 | E89: 11 | F89: 13465 | K89: 0 | L89: 221
A90: 21 | B90: 13561 | C90: 12 | D90: 13568 | E90: 13 | F90: 13574 | K90: 0 | L90: 211
A91: 21 | B91: 13670 | C91: 21 | D91: 13674 | E91: 11 | F91: 13681 | K91: 0 | L91: 221
A92: 21 | B92: 13779 | C92: 12 | D92: 13794 | E92: 13 | F92: 13797 | K92: 0 | L92: 211
A93: 21 | B93: 13890 | C93: 21 | D93: 13894 | E93: 11 | F93: 13903 | K93: 0 | L93: 221
A94: 21 | B94: 14011 | C94: 21 | D94: 14018 | E94: 11 | F94: 14025 | K94: 0 | L94: 221
A95: 21 | B95: 14176 | C95: 21 | D95: 14184 | E95: 22 | F95: 14186 | K95: 0 | L95: 222
A96: 21 | B96: 14278 | C96: 21 | D96: 14284 | E96: 11 | F96: 14296 | K96: 0 | L96: 221
A97: 21 | B97: 14393 | C97: 21 | D97: 14398 | E97: 11 | F97: 14408 | K97: 0 | L97: 221
A98: 21 | B98: 14569 | C98: 12 | D98: 14578 | E98: 13 | F98: 14585 | K98: 0 | L98: 211
A99: 21 | B99: 14680 | C99: 21 | D99: 14685 | E99: 11 | F99: 14693 | K99: 0 | L99: 221
A100: 21 | B100: 14894 | C100: 12 | D100: 14905 | E100: 24 | F100: 14962 | K100: 0 | L100: 212
A101: 21 | B101: 15058 | C101: 12 | D101: 15071 | E101: 24 | F101: 15136 | K101: 0 | L101: 212
A102: 21 | B102: 15231 | C102: 12 | D102: 15249 | E102: 13 | F102: 15258 | K102: 0 | L102: 211
A103: 21 | B103: 15352 | C103: 12 | D103: 15362 | E103: 13 | F103: 15373 | K103: 0 | L103: 211
A104: 21 | B104: 15469 | C104: 12 | D104: 15481 | E104: 13 | F104: 15544 | K104: 0 | L104: 211
A105: 21 | B105: 15641 | C105: 12 | D105: 15650 | E105: 13 | F105: 15668 | K105: 0 | L105: 211
A106: 21 | B106: 15764 | C106: 12 | D106: 15773 | E106: 13 | F106: 15794 | K106: 0 | L106: 211
A107: 21 | B107: 15888 | C107: 12 | D107: 15895 | E107: 13 | F107: 15905 | K107: 0 | L107: 211
A108: 21 | B108: 16000 | C108: 12 | D108: 16013 | E108: 13 | F108: 16034 | K108: 0 | L108: 211
A109: 21 | B109: 16131 | C109: 12 | D109: 16139 | E109: 13 | F109: 16149 | K109: 0 | L109: 211
A110: 21 | B110: 16244 | C110: 21 | D110: 16246 | E110: 22 | F110: 16250 | K110: 0 | L110: 222
A111: 21 | B111: 16342 | C111: 12 | D111: 16352 | E111: 13 | F111: 16358 | K111: 0 | L111: 211
A112: 21 | B112: 16450 | C112: 21 | D112: 16452 | E112: 11 | F112: 16460 | K112: 0 | L112: 221
A113: 21 | B113: 17446 | C113: 12 | D113: 17456 | E113: 13 | F113: 17466 | K113: 0 | L113: 211
A114: 21 | B114: 17561 | C114: 12 | D114: 17573 | E114: 13 | F114: 17590 | K114: 0 | L114: 211
A115: 21 | B115: 17775 | C115: 12 | D115: 17788 | E115: 13 | F115: 17793 | K115: 0 | L115: 211
A116: 21 | B116: 17889 | C116: 12 | D116: 17901 | E116: 13 | F116: 17910 | K116: 0 | L116: 211
A117: 21 | B117: 18007 | C117: 12 | D117: 18020 | E117: 24 | F117: 18114 | K117: 0 | L117: 212
A118: 21 | B118: 18210 | C118: 12 | D118: 18219 | E118: 13 | F118: 18243 | K118: 0 | L118: 211
A119: 12 | B119: 18397 | C119: 14 | D119: 18403 | E119: 13 | F119: 18409 | K119: 0 | L119: 111
A120: 21 | B120: 18511 | C120: 21 | D120: 18514 | E120: 22 | F120: 18517 | K120: 0 | L120: 222
A121: 21 | B121: 18609 | C121: 21 | D121: 18613 | E121: 11 | F121: 18623 | K121: 0 | L121: 221
A122: 21 | B122: 19741 | C122: 12 | D122: 19751 | E122: 13 | F122: 19757 | K122: 0 | L122: 211
A123: 21 | B123: 19854 | C123: 12 | D123: 19864 | E123: 13 | F123: 19882 | K123: 0 | L123: 211
A124: 21 | B124: 19978 | C124: 12 | D124: 19987 | E124: 13 | F124: 20007 | K124: 0 | L124: 211
A125: 21 | B125: 20164 | C125: 21 | D125: 20166 | E125: 11 | F125: 20177 | K125: 0 | L125: 221
A126: 21 | B126: 20951 | C126: 21 | D126: 20954 | E126: 11 | F126: 20961 | K126: 0 | L126: 221
A127: 21 | B127: 21891 | C127: 12 | D127: 21899 | E127: 13 | F127: 21909 | K127: 0 | L127: 211
A128: 21 | B128: 22007 | C128: 12 | D128: 22018 | E128: 13 | F128: 22028 | K128: 0 | L128: 211
A129: 12 | B129: 22148 | C129: 14 | D129: 22151 | E129: 13 | F129: 22157 | K129: 0 | L129: 111
A130: 21 | B130: 22254 | C130: 12 | D130: 22266 | E130: 13 | F130: 22284 | K130: 0 | L130: 211
A131: 21 | B131: 22381 | C131: 12 | D131: 22389 | E131: 13 | F131: 22403 | K131: 0 | L131: 211
A132: 21 | B132: 22496 | C132: 12 | D132: 22507 | E132: 13 | F132: 22515 | K132: 0 | L132: 211
A133: 21 | B133: 22610 | C133: 12 | D133: 22620 | E133: 13 | F133: 22629 | K133: 0 | L133: 211
A134: 21 | B134: 22724 | C134: 12 | D134: 22732 | E134: 13 | F134: 22797 | K134: 0 | L134: 211
A135: 21 | B135: 22893 | C135: 12 | D135: 22900 | E135: 13 | F135: 22920 | K135: 0 | L135: 211
A136: 21 | B136: 23012 | C136: 21 | D136: 23016 | E136: 11 | F136: 23028 | K136: 0 | L136: 221
A137: 12 | B137: 23133 | C137: 14 | D137: 23165 | E137: 13 | F137: 23170 | K137: 0 | L137: 111
A138: 21 | B138: 23264 | C138: 12 | D138: 23273 | E138: 13 | F138: 23297 | K138: 0 | L138: 211
A139: 21 | B139: 23393 | C139: 12 | D139: 23404 | E139: 13 | F139: 23413 | K139: 0 | L139: 211
A140: 12 | B140: 23517 | C140: 14 | D140: 23520 | E140: 13 | F140: 23525 | K140: 0 | L140: 111
A141: 21 | B141: 23620 | C141: 21 | D141: 23625 | E141: 11 | F141: 23636 | K141: 0 | L141: 221
A142: 21 | B142: 23815 | C142: 12 | D142: 23825 | E142: 13 | F142: 23831 | K142: 0 | L142: 211
A143: 21 | B143: 23926 | C143: 12 | D143: 23938 | E143: 13 | F143: 23949 | L143: 211

Sheet !MA1291T.AYL
A1: Report for:!MA1291T.AYL
A2: Date: | B2: <date>
A3: Hen: | B3: <hen> | F3: Correct Sequence | G3: =Start!J2 -> 221 | P3: Total Sequences in Data | Q3: =4994-COUNTBLANK(L7:L5000) -> 171 | V3: Total Sequences in Block Data | W3: =COUNTA(L7:L35) -> 29 | AA3: Total Sequences in Block Data | AB3: =COUNTA(L36:L63) -> 28 | AF3: Total Sequences in Block Data | AG3: =COUNTA(L64:L92) -> 29 | AK3: Total Sequences in Block Data | AL3: =COUNTA(L93:L120) -> 28 | AP3: Total Sequences in Block Data | AQ3: =COUNTA(L121:L149) -> 29 | AU3: Total Sequences in Block Data | AV3: =COUNTA(L150:L177) -> 28
P4: Total Sequences in Summary | Q4: =SUM(O7:O14) -> 171 | V4: Total Sequences in Block Summary | W4: =SUM(U7:U14) -> 29 | AA4: Total Sequences in Block Summary | AB4: =SUM(Z7:Z14) -> 28 | AF4: Total Sequences in Block Summary | AG4: =SUM(AE7:AE14) -> 29 | AK4: Total Sequences in Block Summary | AL4: =SUM(AJ7:AJ14) -> 28 | AP4: Total Sequences in Block Summary | AQ4: =SUM(AO7:AO14) -> 29 | AU4: Total Sequences in Block Summary | AV4: =SUM(AT7:AT14) -> 28
T5: Block 1 | Y5: Block 2 | AD5: Block 3 | AI5: Block 4 | AN5: Block 5 | AS5: Block 6
A6: Sequence Component 1 | B6: Time 1 | C6: Sequence Component 2 | D6: Time 2 | E6: Sequence Component 3 | F6: Time 3 | G6: Sequence Component 4 | H6: Time 4 | I6: Sequence Component 5 | J6: Time 5 | K6: Correct? 0=No 1=Yes | L6: Sequence | N6: Frequency | P6: Relative Frequency | Q6: Variability | T6: Frequency | V6: Relative Frequency | W6: Variability | Y6: Frequency | AA6: Relative Frequency | AB6: Variability | AD6: Frequency | AF6: Relative Frequency | AG6: Variability | AI6: Frequency | AK6: Relative Frequency | AL6: Variability | AN6: Frequency | AP6: Relative Frequency | AQ6: Variability | AS6: Frequency | AU6: Relative Frequency | AV6: Variability
A7: 21 | B7: 13 | C7: 21 | D7: 35 | E7: 22 | F7: 58 | K7: 0 | L7: 222 | N7: 111 | O7: =COUNTIF($L$7:$L$500,N7) -> 12 | P7: =O7/$Q$4 -> 0.0701754386 | Q7: =IF(P7=0,0,(P7*((LOG(P7))/LOG(2)))) -> -0.2689747378 | T7: =N7 -> 111 | U7: =COUNTIF(L7:L35,T7) -> 2 | V7: =U7/(W4-U13) -> 0.07407407407 | W7: =IF(V7=0,0,(V7*((LOG(V7))/LOG(2)))) -> -0.278139815 | Y7: =N7 -> 111 | Z7: =COUNTIF(L36:L63,Y7) -> 3 | AA7: =Z7/(AB4-Z13) -> 0.1304347826 | AB7: =IF(AA7=0,0,(AA7*((LOG(AA7))/LOG(2)))) -> -0.3832955811 | AD7: =N7 -> 111 | AE7: =COUNTIF(L64:L92,AD7) -> 4 | AF7: =AE7/(AG4-AE13) -> 0.1666666667 | AG7: =IF(AF7=0,0,(AF7*((LOG(AF7))/LOG(2)))) -> -0.4308270835 | AI7: =N7 -> 111 | AJ7: =COUNTIF(L93:L120,AI7) -> 1 | AK7: =AJ7/(AL4-AJ13) -> 0.05 | AL7: =IF(AK7=0,0,(AK7*((LOG(AK7))/LOG(2)))) -> -0.2160964047 | AN7: =N7 -> 111 | AO7: =COUNTIF(L121:L149,AN7) -> 1 | AP7: =AO7/(AQ4-AO13) -> 0.03846153846 | AQ7: =IF(AP7=0,0,(AP7*((LOG(AP7))/LOG(2)))) -> -0.180786143 | AS7: =N7 -> 111 | AT7: =COUNTIF(L150:L177,AS7) -> 1 | AU7: =AT7/(AV4-AT13) -> 0.03703703704 | AV7: =IF(AU7=0,0,(AU7*((LOG(AU7))/LOG(2)))) -> -0.1761069445
A8: 21 | B8: 166 | C8: 21 | D8: 210 | E8: 22 | F8: 215 | K8: 0 | L8: 222 | N8: 112 | O8: =COUNTIF($L$7:$L$500,N8) -> 8 | P8: =O8/$Q$4 -> 0.04678362573 | Q8: =IF(P8=0,0,(P8*((LOG(P8))/LOG(2)))) -> -0.2066831586 | T8: =N8 -> 112 | U8: =COUNTIF(L7:L35,T8) -> 2 | V8: =U8/(W4-U13) -> 0.07407407407 | W8: =IF(V8=0,0,(V8*((LOG(V8))/LOG(2)))) -> -0.278139815 | Y8: =N8 -> 112 | Z8: =COUNTIF(L36:L63,Y8) -> 2 | AA8: =Z8/(AB4-Z13) -> 0.08695652174 | AB8: =IF(AA8=0,0,(AA8*((LOG(AA8))/LOG(2)))) -> -0.3063966918 | AD8: =N8 -> 112 | AE8: =COUNTIF(L64:L92,AD8) -> 2 | AF8: =AE8/(AG4-AE13) -> 0.08333333333 | AG8: =IF(AF8=0,0,(AF8*((LOG(AF8))/LOG(2)))) -> -0.2987468751 | AI8: =N8 -> 112 | AJ8: =COUNTIF(L93:L120,AI8) -> 0 | AK8: =AJ8/(AL4-AJ13) -> 0 | AL8: =IF(AK8=0,0,(AK8*((LOG(AK8))/LOG(2)))) -> 0 | AN8: =N8 -> 112 | AO8: =COUNTIF(L121:L149,AN8) -> 2 | AP8: =AO8/(AQ4-AO13) -> 0.07692307692 | AQ8: =IF(AP8=0,0,(AP8*((LOG(AP8))/LOG(2)))) -> -0.2846492091 | AS8: =N8 -> 112 | AT8: =COUNTIF(L150:L177,AS8) -> 0 | AU8: =AT8/(AV4-AT13) -> 0 | AV8: =IF(AU8=0,0,(AU8*((LOG(AU8))/LOG(2)))) -> 0
A9: 12 | B9: 317 | C9: 23 | D9: 320 | E9: 24 | F9: 356 | K9: 0 | L9: 122 | N9: 121 | O9: =COUNTIF($L$7:$L$500,N9) -> 11 | P9: =O9/$Q$4 -> 0.06432748538 | Q9: =IF(P9=0,0,(P9*((LOG(P9))/LOG(2)))) -> -0.2546352623 | T9: =N9 -> 121 | U9: =COUNTIF(L7:L35,T9) -> 4 | V9: =U9/(W4-U13) -> 0.1481481481 | W9: =IF(V9=0,0,(V9*((LOG(V9))/LOG(2)))) -> -0.4081314818 | Y9: =N9 -> 121 | Z9: =COUNTIF(L36:L63,Y9) -> 3 | AA9: =Z9/(AB4-Z13) -> 0.1304347826 | AB9: =IF(AA9=0,0,(AA9*((LOG(AA9))/LOG(2)))) -> -0.3832955811 | AD9: =N9 -> 121 | AE9: =COUNTIF(L64:L92,AD9) -> 2 | AF9: =AE9/(AG4-AE13) -> 0.08333333333 | AG9: =IF(AF9=0,0,(AF9*((LOG(AF9))/LOG(2)))) -> -0.2987468751 | AI9: =N9 -> 121 | AJ9: =COUNTIF(L93:L120,AI9) -> 2 | AK9: =AJ9/(AL4-AJ13) -> 0.1 | AL9: =IF(AK9=0,0,(AK9*((LOG(AK9))/LOG(2)))) -> -0.3321928095 | AN9: =N9 -> 121 | AO9: =COUNTIF(L121:L149,AN9) -> 0 | AP9: =AO9/(AQ4-AO13) -> 0 | AQ9: =IF(AP9=0,0,(AP9*((LOG(AP9))/LOG(2)))) -> 0 | AS9: =N9 -> 121 | AT9: =COUNTIF(L150:L177,AS9) -> 0 | AU9: =AT9/(AV4-AT13) -> 0 | AV9: =IF(AU9=0,0,(AU9*((LOG(AU9))/LOG(2)))) -> 0
A10: 21 | B10: 449 | C10: 21 | D10: 452 | E10: 22 | F10: 460 | K10: 0 | L10: 222 | N10: 122 | O10: =COUNTIF($L$7:$L$500,N10) -> 10 | P10: =O10/$Q$4 -> 0.05847953216 | Q10: =IF(P10=0,0,(P10*((LOG(P10))/LOG(2)))) -> -0.2395277439 | T10: =N10 -> 122 | U10: =COUNTIF(L7:L35,T10) -> 2 | V10: =U10/(W4-U13) -> 0.07407407407 | W10: =IF(V10=0,0,(V10*((LOG(V10))/LOG(2)))) -> -0.278139815 | Y10: =N10 -> 122 | Z10: =COUNTIF(L36:L63,Y10) -> 1 | AA10: =Z10/(AB4-Z13) -> 0.04347826087 | AB10: =IF(AA10=0,0,(AA10*((LOG(AA10))/LOG(2)))) -> -0.1966766068 | AD10: =N10 -> 122 | AE10: =COUNTIF(L64:L92,AD10) -> 1 | AF10: =AE10/(AG4-AE13) -> 0.04166666667 | AG10: =IF(AF10=0,0,(AF10*((LOG(AF10))/LOG(2)))) -> -0.1910401042 | AI10: =N10 -> 122 | AJ10: =COUNTIF(L93:L120,AI10) -> 4 | AK10: =AJ10/(AL4-AJ13) -> 0.2 | AL10: =IF(AK10=0,0,(AK10*((LOG(AK10))/LOG(2)))) -> -0.464385619 | AN10: =N10 -> 122 | AO10: =COUNTIF(L121:L149,AN10) -> 0 | AP10: =AO10/(AQ4-AO13) -> 0 | AQ10: =IF(AP10=0,0,(AP10*((LOG(AP10))/LOG(2)))) -> 0 | AS10: =N10 -> 122 | AT10: =COUNTIF(L150:L177,AS10) -> 2 | AU10: =AT10/(AV4-AT13) -> 0.07407407407 | AV10: =IF(AU10=0,0,(AU10*((LOG(AU10))/LOG(2)))) -> -0.278139815
A11: 21 | B11: 555 | C11: 12 | D11: 585 | E11: 24 | F11: 586 | K11: 0 | L11: 212 | N11: 211 | O11: =COUNTIF($L$7:$L$500,N11) -> 9 | P11: =O11/$Q$4 -> 0.05263157895 | Q11: =IF(P11=0,0,(P11*((LOG(P11))/LOG(2)))) -> -0.2235751323 | T11: =N11 -> 211 | U11: =COUNTIF(L7:L35,T11) -> 5 | V11: =U11/(W4-U13) -> 0.1851851852 | W11: =IF(V11=0,0,(V11*((LOG(V11))/LOG(2)))) -> -0.4505480384 | Y11: =N11 -> 211 | Z11: =COUNTIF(L36:L63,Y11) -> 2 | AA11: =Z11/(AB4-Z13) -> 0.08695652174 | AB11: =IF(AA11=0,0,(AA11*((LOG(AA11))/LOG(2)))) -> -0.3063966918 | AD11: =N11 -> 211 | AE11: =COUNTIF(L64:L92,AD11) -> 1 | AF11: =AE11/(AG4-AE13) -> 0.04166666667 | AG11: =IF(AF11=0,0,(AF11*((LOG(AF11))/LOG(2)))) -> -0.1910401042 | AI11: =N11 -> 211 | AJ11: =COUNTIF(L93:L120,AI11) -> 1 | AK11: =AJ11/(AL4-AJ13) -> 0.05 | AL11: =IF(AK11=0,0,(AK11*((LOG(AK11))/LOG(2)))) -> -0.2160964047 | AN11: =N11 -> 211 | AO11: =COUNTIF(L121:L149,AN11) -> 0 | AP11: =AO11/(AQ4-AO13) -> 0 | AQ11: =IF(AP11=0,0,(AP11*((LOG(AP11))/LOG(2)))) -> 0 | AS11: =N11 -> 211 | AT11: =COUNTIF(L150:L177,AS11) -> 0 | AU11: =AT11/(AV4-AT13) -> 0 | AV11: =IF(AU11=0,0,(AU11*((LOG(AU11))/LOG(2)))) -> 0
A12: 21 | B12: 683 | C12: 12 | D12: 696 | E12: 13 | F12: 699 | K12: 0 | L12: 211 | N12: 212 | O12: =COUNTIF($L$7:$L$500,N12) -> 18 | P12: =O12/$Q$4 -> 0.1052631579 | Q12: =IF(P12=0,0,(P12*((LOG(P12))/LOG(2)))) -> -0.3418871067 | T12: =N12 -> 212 | U12: =COUNTIF(L7:L35,T12) -> 3 | V12: =U12/(W4-U13) -> 0.1111111111 | W12: =IF(V12=0,0,(V12*((LOG(V12))/LOG(2)))) -> -0.352213889 | Y12: =N12 -> 212 | Z12: =COUNTIF(L36:L63,Y12) -> 5 | AA12: =Z12/(AB4-Z13) -> 0.2173913043 | AB12: =IF(AA12=0,0,(AA12*((LOG(AA12))/LOG(2)))) -> -0.4786160568 | AD12: =N12 -> 212 | AE12: =COUNTIF(L64:L92,AD12) -> 6 | AF12: =AE12/(AG4-AE13) -> 0.25 | AG12: =IF(AF12=0,0,(AF12*((LOG(AF12))/LOG(2)))) -> -0.5 | AI12: =N12 -> 212 | AJ12: =COUNTIF(L93:L120,AI12) -> 3 | AK12: =AJ12/(AL4-AJ13) -> 0.15 | AL12: =IF(AK12=0,0,(AK12*((LOG(AK12))/LOG(2)))) -> -0.4105448391 | AN12: =N12 -> 212 | AO12: =COUNTIF(L121:L149,AN12) -> 1 | AP12: =AO12/(AQ4-AO13) -> 0.03846153846 | AQ12: =IF(AP12=0,0,(AP12*((LOG(AP12))/LOG(2)))) -> -0.180786143 | AS12: =N12 -> 212 | AT12: =COUNTIF(L150:L177,AS12) -> 0 | AU12: =AT12/(AV4-AT13) -> 0 | AV12: =IF(AU12=0,0,(AU12*((LOG(AU12))/LOG(2)))) -> 0
A13: 21 | B13: 794 | C13: 21 | D13: 797 | E13: 22 | F13: 828 | K13: 0 | L13: 222 | N13: 221 | O13: =COUNTIF($L$7:$L$500,N13) -> 24 | P13: =O13/$Q$4 -> 0.1403508772 | Q13: =IF(P13=0,0,(P13*((LOG(P13))/LOG(2)))) -> -0.3975985985 | T13: =N13 -> 221 | U13: =COUNTIF(L7:L35,T13) -> 2 | Y13: =N13 -> 221 | Z13: =COUNTIF(L36:L63,Y13) -> 5 | AD13: =N13 -> 221 | AE13: =COUNTIF(L64:L92,AD13) -> 5 | AI13: =N13 -> 221 | AJ13: =COUNTIF(L93:L120,AI13) -> 8 | AN13: =N13 -> 221 | AO13: =COUNTIF(L121:L149,AN13) -> 3 | AS13: =N13 -> 221 | AT13: =COUNTIF(L150:L177,AS13) -> 1
A14: 12 | B14: 923 | C14: 14 | D14: 933 | E14: 24 | F14: 946 | K14: 0 | L14: 112 | N14: 222 | O14: =COUNTIF($L$7:$L$500,N14) -> 79 | P14: =O14/$Q$4 -> 0.4619883041 | Q14: =IF(P14=0,0,(P14*((LOG(P14))/LOG(2)))) -> -0.5146881261 | T14: =N14 -> 222 | U14: =COUNTIF(L7:L35,T14) -> 9 | V14: =U14/(W4-U13) -> 0.3333333333 | W14: =IF(V14=0,0,(V14*((LOG(V14))/LOG(2)))) -> -0.5283208336 | Y14: =N14 -> 222 | Z14: =COUNTIF(L36:L63,Y14) -> 7 | AA14: =Z14/(AB4-Z13) -> 0.3043478261 | AB14: =IF(AA14=0,0,(AA14*((LOG(AA14))/LOG(2)))) -> -0.5223238799 | AD14: =N14 -> 222 | AE14: =COUNTIF(L64:L92,AD14) -> 8 | AF14: =AE14/(AG4-AE13) -> 0.3333333333 | AG14: =IF(AF14=0,0,(AF14*((LOG(AF14))/LOG(2)))) -> -0.5283208336 | AI14: =N14 -> 222 | AJ14: =COUNTIF(L93:L120,AI14) -> 9 | AK14: =AJ14/(AL4-AJ13) -> 0.45 | AL14: =IF(AK14=0,0,(AK14*((LOG(AK14))/LOG(2)))) -> -0.5184013921 | AN14: =N14 -> 222 | AO14: =COUNTIF(L121:L149,AN14) -> 22 | AP14: =AO14/(AQ4-AO13) -> 0.8461538462 | AQ14: =IF(AP14=0,0,(AP14*((LOG(AP14))/LOG(2)))) -> -0.2039299303 | AS14: =N14 -> 222 | AT14: =COUNTIF(L150:L177,AS14) -> 24 | AU14: =AT14/(AV4-AT13) -> 0.8888888889 | AV14: =IF(AU14=0,0,(AU14*((LOG(AU14))/LOG(2)))) -> -0.1510444457
A15: 21 | B15: 1040 | C15: 21 | D15: 1044 | E15: 11 | F15: 1068 | K15: 0 | L15: 221 | P15: =SUM(P7:P14) -> 1 | Q15: =-SUM(Q7:Q14) -> 2.447569866 | V15: =SUM(V7:V14) -> 1 | W15: =-SUM(W7:W14) -> 2.573633688 | AA15: =SUM(AA7:AA14) -> 1 | AB15: =-SUM(AB7:AB14) -> 2.577001089 | AF15: =SUM(AF7:AF14) -> 1 | AG15: =-SUM(AG7:AG14) -> 2.438721876 | AK15: =SUM(AK7:AK14) -> 1 | AL15: =-SUM(AL7:AL14) -> 2.157717469 | AP15: =SUM(AP7:AP14) -> 1 | AQ15: =-SUM(AQ7:AQ14) -> 0.8501514254 | AU15: =SUM(AU7:AU14) -> 1 | AV15: =-SUM(AV7:AV14) -> 0.6052912052
A16: 12 | B16: 1238 | C16: 23 | D16: 1263 | E16: 13 | F16: 1268 | K16: 0 | L16: 121 | P16: U= | Q16: =Q15/(LOG(Q4)/LOG(2)) -> 0.3299566635 | V16: U1= | W16: =W15/(LOG(W4)/LOG(2)) -> 0.5297743425 | AA16: U2= | AB16: =AB15/(LOG(AB4)/LOG(2)) -> 0.5360538448 | AF16: U3= | AG16: =AG15/(LOG(AG4)/LOG(2)) -> 0.5020031733 | AK16: U4= | AL16: =AL15/(LOG(AL4)/LOG(2)) -> 0.4488367312 | AP16: U5= | AQ16: =AQ15/(LOG(AQ4)/LOG(2)) -> 0.175000978 | AU16: U6= | AV16: =AV15/(LOG(AV4)/LOG(2)) -> 0.1259094065
A17: 21 | B17: 1363 | C17: 12 | D17: 1366 | E17: 13 | F17: 1370 | K17: 0 | L17: 211
A18: 12 | B18: 1464 | C18: 14 | D18: 1471 | E18: 13 | F18: 1495 | K18: 0 | L18: 111
A19: 21 | B19: 1590 | C19: 21 | D19: 1609 | E19: 22 | F19: 1629 | K19: 0 | L19: 222 | N19: Total Target Seq
A20: 12 | B20: 1722 | C20: 23 | D20: 1724 | E20: 24 | F20: 1727 | K20: 0 | L20: 122 | N20: =COUNTIF(L7:L177,G3) -> 24 | P20: 29 | Q20: 28 | R20: 29 | S20: 28 | T20: 29 | U20: 28
A21: 21 | B21: 1822 | C21: 21 | D21: 1853 | E21: 22 | F21: 1859 | K21: 0 | L21: 222 | P21: % of reinforcement given in 6 equal intervals based on number of trials
A22: 21 | B22: 1956 | C22: 12 | D22: 1961 | E22: 24 | F22: 1994 | K22: 0 | L22: 212 | P22: %_1 | Q22: %_2 | R22: %_3 | S22: %_4 | T22: %_5 | U22: %_6
A23: 12 | B23: 2091 | C23: 23 | D23: 2093 | E23: 13 | F23: 2125 | K23: 0 | L23: 121 | O23: target sequence | P23: =$G$3 -> 221 | Q23: =$G$3 -> 221 | R23: =$G$3 -> 221 | S23: =$G$3 -> 221 | T23: =$G$3 -> 221 | U23: =$G$3 -> 221
A24: 21 | B24: 2218 | C24: 12 | D24: 2228 | E24: 13 | F24: 2230 | K24: 0 | L24: 211 | O24: total reinforcement | P24: =U13 -> 2 | Q24: =Z13 -> 5 | R24: =AE13 -> 5 | S24: =AJ13 -> 8 | T24: =AO13 -> 3 | U24: =AT13 -> 1
A25: 21 | B25: 2328 | C25: 12 | D25: 2338 | E25: 13 | F25: 2345 | K25: 0 | L25: 211 | O25: % target
A26: 12 | B26: 2441 | C26: 23 | D26: 2444 | E26: 13 | F26: 2463 | K26: 0 | L26: 121 | O26: CCRF
A27: 21 | B27: 2558 | C27: 21 | D27: 2579 | E27: 22 | F27: 2608 | K27: 0 | L27: 222 | O27: % CCRf
A28: 12 | B28: 2704 | C28: 23 | D28: 2706 | E28: 13 | F28: 2714 | K28: 0 | L28: 121 | O28: average response rate | P28: =F35/P20 -> 127.7931034 | Q28: =(F63-F35)/Q20 -> 143.6785714 | R28: =(F92-F63)/R20 -> 141.8275862 | S28: =(F120-F92)/S20 -> 144.3214286 | T28: =(F149-F120)/T20 -> 147.4137931 | U28: =(F177-F149)/U20 -> 136.2857143
A29: 21 | B29: 2806 | C29: 21 | D29: 2810 | E29: 11 | F29: 2819 | K29: 0 | L29: 221
A30: 12 | B30: 2966 | C30: 14 | D30: 2984 | E30: 13 | F30: 3013 | K30: 0 | L30: 111
A31: 21 | B31: 3114 | C31: 12 | D31: 3133 | E31: 13 | F31: 3139 | K31: 0 | L31: 211
A32: 21 | B32: 3237 | C32: 12 | D32: 3251 | E32: 24 | F32: 3284 | K32: 0 | L32: 212
A33: 21 | B33: 3381 | C33: 21 | D33: 3419 | E33: 22 | F33: 3449 | K33: 0 | L33: 222
A34: 21 | B34: 3547 | C34: 21 | D34: 3576 | E34: 22 | F34: 3582 | K34: 0 | L34: 222
A35: 12 | B35: 3686 | C35: 14 | D35: 3688 | E35: 24 | F35: 3706 | K35: 0 | L35: 112
A36: 21 | B36: 3800 | C36: 21 | D36: 3802 | E36: 22 | F36: 3836 | K36: 0 | L36: 222
A37: 21 | B37: 3932 | C37: 21 | D37: 3935 | E37: 22 | F37: 3968 | K37: 0 | L37: 222
A38: 21 | B38: 4064 | C38: 12 | D38: 4069 | E38: 24 | F38: 4090 | K38: 0 | L38: 212
A39: 21 | B39: 4186 | C39: 21 | D39: 4212 | E39: 22 | F39: 4217 | K39: 0 | L39: 222
A40: 21 | B40: 4314 | C40: 12 | D40: 4336 | E40: 24 | F40: 4340 | K40: 0 | L40: 212
A41: 12 | B41: 4432 | C41: 14 | D41: 4469 | E41: 24 | F41: 4488 | K41: 0 | L41: 112
A42: 12 | B42: 4584 | C42: 23 | D42: 4587 | E42: 13 | F42: 4604 | K42: 0 | L42: 121
A43: 21 | B43: 4701 | C43: 12 | D43: 4709 | E43: 13 | F43: 4722 | K43: 0 | L43: 211
A44: 21 | B44: 4820 | C44: 21 | D44: 4822 | E44: 22 | F44: 4851 | K44: 0 | L44: 222
A45: 21 | B45: 4947 | C45: 12 | D45: 4968 | E45: 24 | F45: 4975 | K45: 0 | L45: 212
A46: 21 | B46: 5072 | C46: 12 | D46: 5091 | E46: 24 | F46: 5098 | K46: 0 | L46: 212
A47: 21 | B47: 5204 | C47: 12 | D47: 5208 | E47: 24 | F47: 5239 | K47: 0 | L47: 212
A48: 12 | B48: 5332 | C48: 23 | D48: 5335 | E48: 24 | F48: 5352 | K48: 0 | L48: 122
A49: 21 | B49: 5448 | C49: 21 | D49: 5450 | E49: 22 | F49: 5499 | K49: 0 | L49: 222
A50: 21 | B50: 5594 | C50: 21 | D50: 5608 | E50: 22 | F50: 5614 | K50: 0 | L50: 222
A51: 21 | B51: 5710 | C51: 21 | D51: 5713 | E51: 22 | F51: 5736 | K51: 0 | L51: 222
A52: 21 | B52: 5831 | C52: 21 | D52: 5835 | E52: 11 | F52: 5863 | K52: 0 | L52: 221
A53: 12 | B53: 6054 | C53: 14 | D53: 6060 | E53: 13 | F53: 6062 | K53: 0 | L53: 111
A54: 21 | B54: 6157 | C54: 21 | D54: 6159 | E54: 11 | F54: 6170 | K54: 0 | L54: 221
A55: 12 | B55: 6415 | C55: 23 | D55: 6489 | E55: 13 | F55: 6493 | K55: 0 | L55: 121
A56: 21 | B56: 6597 | C56: 12 | D56: 6616 | E56: 13 | F56: 6624 | K56: 0 | L56: 211
A57: 21 | B57: 6720 | C57: 21 | D57: 6739 | E57: 11 | F57: 6742 | K57: 0 | L57: 221
A58: 12 | B58: 6849 | C58: 14 | D58: 6856 | E58: 24 | F58: 6859 | K58: 0 | L58: 112
A59: 21 | B59: 6954 | C59: 21 | D59: 6957 | E59: 11 | F59: 6977 | K59: 0 | L59: 221
A60: 12 | B60: 7067 | C60: 14 | D60: 7107 | E60: 13 | F60: 7114 | K60: 0 | L60: 111
A61: 21 | B61: 7218 | C61: 21 | D61: 7221 | E61: 11 | F61: 7259 | K61: 0 | L61: 221
A62: 12 | B62: 7400 | C62: 14 | D62: 7406 | E62: 13 | F62: 7480 | K62: 0 | L62: 111
A63: 12 | B63: 7583 | C63: 23 | D63: 7677 | E63: 13 | F63: 7729 | K63: 0 | L63: 121
A64: 21 | B64: 7823 | C64: 21 | D64: 7828 | E64: 11 | F64: 7834 | K64: 0 | L64: 221
A65: 12 | B65: 7927 | C65: 14 | D65: 7975 | E65: 24 | F65: 7995 | K65: 0 | L65: 112
A66: 12 | B66: 8091 | C66: 23 | D66: 8094 | E66: 13 | F66: 8129 | K66: 0 | L66: 121
A67: 21 | B67: 8223 | C67: 21 | D67: 8226 | E67: 22 | F67: 8227 | K67: 0 | L67: 222
A68: 12 | B68: 8321 | C68: 23 | D68: 8325 | E68: 13 | F68: 8336 | K68: 0 | L68: 121
A69: 21 | B69: 8433 | C69: 12 | D69: 8469 | E69: 24 | F69: 8472 | K69: 0 | L69: 212
A70: 21 | B70: 8569 | C70: 12 | D70: 8585 | E70: 24 | F70: 8597 | K70: 0 | L70: 212
A71: 21 | B71: 8692 | C71: 12 | D71: 8710 | E71: 24 | F71: 8740 | K71: 0 | L71: 212
A72: 21 | B72: 8836 | C72: 21 | D72: 8839 | E72: 11 | F72: 8856 | K72: 0 | L72: 221
A73: 12 | B73: 8975 | C73: 14 | D73: 8979 | E73: 13 | F73: 8981 | K73: 0 | L73: 111
A74: 12 | B74: 9095 | C74: 14 | D74: 9174 | E74: 24 | F74: 9180 | K74: 0 | L74: 112
A75: 21 | B75: 9271 | C75: 12 | D75: 9275 | E75: 24 | F75: 9279 | K75: 0 | L75: 212
A76: 21 | B76: 9374 | C76: 21 | D76: 9422 | E76: 22 | F76: 9429 | K76: 0 | L76: 222
A77: 12 | B77: 9522 | C77: 23 | D77: 9525 | E77: 24 | F77: 9527 | K77: 0 | L77: 122
A78: 21 | B78: 9623 | C78: 21 | D78: 9625 | E78: 11 | F78: 9632 | K78: 0 | L78: 221
A79: 12 | B79: 9728 | C79: 14 | D79: 9802 | E79: 13 | F79: 9807 | K79: 0 | L79: 111
A80: 12 | B80: 9921 | C80: 14 | D80: 10072 | E80: 13 | F80: 10077 | K80: 0 | L80: 111
A81: 21 | B81: 10201 | C81: 21 | D81: 10206 | E81: 22 | F81: 10213 | K81: 0 | L81: 222
A82: 21 | B82: 10309 | C82: 12 | D82: 10333 | E82: 24 | F82: 10340 | K82: 0 | L82: 212
A83: 21 | B83: 10434 | C83: 21 | D83: 10436 | E83: 22 | F83: 10473 | K83: 0 | L83: 222
A84: 21 | B84: 10568 | C84: 21 | D84: 10572 | E84: 11 | F84: 10602 | K84: 0 | L84: 221
A85: 12 | B85: 10719 | C85: 14 | D85: 10726 | E85: 13 | F85: 10822 | K85: 0 | L85: 111
A86: 21 | B86: 10927 | C86: 21 | D86: 10933 | E86: 11 | F86: 10935 | K86: 0 | L86: 221
A87: 21 | B87: 11080 | C87: 12 | D87: 11088 | E87: 13 | F87: 11132 | K87: 0 | L87: 211
A88: 21 | B88: 11227 | C88: 21 | D88: 11230 | E88: 22 | F88: 11271 | K88: 0 | L88: 222
A89: 21 | B89: 11367 | C89: 12 | D89: 11375 | E89: 24 | F89: 11418 | K89: 0 | L89: 212
A90: 21 | B90: 11512 | C90: 21 | D90: 11515 | E90: 22 | F90: 11574 | K90: 0 | L90: 222
A91: 21 | B91: 11671 | C91: 21 | D91: 11674 | E91: 22 | F91: 11710 | K91: 0 | L91: 222
A92: 21 | B92: 11806 | C92: 21 | D92: 11809 | E92: 22 | F92: 11842 | K92: 0 | L92: 222
A93: 12 | B93: 11935 | C93: 23 | D93: 11939 | E93: 13 | F93: 11964 | K93: 0 | L93: 121
A94: 21 | B94: 12059 | C94: 21 | D94: 12119 | E94: 11 | F94: 12128 | K94: 0 | L94: 221
A95: 12 | B95: 12258 | C95: 23 | D95: 12355 | E95: 24 | F95: 12358 | K95: 0 | L95: 122
A96: 21 | B96: 12452 | C96: 21 | D96: 12455 | E96: 22 | F96: 12457 | K96: 0 | L96: 222
A97: 21 | B97: 12552 | C97: 21 | D97: 12556 | E97: 11 | F97: 12588 | K97: 0 | L97: 221
A98: 21 | B98: 12794 | C98: 21 | D98: 12796 | E98: 11 | F98: 12814 | K98: 0 | L98: 221
A99: 12 | B99: 12969 | C99: 23 | D99: 12993 | E99: 13 | F99: 13030 | K99: 0 | L99: 121
A100: 21 | B100: 13123 | C100: 21 | D100: 13126 | E100: 11 | F100: 13155 | K100: 0 | L100: 221
A101: 21 | B101: 13334 | C101: 21 | D101: 13340 | E101: 22 | F101: 13342 | K101: 0 | L101: 222
A102: 21 | B102: 13437 | C102: 12 | D102: 13477 | E102: 13 | F102: 13483 | K102: 0 | L102: 211
A103: 21 | B103: 13578 | C103: 21 | D103: 13581 | E103: 22 | F103: 13631 | K103: 0 | L103: 222
A104: 21 | B104: 13728 | C104: 21 | D104: 13746 | E104: 11 | F104: 13749 | K104: 0 | L104: 221
A105: 21 | B105: 13853 | C105: 12 | D105: 13894 | E105: 24 | F105: 13913 | K105: 0 | L105: 212
A106: 12 | B106: 14004 | C106: 23 | D106: 14007 | E106: 24 | F106: 14046 | K106: 0 | L106: 122
A107: 21 | B107: 14141 | C107: 21 | D107: 14143 | E107: 22 | F107: 14159 | K107: 0 | L107: 222
A108: 21 | B108: 14256 | C108: 21 | D108: 14258 | E108: 22 | F108: 14280 | K108: 0 | L108: 222
A109: 21 | B109: 14373 | C109: 21 | D109: 14375 | E109: 11 | F109: 14394 | K109: 0 | L109: 221
A110: 12 | B110: 14503 | C110: 14 | D110: 14505 | E110: 13 | F110: 14546 | K110: 0 | L110: 111
A111: 12 | B111: 14639 | C111: 23 | D111: 14649 | E111: 24 | F111: 14653 | K111: 0 | L111: 122
A112: 21 | B112: 14748 | C112: 21 | D112: 14749 | E112: 11 | F112: 14775 | K112: 0 | L112: 221
A113: 21 | B113: 14912 | C113: 21 | D113: 14914 | E113: 22 | F113: 14919 | K113: 0 | L113: 222
A114: 21 | B114: 15017 | C114: 21 | D114: 15033 | E114: 22 | F114: 15043 | K114: 0 | L114: 222
A115: 21 | B115: 15139 | C115: 12 | D115: 15193 | E115: 24 | F115: 15197 | K115: 0 | L115: 212
A116: 21 | B116: 15291 | C116: 21 | D116: 15294 | E116: 22 | F116: 15338 | K116: 0 | L116: 222
A117: 21 | B117: 15436 | C117: 12 | D117: 15450 | E117: 24 | F117: 15482 | K117: 0 | L117: 212
A118: 21 | B118: 15574 | C118: 21 | D118: 15576 | E118: 22 | F118: 15602 | K118: 0 | L118: 222
A119: 21 | B119: 15697 | C119: 21 | D119: 15700 | E119: 11 | F119: 15706 | K119: 0 | L119: 221
A120: 12 | B120: 15874 | C120: 23 | D120: 15880 | E120: 24 | F120: 15883 | K120: 0 | L120: 122
A121: 21 | B121: 15980 | C121: 21 | D121: 16037 | E121: 22 | F121: 16041 | K121: 0 | L121: 222
